Workbook

Sheet Settings (hidden)
A1: Version Number | B1: Lock Worksheets: | C1: Beta
A2: 9.42 | B2: Yes | C2: No
A3: =CONCATENATE(A2," C | © 2022") -> 9.42 C | © 2022
A5: View Options | B5: 1 | C5: 1
A6: Input View | C6: Show Periods
A7: Print View | C7: Show Dates
N9: Amortizing Rate Structure | R9: Loan Costs Amortization
A10: Summary Chart Data | C10: 1 | D10: 2 | E10: 3 | F10: 4 | G10: 5 | H10: 6 | I10: 7 | J10: 8 | K10: 9 | L10: 10 | N10: Year | O10: Step | P10: Rate | R10: Year | S10: Start | T10: End | U10: I/O | V10: Amortizing | W10: Total
A11: Net Operating Income | C11: ='Sources & Uses'!D11 -> 118520.8 | D11: ='Sources & Uses'!E11 -> 116681.8 | E11: ='Sources & Uses'!F11 -> 88965.52028 | F11: ='Sources & Uses'!G11 -> 120568.4133 | G11: ='Sources & Uses'!H11 -> 101861.3179 | H11: ='Sources & Uses'!I11 -> 140118.4194 | I11: ='Sources & Uses'!J11 -> 142856.477 | J11: ='Sources & Uses'!K11 -> 126967.1361 | K11: ='Sources & Uses'!L11 -> 157513.8314 | L11: ='Sources & Uses'!M11 -> 162539.9639 | N11: 1 | O11: 0 | P11: =Loan_Amor_Rate+O11 -> 0.045 | R11: 1 | S11: 1 | T11: 12 | U11: =IF($R11>Hold,0,IF(Loan_IO_Term<$S11,0,IF(Loan_IO_Term>=$T11,(Loan_IO_Fee*Loan_Amount*12)/Loan_IO_Term,(Loan_IO_Term-S11+1)*((Loan_IO_Fee*Loan_Amount)/Loan_IO_Term)))) -> 0 | V11: =IF(OR(R11>Hold,Loan_IO_Term>=T11),0,IF(T11-Loan_IO_Term<12,((Loan_Amount_Amortizing*Loan_Amor_Fee)/Loan_Amor_Term)*(T11-Loan_IO_Term),IF(T11<=SUM(Loan_IO_Term,Loan_Amor_Term),(Loan_Amount_Amortizing*Loan_Amor_Fee*12)/Loan_Amor_Term,IF(AND(SUM(Loan_IO_Term,Loan_Amor_Term)>=S11,SUM(Loan_IO_Term,Loan_Amor_Term)<T11),((Loan_Amount_Amortizing*Loan_Amor_Fee)/Loan_Amor_Term)*(SUM(Loan_IO_Term,Loan_Amor_Term)-S11+1),0)))) -> 0 | W11: =SUM(U11:V11) -> 0
A12: Debt Serivce | C12: =IF('Cash Flows'!F$82=0,NA(),'Cash Flows'!F$82) -> 92619.86868 | D12: =IF('Cash Flows'!G$82=0,NA(),'Cash Flows'!G$82) -> 92619.86868 | E12: =IF('Cash Flows'!H$82=0,NA(),'Cash Flows'!H$82) -> 92619.86868 | F12: =IF('Cash Flows'!I$82=0,NA(),'Cash Flows'!I$82) -> 92619.86868 | G12: =IF('Cash Flows'!J$82=0,NA(),'Cash Flows'!J$82) -> 92619.86868 | H12: =IF('Cash Flows'!K$82=0,NA(),'Cash Flows'!K$82) -> 92619.86868 | I12: =IF('Cash Flows'!L$82=0,NA(),'Cash Flows'!L$82) -> 92619.86868 | J12: =IF('Cash Flows'!M$82=0,NA(),'Cash Flows'!M$82) -> 92619.86868 | K12: =IF('Cash Flows'!N$82=0,NA(),'Cash Flows'!N$82) -> 92619.86868 | L12: =IF('Cash Flows'!O$82=0,NA(),'Cash Flows'!O$82) -> 92619.86868 | N12: 2 | O12: =IF(MOD(N11,Loan_Amor_RateGrowthPeriod)=0,Loan_Amor_RateGrowth,0) -> 0 | P12: =P11+O12 -> 0.045 | R12: 2 | S12: =T11+1 -> 13 | T12: =T11+12 -> 24 | U12: 0 | V12: 1220 | W12: =SUM(U12:V12) -> 1220
A13: Cash Flow After Taxes | C13: ='Return Detail'!F83 -> 763.1390257 | D13: ='Return Detail'!G83 -> 0 | E13: ='Return Detail'!H83 -> 0 | F13: ='Return Detail'!I83 -> 616.3830574 | G13: ='Return Detail'!J83 -> 0 | H13: ='Return Detail'!K83 -> 11874.39 | I13: ='Return Detail'!L83 -> -2517.399865 | J13: ='Return Detail'!M83 -> -28198.01293 | K13: ='Return Detail'!N83 -> -24650.57396 | L13: ='Return Detail'!O83 -> 33088.45856 | N13: 3 | O13: 0 | P13: 0.045 | R13: 3 | S13: =T12+1 -> 25 | T13: =T12+12 -> 36 | U13: 0 | V13: 1220 | W13: 1220
A14: Return on Asset | C14: =IF(C10>Hold,NA(),'Return Detail'!F9/Acquisition_Unlevered) -> 0.0592604 | D14: =IF(D10>Hold,NA(),'Return Detail'!G9/Acquisition_Unlevered) -> 0.0583409 | E14: =IF(E10>Hold,NA(),'Return Detail'!H9/Acquisition_Unlevered) -> 0.02183160101 | F14: =IF(F10>Hold,NA(),'Return Detail'!I9/Acquisition_Unlevered) -> 0.06028420665 | G14: =IF(G10>Hold,NA(),'Return Detail'!J9/Acquisition_Unlevered) -> 0.02323149228 | H14: =IF(H10>Hold,NA(),'Return Detail'!K9/Acquisition_Unlevered) -> 0.07005920971 | I14: =IF(I10>Hold,NA(),'Return Detail'!L9/Acquisition_Unlevered) -> 0.04694990517 | J14: =IF(J10>Hold,NA(),'Return Detail'!M9/Acquisition_Unlevered) -> 0.04351440138 | K14: =IF(K10>Hold,NA(),'Return Detail'!N9/Acquisition_Unlevered) -> 0.05105774901 | L14: =IF(L10>Hold,NA(),'Return Detail'!O9/Acquisition_Unlevered) -> 0.08626998197 | N14: 4 | O14: 0 | P14: 0.045 | R14: 4 | S14: =T13+1 -> 37 | T14: =T13+12 -> 48 | U14: 0 | V14: 1220 | W14: 1220
A15: Before Tax Cash on Cash | C15: =IF(C10>Hold,NA(),'Return Detail'!F80/Equity_Amount) -> 0.03269493981 | D15: =IF(D10>Hold,NA(),'Return Detail'!G80/Equity_Amount) -> 0.03037355633 | E15: =IF(E10>Hold,NA(),'Return Detail'!H80/Equity_Amount) -> -0.06179836742 | F15: =IF(F10>Hold,NA(),'Return Detail'!I80/Equity_Amount) -> 0.03527965744 | G15: =IF(G10>Hold,NA(),'Return Detail'!J80/Equity_Amount) -> -0.05826418091 | H15: =IF(H10>Hold,NA(),'Return Detail'!K80/Equity_Amount) -> 0.05995777676 | I15: =IF(I10>Hold,NA(),'Return Detail'!L80/Equity_Amount) -> 0.001615679965 | J15: =IF(J10>Hold,NA(),'Return Detail'!M80/Equity_Amount) -> -0.00705764443 | K15: =IF(K10>Hold,NA(),'Return Detail'!N80/Equity_Amount) -> 0.01198640413 | L15: =IF(L10>Hold,NA(),'Return Detail'!O80/Equity_Amount) -> 0.1008837355 | N15: 5 | O15: 0 | P15: 0.045 | R15: 5 | S15: 49 | T15: 60 | U15: 0 | V15: 1220 | W15: 1220
A16: After Tax Cash on Cash | C16: =IF(C10>Hold,NA(),'Return Detail'!F83/Equity_Amount) -> 0.0009633161143 | D16: =IF(D10>Hold,NA(),'Return Detail'!G83/Equity_Amount) -> 0 | E16: =IF(E10>Hold,NA(),'Return Detail'!H83/Equity_Amount) -> 0 | F16: =IF(F10>Hold,NA(),'Return Detail'!I83/Equity_Amount) -> 0.000778064955 | G16: =IF(G10>Hold,NA(),'Return Detail'!J83/Equity_Amount) -> 0 | H16: =IF(H10>Hold,NA(),'Return Detail'!K83/Equity_Amount) -> 0.01498913153 | I16: =IF(I10>Hold,NA(),'Return Detail'!L83/Equity_Amount) -> -0.003177732726 | J16: =IF(J10>Hold,NA(),'Return Detail'!M83/Equity_Amount) -> -0.03559456315 | K16: =IF(K10>Hold,NA(),'Return Detail'!N83/Equity_Amount) -> -0.03111660435 | L16: =IF(L10>Hold,NA(),'Return Detail'!O83/Equity_Amount) -> 0.04176780934 | N16: 6 | O16: 0 | P16: 0.045 | R16: 6 | S16: 61 | T16: 72 | U16: 0 | V16: 1220 | W16: 1220
A17: Pre Tax | C17: =IF(C10>Hold,NA(),'Cash Flows'!F85) -> 0.7365911182 | D17: =IF(D10>Hold,NA(),'Cash Flows'!G85) -> 0.7449616235 | E17: =IF(E10>Hold,NA(),'Cash Flows'!H85) -> 0.8665689831 | F17: =IF(F10>Hold,NA(),'Cash Flows'!I85) -> 0.7340313104 | G17: =IF(G10>Hold,NA(),'Cash Flows'!J85) -> 0.8080776788 | H17: =IF(H10>Hold,NA(),'Cash Flows'!K85) -> 0.6753941742 | I17: =IF(I10>Hold,NA(),'Cash Flows'!L85) -> 0.6697677677 | J17: =IF(J10>Hold,NA(),'Cash Flows'!M85) -> 0.7195690007 | K17: =IF(K10>Hold,NA(),'Cash Flows'!N85) -> 0.6360638802 | L17: =IF(L10>Hold,NA(),'Cash Flows'!O85) -> 0.6265552738 | N17: 7 | O17: 0 | P17: 0.045 | R17: 7 | S17: 73 | T17: 84 | U17: 0 | V17: 1220 | W17: 1220
A18: After Tax | C18: =IF(C10>Hold,NA(),IFERROR(SUM('Cash Flows'!F122,'Cash Flows'!F91,'Cash Flows'!F82,'Cash Flows'!F53)/SUM('Cash Flows'!F33,'Cash Flows'!F23,'Cash Flows'!F90),"-")) -> 0.6221724005 | D18: =IF(D10>Hold,NA(),IFERROR(SUM('Cash Flows'!G122,'Cash Flows'!G91,'Cash Flows'!G82,'Cash Flows'!G53)/SUM('Cash Flows'!G33,'Cash Flows'!G23,'Cash Flows'!G90),"-")) -> 0.6327773569 | E18: =IF(E10>Hold,NA(),IFERROR(SUM('Cash Flows'!H122,'Cash Flows'!H91,'Cash Flows'!H82,'Cash Flows'!H53)/SUM('Cash Flows'!H33,'Cash Flows'!H23,'Cash Flows'!H90),"-")) -> 0.7844156679 | F18: =IF(F10>Hold,NA(),IFERROR(SUM('Cash Flows'!I122,'Cash Flows'!I91,'Cash Flows'!I82,'Cash Flows'!I53)/SUM('Cash Flows'!I33,'Cash Flows'!I23,'Cash Flows'!I90),"-")) -> 0.6144935763 | G18: =IF(G10>Hold,NA(),IFERROR(SUM('Cash Flows'!J122,'Cash Flows'!J91,'Cash Flows'!J82,'Cash Flows'!J53)/SUM('Cash Flows'!J33,'Cash Flows'!J23,'Cash Flows'!J90),"-")) -> 0.7053982757 | H18: =IF(H10>Hold,NA(),IFERROR(SUM('Cash Flows'!K122,'Cash Flows'!K91,'Cash Flows'!K82,'Cash Flows'!K53)/SUM('Cash Flows'!K33,'Cash Flows'!K23,'Cash Flows'!K90),"-")) -> 0.5362359877 | I18: =IF(I10>Hold,NA(),IFERROR(SUM('Cash Flows'!L122,'Cash Flows'!L91,'Cash Flows'!L82,'Cash Flows'!L53)/SUM('Cash Flows'!L33,'Cash Flows'!L23,'Cash Flows'!L90),"-")) -> 0.52698232 | J18: =IF(J10>Hold,NA(),IFERROR(SUM('Cash Flows'!M122,'Cash Flows'!M91,'Cash Flows'!M82,'Cash Flows'!M53)/SUM('Cash Flows'!M33,'Cash Flows'!M23,'Cash Flows'!M90),"-")) -> 0.5869045915 | K18: =IF(K10>Hold,NA(),IFERROR(SUM('Cash Flows'!N122,'Cash Flows'!N91,'Cash Flows'!N82,'Cash Flows'!N53)/SUM('Cash Flows'!N33,'Cash Flows'!N23,'Cash Flows'!N90),"-")) -> 0.4804868859 | L18: =IF(L10>Hold,NA(),IFERROR(SUM('Cash Flows'!O122,'Cash Flows'!O91,'Cash Flows'!O82,'Cash Flows'!O53)/SUM('Cash Flows'!O33,'Cash Flows'!O23,'Cash Flows'!O90),"-")) -> 0.4663219304 | N18: 8 | O18: 0 | P18: 0.045 | R18: 8 | S18: 85 | T18: 96 | U18: 0 | V18: 1220 | W18: 1220
A19: Debt Service Coverage Ratio | C19: =C11/C12 -> 1.279647679 | D19: 1.259792328 | E19: 0.9605446601 | F19: 1.30175539 | G19: 1.099778259 | H19: 1.512833277 | I19: 1.54239559 | J19: 1.370841245 | K19: 1.700648399 | L19: 1.754914645 | N19: 9 | O19: 0 | P19: 0.045 | R19: 9 | S19: 97 | T19: 108 | U19: 0 | V19: 1220 | W19: 1220
A20: LTV | C20: =IF(C10>Hold,NA(),IFERROR('Cash Flows'!F87/'Cash Flows'!#REF!,NA())) ->  | D20: =IF(D10>Hold,NA(),IFERROR('Cash Flows'!G87/'Cash Flows'!#REF!,NA())) ->  | E20: =IF(E10>Hold,NA(),IFERROR('Cash Flows'!H87/'Cash Flows'!#REF!,NA())) ->  | F20: =IF(F10>Hold,NA(),IFERROR('Cash Flows'!I87/'Cash Flows'!#REF!,NA())) ->  | G20: =IF(G10>Hold,NA(),IFERROR('Cash Flows'!J87/'Cash Flows'!#REF!,NA())) ->  | H20: =IF(H10>Hold,NA(),IFERROR('Cash Flows'!K87/'Cash Flows'!#REF!,NA())) ->  | I20: =IF(I10>Hold,NA(),IFERROR('Cash Flows'!L87/'Cash Flows'!#REF!,NA())) ->  | J20: =IF(J10>Hold,NA(),IFERROR('Cash Flows'!M87/'Cash Flows'!#REF!,NA())) ->  | K20: =IF(K10>Hold,NA(),IFERROR('Cash Flows'!N87/'Cash Flows'!#REF!,NA())) ->  | L20: =IF(L10>Hold,NA(),IFERROR('Cash Flows'!O87/'Cash Flows'!#REF!,NA())) ->  | N20: 10 | O20: 0 | P20: 0.045 | R20: 10 | S20: 109 | T20: 120 | U20: 0 | V20: 1220 | W20: 1220
A21: Debt Yield | C21: =IF(C10>Hold,NA(),IFERROR('Cash Flows'!F63/'Cash Flows'!F87,NA())) -> 1.279647679 | D21: =IF(D10>Hold,NA(),IFERROR('Cash Flows'!G63/'Cash Flows'!G87,NA())) -> 1.259792328 | E21: =IF(E10>Hold,NA(),IFERROR('Cash Flows'!H63/'Cash Flows'!H87,NA())) -> 0.9605446601 | F21: =IF(F10>Hold,NA(),IFERROR('Cash Flows'!I63/'Cash Flows'!I87,NA())) -> 1.30175539 | G21: =IF(G10>Hold,NA(),IFERROR('Cash Flows'!J63/'Cash Flows'!J87,NA())) -> 1.099778259 | H21: =IF(H10>Hold,NA(),IFERROR('Cash Flows'!K63/'Cash Flows'!K87,NA())) -> 1.512833277 | I21: =IF(I10>Hold,NA(),IFERROR('Cash Flows'!L63/'Cash Flows'!L87,NA())) -> 1.54239559 | J21: =IF(J10>Hold,NA(),IFERROR('Cash Flows'!M63/'Cash Flows'!M87,NA())) -> 1.370841245 | K21: =IF(K10>Hold,NA(),IFERROR('Cash Flows'!N63/'Cash Flows'!N87,NA())) -> 1.700648399 | L21: =IF(L10>Hold,NA(),IFERROR('Cash Flows'!O63/'Cash Flows'!O87,NA())) -> 1.754914645
A25: Rent Roll Analysis | G25: I/O Loan Sizing
A26: Status | B26: Status | D26: SF | E26: % SF | G26: Loan IO Term | H26: =Loan_IO_Term -> 12
A27: Vacant | B27: Vacant | G27: At Maturity | H27: =Loan_IO_AtMaturity -> Resize Loan Amount
A28: Non-Rentable | B28: Non-Rentable | G28: ="NOI in Year "&Loan_IO_Year -> NOI in Year 2 | H28: =HLOOKUP(Loan_IO_Year,$C$10:$L$11,2,FALSE) -> 116681.8
A29: MTM | B29: MTM | G29: DSCR | H29: =Loan_IO_DSCR -> 1.25
A30: Expired | B30: Expired | G30: Max DS based on NOI | H30: =H28/H29 -> 93345.44
A31: 1 | B31: =YEAR(Analysis_Begin) -> 2022 | G31: Max Loan Based on DSCR | H31: =PV(Loan_Amor_Rate/12,Loan_Amortization,-H30/12) -> 1229557.312
A32: 2 | B32: =B31+1 -> 2023 | G32: ="Value based on "&Loan_IO_Cap*100&"% Cap" -> Value based on 6.5% Cap | H32: =IFERROR((H28/Loan_IO_Cap),0) -> 1795104.615
A33: 3 | B33: 2024 | G33: ="Max Loan based on "&Loan_IO_LTV*100&"% LTV" -> Max Loan based on 75% LTV | H33: =H32*Loan_IO_LTV -> 1346328.462
A34: 4 | B34: 2025 | G34: Amortizing Loan Amount (Rounded) | H34: =ROUND(MIN(H31,H33),-3) -> 1230000
A35: 5 | B35: 2026
A36: 6 | B36: 2027
A37: 7 | B37: 2028
A38: 8 | B38: 2029
A39: 9 | B39: 2030
A40: 10 | B40: 2031
A43: IRR Analysis Chart
A44: Project Level | B44: Unleveraged | C44: ='Return Detail'!$C$17 -> 0.07599765919
B45: Leveraged | C45: ='Return Detail'!$C$42 -> 0.1029520071
B46: Leveraged After Tax | C46: ='Return Detail'!$C$91 -> 0.08570915549
B51: Project Level IRR Sensitivity
E52: 1 | F52: 2 | G52: 3 | H52: 4 | I52: 5 | J52: 6 | K52: 7 | L52: 8 | M52: 9 | N52: 10 | O52: 11
B53: Net Operating Income | E53: ='Cash Flows'!F$63 -> 118520.8 | F53: ='Cash Flows'!G$63 -> 116681.8 | G53: ='Cash Flows'!H$63 -> 88965.52028 | H53: ='Cash Flows'!I$63 -> 120568.4133 | I53: ='Cash Flows'!J$63 -> 101861.3179 | J53: ='Cash Flows'!K$63 -> 140118.4194 | K53: ='Cash Flows'!L$63 -> 142856.477 | L53: ='Cash Flows'!M$63 -> 126967.1361 | M53: ='Cash Flows'!N$63 -> 157513.8314 | N53: ='Cash Flows'!O$63 -> 162539.9639 | O53: ='Cash Flows'!P$63 -> 167711.4982
B54: Refinance Proceeds | E54: ='Return Detail'!F26 -> 0 | F54: ='Return Detail'!G26 -> 0 | G54: ='Return Detail'!H26 -> 0 | H54: ='Return Detail'!I26 -> 0 | I54: ='Return Detail'!J26 -> 0 | J54: ='Return Detail'!K26 -> 0 | K54: ='Return Detail'!L26 -> 0 | L54: ='Return Detail'!M26 -> 0 | M54: ='Return Detail'!N26 -> 0 | N54: ='Return Detail'!O26 -> 0 | O54: ='Return Detail'!P26 -> 0
B55: Less: Debt Service | E55: =SUM(IF('Loan Amortization'!$B$51:$B$170>((E$52-1)*12),IF('Loan Amortization'!$B$51:$B$170<=((E$52*12)),'Loan Amortization'!$I$51:$I$170,0),0))*-1 -> -92619.86868 | F55: =SUM(IF('Loan Amortization'!$B$51:$B$170>((F$52-1)*12),IF('Loan Amortization'!$B$51:$B$170<=((F$52*12)),'Loan Amortization'!$I$51:$I$170,0),0))*-1 -> -92619.86868 | G55: =SUM(IF('Loan Amortization'!$B$51:$B$170>((G$52-1)*12),IF('Loan Amortization'!$B$51:$B$170<=((G$52*12)),'Loan Amortization'!$I$51:$I$170,0),0))*-1 -> -92619.86868 | H55: =SUM(IF('Loan Amortization'!$B$51:$B$170>((H$52-1)*12),IF('Loan Amortization'!$B$51:$B$170<=((H$52*12)),'Loan Amortization'!$I$51:$I$170,0),0))*-1 -> -92619.86868 | I55: =SUM(IF('Loan Amortization'!$B$51:$B$170>((I$52-1)*12),IF('Loan Amortization'!$B$51:$B$170<=((I$52*12)),'Loan Amortization'!$I$51:$I$170,0),0))*-1 -> -92619.86868 | J55: =SUM(IF('Loan Amortization'!$B$51:$B$170>((J$52-1)*12),IF('Loan Amortization'!$B$51:$B$170<=((J$52*12)),'Loan Amortization'!$I$51:$I$170,0),0))*-1 -> -92619.86868 | K55: =SUM(IF('Loan Amortization'!$B$51:$B$170>((K$52-1)*12),IF('Loan Amortization'!$B$51:$B$170<=((K$52*12)),'Loan Amortization'!$I$51:$I$170,0),0))*-1 -> -92619.86868 | L55: =SUM(IF('Loan Amortization'!$B$51:$B$170>((L$52-1)*12),IF('Loan Amortization'!$B$51:$B$170<=((L$52*12)),'Loan Amortization'!$I$51:$I$170,0),0))*-1 -> -92619.86868 | M55: =SUM(IF('Loan Amortization'!$B$51:$B$170>((M$52-1)*12),IF('Loan Amortization'!$B$51:$B$170<=((M$52*12)),'Loan Amortization'!$I$51:$I$170,0),0))*-1 -> -92619.86868 | N55: =SUM(IF('Loan Amortization'!$B$51:$B$170>((N$52-1)*12),IF('Loan Amortization'!$B$51:$B$170<=((N$52*12)),'Loan Amortization'!$I$51:$I$170,0),0))*-1 -> -92619.86868 | O55: =SUM(IF('Loan Amortization'!$B$51:$B$170>((O$52-1)*12),IF('Loan Amortization'!$B$51:$B$170<=((O$52*12)),'Loan Amortization'!$I$51:$I$170,0),0))*-1 -> 0
B56: Add: Interest Paid from Budget | E56: ='Cash Flows'!F$81*-1 -> 0 | F56: ='Cash Flows'!G$81*-1 -> 0 | G56: ='Cash Flows'!H$81*-1 -> 0 | H56: ='Cash Flows'!I$81*-1 -> 0 | I56: ='Cash Flows'!J$81*-1 -> 0 | J56: ='Cash Flows'!K$81*-1 -> 0 | K56: ='Cash Flows'!L$81*-1 -> 0 | L56: ='Cash Flows'!M$81*-1 -> 0 | M56: ='Cash Flows'!N$81*-1 -> 0 | N56: ='Cash Flows'!O$81*-1 -> 0 | O56: ='Cash Flows'!P$81*-1 -> 0
B57: Cash Flow After Debt Service | E57: =SUM(E53:E56) -> 25900.93132 | F57: 24061.93132 | G57: -3654.3484 | H57: 27948.54463 | I57: 9241.449217 | J57: 47498.55075 | K57: 50236.60833 | L57: 34347.26742 | M57: 64893.96268 | N57: 69920.09526 | O57: 167711.4982
B58: Less: Mortgage Origination Fee | E58: ='Return Detail'!F28 -> 0 | F58: ='Return Detail'!G28 -> 0 | G58: ='Return Detail'!H28 -> 0 | H58: ='Return Detail'!I28 -> 0 | I58: ='Return Detail'!J28 -> 0 | J58: ='Return Detail'!K28 -> 0 | K58: ='Return Detail'!L28 -> 0 | L58: ='Return Detail'!M28 -> 0 | M58: ='Return Detail'!N28 -> 0 | N58: ='Return Detail'!O28 -> 0 | O58: ='Return Detail'!P28 -> 0
B59: Less: Capital Expenses | E59: =-'Cash Flows'!F$105 -> 0 | F59: =-'Cash Flows'!G$105 -> 0 | G59: =-'Cash Flows'!H$105 -> -48956.66667 | H59: =-'Cash Flows'!I$105 -> 0 | I59: =-'Cash Flows'!J$105 -> -55398.33333 | J59: =-'Cash Flows'!K$105 -> 0 | K59: =-'Cash Flows'!L$105 -> -48956.66667 | L59: =-'Cash Flows'!M$105 -> -39938.33333 | M59: =-'Cash Flows'!N$105 -> -55398.33333 | N59: =-'Cash Flows'!O$105 -> 0 | O59: =-'Cash Flows'!P$105 -> 0
B60: Other Non-Regular Income | E60: ='Cash Flows'!F108 -> 0 | F60: ='Cash Flows'!G108 -> 0 | G60: ='Cash Flows'!H108 -> 0 | H60: ='Cash Flows'!I108 -> 0 | I60: ='Cash Flows'!J108 -> 0 | J60: ='Cash Flows'!K108 -> 0 | K60: ='Cash Flows'!L108 -> 0 | L60: ='Cash Flows'!M108 -> 0 | M60: ='Cash Flows'!N108 -> 0 | N60: ='Cash Flows'!O108 -> 0 | O60: ='Cash Flows'!P108 -> 0
B61: Distributable Cash Flow | E61: =SUM(E57:E60) -> 25900.93132 | F61: =SUM(F57:F60) -> 24061.93132 | G61: -52611.01507 | H61: 27948.54463 | I61: -46156.88412 | J61: 47498.55075 | K61: 1279.941668 | L61: -5591.065918 | M61: 9495.629349 | N61: 69920.09526 | O61: 167711.4982
B63: Reversion Cash Flow | E63: =IF(Disposition="Cap Rate",'Cash Flows'!G55/Exit_Rate,FV(Exit_Rate,E52,0,-Acquisition_Gross)) -> 1948950.769 | F63: =IF(Disposition="Cap Rate",'Cash Flows'!H55/Exit_Rate,FV(Exit_Rate,F52,0,-Acquisition_Gross)) -> 1522546.466 | G63: =IF(Disposition="Cap Rate",'Cash Flows'!I55/Exit_Rate,FV(Exit_Rate,G52,0,-Acquisition_Gross)) -> 2008744.82 | H63: =IF(Disposition="Cap Rate",'Cash Flows'!J55/Exit_Rate,FV(Exit_Rate,H52,0,-Acquisition_Gross)) -> 1720943.352 | I63: =IF(Disposition="Cap Rate",'Cash Flows'!K55/Exit_Rate,FV(Exit_Rate,I52,0,-Acquisition_Gross)) -> 2309514.145 | J63: =IF(Disposition="Cap Rate",'Cash Flows'!L55/Exit_Rate,FV(Exit_Rate,J52,0,-Acquisition_Gross)) -> 2351638.108 | K63: =IF(Disposition="Cap Rate",'Cash Flows'!M55/Exit_Rate,FV(Exit_Rate,K52,0,-Acquisition_Gross)) -> 2107186.709 | L63: =IF(Disposition="Cap Rate",'Cash Flows'!N55/Exit_Rate,FV(Exit_Rate,L52,0,-Acquisition_Gross)) -> 2577135.867 | M63: =IF(Disposition="Cap Rate",'Cash Flows'!O55/Exit_Rate,FV(Exit_Rate,M52,0,-Acquisition_Gross)) -> 2654460.984 | N63: =IF(Disposition="Cap Rate",'Cash Flows'!P55/Exit_Rate,FV(Exit_Rate,N52,0,-Acquisition_Gross)) -> 2734023.05
B64: Less: Cost of Sale | E64: =E63*Sale_Cost*-1 -> -19489.50769 | F64: -15225.46466 | G64: -20087.4482 | H64: -17209.43352 | I64: -23095.14145 | J64: -23516.38108 | K64: -21071.86709 | L64: -25771.35867 | M64: -26544.60984 | N64: -27340.2305
B65: Less: Mortgage Exit Fee | E65: =E66*Loan_Exit_Fee -> 0 | F65: 0 | G65: 0 | H65: 0 | I65: 0 | J65: 0 | K65: 0 | L65: 0 | M65: 0 | N65: 0
B66: Less: Mortgage Balance | E66: =-VLOOKUP(E52*12,Amortization_Schedule_Monthly,8,FALSE) -> -7718.32239 | F66: -7718.32239 | G66: -7718.32239 | H66: -7718.32239 | I66: -7718.32239 | J66: -7718.32239 | K66: -7718.32239 | L66: -7718.32239 | M66: -7718.32239 | N66: -7718.32239
B67: Return of Reserve Funds | E67: ='Cash Flows'!F$155 -> 110000 | F67: ='Cash Flows'!G$155 -> 119415.048 | G67: ='Cash Flows'!H$155 -> 61210.24112 | H67: ='Cash Flows'!I$155 -> 71210.24112 | I67: ='Cash Flows'!J$155 -> 13560.20392 | J67: ='Cash Flows'!K$155 -> 23560.20392 | K67: ='Cash Flows'!L$155 -> 0 | L67: ='Cash Flows'!M$155 -> 0 | M67: ='Cash Flows'!N$155 -> 0 | N67: ='Cash Flows'!O$155 -> 10000 | O67: ='Cash Flows'!P$155 -> 0
B68: Reversion Balance | D68: =-Equity_Amount -> -792200 | E68: =SUM(E63:E67) -> 2031742.939 | F68: =SUM(F63:F67) -> 1619017.727 | G68: 2042149.291 | H68: 1767225.837 | I68: 2292260.885 | J68: 2343963.608 | K68: 2078396.52 | L68: 2543646.186 | M68: 2620198.051 | N68: 2708964.497
Q72: IRR | V72: NPV | AA72: Average Cash on Cash
C73: Periods | D73: 0 | E73: 1 | F73: 2 | G73: 3 | H73: 4 | I73: 5 | J73: 6 | K73: 7 | L73: 8 | M73: 9 | N73: 10 | Q73: Period | R73: Project Level | S73: Developer | T73: JV Partner | V73: Period | W73: ="Project Level at "&ROUND(Equity_Rate*100,1)&"%" -> Project Level at 10% | X73: ="Developer at "&ROUND(Equity_Rate*100,1)&"%" -> Developer at 10% | Y73: ="JV Partner at "&ROUND(Equity_Rate_JV*100,1)&"%" -> JV Partner at 0% | AA73: Period | AB73: Project Level | AC73: Developer | AD73: JV Partner
C74: 1 | D74: =-Equity_Amount -> -792200 | E74: =IF($C74<E$52,0,IF($C74=E$52,SUM(E$61,E$68),E$61)) -> 2057643.87 | F74: 0 | G74: 0 | H74: 0 | I74: 0 | J74: 0 | K74: 0 | L74: 0 | M74: 0 | N74: 0 | Q74: 1 | R74: =IFERROR(IRR(D74:N74),"-") -> 1.597379286 | S74: =O111 -> 0 | T74: =O110 -> 0 | V74: 1 | W74: =SUM(D74,NPV(Equity_Rate,E74:N74)) -> 1078385.337 | X74: =P111 -> 0 | Y74: =P110 -> 0 | AA74: 1 | AB74: =IFERROR((SUM(E74:N74)/AA74)/Equity_Amount,NA()) -> 2.597379286 | AC74: =Q111 -> 0 | AD74: =Q110 -> 0
C75: 2 | D75: -792200 | E75: 25900.93132 | F75: 1643079.658 | G75: 0 | H75: 0 | I75: 0 | J75: 0 | K75: 0 | L75: 0 | M75: 0 | N75: 0 | Q75: 2 | R75: =IFERROR(IRR(D75:N75),"-") -> 0.4566040485 | S75: =O137 -> 0 | T75: =O136 -> 0 | V75: 2 | W75: 589263.374 | X75: =P137 -> 0 | Y75: =P136 -> 0 | AA75: 2 | AB75: 1.053383356 | AC75: =Q137 -> 0 | AD75: =Q136 -> 0
C76: 3 | D76: -792200 | E76: 25900.93132 | F76: 24061.93132 | G76: 1989538.276 | H76: 0 | I76: 0 | J76: 0 | K76: 0 | L76: 0 | M76: 0 | N76: 0 | Q76: 3 | R76: 0.37776424 | S76: =O164 -> 0 | T76: =O163 -> 0 | V76: 3 | W76: 746001.7482 | X76: =P164 -> 0 | Y76: =P163 -> 0 | AA76: 3 | AB76: 0.8581591931 | AC76: =Q164 -> 0 | AD76: =Q163 -> 0
C77: 4 | D77: -792200 | E77: 25900.93132 | F77: 24061.93132 | G77: -52611.01507 | H77: 1795174.382 | I77: 0 | J77: 0 | K77: 0 | L77: 0 | M77: 0 | N77: 0 | Q77: 4 | R77: 0.2303159147 | S77: =O190 -> 0 | T77: =O189 -> 0 | V77: 4 | W77: 437833.0182 | X77: =P190 -> 0 | Y77: =P189 -> 0 | AA77: 4 | AB77: 0.5656798251 | AC77: =Q190 -> 0 | AD77: =Q189 -> 0
C78: 5 | D78: -792200 | E78: 25900.93132 | F78: 24061.93132 | G78: -52611.01507 | H78: 27948.54463 | I78: 2246104.001 | J78: 0 | K78: 0 | L78: 0 | M78: 0 | N78: 0 | Q78: 5 | R78: 0.2383078423 | S78: =O216 -> 0 | T78: =O215 -> 0 | V78: 5 | W78: 625447.8606 | X78: =P216 -> 0 | Y78: =P215 -> 0 | AA78: 5 | AB78: 0.5734421593 | AC78: =Q216 -> 0 | AD78: =Q215 -> 0
C79: 6 | D79: -792200 | E79: 25900.93132 | F79: 24061.93132 | G79: -52611.01507 | H79: 27948.54463 | I79: -46156.88412 | J79: 2391462.159 | K79: 0 | L79: 0 | M79: 0 | N79: 0 | Q79: 6 | R79: 0.2029353714 | S79: =O242 -> 0 | T79: =O241 -> 0 | V79: 6 | W79: 552052.2425 | X79: =P242 -> 0 | Y79: =P241 -> 0 | AA79: 6 | AB79: 0.4987388848 | AC79: =Q242 -> 0 | AD79: =Q241 -> 0
C80: 7 | D80: -792200 | E80: 25900.93132 | F80: 24061.93132 | G80: -52611.01507 | H80: 27948.54463 | I80: -46156.88412 | J80: 47498.55075 | K80: 2079676.461 | L80: 0 | M80: 0 | N80: 0 | Q80: 7 | R80: 0.1519615418 | S80: =O268 -> 0 | T80: =O267 -> 0 | V80: 7 | W80: 296148.7521 | X80: =P268 -> 0 | Y80: =P267 -> 0 | AA80: 7 | AB80: 0.3798316659 | AC80: =Q268 -> 0 | AD80: =Q267 -> 0
C81: 8 | D81: -792200 | E81: 25900.93132 | F81: 24061.93132 | G81: -52611.01507 | H81: 27948.54463 | I81: -46156.88412 | J81: 47498.55075 | K81: 1279.941668 | L81: 2538055.12 | M81: 0 | N81: 0 | Q81: 8 | R81: 0.1603517459 | S81: =O294 -> 0 | T81: =O293 -> 0 | V81: 8 | W81: 413624.15 | X81: =P294 -> 0 | Y81: =P293 -> 0 | AA81: 8 | AB81: 0.4048815199 | AC81: =Q294 -> 0 | AD81: =Q293 -> 0
C82: 9 | D82: -792200 | E82: 25900.93132 | F82: 24061.93132 | G82: -52611.01507 | H82: 27948.54463 | I82: -46156.88412 | J82: 47498.55075 | K82: 1279.941668 | L82: -5591.065918 | M82: 2629693.681 | N82: 0 | Q82: 9 | R82: 0.14559518 | S82: =O320 -> 0 | T82: =O319 -> 0 | V82: 9 | W82: 342241.2586 | X82: =P320 -> 0 | Y82: =P319 -> 0 | AA82: 9 | AB82: 0.3719633952 | AC82: =Q320 -> 0 | AD82: =Q319 -> 0
C83: 10 | D83: -792200 | E83: 25900.93132 | F83: 24061.93132 | G83: -52611.01507 | H83: 27948.54463 | I83: -46156.88412 | J83: 47498.55075 | K83: 1279.941668 | L83: -5591.065918 | M83: 9495.629349 | N83: 2778884.592 | Q83: 10 | R83: 0.1368426642 | S83: =O346 -> 0 | T83: =O345 -> 0 | V83: 10 | W83: 302401.812 | X83: =P346 -> 0 | Y83: =P345 -> 0 | AA83: 10 | AB83: 0.3547981768 | AC83: =Q346 -> 0 | AD83: =Q345 -> 0

Sheet Intro
A2: 9.42
A3: =CONCATENATE(A2," C | © 2022") -> 9.42 C | © 2022

Sheet Assumptions
B2: =Project_Name -> New Commercial Model
B4: Project Assumptions
B6: Property Information | F6: Acquisition Assumptions
B7: Property Name | D7: New Commercial Model | F7: Project Type | H7: Acquisition
B8: Location | F8: =IF(Project_Type="Acquisition","Acquisition Cost","Land Cost") -> Acquisition Cost | H8: 1800000
B9: Property Use | D9: Commercial | F9: =IF(Project_Type="Acquisition","Other Costs","Hard Costs") -> Other Costs | H9: 100000
B10: Square Feet | D10: 11200 | F10: =IF(Project_Type="Acquisition","-","Soft Costs") -> - | H10: 0
B11: Analysis Year Begin | D11: 2022-01-01 | F11: =IF(Project_Type="Acquisition","Acquisition Cost","Development Cost") -> Acquisition Cost | H11: =SUM(H8:H10) -> 1900000
B12: Annual Inflation Rate | D12: 0.03 | F12: Due Diligence/Closing Costs | G12: 0 | H12: =Acquisition_Gross*G12 -> 0
B13: Unit of Measure | D13: Square Feet | F13: Reserve Account Initial Deposits
B14: Currency | D14: Dollar | F14: Operating Reserve Account | H14: 100000
F15: Cap Ex Reserve Account | H15: 0
F16: TI/LC Reserve Account | H16: 0
F17: =IF(Project_Type="Acquisition","Unleveraged Acquisition Cost","Unleveraged Development Cost") -> Unleveraged Acquisition Cost | H17: =SUM(H11:H16) -> 2000000
F18: Initial Loan Origination Fee | G18: =IF(Loan_IO_Approval="Yes",Loan_IO_Fee,Loan_Amor_Fee) -> 0.01 | H18: =Loan_Fee_Rate*Loan_Amount -> 12200
F19: =IF(Project_Type="Acquisition","Leveraged Acquisition Cost","Leveraged Development Cost") -> Leveraged Acquisition Cost | H19: =SUM(H17:H18) -> 2012200
B22: Capital Structure | F22: Tax Assumptions
B23: =IF(Project_Type="Acquisition","Debt: (LTV)","Debt: (LTC)") -> Debt: (LTV) | C23: 0.61 | D23: =C23*Acquisition_Unlevered -> 1220000 | F23: Ordinary Income Marginal Tax Rate | H23: 0.35
B24: Equity | D24: =Acquisition_Levered-Loan_Amount -> 792200 | F24: Capital Gains Tax Rate | H24: 0.2
B25: Total | D25: =SUM(D23:D24) -> 2012200 | F25: Cost Recovery Recapture Tax Rate | H25: 0.25
B27: Desired Equity Return (Discount Rate) | D27: 0.1 | F27: Cost Recovery Assumptions
B28: Developer Equity | C28: 0.1 | D28: =Equity_Amount*Contribution_Developer -> 79220 | F28: Assessed Value of Land | H28: =1-Assessed_Value_Prop -> 0.9473684211
B29: JV Partner Preferred Equity | C29: =1-C28 -> 0.9 | D29: =Equity_Amount*Contribution_JV -> 712980 | F29: Assessed Value of Improvements | H29: =IFERROR(1-(H8/Acquisition_Gross),0) -> 0.05263157895
B30: Total Equity | C30: =SUM(C28:C29) -> 1 | D30: =SUM(D28:D29) -> 792200 | F30: Cost Recovery Method | H30: Straight Line
B31: =IF(Contribution_Developer<1,"Please refer to the Equity Investor Returns worksheet for waterfall information.","") -> Please refer to the Equity Investor Returns worksheet for waterfall information. | F31: Useful Life | H31: 39
F32: C.R. 1st & Last Years (11.5 months) | H32: =ROUND(H33/12*11.5,5) -> 0.02457
F33: C.R. Interim Years (12 Months) | H33: =ROUND(1/Useful_Life,5) -> 0.02564
B36: Debt Structure Assumptions
B37: Interest Only Period | F37: Amortizing Debt Service
B38: Will there be an interest only period? | D38: No | F38: Amortization Type | H38: American
B39: Loan Amount | D39: =Loan_Amount -> 1220000 | F39: Amortizing Loan Amount | H39: =IF(OR(Loan_IO_Approval="no",Loan_IO_AtMaturity="Amortize Loan Balance"),Loan_Amount,Settings!H34) -> 1220000
B40: Interest Expense | D40: Included in Budget | F40: Term (Months) | H40: 120
B41: Interest Amount Included in Budget | D41: 0 | F41: Amortization (Months) | H41: 240
B42: Term (Months) | D42: 12 | F42: Start Rate | H42: 0.045
B43: Rate | D43: 0 | F43: Origination Fee | H43: 0.01
B44: Origination Fee | D44: 0 | F44: Initial Interest Only Period | G44: No | H44: 0
B45: Funding Status | D45: Fund Up | F45: Exit Fee | H45: 0
B46: Fully Funded by Month: | D46: =Loan_IO_Term -> 12 | F46: Rate Type | H46: Fixed
B47: Action at Maturity: | D47: Resize Loan Amount | F47: Grow Rate | G47: 0 | H47: 1
B48: Minimum DSCR | D48: 1.25
B49: Maximum LTV | D49: 0.75
B50: Based on Cap Rate of | C50: =Exit_Rate -> 0.065 | D50: =ROUND(Loan_IO_Term/12,0)+1 -> 2
B51: =IFERROR(IF(Settings!H33=MIN(Settings!H31,Settings!H33),"Loan is limited based on LTV.","Loan is limited based on DSCR."),"") -> Loan is limited based on DSCR.
B53: Sale Assumptions
B54: Year of Sale | D54: 10
B55: Terminal Value Calculation Method | D55: Cap Rate | F55: www.realpropmetrics.com
B56: Cost of Sale | D56: 0.01 | F56: ="Version: "&Version -> Version: 9.42 C | © 2022
B57: =IF(Disposition="Cap Rate","Exit Cap Rate",IF(Disposition="Annual Growth Rate","Annual Growth Rate","Sale Price")) -> Exit Cap Rate | D57: 0.065 | F57: =TODAY() -> 2022-02-23

Sheet Rent Roll
B3: =Project_Name&" - Rent Roll" -> New Commercial Model - Rent Roll
B4: Total Square Feet | D4: =Size_Total -> 11200 | E4: =D4/Size_Total -> 1
B5: ="Current Leased (As of "&TEXT(Analysis_Begin,"mmm yyyy")&")" -> Current Leased (As of Jan 2022) | D5: ='Rent Roll Summary'!D43 -> 11200 | E5: =D5/Size_Total -> 1
B6: Vacant | D6: =SUM('Rent Roll Summary'!$F$43,'Rent Roll Summary'!$M$43) -> 0 | E6: =D6/Size_Total -> 0
B9: Suite | C9: Tenant | D9: Square Feet | E9: % SF | F9: Status | G9: Lease Start | H9: Lease Expiration | I9: Total Months | J9: Rent PSF | K9: Monthly Rent | L9: Annual Rent
B10: 100 | C10: Example Tenant 1 | D10: 4300 | E10: =Rent_Roll[[#This Row],[Square Feet]]/Size_Total -> 0.3839285714 | F10: Current | G10: 1993-07-01 | H10: 2025-12-31 | I10: =IFERROR(ROUND(YEARFRAC(G10,H10,1)*12,0),"-") -> 390 | J10: 18 | K10: =L10/12 -> 6450 | L10: =J10*D10 -> 77400
B11: 200 | C11: Example Tenant 2 | D11: 3800 | E11: =Rent_Roll[[#This Row],[Square Feet]]/Size_Total -> 0.3392857143 | F11: Current | G11: 1999-07-01 | H11: 2017-12-31 | I11: =IFERROR(ROUND(YEARFRAC(G11,H11,1)*12,0),"-") -> 222 | J11: 19.25 | K11: =L11/12 -> 6095.833333 | L11: =J11*D11 -> 73150
B12: 200 | C12: Example Tenant 2 | D12: 3800 | E12: =Rent_Roll[[#This Row],[Square Feet]]/Size_Total -> 0.3392857143 | F12: Current | G12: 2018-01-01 | H12: 2023-12-31 | I12: 72 | J12: 19.5 | K12: 6175 | L12: 74100
B13: 300 | C13: Example Tenant 3 | D13: 3100 | E13: =Rent_Roll[[#This Row],[Square Feet]]/Size_Total -> 0.2767857143 | F13: Current | G13: 2017-01-01 | H13: 2019-12-31 | I13: 36 | J13: 20 | K13: 5166.666667 | L13: 62000
B14: 300 | C14: Example Tenant 3 | D14: 3100 | E14: =Rent_Roll[[#This Row],[Square Feet]]/Size_Total -> 0.2767857143 | F14: Current | G14: 2020-01-01 | H14: 2028-12-31 | I14: 108 | J14: 22 | K14: 5683.333333 | L14: 68200

Sheet Leasing Costs Calculator
C3: Annual Leasing Costs
N4: Current Rent Roll Expirations
C5: Cost Assumptions | N5: Period | O5: Year | P5: Square Feet | Q5: % | R5: TI Expense | S5: LC Expense | T5: Concessions
E6: New Tenant | F6: Renewal | G6: Weighted Avg | N6: 1 | O6: =YEAR(Analysis_Begin) -> 2022 | P6: =SUM(OFFSET('Rent Roll Summary'!$I$43,(N6-1)*12,0,12,1)) -> 0 | Q6: =P6/Size_Total -> 0 | R6: =P6*$I$43 -> 0 | S6: =P6*$I$49 -> 0 | T6: =P6*$I$54 -> 0
C7: Renewal Probability | E7: 0.25 | F7: =1-E7 -> 0.75 | G7: =SUM(E7:F7) -> 1 | N7: 2 | O7: =O6+1 -> 2023 | P7: =SUM(OFFSET('Rent Roll Summary'!$I$43,(N7-1)*12,0,12,1)) -> 0 | Q7: =P7/Size_Total -> 0 | R7: 0 | S7: 0 | T7: 0
C8: Avg. Annual Rental Rate PSF | E8: 20 | F8: 20 | G8: =SUMPRODUCT($E$7:$F$7,E8:F8) -> 20 | N8: 3 | O8: 2024 | P8: =SUM(OFFSET('Rent Roll Summary'!$I$43,(N8-1)*12,0,12,1)) -> 3800 | Q8: =P8/Size_Total -> 0.3392857143 | R8: 36416.66667 | S8: 12540 | T8: 1583.333333
C9: Average Lease Term | E9: 5 | F9: 3 | G9: =SUMPRODUCT($E$7:$F$7,E9:F9) -> 3.5 | N9: 4 | O9: 2025 | P9: =SUM(OFFSET('Rent Roll Summary'!$I$43,(N9-1)*12,0,12,1)) -> 0 | Q9: =P9/Size_Total -> 0 | R9: 0 | S9: 0 | T9: 0
C10: Tenant Improvements | N10: 5 | O10: 2026 | P10: =SUM(OFFSET('Rent Roll Summary'!$I$43,(N10-1)*12,0,12,1)) -> 4300 | Q10: =P10/Size_Total -> 0.3839285714 | R10: 41208.33333 | S10: 14190 | T10: 1791.666667
C11: Tenant Improvement Costs | E11: 20 | F11: 5 | G11: =SUMPRODUCT($E$7:$F$7,E11:F11) -> 8.75 | N11: 6 | O11: 2027 | P11: =SUM(OFFSET('Rent Roll Summary'!$I$43,(N11-1)*12,0,12,1)) -> 0 | Q11: =P11/Size_Total -> 0 | R11: 0 | S11: 0 | T11: 0
C12: Months Lost to TI | E12: 2 | F12: 0 | G12: 0.5 | N12: 7 | O12: 2028 | P12: =SUM(OFFSET('Rent Roll Summary'!$I$43,(N12-1)*12,0,12,1)) -> 0 | Q12: =P12/Size_Total -> 0 | R12: 0 | S12: 0 | T12: 0
C13: Leasing Cost Assumptions | N13: 8 | O13: 2029 | P13: =SUM(OFFSET('Rent Roll Summary'!$I$43,(N13-1)*12,0,12,1)) -> 3100 | Q13: =P13/Size_Total -> 0.2767857143 | R13: 29708.33333 | S13: 10230 | T13: 1291.666667
C14: Leasing Commissions | E14: 0.06 | F14: 0.04 | G14: =SUMPRODUCT($E$7:$F$7,E14:F14) -> 0.045 | N14: 9 | O14: 2030 | P14: =SUM(OFFSET('Rent Roll Summary'!$I$43,(N14-1)*12,0,12,1)) -> 0 | Q14: =P14/Size_Total -> 0 | R14: 0 | S14: 0 | T14: 0
C15: Months Free Rent | E15: 1 | F15: 0 | G15: 0.25 | N15: 10 | O15: 2031 | P15: =SUM(OFFSET('Rent Roll Summary'!$I$43,(N15-1)*12,0,12,1)) -> 0 | Q15: =P15/Size_Total -> 0 | R15: 0 | S15: 0 | T15: 0
N16: 11 | O16: 2032 | P16: =SUM(OFFSET('Rent Roll Summary'!$I$43,(N16-1)*12,0,12,1)) -> 0 | Q16: =P16/Size_Total -> 0 | R16: 0 | S16: 0 | T16: 0
C17: Vacant Space Leasing
C18: Current Vacant Space | F18: ='Rent Roll Summary'!$F$43 -> 0
C19: Less: Stabilized Vacancy | F19: 0.1 | G19: =Size_Total*-F19 -> -1120 | N19: Current Vacant Space
C20: Leasable Vacant Space (Stabilized) | F20: =IF(F18<(Size_Total*F19),0,F18-(Size_Total*F19)) -> 0 | N20: Period | O20: Year | P20: Square Feet | Q20: % | R20: TI Expense | S20: LC Expense | T20: Concessions
C21: Annual Periods to Lease Up | F21: 2 | N21: 1 | O21: =YEAR(Analysis_Begin) -> 2022 | P21: =IF(N21>$F$21,0,$F$22) -> 0 | Q21: =P21/Size_Total -> 0 | R21: =P21*$E$11 -> 0 | S21: =P21*$G$47 -> 0 | T21: =P21*$G$52 -> 0
C22: Space leased per period | F22: =IFERROR(F20/F21,0) -> 0 | N22: 2 | O22: =O21+1 -> 2023 | P22: 0 | Q22: 0 | R22: 0 | S22: 0 | T22: 0
N23: 3 | O23: =O22+1 -> 2024 | P23: 0 | Q23: 0 | R23: 0 | S23: 0 | T23: 0
C24: Cap Ex Reserve | G24: Leasing Reserve | N24: 4 | O24: 2025 | P24: 0 | Q24: 0 | R24: 0 | S24: 0 | T24: 0
C25: CapEx Reserve Required? | E25: No | G25: Leasing Reserve Required? | I25: No | N25: 5 | O25: 2026 | P25: 0 | Q25: 0 | R25: 0 | S25: 0 | T25: 0
C26: Reserve Base | E26: $ Per Square Feet | G26: Reserve Base | I26: $ Per Square Feet | N26: 6 | O26: 2027 | P26: 0 | Q26: 0 | R26: 0 | S26: 0 | T26: 0
C27: =IF(E26="$ Amount Annually","$ Amount per Yr.","$ PSF Annually") -> $ PSF Annually | E27: 0 | G27: =IF(I26="$ Amount Annually","$ Amount per Yr.","$ PSF Annually") -> $ PSF Annually | I27: 1 | N27: 7 | O27: 2028 | P27: 0 | Q27: 0 | R27: 0 | S27: 0 | T27: 0
C28: Annual Reserve | E28: =IF(E26="$ Amount Annually",E27,E27*Size_Total) -> 0 | G28: Annual Reserve | I28: =IF(I26="$ Amount Annually",I27,I27*Size_Total) -> 11200 | N28: 8 | O28: 2029 | P28: 0 | Q28: 0 | R28: 0 | S28: 0 | T28: 0
C29: Is there a Reserve Cap | E29: Yes | G29: Is there a Reserve Cap | I29: No | N29: 9 | O29: 2030 | P29: 0 | Q29: 0 | R29: 0 | S29: 0 | T29: 0
C30: Reserve Cap Amount | E30: =Reserve_CapEx*10 -> 0 | G30: Reserve Cap Amount | I30: =Reserve_Leasing*2 -> 22400 | N30: 10 | O30: 2031 | P30: 0 | Q30: 0 | R30: 0 | S30: 0 | T30: 0
N31: 11 | O31: 2032 | P31: 0 | Q31: 0 | R31: 0 | S31: 0 | T31: 0
C33: Average Tenant Improvement Cost ($ PSF)
E34: $ | H34: Probability | I34: Blended | N34: Current Rent Roll & Vacant 2nd Generation Rollover
C35: New Tenant | E35: =E11 -> 20 | H35: =$E$7 -> 0.25 | I35: =H35*E35 -> 5 | N35: Period | O35: Year | P35: Square Feet | Q35: % | R35: TI Expense | S35: LC Expense | T35: Concessions
C36: Renewal | E36: =F11 -> 5 | H36: =$F$7 -> 0.75 | I36: =H36*E36 -> 3.75 | N36: 1 | O36: =YEAR(Analysis_Begin) -> 2022 | P36: =IF(N36-ROUND($G$9,0)<1,0,INDEX($N$6:$T$16,N36-ROUND($G$9,0),3)+INDEX($N$21:$T$31,N36-ROUND($G$9,0),3)+INDEX($N$36:$T$46,N36-ROUND($G$9,0),3)) -> 0 | Q36: =P36/Size_Total -> 0 | R36: =P36*$I$43 -> 0 | S36: =P36*$I$49 -> 0 | T36: =P36*$I$54 -> 0
I37: =SUM(I35:I36) -> 8.75 | N37: 2 | O37: =O36+1 -> 2023 | P37: 0 | Q37: 0 | R37: =P37*$I$43 -> 0 | S37: =P37*$I$49 -> 0 | T37: =P37*$I$54 -> 0
N38: 3 | O38: =O37+1 -> 2024 | P38: 0 | Q38: 0 | R38: 0 | S38: 0 | T38: 0
E39: Months | F39: Year Equiv. | G39: Lost Rent PSF | H39: Probability | I39: Blended | N39: 4 | O39: 2025 | P39: 0 | Q39: 0 | R39: 0 | S39: 0 | T39: 0
C40: New Tenant | E40: =E12 -> 2 | F40: =E40/12 -> 0.1666666667 | G40: =F40*$E$8 -> 3.333333333 | H40: =$E$7 -> 0.25 | I40: =G40*H40 -> 0.8333333333 | N40: 5 | O40: 2026 | P40: 0 | Q40: 0 | R40: 0 | S40: 0 | T40: 0
C41: Renewal | E41: =F12 -> 0 | F41: =E41/12 -> 0 | G41: =F41*$F$8 -> 0 | H41: =$F$7 -> 0.75 | I41: =G41*H41 -> 0 | N41: 6 | O41: 2027 | P41: 0 | Q41: 0 | R41: 0 | S41: 0 | T41: 0
I42: =SUM(I40:I41) -> 0.8333333333 | N42: 7 | O42: 2028 | P42: 3800 | Q42: 0.3392857143 | R42: 36416.66667 | S42: 12540 | T42: 1583.333333
E43: Total Average Tenant Improvement Costs | I43: =SUM(I37,I42) -> 9.583333333 | N43: 8 | O43: 2029 | P43: 0 | Q43: 0 | R43: 0 | S43: 0 | T43: 0
N44: 9 | O44: 2030 | P44: 4300 | Q44: 0.3839285714 | R44: 41208.33333 | S44: 14190 | T44: 1791.666667
C45: Average Leasing Commissions Cost ($ PSF) | N45: 10 | O45: 2031 | P45: 0 | Q45: 0 | R45: 0 | S45: 0 | T45: 0
E46: % | F46: Lease Value | G46: Commis $/SF | H46: Probability | I46: Blended | N46: 11 | O46: 2032 | P46: 3800 | Q46: 0.3392857143 | R46: 36416.66667 | S46: 12540 | T46: 1583.333333
C47: New Tenant | E47: =E14 -> 0.06 | F47: =$E$8*$E$9 -> 100 | G47: =F47*E47 -> 6 | H47: =$E$7 -> 0.25 | I47: =H47*G47 -> 1.5
C48: Renewal | E48: =F14 -> 0.04 | F48: =$F$8*$F$9 -> 60 | G48: =F48*E48 -> 2.4 | H48: =$F$7 -> 0.75 | I48: =H48*G48 -> 1.8
I49: =SUM(I47:I48) -> 3.3
C50: Concessions (Free Rent | $ PSF)
E51: Months | F51: Year Equiv. | G51: Lost Rent PSF | H51: Probability | I51: Blended
C52: New Tenant | E52: =E15 -> 1 | F52: =E52/12 -> 0.08333333333 | G52: =F52*$E$8 -> 1.666666667 | H52: =$E$7 -> 0.25 | I52: =H52*G52 -> 0.4166666667
C53: Renewal | E53: =F15 -> 0 | F53: =E53/12 -> 0 | G53: =F53*$F$8 -> 0 | H53: =$F$7 -> 0.75 | I53: =H53*G53 -> 0
I54: =SUM(I52:I53) -> 0.4166666667
C56: Aggregate Leasing Costs per Period
C57: Period | D57: Year | E57: Square Feet | F57: % | G57: TI Expense | H57: LC Expense | I57: Concessions
C58: 1 | D58: =YEAR(Analysis_Begin) -> 2022 | E58: =SUM(P6,P21,P36) -> 0 | F58: =IFERROR(E58/Size_Total,"-") -> 0 | G58: =SUM(R6,R21,R36) -> 0 | H58: 0 | I58: 0
C59: 2 | D59: =D58+1 -> 2023 | E59: 0 | F59: 0 | G59: 0 | H59: 0 | I59: 0
C60: 3 | D60: =D59+1 -> 2024 | E60: 3800 | F60: 0.3392857143 | G60: 36416.66667 | H60: 12540 | I60: 1583.333333
C61: 4 | D61: 2025 | E61: 0 | F61: 0 | G61: 0 | H61: 0 | I61: 0
C62: 5 | D62: 2026 | E62: 4300 | F62: 0.3839285714 | G62: 41208.33333 | H62: 14190 | I62: 1791.666667
C63: 6 | D63: 2027 | E63: 0 | F63: 0 | G63: 0 | H63: 0 | I63: 0
C64: 7 | D64: 2028 | E64: 3800 | F64: 0.3392857143 | G64: 36416.66667 | H64: 12540 | I64: 1583.333333
C65: 8 | D65: 2029 | E65: 3100 | F65: 0.2767857143 | G65: 29708.33333 | H65: 10230 | I65: 1291.666667
C66: 9 | D66: 2030 | E66: 4300 | F66: 0.3839285714 | G66: 41208.33333 | H66: 14190 | I66: 1791.666667
C67: 10 | D67: 2031 | E67: 0 | F67: 0 | G67: 0 | H67: 0 | I67: 0
C68: 11 | D68: 2032 | E68: 3800 | F68: 0.3392857143 | G68: 36416.66667 | H68: 12540 | I68: 1583.333333
C69: *Amounts shown on Cash Flows will be grossed up for inflation.
C72: www.realpropmetrics.com
C73: ="Version: "&Version -> Version: 9.42 C | © 2022
C74: =TODAY() -> 2022-02-23

Sheet Rent Roll Summary
B3: =Project_Name&" Rent Roll Summary" -> New Commercial Model Rent Roll Summary
B5: Annual Summary
B6: Period | C6: Year | D6: Occupied SF | E6: Vacancy | F6: Occupied Rent | G6: Vacant Rent | H6: Avg Rent PSF | I6: Concessions | J6: Tenant Improvements | K6: Leasing Commissions | L6: Vacancy Change
B7: 1 | C7: =RPMDateSpan(B7,1) -> Jan 22 - Dec 22 | D7: =AVERAGE(OFFSET($D$43:$D$54,($B7-1)*12,0)) -> 11200 | E7: =1-(D7/Size_Total) -> 0 | F7: =SUM(OFFSET($E$43,($B7-1)*12,0,12,1)) -> 219700 | G7: =SUM(OFFSET($H$43,($B7-1)*12,0,12,1)) -> 0 | H7: =SUM(F7:G7)/Size_Total -> 19.61607143 | I7: =SUM(OFFSET($J$43,(($B7-1)*12),0,12,1)) -> 0 | J7: =SUM(OFFSET($K$43,($B7-1)*12,0,12,1)) -> 0 | K7: =SUM(OFFSET($L$43,($B7-1)*12,0,12,1)) -> 0 | L7: =E7 -> 0
B8: 2 | C8: =RPMDateSpan(B8,1) -> Jan 23 - Dec 23 | D8: =AVERAGE(OFFSET($D$43:$D$54,($B8-1)*12,0)) -> 11200 | E8: 0 | F8: 219700 | G8: =SUM(OFFSET($H$43,($B8-1)*12,0,12,1)) -> 0 | H8: 19.61607143 | I8: 0 | J8: 0 | K8: 0 | L8: =E8-E7 -> 0
B9: 3 | C9: Jan 24 - Dec 24 | D9: 7400 | E9: 0.3392857143 | F9: 145600 | G9: 80629.9656 | H9: 20.19910407 | I9: 1583.333333 | J9: 36416.66667 | K9: 12540 | L9: =E9-E8 -> 0.3392857143
B10: 4 | C10: Jan 25 - Dec 25 | D10: 7400 | E10: 0.3392857143 | F10: 145600 | G10: 83048.8176 | H10: 20.415073 | I10: 0 | J10: 0 | K10: 0 | L10: 0
B11: 5 | C11: Jan 26 - Dec 26 | D11: 3100 | E11: 0.7232142857 | F11: 68200 | G11: 182331.2592 | H11: 22.36886243 | I11: 1791.666667 | J11: 41208.33333 | K11: 14190 | L11: 0.3839285714
B12: 6 | C12: Jan 27 - Dec 27 | D12: 3100 | E12: 0.7232142857 | F12: 68200 | G12: 187797.5928 | H12: 22.85692793 | I12: 0 | J12: 0 | K12: 0 | L12: 0
B13: 7 | C13: Jan 28 - Dec 28 | D13: 3100 | E13: 0.7232142857 | F13: 68200 | G13: 193434.1236 | H13: 23.36018961 | I13: 0 | J13: 0 | K13: 0 | L13: 0
B14: 8 | C14: Jan 29 - Dec 29 | D14: 0 | E14: 1 | F14: 0 | G14: 275493.5232 | H14: 24.597636 | I14: 1291.666667 | J14: 29708.33333 | K14: 10230 | L14: 0.2767857143
B15: 9 | C15: Jan 30 - Dec 30 | D15: 0 | E15: 1 | F15: 0 | G15: 283757.9136 | H15: 25.335528 | I15: 0 | J15: 0 | K15: 0 | L15: 0
B16: 10 | C16: Jan 31 - Dec 31 | D16: 0 | E16: 1 | F16: 0 | G16: 292271.4816 | H16: 26.095668 | I16: 0 | J16: 0 | K16: 0 | L16: 0
B17: 11 | C17: Jan 32 - Dec 32 | D17: 0 | E17: 1 | F17: 0 | G17: 301034.2272 | H17: 26.878056 | I17: 0 | J17: 0 | K17: 0 | L17: 0
B18: Total | F18: =SUBTOTAL(109,F7:F17) -> 935200 | G18: =SUBTOTAL(109,G7:G17) -> 1879798.904 | I18: =SUBTOTAL(109,I7:I17) -> 4666.666667 | J18: =SUBTOTAL(109,J7:J17) -> 107333.3333 | K18: =SUBTOTAL(109,K7:K17) -> 36960
B37: https://realpropmetrics.com
B38: ="Version: "&Version -> Version: 9.42 C | © 2022
B39: =TODAY() -> 2022-02-23
B41: Monthly Summary
B42: Period | C42: Month | D42: Occupied | E42: Occupied Rent | F42: Vacant SF | G42: Vacant Rent PSF | H42: Vacant Rent | I42: Lease Expiration SF | J42: Concsession | K42: TI | L42: LC
B43: 1 | C43: =Analysis_Begin -> 2022-01-01 | D43: =SUMPRODUCT(--(Rent_Roll[Lease Start]<=$C43),--(Rent_Roll[Lease Expiration]>=$C43),--(Rent_Roll[Status]<>"Vacant"),Rent_Roll[Square Feet]) -> 11200 | E43: =SUMPRODUCT(--(Rent_Roll[Status]="Current"),--(Rent_Roll[Lease Start]<=$C43),--(Rent_Roll[Lease Expiration]>=$C43),Rent_Roll[Monthly Rent]) -> 18308.33333 | F43: =Size_Total-D43 -> 0 | G43: ='Leasing Costs Calculator'!$G$8/12 -> 1.666666667 | H43: =F43*G43 -> 0 | I43: =IF(AND($B43>1,$F43>$F42),$F43-$F42,0) -> 0 | J43: =I43*'Leasing Costs Calculator'!$I$54 -> 0 | K43: =$I43*'Leasing Costs Calculator'!$I$43 -> 0 | L43: =$I43*'Leasing Costs Calculator'!$I$49 -> 0
B44: 2 | C44: =EDATE(C43,1) -> 2022-02-01 | D44: =SUMPRODUCT(--(Rent_Roll[Lease Start]<=$C44),--(Rent_Roll[Lease Expiration]>=$C44),--(Rent_Roll[Status]<>"Vacant"),Rent_Roll[Square Feet]) -> 11200 | E44: =SUMPRODUCT(--(Rent_Roll[Status]="Current"),--(Rent_Roll[Lease Start]<=$C44),--(Rent_Roll[Lease Expiration]>=$C44),Rent_Roll[Monthly Rent]) -> 18308.33333 | F44: 0 | G44: =IF(MOD(B44-1,12)<>0,G43,RPMGrow('Cash Flows'!$E$12,'Rent Roll Summary'!G43,Inflation)) -> 1.666666667 | H44: =F44*G44 -> 0 | I44: 0 | J44: =I44*'Leasing Costs Calculator'!$I$54 -> 0 | K44: =$I44*'Leasing Costs Calculator'!$I$43 -> 0 | L44: =$I44*'Leasing Costs Calculator'!$I$49 -> 0
B45: 3 | C45: =EDATE(C44,1) -> 2022-03-01 | D45: =SUMPRODUCT(--(Rent_Roll[Lease Start]<=$C45),--(Rent_Roll[Lease Expiration]>=$C45),--(Rent_Roll[Status]<>"Vacant"),Rent_Roll[Square Feet]) -> 11200 | E45: =SUMPRODUCT(--(Rent_Roll[Status]="Current"),--(Rent_Roll[Lease Start]<=$C45),--(Rent_Roll[Lease Expiration]>=$C45),Rent_Roll[Monthly Rent]) -> 18308.33333 | F45: 0 | G45: =IF(MOD(B45-1,12)<>0,G44,RPMGrow('Cash Flows'!$E$12,'Rent Roll Summary'!G44,Inflation)) -> 1.666666667 | H45: =F45*G45 -> 0 | I45: 0 | J45: =I45*'Leasing Costs Calculator'!$I$54 -> 0 | K45: =$I45*'Leasing Costs Calculator'!$I$43 -> 0 | L45: =$I45*'Leasing Costs Calculator'!$I$49 -> 0
B46: 4 | C46: 2022-04-01 | D46: =SUMPRODUCT(--(Rent_Roll[Lease Start]<=$C46),--(Rent_Roll[Lease Expiration]>=$C46),--(Rent_Roll[Status]<>"Vacant"),Rent_Roll[Square Feet]) -> 11200 | E46: =SUMPRODUCT(--(Rent_Roll[Status]="Current"),--(Rent_Roll[Lease Start]<=$C46),--(Rent_Roll[Lease Expiration]>=$C46),Rent_Roll[Monthly Rent]) -> 18308.33333 | F46: 0 | G46: =IF(MOD(B46-1,12)<>0,G45,RPMGrow('Cash Flows'!$E$12,'Rent Roll Summary'!G45,Inflation)) -> 1.666666667 | H46: 0 | I46: 0 | J46: =I46*'Leasing Costs Calculator'!$I$54 -> 0 | K46: =$I46*'Leasing Costs Calculator'!$I$43 -> 0 | L46: =$I46*'Leasing Costs Calculator'!$I$49 -> 0
B47: 5 | C47: 2022-05-01 | D47: =SUMPRODUCT(--(Rent_Roll[Lease Start]<=$C47),--(Rent_Roll[Lease Expiration]>=$C47),--(Rent_Roll[Status]<>"Vacant"),Rent_Roll[Square Feet]) -> 11200 | E47: =SUMPRODUCT(--(Rent_Roll[Status]="Current"),--(Rent_Roll[Lease Start]<=$C47),--(Rent_Roll[Lease Expiration]>=$C47),Rent_Roll[Monthly Rent]) -> 18308.33333 | F47: 0 | G47: =IF(MOD(B47-1,12)<>0,G46,RPMGrow('Cash Flows'!$E$12,'Rent Roll Summary'!G46,Inflation)) -> 1.666666667 | H47: 0 | I47: 0 | J47: =I47*'Leasing Costs Calculator'!$I$54 -> 0 | K47: =$I47*'Leasing Costs Calculator'!$I$43 -> 0 | L47: =$I47*'Leasing Costs Calculator'!$I$49 -> 0
B48: 6 | C48: 2022-06-01 | D48: =SUMPRODUCT(--(Rent_Roll[Lease Start]<=$C48),--(Rent_Roll[Lease Expiration]>=$C48),--(Rent_Roll[Status]<>"Vacant"),Rent_Roll[Square Feet]) -> 11200 | E48: =SUMPRODUCT(--(Rent_Roll[Status]="Current"),--(Rent_Roll[Lease Start]<=$C48),--(Rent_Roll[Lease Expiration]>=$C48),Rent_Roll[Monthly Rent]) -> 18308.33333 | F48: 0 | G48: =IF(MOD(B48-1,12)<>0,G47,RPMGrow('Cash Flows'!$E$12,'Rent Roll Summary'!G47,Inflation)) -> 1.666666667 | H48: 0 | I48: 0 | J48: =I48*'Leasing Costs Calculator'!$I$54 -> 0 | K48: =$I48*'Leasing Costs Calculator'!$I$43 -> 0 | L48: =$I48*'Leasing Costs Calculator'!$I$49 -> 0
B49: 7 | C49: 2022-07-01 | D49: =SUMPRODUCT(--(Rent_Roll[Lease Start]<=$C49),--(Rent_Roll[Lease Expiration]>=$C49),--(Rent_Roll[Status]<>"Vacant"),Rent_Roll[Square Feet]) -> 11200 | E49: =SUMPRODUCT(--(Rent_Roll[Status]="Current"),--(Rent_Roll[Lease Start]<=$C49),--(Rent_Roll[Lease Expiration]>=$C49),Rent_Roll[Monthly Rent]) -> 18308.33333 | F49: 0 | G49: =IF(MOD(B49-1,12)<>0,G48,RPMGrow('Cash Flows'!$E$12,'Rent Roll Summary'!G48,Inflation)) -> 1.666666667 | H49: 0 | I49: 0 | J49: =I49*'Leasing Costs Calculator'!$I$54 -> 0 | K49: =$I49*'Leasing Costs Calculator'!$I$43 -> 0 | L49: =$I49*'Leasing Costs Calculator'!$I$49 -> 0
B50: 8 | C50: 2022-08-01 | D50: =SUMPRODUCT(--(Rent_Roll[Lease Start]<=$C50),--(Rent_Roll[Lease Expiration]>=$C50),--(Rent_Roll[Status]<>"Vacant"),Rent_Roll[Square Feet]) -> 11200 | E50: =SUMPRODUCT(--(Rent_Roll[Status]="Current"),--(Rent_Roll[Lease Start]<=$C50),--(Rent_Roll[Lease Expiration]>=$C50),Rent_Roll[Monthly Rent]) -> 18308.33333 | F50: 0 | G50: =IF(MOD(B50-1,12)<>0,G49,RPMGrow('Cash Flows'!$E$12,'Rent Roll Summary'!G49,Inflation)) -> 1.666666667 | H50: 0 | I50: 0 | J50: =I50*'Leasing Costs Calculator'!$I$54 -> 0 | K50: =$I50*'Leasing Costs Calculator'!$I$43 -> 0 | L50: =$I50*'Leasing Costs Calculator'!$I$49 -> 0
B51: 9 | C51: 2022-09-01 | D51: =SUMPRODUCT(--(Rent_Roll[Lease Start]<=$C51),--(Rent_Roll[Lease Expiration]>=$C51),--(Rent_Roll[Status]<>"Vacant"),Rent_Roll[Square Feet]) -> 11200 | E51: =SUMPRODUCT(--(Rent_Roll[Status]="Current"),--(Rent_Roll[Lease Start]<=$C51),--(Rent_Roll[Lease Expiration]>=$C51),Rent_Roll[Monthly Rent]) -> 18308.33333 | F51: 0 | G51: =IF(MOD(B51-1,12)<>0,G50,RPMGrow('Cash Flows'!$E$12,'Rent Roll Summary'!G50,Inflation)) -> 1.666666667 | H51: 0 | I51: 0 | J51: =I51*'Leasing Costs Calculator'!$I$54 -> 0 | K51: =$I51*'Leasing Costs Calculator'!$I$43 -> 0 | L51: =$I51*'Leasing Costs Calculator'!$I$49 -> 0
B52: 10 | C52: 2022-10-01 | D52: =SUMPRODUCT(--(Rent_Roll[Lease Start]<=$C52),--(Rent_Roll[Lease Expiration]>=$C52),--(Rent_Roll[Status]<>"Vacant"),Rent_Roll[Square Feet]) -> 11200 | E52: =SUMPRODUCT(--(Rent_Roll[Status]="Current"),--(Rent_Roll[Lease Start]<=$C52),--(Rent_Roll[Lease Expiration]>=$C52),Rent_Roll[Monthly Rent]) -> 18308.33333 | F52: 0 | G52: =IF(MOD(B52-1,12)<>0,G51,RPMGrow('Cash Flows'!$E$12,'Rent Roll Summary'!G51,Inflation)) -> 1.666666667 | H52: 0 | I52: 0 | J52: =I52*'Leasing Costs Calculator'!$I$54 -> 0 | K52: =$I52*'Leasing Costs Calculator'!$I$43 -> 0 | L52: =$I52*'Leasing Costs Calculator'!$I$49 -> 0
B53: 11 | C53: 2022-11-01 | D53: =SUMPRODUCT(--(Rent_Roll[Lease Start]<=$C53),--(Rent_Roll[Lease Expiration]>=$C53),--(Rent_Roll[Status]<>"Vacant"),Rent_Roll[Square Feet]) -> 11200 | E53: =SUMPRODUCT(--(Rent_Roll[Status]="Current"),--(Rent_Roll[Lease Start]<=$C53),--(Rent_Roll[Lease Expiration]>=$C53),Rent_Roll[Monthly Rent]) -> 18308.33333 | F53: 0 | G53: =IF(MOD(B53-1,12)<>0,G52,RPMGrow('Cash Flows'!$E$12,'Rent Roll Summary'!G52,Inflation)) -> 1.666666667 | H53: 0 | I53: 0 | J53: =I53*'Leasing Costs Calculator'!$I$54 -> 0 | K53: =$I53*'Leasing Costs Calculator'!$I$43 -> 0 | L53: =$I53*'Leasing Costs Calculator'!$I$49 -> 0
B54: 12 | C54: 2022-12-01 | D54: =SUMPRODUCT(--(Rent_Roll[Lease Start]<=$C54),--(Rent_Roll[Lease Expiration]>=$C54),--(Rent_Roll[Status]<>"Vacant"),Rent_Roll[Square Feet]) -> 11200 | E54: =SUMPRODUCT(--(Rent_Roll[Status]="Current"),--(Rent_Roll[Lease Start]<=$C54),--(Rent_Roll[Lease Expiration]>=$C54),Rent_Roll[Monthly Rent]) -> 18308.33333 | F54: 0 | G54: =IF(MOD(B54-1,12)<>0,G53,RPMGrow('Cash Flows'!$E$12,'Rent Roll Summary'!G53,Inflation)) -> 1.666666667 | H54: 0 | I54: 0 | J54: =I54*'Leasing Costs Calculator'!$I$54 -> 0 | K54: =$I54*'Leasing Costs Calculator'!$I$43 -> 0 | L54: =$I54*'Leasing Costs Calculator'!$I$49 -> 0
B55: 13 | C55: 2023-01-01 | D55: =SUMPRODUCT(--(Rent_Roll[Lease Start]<=$C55),--(Rent_Roll[Lease Expiration]>=$C55),--(Rent_Roll[Status]<>"Vacant"),Rent_Roll[Square Feet]) -> 11200 | E55: =SUMPRODUCT(--(Rent_Roll[Status]="Current"),--(Rent_Roll[Lease Start]<=$C55),--(Rent_Roll[Lease Expiration]>=$C55),Rent_Roll[Monthly Rent]) -> 18308.33333 | F55: 0 | G55: =IF(MOD(B55-1,12)<>0,G54,RPMGrow('Cash Flows'!$E$12,'Rent Roll Summary'!G54,Inflation)) -> 1.716701 | H55: 0 | I55: 0 | J55: =I55*'Leasing Costs Calculator'!$I$54 -> 0 | K55: =$I55*'Leasing Costs Calculator'!$I$43 -> 0 | L55: =$I55*'Leasing Costs Calculator'!$I$49 -> 0
B56: 14 | C56: 2023-02-01 | D56: =SUMPRODUCT(--(Rent_Roll[Lease Start]<=$C56),--(Rent_Roll[Lease Expiration]>=$C56),--(Rent_Roll[Status]<>"Vacant"),Rent_Roll[Square Feet]) -> 11200 | E56: =SUMPRODUCT(--(Rent_Roll[Status]="Current"),--(Rent_Roll[Lease Start]<=$C56),--(Rent_Roll[Lease Expiration]>=$C56),Rent_Roll[Monthly Rent]) -> 18308.33333 | F56: 0 | G56: =IF(MOD(B56-1,12)<>0,G55,RPMGrow('Cash Flows'!$E$12,'Rent Roll Summary'!G55,Inflation)) -> 1.716701 | H56: 0 | I56: 0 | J56: =I56*'Leasing Costs Calculator'!$I$54 -> 0 | K56: =$I56*'Leasing Costs Calculator'!$I$43 -> 0 | L56: =$I56*'Leasing Costs Calculator'!$I$49 -> 0
B57: 15 | C57: 2023-03-01 | D57: =SUMPRODUCT(--(Rent_Roll[Lease Start]<=$C57),--(Rent_Roll[Lease Expiration]>=$C57),--(Rent_Roll[Status]<>"Vacant"),Rent_Roll[Square Feet]) -> 11200 | E57: =SUMPRODUCT(--(Rent_Roll[Status]="Current"),--(Rent_Roll[Lease Start]<=$C57),--(Rent_Roll[Lease Expiration]>=$C57),Rent_Roll[Monthly Rent]) -> 18308.33333 | F57: 0 | G57: =IF(MOD(B57-1,12)<>0,G56,RPMGrow('Cash Flows'!$E$12,'Rent Roll Summary'!G56,Inflation)) -> 1.716701 | H57: 0 | I57: 0 | J57: =I57*'Leasing Costs Calculator'!$I$54 -> 0 | K57: =$I57*'Leasing Costs Calculator'!$I$43 -> 0 | L57: =$I57*'Leasing Costs Calculator'!$I$49 -> 0
B58: 16 | C58: 2023-04-01 | D58: =SUMPRODUCT(--(Rent_Roll[Lease Start]<=$C58),--(Rent_Roll[Lease Expiration]>=$C58),--(Rent_Roll[Status]<>"Vacant"),Rent_Roll[Square Feet]) -> 11200 | E58: =SUMPRODUCT(--(Rent_Roll[Status]="Current"),--(Rent_Roll[Lease Start]<=$C58),--(Rent_Roll[Lease Expiration]>=$C58),Rent_Roll[Monthly Rent]) -> 18308.33333 | F58: 0 | G58: =IF(MOD(B58-1,12)<>0,G57,RPMGrow('Cash Flows'!$E$12,'Rent Roll Summary'!G57,Inflation)) -> 1.716701 | H58: 0 | I58: 0 | J58: =I58*'Leasing Costs Calculator'!$I$54 -> 0 | K58: =$I58*'Leasing Costs Calculator'!$I$43 -> 0 | L58: =$I58*'Leasing Costs Calculator'!$I$49 -> 0
B59: 17 | C59: 2023-05-01 | D59: =SUMPRODUCT(--(Rent_Roll[Lease Start]<=$C59),--(Rent_Roll[Lease Expiration]>=$C59),--(Rent_Roll[Status]<>"Vacant"),Rent_Roll[Square Feet]) -> 11200 | E59: =SUMPRODUCT(--(Rent_Roll[Status]="Current"),--(Rent_Roll[Lease Start]<=$C59),--(Rent_Roll[Lease Expiration]>=$C59),Rent_Roll[Monthly Rent]) -> 18308.33333 | F59: 0 | G59: =IF(MOD(B59-1,12)<>0,G58,RPMGrow('Cash Flows'!$E$12,'Rent Roll Summary'!G58,Inflation)) -> 1.716701 | H59: 0 | I59: 0 | J59: =I59*'Leasing Costs Calculator'!$I$54 -> 0 | K59: =$I59*'Leasing Costs Calculator'!$I$43 -> 0 | L59: =$I59*'Leasing Costs Calculator'!$I$49 -> 0
B60: 18 | C60: 2023-06-01 | D60: =SUMPRODUCT(--(Rent_Roll[Lease Start]<=$C60),--(Rent_Roll[Lease Expiration]>=$C60),--(Rent_Roll[Status]<>"Vacant"),Rent_Roll[Square Feet]) -> 11200 | E60: =SUMPRODUCT(--(Rent_Roll[Status]="Current"),--(Rent_Roll[Lease Start]<=$C60),--(Rent_Roll[Lease Expiration]>=$C60),Rent_Roll[Monthly Rent]) -> 18308.33333 | F60: 0 | G60: =IF(MOD(B60-1,12)<>0,G59,RPMGrow('Cash Flows'!$E$12,'Rent Roll Summary'!G59,Inflation)) -> 1.716701 | H60: 0 | I60: 0 | J60: =I60*'Leasing Costs Calculator'!$I$54 -> 0 | K60: =$I60*'Leasing Costs Calculator'!$I$43 -> 0 | L60: =$I60*'Leasing Costs Calculator'!$I$49 -> 0
B61: 19 | C61: 2023-07-01 | D61: =SUMPRODUCT(--(Rent_Roll[Lease Start]<=$C61),--(Rent_Roll[Lease Expiration]>=$C61),--(Rent_Roll[Status]<>"Vacant"),Rent_Roll[Square Feet]) -> 11200 | E61: =SUMPRODUCT(--(Rent_Roll[Status]="Current"),--(Rent_Roll[Lease Start]<=$C61),--(Rent_Roll[Lease Expiration]>=$C61),Rent_Roll[Monthly Rent]) -> 18308.33333 | F61: 0 | G61: =IF(MOD(B61-1,12)<>0,G60,RPMGrow('Cash Flows'!$E$12,'Rent Roll Summary'!G60,Inflation)) -> 1.716701 | H61: 0 | I61: 0 | J61: =I61*'Leasing Costs Calculator'!$I$54 -> 0 | K61: =$I61*'Leasing Costs Calculator'!$I$43 -> 0 | L61: =$I61*'Leasing Costs Calculator'!$I$49 -> 0
B62: 20 | C62: 2023-08-01 | D62: =SUMPRODUCT(--(Rent_Roll[Lease Start]<=$C62),--(Rent_Roll[Lease Expiration]>=$C62),--(Rent_Roll[Status]<>"Vacant"),Rent_Roll[Square Feet]) -> 11200 | E62: =SUMPRODUCT(--(Rent_Roll[Status]="Current"),--(Rent_Roll[Lease Start]<=$C62),--(Rent_Roll[Lease Expiration]>=$C62),Rent_Roll[Monthly Rent]) -> 18308.33333 | F62: 0 | G62: =IF(MOD(B62-1,12)<>0,G61,RPMGrow('Cash Flows'!$E$12,'Rent Roll Summary'!G61,Inflation)) -> 1.716701 | H62: 0 | I62: 0 | J62: =I62*'Leasing Costs Calculator'!$I$54 -> 0 | K62: =$I62*'Leasing Costs Calculator'!$I$43 -> 0 | L62: =$I62*'Leasing Costs Calculator'!$I$49 -> 0
B63: 21 | C63: 2023-09-01 | D63: =SUMPRODUCT(--(Rent_Roll[Lease Start]<=$C63),--(Rent_Roll[Lease Expiration]>=$C63),--(Rent_Roll[Status]<>"Vacant"),Rent_Roll[Square Feet]) -> 11200 | E63: =SUMPRODUCT(--(Rent_Roll[Status]="Current"),--(Rent_Roll[Lease Start]<=$C63),--(Rent_Roll[Lease Expiration]>=$C63),Rent_Roll[Monthly Rent]) -> 18308.33333 | F63: 0 | G63: =IF(MOD(B63-1,12)<>0,G62,RPMGrow('Cash Flows'!$E$12,'Rent Roll Summary'!G62,Inflation)) -> 1.716701 | H63: 0 | I63: 0 | J63: =I63*'Leasing Costs Calculator'!$I$54 -> 0 | K63: =$I63*'Leasing Costs Calculator'!$I$43 -> 0 | L63: =$I63*'Leasing Costs Calculator'!$I$49 -> 0
B64: 22 | C64: 2023-10-01 | D64: =SUMPRODUCT(--(Rent_Roll[Lease Start]<=$C64),--(Rent_Roll[Lease Expiration]>=$C64),--(Rent_Roll[Status]<>"Vacant"),Rent_Roll[Square Feet]) -> 11200 | E64: =SUMPRODUCT(--(Rent_Roll[Status]="Current"),--(Rent_Roll[Lease Start]<=$C64),--(Rent_Roll[Lease Expiration]>=$C64),Rent_Roll[Monthly Rent]) -> 18308.33333 | F64: 0 | G64: =IF(MOD(B64-1,12)<>0,G63,RPMGrow('Cash Flows'!$E$12,'Rent Roll Summary'!G63,Inflation)) -> 1.716701 | H64: 0 | I64: 0 | J64: =I64*'Leasing Costs Calculator'!$I$54 -> 0 | K64: =$I64*'Leasing Costs Calculator'!$I$43 -> 0 | L64: =$I64*'Leasing Costs Calculator'!$I$49 -> 0
B65: 23 | C65: 2023-11-01 | D65: =SUMPRODUCT(--(Rent_Roll[Lease Start]<=$C65),--(Rent_Roll[Lease Expiration]>=$C65),--(Rent_Roll[Status]<>"Vacant"),Rent_Roll[Square Feet]) -> 11200 | E65: =SUMPRODUCT(--(Rent_Roll[Status]="Current"),--(Rent_Roll[Lease Start]<=$C65),--(Rent_Roll[Lease Expiration]>=$C65),Rent_Roll[Monthly Rent]) -> 18308.33333 | F65: 0 | G65: =IF(MOD(B65-1,12)<>0,G64,RPMGrow('Cash Flows'!$E$12,'Rent Roll Summary'!G64,Inflation)) -> 1.716701 | H65: 0 | I65: 0 | J65: =I65*'Leasing Costs Calculator'!$I$54 -> 0 | K65: =$I65*'Leasing Costs Calculator'!$I$43 -> 0 | L65: =$I65*'Leasing Costs Calculator'!$I$49 -> 0
B66: 24 | C66: 2023-12-01 | D66: =SUMPRODUCT(--(Rent_Roll[Lease Start]<=$C66),--(Rent_Roll[Lease Expiration]>=$C66),--(Rent_Roll[Status]<>"Vacant"),Rent_Roll[Square Feet]) -> 11200 | E66: =SUMPRODUCT(--(Rent_Roll[Status]="Current"),--(Rent_Roll[Lease Start]<=$C66),--(Rent_Roll[Lease Expiration]>=$C66),Rent_Roll[Monthly Rent]) -> 18308.33333 | F66: 0 | G66: =IF(MOD(B66-1,12)<>0,G65,RPMGrow('Cash Flows'!$E$12,'Rent Roll Summary'!G65,Inflation)) -> 1.716701 | H66: 0 | I66: 0 | J66: =I66*'Leasing Costs Calculator'!$I$54 -> 0 | K66: =$I66*'Leasing Costs Calculator'!$I$43 -> 0 | L66: =$I66*'Leasing Costs Calculator'!$I$49 -> 0
B67: 25 | C67: 2024-01-01 | D67: =SUMPRODUCT(--(Rent_Roll[Lease Start]<=$C67),--(Rent_Roll[Lease Expiration]>=$C67),--(Rent_Roll[Status]<>"Vacant"),Rent_Roll[Square Feet]) -> 7400 | E67: =SUMPRODUCT(--(Rent_Roll[Status]="Current"),--(Rent_Roll[Lease Start]<=$C67),--(Rent_Roll[Lease Expiration]>=$C67),Rent_Roll[Monthly Rent]) -> 12133.33333 | F67: 3800 | G67: =IF(MOD(B67-1,12)<>0,G66,RPMGrow('Cash Flows'!$E$12,'Rent Roll Summary'!G66,Inflation)) -> 1.768201 | H67: 6719.1638 | I67: 3800 | J67: =I67*'Leasing Costs Calculator'!$I$54 -> 1583.333333 | K67: =$I67*'Leasing Costs Calculator'!$I$43 -> 36416.66667 | L67: =$I67*'Leasing Costs Calculator'!$I$49 -> 12540
B68: 26 | C68: 2024-02-01 | D68: =SUMPRODUCT(--(Rent_Roll[Lease Start]<=$C68),--(Rent_Roll[Lease Expiration]>=$C68),--(Rent_Roll[Status]<>"Vacant"),Rent_Roll[Square Feet]) -> 7400 | E68: =SUMPRODUCT(--(Rent_Roll[Status]="Current"),--(Rent_Roll[Lease Start]<=$C68),--(Rent_Roll[Lease Expiration]>=$C68),Rent_Roll[Monthly Rent]) -> 12133.33333 | F68: 3800 | G68: =IF(MOD(B68-1,12)<>0,G67,RPMGrow('Cash Flows'!$E$12,'Rent Roll Summary'!G67,Inflation)) -> 1.768201 | H68: 6719.1638 | I68: 0 | J68: =I68*'Leasing Costs Calculator'!$I$54 -> 0 | K68: =$I68*'Leasing Costs Calculator'!$I$43 -> 0 | L68: =$I68*'Leasing Costs Calculator'!$I$49 -> 0
B69: 27 | C69: 2024-03-01 | D69: =SUMPRODUCT(--(Rent_Roll[Lease Start]<=$C69),--(Rent_Roll[Lease Expiration]>=$C69),--(Rent_Roll[Status]<>"Vacant"),Rent_Roll[Square Feet]) -> 7400 | E69: =SUMPRODUCT(--(Rent_Roll[Status]="Current"),--(Rent_Roll[Lease Start]<=$C69),--(Rent_Roll[Lease Expiration]>=$C69),Rent_Roll[Monthly Rent]) -> 12133.33333 | F69: 3800 | G69: =IF(MOD(B69-1,12)<>0,G68,RPMGrow('Cash Flows'!$E$12,'Rent Roll Summary'!G68,Inflation)) -> 1.768201 | H69: 6719.1638 | I69: 0 | J69: =I69*'Leasing Costs Calculator'!$I$54 -> 0 | K69: =$I69*'Leasing Costs Calculator'!$I$43 -> 0 | L69: =$I69*'Leasing Costs Calculator'!$I$49 -> 0
B70: 28 | C70: 2024-04-01 | D70: =SUMPRODUCT(--(Rent_Roll[Lease Start]<=$C70),--(Rent_Roll[Lease Expiration]>=$C70),--(Rent_Roll[Status]<>"Vacant"),Rent_Roll[Square Feet]) -> 7400 | E70: =SUMPRODUCT(--(Rent_Roll[Status]="Current"),--(Rent_Roll[Lease Start]<=$C70),--(Rent_Roll[Lease Expiration]>=$C70),Rent_Roll[Monthly Rent]) -> 12133.33333 | F70: 3800 | G70: =IF(MOD(B70-1,12)<>0,G69,RPMGrow('Cash Flows'!$E$12,'Rent Roll Summary'!G69,Inflation)) -> 1.768201 | H70: 6719.1638 | I70: 0 | J70: =I70*'Leasing Costs Calculator'!$I$54 -> 0 | K70: =$I70*'Leasing Costs Calculator'!$I$43 -> 0 | L70: =$I70*'Leasing Costs Calculator'!$I$49 -> 0
B71: 29 | C71: 2024-05-01 | D71: =SUMPRODUCT(--(Rent_Roll[Lease Start]<=$C71),--(Rent_Roll[Lease Expiration]>=$C71),--(Rent_Roll[Status]<>"Vacant"),Rent_Roll[Square Feet]) -> 7400 | E71: =SUMPRODUCT(--(Rent_Roll[Status]="Current"),--(Rent_Roll[Lease Start]<=$C71),--(Rent_Roll[Lease Expiration]>=$C71),Rent_Roll[Monthly Rent]) -> 12133.33333 | F71: 3800 | G71: =IF(MOD(B71-1,12)<>0,G70,RPMGrow('Cash Flows'!$E$12,'Rent Roll Summary'!G70,Inflation)) -> 1.768201 | H71: 6719.1638 | I71: 0 | J71: =I71*'Leasing Costs Calculator'!$I$54 -> 0 | K71: =$I71*'Leasing Costs Calculator'!$I$43 -> 0 | L71: =$I71*'Leasing Costs Calculator'!$I$49 -> 0
B72: 30 | C72: 2024-06-01 | D72: =SUMPRODUCT(--(Rent_Roll[Lease Start]<=$C72),--(Rent_Roll[Lease Expiration]>=$C72),--(Rent_Roll[Status]<>"Vacant"),Rent_Roll[Square Feet]) -> 7400 | E72: =SUMPRODUCT(--(Rent_Roll[Status]="Current"),--(Rent_Roll[Lease Start]<=$C72),--(Rent_Roll[Lease Expiration]>=$C72),Rent_Roll[Monthly Rent]) -> 12133.33333 | F72: 3800 | G72: =IF(MOD(B72-1,12)<>0,G71,RPMGrow('Cash Flows'!$E$12,'Rent Roll Summary'!G71,Inflation)) -> 1.768201 | H72: 6719.1638 | I72: 0 | J72: =I72*'Leasing Costs Calculator'!$I$54 -> 0 | K72: =$I72*'Leasing Costs Calculator'!$I$43 -> 0 | L72: =$I72*'Leasing Costs Calculator'!$I$49 -> 0
B73: 31 | C73: 2024-07-01 | D73: =SUMPRODUCT(--(Rent_Roll[Lease Start]<=$C73),--(Rent_Roll[Lease Expiration]>=$C73),--(Rent_Roll[Status]<>"Vacant"),Rent_Roll[Square Feet]) -> 7400 | E73: =SUMPRODUCT(--(Rent_Roll[Status]="Current"),--(Rent_Roll[Lease Start]<=$C73),--(Rent_Roll[Lease Expiration]>=$C73),Rent_Roll[Monthly Rent]) -> 12133.33333 | F73: 3800 | G73: =IF(MOD(B73-1,12)<>0,G72,RPMGrow('Cash Flows'!$E$12,'Rent Roll Summary'!G72,Inflation)) -> 1.768201 | H73: 6719.1638 | I73: 0 | J73: =I73*'Leasing Costs Calculator'!$I$54 -> 0 | K73: =$I73*'Leasing Costs Calculator'!$I$43 -> 0 | L73: =$I73*'Leasing Costs Calculator'!$I$49 -> 0
B74: 32 | C74: 2024-08-01 | D74: =SUMPRODUCT(--(Rent_Roll[Lease Start]<=$C74),--(Rent_Roll[Lease Expiration]>=$C74),--(Rent_Roll[Status]<>"Vacant"),Rent_Roll[Square Feet]) -> 7400 | E74: =SUMPRODUCT(--(Rent_Roll[Status]="Current"),--(Rent_Roll[Lease Start]<=$C74),--(Rent_Roll[Lease Expiration]>=$C74),Rent_Roll[Monthly Rent]) -> 12133.33333 | F74: 3800 | G74: =IF(MOD(B74-1,12)<>0,G73,RPMGrow('Cash Flows'!$E$12,'Rent Roll Summary'!G73,Inflation)) -> 1.768201 | H74: 6719.1638 | I74: 0 | J74: =I74*'Leasing Costs Calculator'!$I$54 -> 0 | K74: =$I74*'Leasing Costs Calculator'!$I$43 -> 0 | L74: =$I74*'Leasing Costs Calculator'!$I$49 -> 0
B75: 33 | C75: 2024-09-01 | D75: =SUMPRODUCT(--(Rent_Roll[Lease Start]<=$C75),--(Rent_Roll[Lease Expiration]>=$C75),--(Rent_Roll[Status]<>"Vacant"),Rent_Roll[Square Feet]) -> 7400 | E75: =SUMPRODUCT(--(Rent_Roll[Status]="Current"),--(Rent_Roll[Lease Start]<=$C75),--(Rent_Roll[Lease Expiration]>=$C75),Rent_Roll[Monthly Rent]) -> 12133.33333 | F75: =Size_Total-D75 -> 3800 | G75: =IF(MOD(B75-1,12)<>0,G74,RPMGrow('Cash Flows'!$E$12,'Rent Roll Summary'!G74,Inflation)) -> 1.768201 | H75: 6719.1638 | I75: =IF(AND($B75>1,$F75>$F74),$F75-$F74,0) -> 0 | J75: =I75*'Leasing Costs Calculator'!$I$54 -> 0 | K75: =$I75*'Leasing Costs Calculator'!$I$43 -> 0 | L75: =$I75*'Leasing Costs Calculator'!$I$49 -> 0
B76: 34 | C76: 2024-10-01 | D76: =SUMPRODUCT(--(Rent_Roll[Lease Start]<=$C76),--(Rent_Roll[Lease Expiration]>=$C76),--(Rent_Roll[Status]<>"Vacant"),Rent_Roll[Square Feet]) -> 7400 | E76: =SUMPRODUCT(--(Rent_Roll[Status]="Current"),--(Rent_Roll[Lease Start]<=$C76),--(Rent_Roll[Lease Expiration]>=$C76),Rent_Roll[Monthly Rent]) -> 12133.33333 | F76: 3800 | G76: =IF(MOD(B76-1,12)<>0,G75,RPMGrow('Cash Flows'!$E$12,'Rent Roll Summary'!G75,Inflation)) -> 1.768201 | H76: 6719.1638 | I76: 0 | J76: =I76*'Leasing Costs Calculator'!$I$54 -> 0 | K76: =$I76*'Leasing Costs Calculator'!$I$43 -> 0 | L76: =$I76*'Leasing Costs Calculator'!$I$49 -> 0
B77: 35 | C77: 2024-11-01 | D77: =SUMPRODUCT(--(Rent_Roll[Lease Start]<=$C77),--(Rent_Roll[Lease Expiration]>=$C77),--(Rent_Roll[Status]<>"Vacant"),Rent_Roll[Square Feet]) -> 7400 | E77: =SUMPRODUCT(--(Rent_Roll[Status]="Current"),--(Rent_Roll[Lease Start]<=$C77),--(Rent_Roll[Lease Expiration]>=$C77),Rent_Roll[Monthly Rent]) -> 12133.33333 | F77: 3800 | G77: =IF(MOD(B77-1,12)<>0,G76,RPMGrow('Cash Flows'!$E$12,'Rent Roll Summary'!G76,Inflation)) -> 1.768201 | H77: 6719.1638 | I77: 0 | J77: =I77*'Leasing Costs Calculator'!$I$54 -> 0 | K77: =$I77*'Leasing Costs Calculator'!$I$43 -> 0 | L77: =$I77*'Leasing Costs Calculator'!$I$49 -> 0
B78: 36 | C78: 2024-12-01 | D78: =SUMPRODUCT(--(Rent_Roll[Lease Start]<=$C78),--(Rent_Roll[Lease Expiration]>=$C78),--(Rent_Roll[Status]<>"Vacant"),Rent_Roll[Square Feet]) -> 7400 | E78: =SUMPRODUCT(--(Rent_Roll[Status]="Current"),--(Rent_Roll[Lease Start]<=$C78),--(Rent_Roll[Lease Expiration]>=$C78),Rent_Roll[Monthly Rent]) -> 12133.33333 | F78: 3800 | G78: =IF(MOD(B78-1,12)<>0,G77,RPMGrow('Cash Flows'!$E$12,'Rent Roll Summary'!G77,Inflation)) -> 1.768201 | H78: 6719.1638 | I78: 0 | J78: =I78*'Leasing Costs Calculator'!$I$54 -> 0 | K78: =$I78*'Leasing Costs Calculator'!$I$43 -> 0 | L78: =$I78*'Leasing Costs Calculator'!$I$49 -> 0
B79: 37 | C79: 2025-01-01 | D79: =SUMPRODUCT(--(Rent_Roll[Lease Start]<=$C79),--(Rent_Roll[Lease Expiration]>=$C79),--(Rent_Roll[Status]<>"Vacant"),Rent_Roll[Square Feet]) -> 7400 | E79: =SUMPRODUCT(--(Rent_Roll[Status]="Current"),--(Rent_Roll[Lease Start]<=$C79),--(Rent_Roll[Lease Expiration]>=$C79),Rent_Roll[Monthly Rent]) -> 12133.33333 | F79: 3800 | G79: =IF(MOD(B79-1,12)<>0,G78,RPMGrow('Cash Flows'!$E$12,'Rent Roll Summary'!G78,Inflation)) -> 1.821246 | H79: 6920.7348 | I79: 0 | J79: =I79*'Leasing Costs Calculator'!$I$54 -> 0 | K79: =$I79*'Leasing Costs Calculator'!$I$43 -> 0 | L79: =$I79*'Leasing Costs Calculator'!$I$49 -> 0
B80: 38 | C80: 2025-02-01 | D80: =SUMPRODUCT(--(Rent_Roll[Lease Start]<=$C80),--(Rent_Roll[Lease Expiration]>=$C80),--(Rent_Roll[Status]<>"Vacant"),Rent_Roll[Square Feet]) -> 7400 | E80: =SUMPRODUCT(--(Rent_Roll[Status]="Current"),--(Rent_Roll[Lease Start]<=$C80),--(Rent_Roll[Lease Expiration]>=$C80),Rent_Roll[Monthly Rent]) -> 12133.33333 | F80: 3800 | G80: =IF(MOD(B80-1,12)<>0,G79,RPMGrow('Cash Flows'!$E$12,'Rent Roll Summary'!G79,Inflation)) -> 1.821246 | H80: 6920.7348 | I80: 0 | J80: =I80*'Leasing Costs Calculator'!$I$54 -> 0 | K80: =$I80*'Leasing Costs Calculator'!$I$43 -> 0 | L80: =$I80*'Leasing Costs Calculator'!$I$49 -> 0
B81: 39 | C81: 2025-03-01 | D81: =SUMPRODUCT(--(Rent_Roll[Lease Start]<=$C81),--(Rent_Roll[Lease Expiration]>=$C81),--(Rent_Roll[Status]<>"Vacant"),Rent_Roll[Square Feet]) -> 7400 | E81: =SUMPRODUCT(--(Rent_Roll[Status]="Current"),--(Rent_Roll[Lease Start]<=$C81),--(Rent_Roll[Lease Expiration]>=$C81),Rent_Roll[Monthly Rent]) -> 12133.33333 | F81: 3800 | G81: =IF(MOD(B81-1,12)<>0,G80,RPMGrow('Cash Flows'!$E$12,'Rent Roll Summary'!G80,Inflation)) -> 1.821246 | H81: 6920.7348 | I81: 0 | J81: =I81*'Leasing Costs Calculator'!$I$54 -> 0 | K81: =$I81*'Leasing Costs Calculator'!$I$43 -> 0 | L81: =$I81*'Leasing Costs Calculator'!$I$49 -> 0
B82: 40 | C82: 2025-04-01 | D82: =SUMPRODUCT(--(Rent_Roll[Lease Start]<=$C82),--(Rent_Roll[Lease Expiration]>=$C82),--(Rent_Roll[Status]<>"Vacant"),Rent_Roll[Square Feet]) -> 7400 | E82: =SUMPRODUCT(--(Rent_Roll[Status]="Current"),--(Rent_Roll[Lease Start]<=$C82),--(Rent_Roll[Lease Expiration]>=$C82),Rent_Roll[Monthly Rent]) -> 12133.33333 | F82: 3800 | G82: =IF(MOD(B82-1,12)<>0,G81,RPMGrow('Cash Flows'!$E$12,'Rent Roll Summary'!G81,Inflation)) -> 1.821246 | H82: 6920.7348 | I82: 0 | J82: =I82*'Leasing Costs Calculator'!$I$54 -> 0 | K82: =$I82*'Leasing Costs Calculator'!$I$43 -> 0 | L82: =$I82*'Leasing Costs Calculator'!$I$49 -> 0
B83: 41 | C83: 2025-05-01 | D83: =SUMPRODUCT(--(Rent_Roll[Lease Start]<=$C83),--(Rent_Roll[Lease Expiration]>=$C83),--(Rent_Roll[Status]<>"Vacant"),Rent_Roll[Square Feet]) -> 7400 | E83: =SUMPRODUCT(--(Rent_Roll[Status]="Current"),--(Rent_Roll[Lease Start]<=$C83),--(Rent_Roll[Lease Expiration]>=$C83),Rent_Roll[Monthly Rent]) -> 12133.33333 | F83: 3800 | G83: =IF(MOD(B83-1,12)<>0,G82,RPMGrow('Cash Flows'!$E$12,'Rent Roll Summary'!G82,Inflation)) -> 1.821246 | H83: 6920.7348 | I83: 0 | J83: =I83*'Leasing Costs Calculator'!$I$54 -> 0 | K83: =$I83*'Leasing Costs Calculator'!$I$43 -> 0 | L83: =$I83*'Leasing Costs Calculator'!$I$49 -> 0
B84: 42 | C84: 2025-06-01 | D84: =SUMPRODUCT(--(Rent_Roll[Lease Start]<=$C84),--(Rent_Roll[Lease Expiration]>=$C84),--(Rent_Roll[Status]<>"Vacant"),Rent_Roll[Square Feet]) -> 7400 | E84: =SUMPRODUCT(--(Rent_Roll[Status]="Current"),--(Rent_Roll[Lease Start]<=$C84),--(Rent_Roll[Lease Expiration]>=$C84),Rent_Roll[Monthly Rent]) -> 12133.33333 | F84: 3800 | G84: =IF(MOD(B84-1,12)<>0,G83,RPMGrow('Cash Flows'!$E$12,'Rent Roll Summary'!G83,Inflation)) -> 1.821246 | H84: 6920.7348 | I84: 0 | J84: =I84*'Leasing Costs Calculator'!$I$54 -> 0 | K84: =$I84*'Leasing Costs Calculator'!$I$43 -> 0 | L84: =$I84*'Leasing Costs Calculator'!$I$49 -> 0
B85: 43 | C85: 2025-07-01 | D85: =SUMPRODUCT(--(Rent_Roll[Lease Start]<=$C85),--(Rent_Roll[Lease Expiration]>=$C85),--(Rent_Roll[Status]<>"Vacant"),Rent_Roll[Square Feet]) -> 7400 | E85: =SUMPRODUCT(--(Rent_Roll[Status]="Current"),--(Rent_Roll[Lease Start]<=$C85),--(Rent_Roll[Lease Expiration]>=$C85),Rent_Roll[Monthly Rent]) -> 12133.33333 | F85: 3800 | G85: =IF(MOD(B85-1,12)<>0,G84,RPMGrow('Cash Flows'!$E$12,'Rent Roll Summary'!G84,Inflation)) -> 1.821246 | H85: 6920.7348 | I85: 0 | J85: =I85*'Leasing Costs Calculator'!$I$54 -> 0 | K85: =$I85*'Leasing Costs Calculator'!$I$43 -> 0 | L85: =$I85*'Leasing Costs Calculator'!$I$49 -> 0
B86: 44 | C86: 2025-08-01 | D86: =SUMPRODUCT(--(Rent_Roll[Lease Start]<=$C86),--(Rent_Roll[Lease Expiration]>=$C86),--(Rent_Roll[Status]<>"Vacant"),Rent_Roll[Square Feet]) -> 7400 | E86: =SUMPRODUCT(--(Rent_Roll[Status]="Current"),--(Rent_Roll[Lease Start]<=$C86),--(Rent_Roll[Lease Expiration]>=$C86),Rent_Roll[Monthly Rent]) -> 12133.33333 | F86: 3800 | G86: =IF(MOD(B86-1,12)<>0,G85,RPMGrow('Cash Flows'!$E$12,'Rent Roll Summary'!G85,Inflation)) -> 1.821246 | H86: 6920.7348 | I86: 0 | J86: =I86*'Leasing Costs Calculator'!$I$54 -> 0 | K86: =$I86*'Leasing Costs Calculator'!$I$43 -> 0 | L86: =$I86*'Leasing Costs Calculator'!$I$49 -> 0
B87: 45 | C87: 2025-09-01 | D87: =SUMPRODUCT(--(Rent_Roll[Lease Start]<=$C87),--(Rent_Roll[Lease Expiration]>=$C87),--(Rent_Roll[Status]<>"Vacant"),Rent_Roll[Square Feet]) -> 7400 | E87: =SUMPRODUCT(--(Rent_Roll[Status]="Current"),--(Rent_Roll[Lease Start]<=$C87),--(Rent_Roll[Lease Expiration]>=$C87),Rent_Roll[Monthly Rent]) -> 12133.33333 | F87: 3800 | G87: =IF(MOD(B87-1,12)<>0,G86,RPMGrow('Cash Flows'!$E$12,'Rent Roll Summary'!G86,Inflation)) -> 1.821246 | H87: 6920.7348 | I87: 0 | J87: =I87*'Leasing Costs Calculator'!$I$54 -> 0 | K87: =$I87*'Leasing Costs Calculator'!$I$43 -> 0 | L87: =$I87*'Leasing Costs Calculator'!$I$49 -> 0
B88: 46 | C88: 2025-10-01 | D88: =SUMPRODUCT(--(Rent_Roll[Lease Start]<=$C88),--(Rent_Roll[Lease Expiration]>=$C88),--(Rent_Roll[Status]<>"Vacant"),Rent_Roll[Square Feet]) -> 7400 | E88: =SUMPRODUCT(--(Rent_Roll[Status]="Current"),--(Rent_Roll[Lease Start]<=$C88),--(Rent_Roll[Lease Expiration]>=$C88),Rent_Roll[Monthly Rent]) -> 12133.33333 | F88: 3800 | G88: =IF(MOD(B88-1,12)<>0,G87,RPMGrow('Cash Flows'!$E$12,'Rent Roll Summary'!G87,Inflation)) -> 1.821246 | H88: 6920.7348 | I88: 0 | J88: =I88*'Leasing Costs Calculator'!$I$54 -> 0 | K88: =$I88*'Leasing Costs Calculator'!$I$43 -> 0 | L88: =$I88*'Leasing Costs Calculator'!$I$49 -> 0
B89: 47 | C89: 2025-11-01 | D89: =SUMPRODUCT(--(Rent_Roll[Lease Start]<=$C89),--(Rent_Roll[Lease Expiration]>=$C89),--(Rent_Roll[Status]<>"Vacant"),Rent_Roll[Square Feet]) -> 7400 | E89: =SUMPRODUCT(--(Rent_Roll[Status]="Current"),--(Rent_Roll[Lease Start]<=$C89),--(Rent_Roll[Lease Expiration]>=$C89),Rent_Roll[Monthly Rent]) -> 12133.33333 | F89: 3800 | G89: =IF(MOD(B89-1,12)<>0,G88,RPMGrow('Cash Flows'!$E$12,'Rent Roll Summary'!G88,Inflation)) -> 1.821246 | H89: 6920.7348 | I89: 0 | J89: =I89*'Leasing Costs Calculator'!$I$54 -> 0 | K89: =$I89*'Leasing Costs Calculator'!$I$43 -> 0 | L89: =$I89*'Leasing Costs Calculator'!$I$49 -> 0
B90: 48 | C90: 2025-12-01 | D90: =SUMPRODUCT(--(Rent_Roll[Lease Start]<=$C90),--(Rent_Roll[Lease Expiration]>=$C90),--(Rent_Roll[Status]<>"Vacant"),Rent_Roll[Square Feet]) -> 7400 | E90: =SUMPRODUCT(--(Rent_Roll[Status]="Current"),--(Rent_Roll[Lease Start]<=$C90),--(Rent_Roll[Lease Expiration]>=$C90),Rent_Roll[Monthly Rent]) -> 12133.33333 | F90: 3800 | G90: =IF(MOD(B90-1,12)<>0,G89,RPMGrow('Cash Flows'!$E$12,'Rent Roll Summary'!G89,Inflation)) -> 1.821246 | H90: 6920.7348 | I90: 0 | J90: =I90*'Leasing Costs Calculator'!$I$54 -> 0 | K90: =$I90*'Leasing Costs Calculator'!$I$43 -> 0 | L90: =$I90*'Leasing Costs Calculator'!$I$49 -> 0
B91: 49 | C91: 2026-01-01 | D91: =SUMPRODUCT(--(Rent_Roll[Lease Start]<=$C91),--(Rent_Roll[Lease Expiration]>=$C91),--(Rent_Roll[Status]<>"Vacant"),Rent_Roll[Square Feet]) -> 3100 | E91: =SUMPRODUCT(--(Rent_Roll[Status]="Current"),--(Rent_Roll[Lease Start]<=$C91),--(Rent_Roll[Lease Expiration]>=$C91),Rent_Roll[Monthly Rent]) -> 5683.333333 | F91: 8100 | G91: =IF(MOD(B91-1,12)<>0,G90,RPMGrow('Cash Flows'!$E$12,'Rent Roll Summary'!G90,Inflation)) -> 1.875836 | H91: 15194.2716 | I91: 4300 | J91: =I91*'Leasing Costs Calculator'!$I$54 -> 1791.666667 | K91: =$I91*'Leasing Costs Calculator'!$I$43 -> 41208.33333 | L91: =$I91*'Leasing Costs Calculator'!$I$49 -> 14190
B92: 50 | C92: 2026-02-01 | D92: =SUMPRODUCT(--(Rent_Roll[Lease Start]<=$C92),--(Rent_Roll[Lease Expiration]>=$C92),--(Rent_Roll[Status]<>"Vacant"),Rent_Roll[Square Feet]) -> 3100 | E92: =SUMPRODUCT(--(Rent_Roll[Status]="Current"),--(Rent_Roll[Lease Start]<=$C92),--(Rent_Roll[Lease Expiration]>=$C92),Rent_Roll[Monthly Rent]) -> 5683.333333 | F92: 8100 | G92: =IF(MOD(B92-1,12)<>0,G91,RPMGrow('Cash Flows'!$E$12,'Rent Roll Summary'!G91,Inflation)) -> 1.875836 | H92: 15194.2716 | I92: 0 | J92: =I92*'Leasing Costs Calculator'!$I$54 -> 0 | K92: =$I92*'Leasing Costs Calculator'!$I$43 -> 0 | L92: =$I92*'Leasing Costs Calculator'!$I$49 -> 0
B93: 51 | C93: 2026-03-01 | D93: =SUMPRODUCT(--(Rent_Roll[Lease Start]<=$C93),--(Rent_Roll[Lease Expiration]>=$C93),--(Rent_Roll[Status]<>"Vacant"),Rent_Roll[Square Feet]) -> 3100 | E93: =SUMPRODUCT(--(Rent_Roll[Status]="Current"),--(Rent_Roll[Lease Start]<=$C93),--(Rent_Roll[Lease Expiration]>=$C93),Rent_Roll[Monthly Rent]) -> 5683.333333 | F93: 8100 | G93: =IF(MOD(B93-1,12)<>0,G92,RPMGrow('Cash Flows'!$E$12,'Rent Roll Summary'!G92,Inflation)) -> 1.875836 | H93: 15194.2716 | I93: 0 | J93: =I93*'Leasing Costs Calculator'!$I$54 -> 0 | K93: =$I93*'Leasing Costs Calculator'!$I$43 -> 0 | L93: =$I93*'Leasing Costs Calculator'!$I$49 -> 0
B94: 52 | C94: 2026-04-01 | D94: =SUMPRODUCT(--(Rent_Roll[Lease Start]<=$C94),--(Rent_Roll[Lease Expiration]>=$C94),--(Rent_Roll[Status]<>"Vacant"),Rent_Roll[Square Feet]) -> 3100 | E94: =SUMPRODUCT(--(Rent_Roll[Status]="Current"),--(Rent_Roll[Lease Start]<=$C94),--(Rent_Roll[Lease Expiration]>=$C94),Rent_Roll[Monthly Rent]) -> 5683.333333 | F94: 8100 | G94: =IF(MOD(B94-1,12)<>0,G93,RPMGrow('Cash Flows'!$E$12,'Rent Roll Summary'!G93,Inflation)) -> 1.875836 | H94: 15194.2716 | I94: 0 | J94: =I94*'Leasing Costs Calculator'!$I$54 -> 0 | K94: =$I94*'Leasing Costs Calculator'!$I$43 -> 0 | L94: =$I94*'Leasing Costs Calculator'!$I$49 -> 0
B95: 53 | C95: 2026-05-01 | D95: =SUMPRODUCT(--(Rent_Roll[Lease Start]<=$C95),--(Rent_Roll[Lease Expiration]>=$C95),--(Rent_Roll[Status]<>"Vacant"),Rent_Roll[Square Feet]) -> 3100 | E95: =SUMPRODUCT(--(Rent_Roll[Status]="Current"),--(Rent_Roll[Lease Start]<=$C95),--(Rent_Roll[Lease Expiration]>=$C95),Rent_Roll[Monthly Rent]) -> 5683.333333 | F95: 8100 | G95: =IF(MOD(B95-1,12)<>0,G94,RPMGrow('Cash Flows'!$E$12,'Rent Roll Summary'!G94,Inflation)) -> 1.875836 | H95: 15194.2716 | I95: 0 | J95: =I95*'Leasing Costs Calculator'!$I$54 -> 0 | K95: =$I95*'Leasing Costs Calculator'!$I$43 -> 0 | L95: =$I95*'Leasing Costs Calculator'!$I$49 -> 0
B96: 54 | C96: 2026-06-01 | D96: =SUMPRODUCT(--(Rent_Roll[Lease Start]<=$C96),--(Rent_Roll[Lease Expiration]>=$C96),--(Rent_Roll[Status]<>"Vacant"),Rent_Roll[Square Feet]) -> 3100 | E96: =SUMPRODUCT(--(Rent_Roll[Status]="Current"),--(Rent_Roll[Lease Start]<=$C96),--(Rent_Roll[Lease Expiration]>=$C96),Rent_Roll[Monthly Rent]) -> 5683.333333 | F96: 8100 | G96: =IF(MOD(B96-1,12)<>0,G95,RPMGrow('Cash Flows'!$E$12,'Rent Roll Summary'!G95,Inflation)) -> 1.875836 | H96: 15194.2716 | I96: 0 | J96: =I96*'Leasing Costs Calculator'!$I$54 -> 0 | K96: =$I96*'Leasing Costs Calculator'!$I$43 -> 0 | L96: =$I96*'Leasing Costs Calculator'!$I$49 -> 0
B97: 55 | C97: 2026-07-01 | D97: =SUMPRODUCT(--(Rent_Roll[Lease Start]<=$C97),--(Rent_Roll[Lease Expiration]>=$C97),--(Rent_Roll[Status]<>"Vacant"),Rent_Roll[Square Feet]) -> 3100 | E97: =SUMPRODUCT(--(Rent_Roll[Status]="Current"),--(Rent_Roll[Lease Start]<=$C97),--(Rent_Roll[Lease Expiration]>=$C97),Rent_Roll[Monthly Rent]) -> 5683.333333 | F97: 8100 | G97: =IF(MOD(B97-1,12)<>0,G96,RPMGrow('Cash Flows'!$E$12,'Rent Roll Summary'!G96,Inflation)) -> 1.875836 | H97: 15194.2716 | I97: 0 | J97: =I97*'Leasing Costs Calculator'!$I$54 -> 0 | K97: =$I97*'Leasing Costs Calculator'!$I$43 -> 0 | L97: =$I97*'Leasing Costs Calculator'!$I$49 -> 0
B98: 56 | C98: 2026-08-01 | D98: =SUMPRODUCT(--(Rent_Roll[Lease Start]<=$C98),--(Rent_Roll[Lease Expiration]>=$C98),--(Rent_Roll[Status]<>"Vacant"),Rent_Roll[Square Feet]) -> 3100 | E98: =SUMPRODUCT(--(Rent_Roll[Status]="Current"),--(Rent_Roll[Lease Start]<=$C98),--(Rent_Roll[Lease Expiration]>=$C98),Rent_Roll[Monthly Rent]) -> 5683.333333 | F98: 8100 | G98: =IF(MOD(B98-1,12)<>0,G97,RPMGrow('Cash Flows'!$E$12,'Rent Roll Summary'!G97,Inflation)) -> 1.875836 | H98: 15194.2716 | I98: 0 | J98: =I98*'Leasing Costs Calculator'!$I$54 -> 0 | K98: =$I98*'Leasing Costs Calculator'!$I$43 -> 0 | L98: =$I98*'Leasing Costs Calculator'!$I$49 -> 0
B99: 57 | C99: 2026-09-01 | D99: =SUMPRODUCT(--(Rent_Roll[Lease Start]<=$C99),--(Rent_Roll[Lease Expiration]>=$C99),--(Rent_Roll[Status]<>"Vacant"),Rent_Roll[Square Feet]) -> 3100 | E99: =SUMPRODUCT(--(Rent_Roll[Status]="Current"),--(Rent_Roll[Lease Start]<=$C99),--(Rent_Roll[Lease Expiration]>=$C99),Rent_Roll[Monthly Rent]) -> 5683.333333 | F99: 8100 | G99: =IF(MOD(B99-1,12)<>0,G98,RPMGrow('Cash Flows'!$E$12,'Rent Roll Summary'!G98,Inflation)) -> 1.875836 | H99: 15194.2716 | I99: 0 | J99: =I99*'Leasing Costs Calculator'!$I$54 -> 0 | K99: =$I99*'Leasing Costs Calculator'!$I$43 -> 0 | L99: =$I99*'Leasing Costs Calculator'!$I$49 -> 0
B100: 58 | C100: 2026-10-01 | D100: =SUMPRODUCT(--(Rent_Roll[Lease Start]<=$C100),--(Rent_Roll[Lease Expiration]>=$C100),--(Rent_Roll[Status]<>"Vacant"),Rent_Roll[Square Feet]) -> 3100 | E100: =SUMPRODUCT(--(Rent_Roll[Status]="Current"),--(Rent_Roll[Lease Start]<=$C100),--(Rent_Roll[Lease Expiration]>=$C100),Rent_Roll[Monthly Rent]) -> 5683.333333 | F100: 8100 | G100: =IF(MOD(B100-1,12)<>0,G99,RPMGrow('Cash Flows'!$E$12,'Rent Roll Summary'!G99,Inflation)) -> 1.875836 | H100: 15194.2716 | I100: 0 | J100: =I100*'Leasing Costs Calculator'!$I$54 -> 0 | K100: =$I100*'Leasing Costs Calculator'!$I$43 -> 0 | L100: =$I100*'Leasing Costs Calculator'!$I$49 -> 0
B101: 59 | C101: 2026-11-01 | D101: =SUMPRODUCT(--(Rent_Roll[Lease Start]<=$C101),--(Rent_Roll[Lease Expiration]>=$C101),--(Rent_Roll[Status]<>"Vacant"),Rent_Roll[Square Feet]) -> 3100 | E101: =SUMPRODUCT(--(Rent_Roll[Status]="Current"),--(Rent_Roll[Lease Start]<=$C101),--(Rent_Roll[Lease Expiration]>=$C101),Rent_Roll[Monthly Rent]) -> 5683.333333 | F101: 8100 | G101: =IF(MOD(B101-1,12)<>0,G100,RPMGrow('Cash Flows'!$E$12,'Rent Roll Summary'!G100,Inflation)) -> 1.875836 | H101: 15194.2716 | I101: 0 | J101: =I101*'Leasing Costs Calculator'!$I$54 -> 0 | K101: =$I101*'Leasing Costs Calculator'!$I$43 -> 0 | L101: =$I101*'Leasing Costs Calculator'!$I$49 -> 0
B102: 60 | C102: 2026-12-01 | D102: =SUMPRODUCT(--(Rent_Roll[Lease Start]<=$C102),--(Rent_Roll[Lease Expiration]>=$C102),--(Rent_Roll[Status]<>"Vacant"),Rent_Roll[Square Feet]) -> 3100 | E102: =SUMPRODUCT(--(Rent_Roll[Status]="Current"),--(Rent_Roll[Lease Start]<=$C102),--(Rent_Roll[Lease Expiration]>=$C102),Rent_Roll[Monthly Rent]) -> 5683.333333 | F102: 8100 | G102: =IF(MOD(B102-1,12)<>0,G101,RPMGrow('Cash Flows'!$E$12,'Rent Roll Summary'!G101,Inflation)) -> 1.875836 | H102: 15194.2716 | I102: 0 | J102: =I102*'Leasing Costs Calculator'!$I$54 -> 0 | K102: =$I102*'Leasing Costs Calculator'!$I$43 -> 0 | L102: =$I102*'Leasing Costs Calculator'!$I$49 -> 0
B103: 61 | C103: 2027-01-01 | D103: =SUMPRODUCT(--(Rent_Roll[Lease Start]<=$C103),--(Rent_Roll[Lease Expiration]>=$C103),--(Rent_Roll[Status]<>"Vacant"),Rent_Roll[Square Feet]) -> 3100 | E103: =SUMPRODUCT(--(Rent_Roll[Status]="Current"),--(Rent_Roll[Lease Start]<=$C103),--(Rent_Roll[Lease Expiration]>=$C103),Rent_Roll[Monthly Rent]) -> 5683.333333 | F103: 8100 | G103: =IF(MOD(B103-1,12)<>0,G102,RPMGrow('Cash Flows'!$E$12,'Rent Roll Summary'!G102,Inflation)) -> 1.932074 | H103: 15649.7994 | I103: 0 | J103: =I103*'Leasing Costs Calculator'!$I$54 -> 0 | K103: =$I103*'Leasing Costs Calculator'!$I$43 -> 0 | L103: =$I103*'Leasing Costs Calculator'!$I$49 -> 0
B104: 62 | C104: 2027-02-01 | D104: =SUMPRODUCT(--(Rent_Roll[Lease Start]<=$C104),--(Rent_Roll[Lease Expiration]>=$C104),--(Rent_Roll[Status]<>"Vacant"),Rent_Roll[Square Feet]) -> 3100 | E104: =SUMPRODUCT(--(Rent_Roll[Status]="Current"),--(Rent_Roll[Lease Start]<=$C104),--(Rent_Roll[Lease Expiration]>=$C104),Rent_Roll[Monthly Rent]) -> 5683.333333 | F104: 8100 | G104: =IF(MOD(B104-1,12)<>0,G103,RPMGrow('Cash Flows'!$E$12,'Rent Roll Summary'!G103,Inflation)) -> 1.932074 | H104: 15649.7994 | I104: 0 | J104: =I104*'Leasing Costs Calculator'!$I$54 -> 0 | K104: =$I104*'Leasing Costs Calculator'!$I$43 -> 0 | L104: =$I104*'Leasing Costs Calculator'!$I$49 -> 0
B105: 63 | C105: 2027-03-01 | D105: =SUMPRODUCT(--(Rent_Roll[Lease Start]<=$C105),--(Rent_Roll[Lease Expiration]>=$C105),--(Rent_Roll[Status]<>"Vacant"),Rent_Roll[Square Feet]) -> 3100 | E105: =SUMPRODUCT(--(Rent_Roll[Status]="Current"),--(Rent_Roll[Lease Start]<=$C105),--(Rent_Roll[Lease Expiration]>=$C105),Rent_Roll[Monthly Rent]) -> 5683.333333 | F105: 8100 | G105: =IF(MOD(B105-1,12)<>0,G104,RPMGrow('Cash Flows'!$E$12,'Rent Roll Summary'!G104,Inflation)) -> 1.932074 | H105: 15649.7994 | I105: 0 | J105: =I105*'Leasing Costs Calculator'!$I$54 -> 0 | K105: =$I105*'Leasing Costs Calculator'!$I$43 -> 0 | L105: =$I105*'Leasing Costs Calculator'!$I$49 -> 0
B106: 64 | C106: 2027-04-01 | D106: =SUMPRODUCT(--(Rent_Roll[Lease Start]<=$C106),--(Rent_Roll[Lease Expiration]>=$C106),--(Rent_Roll[Status]<>"Vacant"),Rent_Roll[Square Feet]) -> 3100 | E106: =SUMPRODUCT(--(Rent_Roll[Status]="Current"),--(Rent_Roll[Lease Start]<=$C106),--(Rent_Roll[Lease Expiration]>=$C106),Rent_Roll[Monthly Rent]) -> 5683.333333 | F106: 8100 | G106: =IF(MOD(B106-1,12)<>0,G105,RPMGrow('Cash Flows'!$E$12,'Rent Roll Summary'!G105,Inflation)) -> 1.932074 | H106: 15649.7994 | I106: 0 | J106: =I106*'Leasing Costs Calculator'!$I$54 -> 0 | K106: =$I106*'Leasing Costs Calculator'!$I$43 -> 0 | L106: =$I106*'Leasing Costs Calculator'!$I$49 -> 0
B107: 65 | C107: 2027-05-01 | D107: =SUMPRODUCT(--(Rent_Roll[Lease Start]<=$C107),--(Rent_Roll[Lease Expiration]>=$C107),--(Rent_Roll[Status]<>"Vacant"),Rent_Roll[Square Feet]) -> 3100 | E107: =SUMPRODUCT(--(Rent_Roll[Status]="Current"),--(Rent_Roll[Lease Start]<=$C107),--(Rent_Roll[Lease Expiration]>=$C107),Rent_Roll[Monthly Rent]) -> 5683.333333 | F107: =Size_Total-D107 -> 8100 | G107: =IF(MOD(B107-1,12)<>0,G106,RPMGrow('Cash Flows'!$E$12,'Rent Roll Summary'!G106,Inflation)) -> 1.932074 | H107: 15649.7994 | I107: =IF(AND($B107>1,$F107>$F106),$F107-$F106,0) -> 0 | J107: =I107*'Leasing Costs Calculator'!$I$54 -> 0 | K107: =$I107*'Leasing Costs Calculator'!$I$43 -> 0 | L107: =$I107*'Leasing Costs Calculator'!$I$49 -> 0
B108: 66 | C108: 2027-06-01 | D108: =SUMPRODUCT(--(Rent_Roll[Lease Start]<=$C108),--(Rent_Roll[Lease Expiration]>=$C108),--(Rent_Roll[Status]<>"Vacant"),Rent_Roll[Square Feet]) -> 3100 | E108: =SUMPRODUCT(--(Rent_Roll[Status]="Current"),--(Rent_Roll[Lease Start]<=$C108),--(Rent_Roll[Lease Expiration]>=$C108),Rent_Roll[Monthly Rent]) -> 5683.333333 | F108: 8100 | G108: =IF(MOD(B108-1,12)<>0,G107,RPMGrow('Cash Flows'!$E$12,'Rent Roll Summary'!G107,Inflation)) -> 1.932074 | H108: 15649.7994 | I108: 0 | J108: =I108*'Leasing Costs Calculator'!$I$54 -> 0 | K108: =$I108*'Leasing Costs Calculator'!$I$43 -> 0 | L108: =$I108*'Leasing Costs Calculator'!$I$49 -> 0
B109: 67 | C109: =EDATE(C108,1) -> 2027-07-01 | D109: =SUMPRODUCT(--(Rent_Roll[Lease Start]<=$C109),--(Rent_Roll[Lease Expiration]>=$C109),--(Rent_Roll[Status]<>"Vacant"),Rent_Roll[Square Feet]) -> 3100 | E109: =SUMPRODUCT(--(Rent_Roll[Status]="Current"),--(Rent_Roll[Lease Start]<=$C109),--(Rent_Roll[Lease Expiration]>=$C109),Rent_Roll[Monthly Rent]) -> 5683.333333 | F109: 8100 | G109: =IF(MOD(B109-1,12)<>0,G108,RPMGrow('Cash Flows'!$E$12,'Rent Roll Summary'!G108,Inflation)) -> 1.932074 | H109: =F109*G109 -> 15649.7994 | I109: 0 | J109: =I109*'Leasing Costs Calculator'!$I$54 -> 0 | K109: =$I109*'Leasing Costs Calculator'!$I$43 -> 0 | L109: =$I109*'Leasing Costs Calculator'!$I$49 -> 0
B110: 68 | C110: 2027-08-01 | D110: =SUMPRODUCT(--(Rent_Roll[Lease Start]<=$C110),--(Rent_Roll[Lease Expiration]>=$C110),--(Rent_Roll[Status]<>"Vacant"),Rent_Roll[Square Feet]) -> 3100 | E110: =SUMPRODUCT(--(Rent_Roll[Status]="Current"),--(Rent_Roll[Lease Start]<=$C110),--(Rent_Roll[Lease Expiration]>=$C110),Rent_Roll[Monthly Rent]) -> 5683.333333 | F110: 8100 | G110: =IF(MOD(B110-1,12)<>0,G109,RPMGrow('Cash Flows'!$E$12,'Rent Roll Summary'!G109,Inflation)) -> 1.932074 | H110: 15649.7994 | I110: 0 | J110: =I110*'Leasing Costs Calculator'!$I$54 -> 0 | K110: =$I110*'Leasing Costs Calculator'!$I$43 -> 0 | L110: =$I110*'Leasing Costs Calculator'!$I$49 -> 0
B111: 69 | C111: 2027-09-01 | D111: =SUMPRODUCT(--(Rent_Roll[Lease Start]<=$C111),--(Rent_Roll[Lease Expiration]>=$C111),--(Rent_Roll[Status]<>"Vacant"),Rent_Roll[Square Feet]) -> 3100 | E111: =SUMPRODUCT(--(Rent_Roll[Status]="Current"),--(Rent_Roll[Lease Start]<=$C111),--(Rent_Roll[Lease Expiration]>=$C111),Rent_Roll[Monthly Rent]) -> 5683.333333 | F111: 8100 | G111: =IF(MOD(B111-1,12)<>0,G110,RPMGrow('Cash Flows'!$E$12,'Rent Roll Summary'!G110,Inflation)) -> 1.932074 | H111: 15649.7994 | I111: 0 | J111: =I111*'Leasing Costs Calculator'!$I$54 -> 0 | K111: =$I111*'Leasing Costs Calculator'!$I$43 -> 0 | L111: =$I111*'Leasing Costs Calculator'!$I$49 -> 0
B112: 70 | C112: 2027-10-01 | D112: =SUMPRODUCT(--(Rent_Roll[Lease Start]<=$C112),--(Rent_Roll[Lease Expiration]>=$C112),--(Rent_Roll[Status]<>"Vacant"),Rent_Roll[Square Feet]) -> 3100 | E112: =SUMPRODUCT(--(Rent_Roll[Status]="Current"),--(Rent_Roll[Lease Start]<=$C112),--(Rent_Roll[Lease Expiration]>=$C112),Rent_Roll[Monthly Rent]) -> 5683.333333 | F112: 8100 | G112: =IF(MOD(B112-1,12)<>0,G111,RPMGrow('Cash Flows'!$E$12,'Rent Roll Summary'!G111,Inflation)) -> 1.932074 | H112: 15649.7994 | I112: 0 | J112: =I112*'Leasing Costs Calculator'!$I$54 -> 0 | K112: =$I112*'Leasing Costs Calculator'!$I$43 -> 0 | L112: =$I112*'Leasing Costs Calculator'!$I$49 -> 0
B113: 71 | C113: 2027-11-01 | D113: =SUMPRODUCT(--(Rent_Roll[Lease Start]<=$C113),--(Rent_Roll[Lease Expiration]>=$C113),--(Rent_Roll[Status]<>"Vacant"),Rent_Roll[Square Feet]) -> 3100 | E113: =SUMPRODUCT(--(Rent_Roll[Status]="Current"),--(Rent_Roll[Lease Start]<=$C113),--(Rent_Roll[Lease Expiration]>=$C113),Rent_Roll[Monthly Rent]) -> 5683.333333 | F113: 8100 | G113: =IF(MOD(B113-1,12)<>0,G112,RPMGrow('Cash Flows'!$E$12,'Rent Roll Summary'!G112,Inflation)) -> 1.932074 | H113: 15649.7994 | I113: 0 | J113: =I113*'Leasing Costs Calculator'!$I$54 -> 0 | K113: =$I113*'Leasing Costs Calculator'!$I$43 -> 0 | L113: =$I113*'Leasing Costs Calculator'!$I$49 -> 0
B114: 72 | C114: 2027-12-01 | D114: =SUMPRODUCT(--(Rent_Roll[Lease Start]<=$C114),--(Rent_Roll[Lease Expiration]>=$C114),--(Rent_Roll[Status]<>"Vacant"),Rent_Roll[Square Feet]) -> 3100 | E114: =SUMPRODUCT(--(Rent_Roll[Status]="Current"),--(Rent_Roll[Lease Start]<=$C114),--(Rent_Roll[Lease Expiration]>=$C114),Rent_Roll[Monthly Rent]) -> 5683.333333 | F114: 8100 | G114: =IF(MOD(B114-1,12)<>0,G113,RPMGrow('Cash Flows'!$E$12,'Rent Roll Summary'!G113,Inflation)) -> 1.932074 | H114: 15649.7994 | I114: 0 | J114: =I114*'Leasing Costs Calculator'!$I$54 -> 0 | K114: =$I114*'Leasing Costs Calculator'!$I$43 -> 0 | L114: =$I114*'Leasing Costs Calculator'!$I$49 -> 0
B115: 73 | C115: 2028-01-01 | D115: =SUMPRODUCT(--(Rent_Roll[Lease Start]<=$C115),--(Rent_Roll[Lease Expiration]>=$C115),--(Rent_Roll[Status]<>"Vacant"),Rent_Roll[Square Feet]) -> 3100 | E115: =SUMPRODUCT(--(Rent_Roll[Status]="Current"),--(Rent_Roll[Lease Start]<=$C115),--(Rent_Roll[Lease Expiration]>=$C115),Rent_Roll[Monthly Rent]) -> 5683.333333 | F115: 8100 | G115: =IF(MOD(B115-1,12)<>0,G114,RPMGrow('Cash Flows'!$E$12,'Rent Roll Summary'!G114,Inflation)) -> 1.990063 | H115: 16119.5103 | I115: 0 | J115: =I115*'Leasing Costs Calculator'!$I$54 -> 0 | K115: =$I115*'Leasing Costs Calculator'!$I$43 -> 0 | L115: =$I115*'Leasing Costs Calculator'!$I$49 -> 0
B116: 74 | C116: 2028-02-01 | D116: =SUMPRODUCT(--(Rent_Roll[Lease Start]<=$C116),--(Rent_Roll[Lease Expiration]>=$C116),--(Rent_Roll[Status]<>"Vacant"),Rent_Roll[Square Feet]) -> 3100 | E116: =SUMPRODUCT(--(Rent_Roll[Status]="Current"),--(Rent_Roll[Lease Start]<=$C116),--(Rent_Roll[Lease Expiration]>=$C116),Rent_Roll[Monthly Rent]) -> 5683.333333 | F116: 8100 | G116: =IF(MOD(B116-1,12)<>0,G115,RPMGrow('Cash Flows'!$E$12,'Rent Roll Summary'!G115,Inflation)) -> 1.990063 | H116: 16119.5103 | I116: 0 | J116: =I116*'Leasing Costs Calculator'!$I$54 -> 0 | K116: =$I116*'Leasing Costs Calculator'!$I$43 -> 0 | L116: =$I116*'Leasing Costs Calculator'!$I$49 -> 0
B117: 75 | C117: 2028-03-01 | D117: =SUMPRODUCT(--(Rent_Roll[Lease Start]<=$C117),--(Rent_Roll[Lease Expiration]>=$C117),--(Rent_Roll[Status]<>"Vacant"),Rent_Roll[Square Feet]) -> 3100 | E117: =SUMPRODUCT(--(Rent_Roll[Status]="Current"),--(Rent_Roll[Lease Start]<=$C117),--(Rent_Roll[Lease Expiration]>=$C117),Rent_Roll[Monthly Rent]) -> 5683.333333 | F117: 8100 | G117: =IF(MOD(B117-1,12)<>0,G116,RPMGrow('Cash Flows'!$E$12,'Rent Roll Summary'!G116,Inflation)) -> 1.990063 | H117: 16119.5103 | I117: 0 | J117: =I117*'Leasing Costs Calculator'!$I$54 -> 0 | K117: =$I117*'Leasing Costs Calculator'!$I$43 -> 0 | L117: =$I117*'Leasing Costs Calculator'!$I$49 -> 0
B118: 76 | C118: 2028-04-01 | D118: =SUMPRODUCT(--(Rent_Roll[Lease Start]<=$C118),--(Rent_Roll[Lease Expiration]>=$C118),--(Rent_Roll[Status]<>"Vacant"),Rent_Roll[Square Feet]) -> 3100 | E118: =SUMPRODUCT(--(Rent_Roll[Status]="Current"),--(Rent_Roll[Lease Start]<=$C118),--(Rent_Roll[Lease Expiration]>=$C118),Rent_Roll[Monthly Rent]) -> 5683.333333 | F118: 8100 | G118: =IF(MOD(B118-1,12)<>0,G117,RPMGrow('Cash Flows'!$E$12,'Rent Roll Summary'!G117,Inflation)) -> 1.990063 | H118: 16119.5103 | I118: 0 | J118: =I118*'Leasing Costs Calculator'!$I$54 -> 0 | K118: =$I118*'Leasing Costs Calculator'!$I$43 -> 0 | L118: =$I118*'Leasing Costs Calculator'!$I$49 -> 0
B119: 77 | C119: 2028-05-01 | D119: =SUMPRODUCT(--(Rent_Roll[Lease Start]<=$C119),--(Rent_Roll[Lease Expiration]>=$C119),--(Rent_Roll[Status]<>"Vacant"),Rent_Roll[Square Feet]) -> 3100 | E119: =SUMPRODUCT(--(Rent_Roll[Status]="Current"),--(Rent_Roll[Lease Start]<=$C119),--(Rent_Roll[Lease Expiration]>=$C119),Rent_Roll[Monthly Rent]) -> 5683.333333 | F119: 8100 | G119: =IF(MOD(B119-1,12)<>0,G118,RPMGrow('Cash Flows'!$E$12,'Rent Roll Summary'!G118,Inflation)) -> 1.990063 | H119: 16119.5103 | I119: 0 | J119: =I119*'Leasing Costs Calculator'!$I$54 -> 0 | K119: =$I119*'Leasing Costs Calculator'!$I$43 -> 0 | L119: =$I119*'Leasing Costs Calculator'!$I$49 -> 0
B120: 78 | C120: 2028-06-01 | D120: =SUMPRODUCT(--(Rent_Roll[Lease Start]<=$C120),--(Rent_Roll[Lease Expiration]>=$C120),--(Rent_Roll[Status]<>"Vacant"),Rent_Roll[Square Feet]) -> 3100 | E120: =SUMPRODUCT(--(Rent_Roll[Status]="Current"),--(Rent_Roll[Lease Start]<=$C120),--(Rent_Roll[Lease Expiration]>=$C120),Rent_Roll[Monthly Rent]) -> 5683.333333 | F120: 8100 | G120: =IF(MOD(B120-1,12)<>0,G119,RPMGrow('Cash Flows'!$E$12,'Rent Roll Summary'!G119,Inflation)) -> 1.990063 | H120: 16119.5103 | I120: 0 | J120: =I120*'Leasing Costs Calculator'!$I$54 -> 0 | K120: =$I120*'Leasing Costs Calculator'!$I$43 -> 0 | L120: =$I120*'Leasing Costs Calculator'!$I$49 -> 0
B121: 79 | C121: 2028-07-01 | D121: =SUMPRODUCT(--(Rent_Roll[Lease Start]<=$C121),--(Rent_Roll[Lease Expiration]>=$C121),--(Rent_Roll[Status]<>"Vacant"),Rent_Roll[Square Feet]) -> 3100 | E121: =SUMPRODUCT(--(Rent_Roll[Status]="Current"),--(Rent_Roll[Lease Start]<=$C121),--(Rent_Roll[Lease Expiration]>=$C121),Rent_Roll[Monthly Rent]) -> 5683.333333 | F121: 8100 | G121: =IF(MOD(B121-1,12)<>0,G120,RPMGrow('Cash Flows'!$E$12,'Rent Roll Summary'!G120,Inflation)) -> 1.990063 | H121: 16119.5103 | I121: 0 | J121: =I121*'Leasing Costs Calculator'!$I$54 -> 0 | K121: =$I121*'Leasing Costs Calculator'!$I$43 -> 0 | L121: =$I121*'Leasing Costs Calculator'!$I$49 -> 0
B122: 80 | C122: 2028-08-01 | D122: =SUMPRODUCT(--(Rent_Roll[Lease Start]<=$C122),--(Rent_Roll[Lease Expiration]>=$C122),--(Rent_Roll[Status]<>"Vacant"),Rent_Roll[Square Feet]) -> 3100 | E122: =SUMPRODUCT(--(Rent_Roll[Status]="Current"),--(Rent_Roll[Lease Start]<=$C122),--(Rent_Roll[Lease Expiration]>=$C122),Rent_Roll[Monthly Rent]) -> 5683.333333 | F122: 8100 | G122: =IF(MOD(B122-1,12)<>0,G121,RPMGrow('Cash Flows'!$E$12,'Rent Roll Summary'!G121,Inflation)) -> 1.990063 | H122: 16119.5103 | I122: 0 | J122: =I122*'Leasing Costs Calculator'!$I$54 -> 0 | K122: =$I122*'Leasing Costs Calculator'!$I$43 -> 0 | L122: =$I122*'Leasing Costs Calculator'!$I$49 -> 0
B123: 81 | C123: 2028-09-01 | D123: =SUMPRODUCT(--(Rent_Roll[Lease Start]<=$C123),--(Rent_Roll[Lease Expiration]>=$C123),--(Rent_Roll[Status]<>"Vacant"),Rent_Roll[Square Feet]) -> 3100 | E123: =SUMPRODUCT(--(Rent_Roll[Status]="Current"),--(Rent_Roll[Lease Start]<=$C123),--(Rent_Roll[Lease Expiration]>=$C123),Rent_Roll[Monthly Rent]) -> 5683.333333 | F123: 8100 | G123: =IF(MOD(B123-1,12)<>0,G122,RPMGrow('Cash Flows'!$E$12,'Rent Roll Summary'!G122,Inflation)) -> 1.990063 | H123: 16119.5103 | I123: 0 | J123: =I123*'Leasing Costs Calculator'!$I$54 -> 0 | K123: =$I123*'Leasing Costs Calculator'!$I$43 -> 0 | L123: =$I123*'Leasing Costs Calculator'!$I$49 -> 0
B124: 82 | C124: 2028-10-01 | D124: =SUMPRODUCT(--(Rent_Roll[Lease Start]<=$C124),--(Rent_Roll[Lease Expiration]>=$C124),--(Rent_Roll[Status]<>"Vacant"),Rent_Roll[Square Feet]) -> 3100 | E124: =SUMPRODUCT(--(Rent_Roll[Status]="Current"),--(Rent_Roll[Lease Start]<=$C124),--(Rent_Roll[Lease Expiration]>=$C124),Rent_Roll[Monthly Rent]) -> 5683.333333 | F124: 8100 | G124: =IF(MOD(B124-1,12)<>0,G123,RPMGrow('Cash Flows'!$E$12,'Rent Roll Summary'!G123,Inflation)) -> 1.990063 | H124: 16119.5103 | I124: 0 | J124: =I124*'Leasing Costs Calculator'!$I$54 -> 0 | K124: =$I124*'Leasing Costs Calculator'!$I$43 -> 0 | L124: =$I124*'Leasing Costs Calculator'!$I$49 -> 0
B125: 83 | C125: 2028-11-01 | D125: =SUMPRODUCT(--(Rent_Roll[Lease Start]<=$C125),--(Rent_Roll[Lease Expiration]>=$C125),--(Rent_Roll[Status]<>"Vacant"),Rent_Roll[Square Feet]) -> 3100 | E125: =SUMPRODUCT(--(Rent_Roll[Status]="Current"),--(Rent_Roll[Lease Start]<=$C125),--(Rent_Roll[Lease Expiration]>=$C125),Rent_Roll[Monthly Rent]) -> 5683.333333 | F125: 8100 | G125: =IF(MOD(B125-1,12)<>0,G124,RPMGrow('Cash Flows'!$E$12,'Rent Roll Summary'!G124,Inflation)) -> 1.990063 | H125: 16119.5103 | I125: 0 | J125: =I125*'Leasing Costs Calculator'!$I$54 -> 0 | K125: =$I125*'Leasing Costs Calculator'!$I$43 -> 0 | L125: =$I125*'Leasing Costs Calculator'!$I$49 -> 0
B126: 84 | C126: 2028-12-01 | D126: =SUMPRODUCT(--(Rent_Roll[Lease Start]<=$C126),--(Rent_Roll[Lease Expiration]>=$C126),--(Rent_Roll[Status]<>"Vacant"),Rent_Roll[Square Feet]) -> 3100 | E126: =SUMPRODUCT(--(Rent_Roll[Status]="Current"),--(Rent_Roll[Lease Start]<=$C126),--(Rent_Roll[Lease Expiration]>=$C126),Rent_Roll[Monthly Rent]) -> 5683.333333 | F126: 8100 | G126: =IF(MOD(B126-1,12)<>0,G125,RPMGrow('Cash Flows'!$E$12,'Rent Roll Summary'!G125,Inflation)) -> 1.990063 | H126: 16119.5103 | I126: 0 | J126: =I126*'Leasing Costs Calculator'!$I$54 -> 0 | K126: =$I126*'Leasing Costs Calculator'!$I$43 -> 0 | L126: =$I126*'Leasing Costs Calculator'!$I$49 -> 0
B127: 85 | C127: 2029-01-01 | D127: =SUMPRODUCT(--(Rent_Roll[Lease Start]<=$C127),--(Rent_Roll[Lease Expiration]>=$C127),--(Rent_Roll[Status]<>"Vacant"),Rent_Roll[Square Feet]) -> 0 | E127: =SUMPRODUCT(--(Rent_Roll[Status]="Current"),--(Rent_Roll[Lease Start]<=$C127),--(Rent_Roll[Lease Expiration]>=$C127),Rent_Roll[Monthly Rent]) -> 0 | F127: 11200 | G127: =IF(MOD(B127-1,12)<>0,G126,RPMGrow('Cash Flows'!$E$12,'Rent Roll Summary'!G126,Inflation)) -> 2.049803 | H127: 22957.7936 | I127: 3100 | J127: =I127*'Leasing Costs Calculator'!$I$54 -> 1291.666667 | K127: =$I127*'Leasing Costs Calculator'!$I$43 -> 29708.33333 | L127: =$I127*'Leasing Costs Calculator'!$I$49 -> 10230
B128: 86 | C128: 2029-02-01 | D128: =SUMPRODUCT(--(Rent_Roll[Lease Start]<=$C128),--(Rent_Roll[Lease Expiration]>=$C128),--(Rent_Roll[Status]<>"Vacant"),Rent_Roll[Square Feet]) -> 0 | E128: =SUMPRODUCT(--(Rent_Roll[Status]="Current"),--(Rent_Roll[Lease Start]<=$C128),--(Rent_Roll[Lease Expiration]>=$C128),Rent_Roll[Monthly Rent]) -> 0 | F128: 11200 | G128: =IF(MOD(B128-1,12)<>0,G127,RPMGrow('Cash Flows'!$E$12,'Rent Roll Summary'!G127,Inflation)) -> 2.049803 | H128: 22957.7936 | I128: 0 | J128: =I128*'Leasing Costs Calculator'!$I$54 -> 0 | K128: =$I128*'Leasing Costs Calculator'!$I$43 -> 0 | L128: =$I128*'Leasing Costs Calculator'!$I$49 -> 0
B129: 87 | C129: 2029-03-01 | D129: =SUMPRODUCT(--(Rent_Roll[Lease Start]<=$C129),--(Rent_Roll[Lease Expiration]>=$C129),--(Rent_Roll[Status]<>"Vacant"),Rent_Roll[Square Feet]) -> 0 | E129: =SUMPRODUCT(--(Rent_Roll[Status]="Current"),--(Rent_Roll[Lease Start]<=$C129),--(Rent_Roll[Lease Expiration]>=$C129),Rent_Roll[Monthly Rent]) -> 0 | F129: 11200 | G129: =IF(MOD(B129-1,12)<>0,G128,RPMGrow('Cash Flows'!$E$12,'Rent Roll Summary'!G128,Inflation)) -> 2.049803 | H129: 22957.7936 | I129: 0 | J129: =I129*'Leasing Costs Calculator'!$I$54 -> 0 | K129: =$I129*'Leasing Costs Calculator'!$I$43 -> 0 | L129: =$I129*'Leasing Costs Calculator'!$I$49 -> 0
B130: 88 | C130: 2029-04-01 | D130: =SUMPRODUCT(--(Rent_Roll[Lease Start]<=$C130),--(Rent_Roll[Lease Expiration]>=$C130),--(Rent_Roll[Status]<>"Vacant"),Rent_Roll[Square Feet]) -> 0 | E130: =SUMPRODUCT(--(Rent_Roll[Status]="Current"),--(Rent_Roll[Lease Start]<=$C130),--(Rent_Roll[Lease Expiration]>=$C130),Rent_Roll[Monthly Rent]) -> 0 | F130: 11200 | G130: =IF(MOD(B130-1,12)<>0,G129,RPMGrow('Cash Flows'!$E$12,'Rent Roll Summary'!G129,Inflation)) -> 2.049803 | H130: 22957.7936 | I130: 0 | J130: =I130*'Leasing Costs Calculator'!$I$54 -> 0 | K130: =$I130*'Leasing Costs Calculator'!$I$43 -> 0 | L130: =$I130*'Leasing Costs Calculator'!$I$49 -> 0
B131: 89 | C131: 2029-05-01 | D131: =SUMPRODUCT(--(Rent_Roll[Lease Start]<=$C131),--(Rent_Roll[Lease Expiration]>=$C131),--(Rent_Roll[Status]<>"Vacant"),Rent_Roll[Square Feet]) -> 0 | E131: =SUMPRODUCT(--(Rent_Roll[Status]="Current"),--(Rent_Roll[Lease Start]<=$C131),--(Rent_Roll[Lease Expiration]>=$C131),Rent_Roll[Monthly Rent]) -> 0 | F131: 11200 | G131: =IF(MOD(B131-1,12)<>0,G130,RPMGrow('Cash Flows'!$E$12,'Rent Roll Summary'!G130,Inflation)) -> 2.049803 | H131: 22957.7936 | I131: 0 | J131: =I131*'Leasing Costs Calculator'!$I$54 -> 0 | K131: =$I131*'Leasing Costs Calculator'!$I$43 -> 0 | L131: =$I131*'Leasing Costs Calculator'!$I$49 -> 0
B132: 90 | C132: 2029-06-01 | D132: =SUMPRODUCT(--(Rent_Roll[Lease Start]<=$C132),--(Rent_Roll[Lease Expiration]>=$C132),--(Rent_Roll[Status]<>"Vacant"),Rent_Roll[Square Feet]) -> 0 | E132: =SUMPRODUCT(--(Rent_Roll[Status]="Current"),--(Rent_Roll[Lease Start]<=$C132),--(Rent_Roll[Lease Expiration]>=$C132),Rent_Roll[Monthly Rent]) -> 0 | F132: 11200 | G132: =IF(MOD(B132-1,12)<>0,G131,RPMGrow('Cash Flows'!$E$12,'Rent Roll Summary'!G131,Inflation)) -> 2.049803 | H132: 22957.7936 | I132: 0 | J132: =I132*'Leasing Costs Calculator'!$I$54 -> 0 | K132: =$I132*'Leasing Costs Calculator'!$I$43 -> 0 | L132: =$I132*'Leasing Costs Calculator'!$I$49 -> 0
B133: 91 | C133: 2029-07-01 | D133: =SUMPRODUCT(--(Rent_Roll[Lease Start]<=$C133),--(Rent_Roll[Lease Expiration]>=$C133),--(Rent_Roll[Status]<>"Vacant"),Rent_Roll[Square Feet]) -> 0 | E133: =SUMPRODUCT(--(Rent_Roll[Status]="Current"),--(Rent_Roll[Lease Start]<=$C133),--(Rent_Roll[Lease Expiration]>=$C133),Rent_Roll[Monthly Rent]) -> 0 | F133: 11200 | G133: =IF(MOD(B133-1,12)<>0,G132,RPMGrow('Cash Flows'!$E$12,'Rent Roll Summary'!G132,Inflation)) -> 2.049803 | H133: 22957.7936 | I133: 0 | J133: =I133*'Leasing Costs Calculator'!$I$54 -> 0 | K133: =$I133*'Leasing Costs Calculator'!$I$43 -> 0 | L133: =$I133*'Leasing Costs Calculator'!$I$49 -> 0
B134: 92 | C134: 2029-08-01 | D134: =SUMPRODUCT(--(Rent_Roll[Lease Start]<=$C134),--(Rent_Roll[Lease Expiration]>=$C134),--(Rent_Roll[Status]<>"Vacant"),Rent_Roll[Square Feet]) -> 0 | E134: =SUMPRODUCT(--(Rent_Roll[Status]="Current"),--(Rent_Roll[Lease Start]<=$C134),--(Rent_Roll[Lease Expiration]>=$C134),Rent_Roll[Monthly Rent]) -> 0 | F134: 11200 | G134: =IF(MOD(B134-1,12)<>0,G133,RPMGrow('Cash Flows'!$E$12,'Rent Roll Summary'!G133,Inflation)) -> 2.049803 | H134: 22957.7936 | I134: 0 | J134: =I134*'Leasing Costs Calculator'!$I$54 -> 0 | K134: =$I134*'Leasing Costs Calculator'!$I$43 -> 0 | L134: =$I134*'Leasing Costs Calculator'!$I$49 -> 0
B135: 93 | C135: 2029-09-01 | D135: =SUMPRODUCT(--(Rent_Roll[Lease Start]<=$C135),--(Rent_Roll[Lease Expiration]>=$C135),--(Rent_Roll[Status]<>"Vacant"),Rent_Roll[Square Feet]) -> 0 | E135: =SUMPRODUCT(--(Rent_Roll[Status]="Current"),--(Rent_Roll[Lease Start]<=$C135),--(Rent_Roll[Lease Expiration]>=$C135),Rent_Roll[Monthly Rent]) -> 0 | F135: 11200 | G135: =IF(MOD(B135-1,12)<>0,G134,RPMGrow('Cash Flows'!$E$12,'Rent Roll Summary'!G134,Inflation)) -> 2.049803 | H135: 22957.7936 | I135: 0 | J135: =I135*'Leasing Costs Calculator'!$I$54 -> 0 | K135: =$I135*'Leasing Costs Calculator'!$I$43 -> 0 | L135: =$I135*'Leasing Costs Calculator'!$I$49 -> 0
B136: 94 | C136: 2029-10-01 | D136: =SUMPRODUCT(--(Rent_Roll[Lease Start]<=$C136),--(Rent_Roll[Lease Expiration]>=$C136),--(Rent_Roll[Status]<>"Vacant"),Rent_Roll[Square Feet]) -> 0 | E136: =SUMPRODUCT(--(Rent_Roll[Status]="Current"),--(Rent_Roll[Lease Start]<=$C136),--(Rent_Roll[Lease Expiration]>=$C136),Rent_Roll[Monthly Rent]) -> 0 | F136: 11200 | G136: =IF(MOD(B136-1,12)<>0,G135,RPMGrow('Cash Flows'!$E$12,'Rent Roll Summary'!G135,Inflation)) -> 2.049803 | H136: 22957.7936 | I136: 0 | J136: =I136*'Leasing Costs Calculator'!$I$54 -> 0 | K136: =$I136*'Leasing Costs Calculator'!$I$43 -> 0 | L136: =$I136*'Leasing Costs Calculator'!$I$49 -> 0
B137: 95 | C137: 2029-11-01 | D137: =SUMPRODUCT(--(Rent_Roll[Lease Start]<=$C137),--(Rent_Roll[Lease Expiration]>=$C137),--(Rent_Roll[Status]<>"Vacant"),Rent_Roll[Square Feet]) -> 0 | E137: =SUMPRODUCT(--(Rent_Roll[Status]="Current"),--(Rent_Roll[Lease Start]<=$C137),--(Rent_Roll[Lease Expiration]>=$C137),Rent_Roll[Monthly Rent]) -> 0 | F137: 11200 | G137: =IF(MOD(B137-1,12)<>0,G136,RPMGrow('Cash Flows'!$E$12,'Rent Roll Summary'!G136,Inflation)) -> 2.049803 | H137: 22957.7936 | I137: 0 | J137: =I137*'Leasing Costs Calculator'!$I$54 -> 0 | K137: =$I137*'Leasing Costs Calculator'!$I$43 -> 0 | L137: =$I137*'Leasing Costs Calculator'!$I$49 -> 0
B138: 96 | C138: 2029-12-01 | D138: =SUMPRODUCT(--(Rent_Roll[Lease Start]<=$C138),--(Rent_Roll[Lease Expiration]>=$C138),--(Rent_Roll[Status]<>"Vacant"),Rent_Roll[Square Feet]) -> 0 | E138: =SUMPRODUCT(--(Rent_Roll[Status]="Current"),--(Rent_Roll[Lease Start]<=$C138),--(Rent_Roll[Lease Expiration]>=$C138),Rent_Roll[Monthly Rent]) -> 0 | F138: 11200 | G138: =IF(MOD(B138-1,12)<>0,G137,RPMGrow('Cash Flows'!$E$12,'Rent Roll Summary'!G137,Inflation)) -> 2.049803 | H138: 22957.7936 | I138: 0 | J138: =I138*'Leasing Costs Calculator'!$I$54 -> 0 | K138: =$I138*'Leasing Costs Calculator'!$I$43 -> 0 | L138: =$I138*'Leasing Costs Calculator'!$I$49 -> 0
B139: 97 | C139: 2030-01-01 | D139: =SUMPRODUCT(--(Rent_Roll[Lease Start]<=$C139),--(Rent_Roll[Lease Expiration]>=$C139),--(Rent_Roll[Status]<>"Vacant"),Rent_Roll[Square Feet]) -> 0 | E139: =SUMPRODUCT(--(Rent_Roll[Status]="Current"),--(Rent_Roll[Lease Start]<=$C139),--(Rent_Roll[Lease Expiration]>=$C139),Rent_Roll[Monthly Rent]) -> 0 | F139: =Size_Total-D139 -> 11200 | G139: =IF(MOD(B139-1,12)<>0,G138,RPMGrow('Cash Flows'!$E$12,'Rent Roll Summary'!G138,Inflation)) -> 2.111294 | H139: 23646.4928 | I139: =IF(AND($B139>1,$F139>$F138),$F139-$F138,0) -> 0 | J139: =I139*'Leasing Costs Calculator'!$I$54 -> 0 | K139: =$I139*'Leasing Costs Calculator'!$I$43 -> 0 | L139: =$I139*'Leasing Costs Calculator'!$I$49 -> 0
B140: 98 | C140: 2030-02-01 | D140: =SUMPRODUCT(--(Rent_Roll[Lease Start]<=$C140),--(Rent_Roll[Lease Expiration]>=$C140),--(Rent_Roll[Status]<>"Vacant"),Rent_Roll[Square Feet]) -> 0 | E140: =SUMPRODUCT(--(Rent_Roll[Status]="Current"),--(Rent_Roll[Lease Start]<=$C140),--(Rent_Roll[Lease Expiration]>=$C140),Rent_Roll[Monthly Rent]) -> 0 | F140: 11200 | G140: =IF(MOD(B140-1,12)<>0,G139,RPMGrow('Cash Flows'!$E$12,'Rent Roll Summary'!G139,Inflation)) -> 2.111294 | H140: 23646.4928 | I140: 0 | J140: =I140*'Leasing Costs Calculator'!$I$54 -> 0 | K140: =$I140*'Leasing Costs Calculator'!$I$43 -> 0 | L140: =$I140*'Leasing Costs Calculator'!$I$49 -> 0
B141: 99 | C141: 2030-03-01 | D141: =SUMPRODUCT(--(Rent_Roll[Lease Start]<=$C141),--(Rent_Roll[Lease Expiration]>=$C141),--(Rent_Roll[Status]<>"Vacant"),Rent_Roll[Square Feet]) -> 0 | E141: =SUMPRODUCT(--(Rent_Roll[Status]="Current"),--(Rent_Roll[Lease Start]<=$C141),--(Rent_Roll[Lease Expiration]>=$C141),Rent_Roll[Monthly Rent]) -> 0 | F141: 11200 | G141: =IF(MOD(B141-1,12)<>0,G140,RPMGrow('Cash Flows'!$E$12,'Rent Roll Summary'!G140,Inflation)) -> 2.111294 | H141: 23646.4928 | I141: 0 | J141: =I141*'Leasing Costs Calculator'!$I$54 -> 0 | K141: =$I141*'Leasing Costs Calculator'!$I$43 -> 0 | L141: =$I141*'Leasing Costs Calculator'!$I$49 -> 0
B142: 100 | C142: 2030-04-01 | D142: =SUMPRODUCT(--(Rent_Roll[Lease Start]<=$C142),--(Rent_Roll[Lease Expiration]>=$C142),--(Rent_Roll[Status]<>"Vacant"),Rent_Roll[Square Feet]) -> 0 | E142: =SUMPRODUCT(--(Rent_Roll[Status]="Current"),--(Rent_Roll[Lease Start]<=$C142),--(Rent_Roll[Lease Expiration]>=$C142),Rent_Roll[Monthly Rent]) -> 0 | F142: 11200 | G142: =IF(MOD(B142-1,12)<>0,G141,RPMGrow('Cash Flows'!$E$12,'Rent Roll Summary'!G141,Inflation)) -> 2.111294 | H142: 23646.4928 | I142: 0 | J142: =I142*'Leasing Costs Calculator'!$I$54 -> 0 | K142: =$I142*'Leasing Costs Calculator'!$I$43 -> 0 | L142: =$I142*'Leasing Costs Calculator'!$I$49 -> 0
B143: 101 | C143: 2030-05-01 | D143: =SUMPRODUCT(--(Rent_Roll[Lease Start]<=$C143),--(Rent_Roll[Lease Expiration]>=$C143),--(Rent_Roll[Status]<>"Vacant"),Rent_Roll[Square Feet]) -> 0 | E143: =SUMPRODUCT(--(Rent_Roll[Status]="Current"),--(Rent_Roll[Lease Start]<=$C143),--(Rent_Roll[Lease Expiration]>=$C143),Rent_Roll[Monthly Rent]) -> 0 | F143: 11200 | G143: =IF(MOD(B143-1,12)<>0,G142,RPMGrow('Cash Flows'!$E$12,'Rent Roll Summary'!G142,Inflation)) -> 2.111294 | H143: 23646.4928 | I143: 0 | J143: =I143*'Leasing Costs Calculator'!$I$54 -> 0 | K143: =$I143*'Leasing Costs Calculator'!$I$43 -> 0 | L143: =$I143*'Leasing Costs Calculator'!$I$49 -> 0
B144: 102 | C144: 2030-06-01 | D144: =SUMPRODUCT(--(Rent_Roll[Lease Start]<=$C144),--(Rent_Roll[Lease Expiration]>=$C144),--(Rent_Roll[Status]<>"Vacant"),Rent_Roll[Square Feet]) -> 0 | E144: =SUMPRODUCT(--(Rent_Roll[Status]="Current"),--(Rent_Roll[Lease Start]<=$C144),--(Rent_Roll[Lease Expiration]>=$C144),Rent_Roll[Monthly Rent]) -> 0 | F144: 11200 | G144: =IF(MOD(B144-1,12)<>0,G143,RPMGrow('Cash Flows'!$E$12,'Rent Roll Summary'!G143,Inflation)) -> 2.111294 | H144: 23646.4928 | I144: 0 | J144: =I144*'Leasing Costs Calculator'!$I$54 -> 0 | K144: =$I144*'Leasing Costs Calculator'!$I$43 -> 0 | L144: =$I144*'Leasing Costs Calculator'!$I$49 -> 0
B145: 103 | C145: 2030-07-01 | D145: =SUMPRODUCT(--(Rent_Roll[Lease Start]<=$C145),--(Rent_Roll[Lease Expiration]>=$C145),--(Rent_Roll[Status]<>"Vacant"),Rent_Roll[Square Feet]) -> 0 | E145: =SUMPRODUCT(--(Rent_Roll[Status]="Current"),--(Rent_Roll[Lease Start]<=$C145),--(Rent_Roll[Lease Expiration]>=$C145),Rent_Roll[Monthly Rent]) -> 0 | F145: 11200 | G145: =IF(MOD(B145-1,12)<>0,G144,RPMGrow('Cash Flows'!$E$12,'Rent Roll Summary'!G144,Inflation)) -> 2.111294 | H145: 23646.4928 | I145: 0 | J145: =I145*'Leasing Costs Calculator'!$I$54 -> 0 | K145: =$I145*'Leasing Costs Calculator'!$I$43 -> 0 | L145: =$I145*'Leasing Costs Calculator'!$I$49 -> 0
B146: 104 | C146: 2030-08-01 | D146: =SUMPRODUCT(--(Rent_Roll[Lease Start]<=$C146),--(Rent_Roll[Lease Expiration]>=$C146),--(Rent_Roll[Status]<>"Vacant"),Rent_Roll[Square Feet]) -> 0 | E146: =SUMPRODUCT(--(Rent_Roll[Status]="Current"),--(Rent_Roll[Lease Start]<=$C146),--(Rent_Roll[Lease Expiration]>=$C146),Rent_Roll[Monthly Rent]) -> 0 | F146: 11200 | G146: =IF(MOD(B146-1,12)<>0,G145,RPMGrow('Cash Flows'!$E$12,'Rent Roll Summary'!G145,Inflation)) -> 2.111294 | H146: 23646.4928 | I146: 0 | J146: =I146*'Leasing Costs Calculator'!$I$54 -> 0 | K146: =$I146*'Leasing Costs Calculator'!$I$43 -> 0 | L146: =$I146*'Leasing Costs Calculator'!$I$49 -> 0
B147: 105 | C147: 2030-09-01 | D147: =SUMPRODUCT(--(Rent_Roll[Lease Start]<=$C147),--(Rent_Roll[Lease Expiration]>=$C147),--(Rent_Roll[Status]<>"Vacant"),Rent_Roll[Square Feet]) -> 0 | E147: =SUMPRODUCT(--(Rent_Roll[Status]="Current"),--(Rent_Roll[Lease Start]<=$C147),--(Rent_Roll[Lease Expiration]>=$C147),Rent_Roll[Monthly Rent]) -> 0 | F147: 11200 | G147: =IF(MOD(B147-1,12)<>0,G146,RPMGrow('Cash Flows'!$E$12,'Rent Roll Summary'!G146,Inflation)) -> 2.111294 | H147: 23646.4928 | I147: 0 | J147: =I147*'Leasing Costs Calculator'!$I$54 -> 0 | K147: =$I147*'Leasing Costs Calculator'!$I$43 -> 0 | L147: =$I147*'Leasing Costs Calculator'!$I$49 -> 0
B148: 106 | C148: 2030-10-01 | D148: =SUMPRODUCT(--(Rent_Roll[Lease Start]<=$C148),--(Rent_Roll[Lease Expiration]>=$C148),--(Rent_Roll[Status]<>"Vacant"),Rent_Roll[Square Feet]) -> 0 | E148: =SUMPRODUCT(--(Rent_Roll[Status]="Current"),--(Rent_Roll[Lease Start]<=$C148),--(Rent_Roll[Lease Expiration]>=$C148),Rent_Roll[Monthly Rent]) -> 0 | F148: 11200 | G148: =IF(MOD(B148-1,12)<>0,G147,RPMGrow('Cash Flows'!$E$12,'Rent Roll Summary'!G147,Inflation)) -> 2.111294 | H148: 23646.4928 | I148: 0 | J148: =I148*'Leasing Costs Calculator'!$I$54 -> 0 | K148: =$I148*'Leasing Costs Calculator'!$I$43 -> 0 | L148: =$I148*'Leasing Costs Calculator'!$I$49 -> 0
B149: 107 | C149: 2030-11-01 | D149: =SUMPRODUCT(--(Rent_Roll[Lease Start]<=$C149),--(Rent_Roll[Lease Expiration]>=$C149),--(Rent_Roll[Status]<>"Vacant"),Rent_Roll[Square Feet]) -> 0 | E149: =SUMPRODUCT(--(Rent_Roll[Status]="Current"),--(Rent_Roll[Lease Start]<=$C149),--(Rent_Roll[Lease Expiration]>=$C149),Rent_Roll[Monthly Rent]) -> 0 | F149: 11200 | G149: =IF(MOD(B149-1,12)<>0,G148,RPMGrow('Cash Flows'!$E$12,'Rent Roll Summary'!G148,Inflation)) -> 2.111294 | H149: 23646.4928 | I149: 0 | J149: =I149*'Leasing Costs Calculator'!$I$54 -> 0 | K149: =$I149*'Leasing Costs Calculator'!$I$43 -> 0 | L149: =$I149*'Leasing Costs Calculator'!$I$49 -> 0
B150: 108 | C150: 2030-12-01 | D150: =SUMPRODUCT(--(Rent_Roll[Lease Start]<=$C150),--(Rent_Roll[Lease Expiration]>=$C150),--(Rent_Roll[Status]<>"Vacant"),Rent_Roll[Square Feet]) -> 0 | E150: =SUMPRODUCT(--(Rent_Roll[Status]="Current"),--(Rent_Roll[Lease Start]<=$C150),--(Rent_Roll[Lease Expiration]>=$C150),Rent_Roll[Monthly Rent]) -> 0 | F150: 11200 | G150: =IF(MOD(B150-1,12)<>0,G149,RPMGrow('Cash Flows'!$E$12,'Rent Roll Summary'!G149,Inflation)) -> 2.111294 | H150: 23646.4928 | I150: 0 | J150: =I150*'Leasing Costs Calculator'!$I$54 -> 0 | K150: =$I150*'Leasing Costs Calculator'!$I$43 -> 0 | L150: =$I150*'Leasing Costs Calculator'!$I$49 -> 0
B151: 109 | C151: 2031-01-01 | D151: =SUMPRODUCT(--(Rent_Roll[Lease Start]<=$C151),--(Rent_Roll[Lease Expiration]>=$C151),--(Rent_Roll[Status]<>"Vacant"),Rent_Roll[Square Feet]) -> 0 | E151: =SUMPRODUCT(--(Rent_Roll[Status]="Current"),--(Rent_Roll[Lease Start]<=$C151),--(Rent_Roll[Lease Expiration]>=$C151),Rent_Roll[Monthly Rent]) -> 0 | F151: 11200 | G151: =IF(MOD(B151-1,12)<>0,G150,RPMGrow('Cash Flows'!$E$12,'Rent Roll Summary'!G150,Inflation)) -> 2.174639 | H151: 24355.9568 | I151: 0 | J151: =I151*'Leasing Costs Calculator'!$I$54 -> 0 | K151: =$I151*'Leasing Costs Calculator'!$I$43 -> 0 | L151: =$I151*'Leasing Costs Calculator'!$I$49 -> 0
B152: 110 | C152: 2031-02-01 | D152: =SUMPRODUCT(--(Rent_Roll[Lease Start]<=$C152),--(Rent_Roll[Lease Expiration]>=$C152),--(Rent_Roll[Status]<>"Vacant"),Rent_Roll[Square Feet]) -> 0 | E152: =SUMPRODUCT(--(Rent_Roll[Status]="Current"),--(Rent_Roll[Lease Start]<=$C152),--(Rent_Roll[Lease Expiration]>=$C152),Rent_Roll[Monthly Rent]) -> 0 | F152: 11200 | G152: =IF(MOD(B152-1,12)<>0,G151,RPMGrow('Cash Flows'!$E$12,'Rent Roll Summary'!G151,Inflation)) -> 2.174639 | H152: 24355.9568 | I152: 0 | J152: =I152*'Leasing Costs Calculator'!$I$54 -> 0 | K152: =$I152*'Leasing Costs Calculator'!$I$43 -> 0 | L152: =$I152*'Leasing Costs Calculator'!$I$49 -> 0
B153: 111 | C153: 2031-03-01 | D153: =SUMPRODUCT(--(Rent_Roll[Lease Start]<=$C153),--(Rent_Roll[Lease Expiration]>=$C153),--(Rent_Roll[Status]<>"Vacant"),Rent_Roll[Square Feet]) -> 0 | E153: =SUMPRODUCT(--(Rent_Roll[Status]="Current"),--(Rent_Roll[Lease Start]<=$C153),--(Rent_Roll[Lease Expiration]>=$C153),Rent_Roll[Monthly Rent]) -> 0 | F153: 11200 | G153: =IF(MOD(B153-1,12)<>0,G152,RPMGrow('Cash Flows'!$E$12,'Rent Roll Summary'!G152,Inflation)) -> 2.174639 | H153: 24355.9568 | I153: 0 | J153: =I153*'Leasing Costs Calculator'!$I$54 -> 0 | K153: =$I153*'Leasing Costs Calculator'!$I$43 -> 0 | L153: =$I153*'Leasing Costs Calculator'!$I$49 -> 0
B154: 112 | C154: 2031-04-01 | D154: =SUMPRODUCT(--(Rent_Roll[Lease Start]<=$C154),--(Rent_Roll[Lease Expiration]>=$C154),--(Rent_Roll[Status]<>"Vacant"),Rent_Roll[Square Feet]) -> 0 | E154: =SUMPRODUCT(--(Rent_Roll[Status]="Current"),--(Rent_Roll[Lease Start]<=$C154),--(Rent_Roll[Lease Expiration]>=$C154),Rent_Roll[Monthly Rent]) -> 0 | F154: 11200 | G154: =IF(MOD(B154-1,12)<>0,G153,RPMGrow('Cash Flows'!$E$12,'Rent Roll Summary'!G153,Inflation)) -> 2.174639 | H154: 24355.9568 | I154: 0 | J154: =I154*'Leasing Costs Calculator'!$I$54 -> 0 | K154: =$I154*'Leasing Costs Calculator'!$I$43 -> 0 | L154: =$I154*'Leasing Costs Calculator'!$I$49 -> 0
B155: 113 | C155: 2031-05-01 | D155: =SUMPRODUCT(--(Rent_Roll[Lease Start]<=$C155),--(Rent_Roll[Lease Expiration]>=$C155),--(Rent_Roll[Status]<>"Vacant"),Rent_Roll[Square Feet]) -> 0 | E155: =SUMPRODUCT(--(Rent_Roll[Status]="Current"),--(Rent_Roll[Lease Start]<=$C155),--(Rent_Roll[Lease Expiration]>=$C155),Rent_Roll[Monthly Rent]) -> 0 | F155: 11200 | G155: =IF(MOD(B155-1,12)<>0,G154,RPMGrow('Cash Flows'!$E$12,'Rent Roll Summary'!G154,Inflation)) -> 2.174639 | H155: 24355.9568 | I155: 0 | J155: =I155*'Leasing Costs Calculator'!$I$54 -> 0 | K155: =$I155*'Leasing Costs Calculator'!$I$43 -> 0 | L155: =$I155*'Leasing Costs Calculator'!$I$49 -> 0
B156: 114 | C156: 2031-06-01 | D156: =SUMPRODUCT(--(Rent_Roll[Lease Start]<=$C156),--(Rent_Roll[Lease Expiration]>=$C156),--(Rent_Roll[Status]<>"Vacant"),Rent_Roll[Square Feet]) -> 0 | E156: =SUMPRODUCT(--(Rent_Roll[Status]="Current"),--(Rent_Roll[Lease Start]<=$C156),--(Rent_Roll[Lease Expiration]>=$C156),Rent_Roll[Monthly Rent]) -> 0 | F156: 11200 | G156: =IF(MOD(B156-1,12)<>0,G155,RPMGrow('Cash Flows'!$E$12,'Rent Roll Summary'!G155,Inflation)) -> 2.174639 | H156: 24355.9568 | I156: 0 | J156: =I156*'Leasing Costs Calculator'!$I$54 -> 0 | K156: =$I156*'Leasing Costs Calculator'!$I$43 -> 0 | L156: =$I156*'Leasing Costs Calculator'!$I$49 -> 0
B157: 115 | C157: 2031-07-01 | D157: =SUMPRODUCT(--(Rent_Roll[Lease Start]<=$C157),--(Rent_Roll[Lease Expiration]>=$C157),--(Rent_Roll[Status]<>"Vacant"),Rent_Roll[Square Feet]) -> 0 | E157: =SUMPRODUCT(--(Rent_Roll[Status]="Current"),--(Rent_Roll[Lease Start]<=$C157),--(Rent_Roll[Lease Expiration]>=$C157),Rent_Roll[Monthly Rent]) -> 0 | F157: 11200 | G157: =IF(MOD(B157-1,12)<>0,G156,RPMGrow('Cash Flows'!$E$12,'Rent Roll Summary'!G156,Inflation)) -> 2.174639 | H157: 24355.9568 | I157: 0 | J157: =I157*'Leasing Costs Calculator'!$I$54 -> 0 | K157: =$I157*'Leasing Costs Calculator'!$I$43 -> 0 | L157: =$I157*'Leasing Costs Calculator'!$I$49 -> 0
B158: 116 | C158: 2031-08-01 | D158: =SUMPRODUCT(--(Rent_Roll[Lease Start]<=$C158),--(Rent_Roll[Lease Expiration]>=$C158),--(Rent_Roll[Status]<>"Vacant"),Rent_Roll[Square Feet]) -> 0 | E158: =SUMPRODUCT(--(Rent_Roll[Status]="Current"),--(Rent_Roll[Lease Start]<=$C158),--(Rent_Roll[Lease Expiration]>=$C158),Rent_Roll[Monthly Rent]) -> 0 | F158: 11200 | G158: =IF(MOD(B158-1,12)<>0,G157,RPMGrow('Cash Flows'!$E$12,'Rent Roll Summary'!G157,Inflation)) -> 2.174639 | H158: 24355.9568 | I158: 0 | J158: =I158*'Leasing Costs Calculator'!$I$54 -> 0 | K158: =$I158*'Leasing Costs Calculator'!$I$43 -> 0 | L158: =$I158*'Leasing Costs Calculator'!$I$49 -> 0
B159: 117 | C159: 2031-09-01 | D159: =SUMPRODUCT(--(Rent_Roll[Lease Start]<=$C159),--(Rent_Roll[Lease Expiration]>=$C159),--(Rent_Roll[Status]<>"Vacant"),Rent_Roll[Square Feet]) -> 0 | E159: =SUMPRODUCT(--(Rent_Roll[Status]="Current"),--(Rent_Roll[Lease Start]<=$C159),--(Rent_Roll[Lease Expiration]>=$C159),Rent_Roll[Monthly Rent]) -> 0 | F159: 11200 | G159: =IF(MOD(B159-1,12)<>0,G158,RPMGrow('Cash Flows'!$E$12,'Rent Roll Summary'!G158,Inflation)) -> 2.174639 | H159: 24355.9568 | I159: 0 | J159: =I159*'Leasing Costs Calculator'!$I$54 -> 0 | K159: =$I159*'Leasing Costs Calculator'!$I$43 -> 0 | L159: =$I159*'Leasing Costs Calculator'!$I$49 -> 0
B160: 118 | C160: 2031-10-01 | D160: =SUMPRODUCT(--(Rent_Roll[Lease Start]<=$C160),--(Rent_Roll[Lease Expiration]>=$C160),--(Rent_Roll[Status]<>"Vacant"),Rent_Roll[Square Feet]) -> 0 | E160: =SUMPRODUCT(--(Rent_Roll[Status]="Current"),--(Rent_Roll[Lease Start]<=$C160),--(Rent_Roll[Lease Expiration]>=$C160),Rent_Roll[Monthly Rent]) -> 0 | F160: 11200 | G160: =IF(MOD(B160-1,12)<>0,G159,RPMGrow('Cash Flows'!$E$12,'Rent Roll Summary'!G159,Inflation)) -> 2.174639 | H160: 24355.9568 | I160: 0 | J160: =I160*'Leasing Costs Calculator'!$I$54 -> 0 | K160: =$I160*'Leasing Costs Calculator'!$I$43 -> 0 | L160: =$I160*'Leasing Costs Calculator'!$I$49 -> 0
B161: 119 | C161: 2031-11-01 | D161: =SUMPRODUCT(--(Rent_Roll[Lease Start]<=$C161),--(Rent_Roll[Lease Expiration]>=$C161),--(Rent_Roll[Status]<>"Vacant"),Rent_Roll[Square Feet]) -> 0 | E161: =SUMPRODUCT(--(Rent_Roll[Status]="Current"),--(Rent_Roll[Lease Start]<=$C161),--(Rent_Roll[Lease Expiration]>=$C161),Rent_Roll[Monthly Rent]) -> 0 | F161: 11200 | G161: =IF(MOD(B161-1,12)<>0,G160,RPMGrow('Cash Flows'!$E$12,'Rent Roll Summary'!G160,Inflation)) -> 2.174639 | H161: 24355.9568 | I161: 0 | J161: =I161*'Leasing Costs Calculator'!$I$54 -> 0 | K161: =$I161*'Leasing Costs Calculator'!$I$43 -> 0 | L161: =$I161*'Leasing Costs Calculator'!$I$49 -> 0
B162: 120 | C162: 2031-12-01 | D162: =SUMPRODUCT(--(Rent_Roll[Lease Start]<=$C162),--(Rent_Roll[Lease Expiration]>=$C162),--(Rent_Roll[Status]<>"Vacant"),Rent_Roll[Square Feet]) -> 0 | E162: =SUMPRODUCT(--(Rent_Roll[Status]="Current"),--(Rent_Roll[Lease Start]<=$C162),--(Rent_Roll[Lease Expiration]>=$C162),Rent_Roll[Monthly Rent]) -> 0 | F162: 11200 | G162: =IF(MOD(B162-1,12)<>0,G161,RPMGrow('Cash Flows'!$E$12,'Rent Roll Summary'!G161,Inflation)) -> 2.174639 | H162: 24355.9568 | I162: 0 | J162: =I162*'Leasing Costs Calculator'!$I$54 -> 0 | K162: =$I162*'Leasing Costs Calculator'!$I$43 -> 0 | L162: =$I162*'Leasing Costs Calculator'!$I$49 -> 0
B163: 121 | C163: 2032-01-01 | D163: =SUMPRODUCT(--(Rent_Roll[Lease Start]<=$C163),--(Rent_Roll[Lease Expiration]>=$C163),--(Rent_Roll[Status]<>"Vacant"),Rent_Roll[Square Feet]) -> 0 | E163: =SUMPRODUCT(--(Rent_Roll[Status]="Current"),--(Rent_Roll[Lease Start]<=$C163),--(Rent_Roll[Lease Expiration]>=$C163),Rent_Roll[Monthly Rent]) -> 0 | F163: 11200 | G163: =IF(MOD(B163-1,12)<>0,G162,RPMGrow('Cash Flows'!$E$12,'Rent Roll Summary'!G162,Inflation)) -> 2.239838 | H163: 25086.1856 | I163: 0 | J163: =I163*'Leasing Costs Calculator'!$I$54 -> 0 | K163: =$I163*'Leasing Costs Calculator'!$I$43 -> 0 | L163: =$I163*'Leasing Costs Calculator'!$I$49 -> 0
B164: 122 | C164: 2032-02-01 | D164: =SUMPRODUCT(--(Rent_Roll[Lease Start]<=$C164),--(Rent_Roll[Lease Expiration]>=$C164),--(Rent_Roll[Status]<>"Vacant"),Rent_Roll[Square Feet]) -> 0 | E164: =SUMPRODUCT(--(Rent_Roll[Status]="Current"),--(Rent_Roll[Lease Start]<=$C164),--(Rent_Roll[Lease Expiration]>=$C164),Rent_Roll[Monthly Rent]) -> 0 | F164: 11200 | G164: =IF(MOD(B164-1,12)<>0,G163,RPMGrow('Cash Flows'!$E$12,'Rent Roll Summary'!G163,Inflation)) -> 2.239838 | H164: 25086.1856 | I164: 0 | J164: =I164*'Leasing Costs Calculator'!$I$54 -> 0 | K164: =$I164*'Leasing Costs Calculator'!$I$43 -> 0 | L164: =$I164*'Leasing Costs Calculator'!$I$49 -> 0
B165: 123 | C165: 2032-03-01 | D165: =SUMPRODUCT(--(Rent_Roll[Lease Start]<=$C165),--(Rent_Roll[Lease Expiration]>=$C165),--(Rent_Roll[Status]<>"Vacant"),Rent_Roll[Square Feet]) -> 0 | E165: =SUMPRODUCT(--(Rent_Roll[Status]="Current"),--(Rent_Roll[Lease Start]<=$C165),--(Rent_Roll[Lease Expiration]>=$C165),Rent_Roll[Monthly Rent]) -> 0 | F165: 11200 | G165: =IF(MOD(B165-1,12)<>0,G164,RPMGrow('Cash Flows'!$E$12,'Rent Roll Summary'!G164,Inflation)) -> 2.239838 | H165: 25086.1856 | I165: 0 | J165: =I165*'Leasing Costs Calculator'!$I$54 -> 0 | K165: =$I165*'Leasing Costs Calculator'!$I$43 -> 0 | L165: =$I165*'Leasing Costs Calculator'!$I$49 -> 0
B166: 124 | C166: 2032-04-01 | D166: =SUMPRODUCT(--(Rent_Roll[Lease Start]<=$C166),--(Rent_Roll[Lease Expiration]>=$C166),--(Rent_Roll[Status]<>"Vacant"),Rent_Roll[Square Feet]) -> 0 | E166: =SUMPRODUCT(--(Rent_Roll[Status]="Current"),--(Rent_Roll[Lease Start]<=$C166),--(Rent_Roll[Lease Expiration]>=$C166),Rent_Roll[Monthly Rent]) -> 0 | F166: 11200 | G166: =IF(MOD(B166-1,12)<>0,G165,RPMGrow('Cash Flows'!$E$12,'Rent Roll Summary'!G165,Inflation)) -> 2.239838 | H166: 25086.1856 | I166: 0 | J166: =I166*'Leasing Costs Calculator'!$I$54 -> 0 | K166: =$I166*'Leasing Costs Calculator'!$I$43 -> 0 | L166: =$I166*'Leasing Costs Calculator'!$I$49 -> 0
B167: 125 | C167: 2032-05-01 | D167: =SUMPRODUCT(--(Rent_Roll[Lease Start]<=$C167),--(Rent_Roll[Lease Expiration]>=$C167),--(Rent_Roll[Status]<>"Vacant"),Rent_Roll[Square Feet]) -> 0 | E167: =SUMPRODUCT(--(Rent_Roll[Status]="Current"),--(Rent_Roll[Lease Start]<=$C167),--(Rent_Roll[Lease Expiration]>=$C167),Rent_Roll[Monthly Rent]) -> 0 | F167: 11200 | G167: =IF(MOD(B167-1,12)<>0,G166,RPMGrow('Cash Flows'!$E$12,'Rent Roll Summary'!G166,Inflation)) -> 2.239838 | H167: 25086.1856 | I167: 0 | J167: =I167*'Leasing Costs Calculator'!$I$54 -> 0 | K167: =$I167*'Leasing Costs Calculator'!$I$43 -> 0 | L167: =$I167*'Leasing Costs Calculator'!$I$49 -> 0
B168: 126 | C168: 2032-06-01 | D168: =SUMPRODUCT(--(Rent_Roll[Lease Start]<=$C168),--(Rent_Roll[Lease Expiration]>=$C168),--(Rent_Roll[Status]<>"Vacant"),Rent_Roll[Square Feet]) -> 0 | E168: =SUMPRODUCT(--(Rent_Roll[Status]="Current"),--(Rent_Roll[Lease Start]<=$C168),--(Rent_Roll[Lease Expiration]>=$C168),Rent_Roll[Monthly Rent]) -> 0 | F168: 11200 | G168: =IF(MOD(B168-1,12)<>0,G167,RPMGrow('Cash Flows'!$E$12,'Rent Roll Summary'!G167,Inflation)) -> 2.239838 | H168: 25086.1856 | I168: 0 | J168: =I168*'Leasing Costs Calculator'!$I$54 -> 0 | K168: =$I168*'Leasing Costs Calculator'!$I$43 -> 0 | L168: =$I168*'Leasing Costs Calculator'!$I$49 -> 0
B169: 127 | C169: 2032-07-01 | D169: =SUMPRODUCT(--(Rent_Roll[Lease Start]<=$C169),--(Rent_Roll[Lease Expiration]>=$C169),--(Rent_Roll[Status]<>"Vacant"),Rent_Roll[Square Feet]) -> 0 | E169: =SUMPRODUCT(--(Rent_Roll[Status]="Current"),--(Rent_Roll[Lease Start]<=$C169),--(Rent_Roll[Lease Expiration]>=$C169),Rent_Roll[Monthly Rent]) -> 0 | F169: 11200 | G169: =IF(MOD(B169-1,12)<>0,G168,RPMGrow('Cash Flows'!$E$12,'Rent Roll Summary'!G168,Inflation)) -> 2.239838 | H169: 25086.1856 | I169: 0 | J169: =I169*'Leasing Costs Calculator'!$I$54 -> 0 | K169: =$I169*'Leasing Costs Calculator'!$I$43 -> 0 | L169: =$I169*'Leasing Costs Calculator'!$I$49 -> 0
B170: 128 | C170: 2032-08-01 | D170: =SUMPRODUCT(--(Rent_Roll[Lease Start]<=$C170),--(Rent_Roll[Lease Expiration]>=$C170),--(Rent_Roll[Status]<>"Vacant"),Rent_Roll[Square Feet]) -> 0 | E170: =SUMPRODUCT(--(Rent_Roll[Status]="Current"),--(Rent_Roll[Lease Start]<=$C170),--(Rent_Roll[Lease Expiration]>=$C170),Rent_Roll[Monthly Rent]) -> 0 | F170: 11200 | G170: =IF(MOD(B170-1,12)<>0,G169,RPMGrow('Cash Flows'!$E$12,'Rent Roll Summary'!G169,Inflation)) -> 2.239838 | H170: 25086.1856 | I170: 0 | J170: =I170*'Leasing Costs Calculator'!$I$54 -> 0 | K170: =$I170*'Leasing Costs Calculator'!$I$43 -> 0 | L170: =$I170*'Leasing Costs Calculator'!$I$49 -> 0
B171: 129 | C171: 2032-09-01 | D171: =SUMPRODUCT(--(Rent_Roll[Lease Start]<=$C171),--(Rent_Roll[Lease Expiration]>=$C171),--(Rent_Roll[Status]<>"Vacant"),Rent_Roll[Square Feet]) -> 0 | E171: =SUMPRODUCT(--(Rent_Roll[Status]="Current"),--(Rent_Roll[Lease Start]<=$C171),--(Rent_Roll[Lease Expiration]>=$C171),Rent_Roll[Monthly Rent]) -> 0 | F171: 11200 | G171: =IF(MOD(B171-1,12)<>0,G170,RPMGrow('Cash Flows'!$E$12,'Rent Roll Summary'!G170,Inflation)) -> 2.239838 | H171: 25086.1856 | I171: 0 | J171: =I171*'Leasing Costs Calculator'!$I$54 -> 0 | K171: =$I171*'Leasing Costs Calculator'!$I$43 -> 0 | L171: =$I171*'Leasing Costs Calculator'!$I$49 -> 0
B172: 130 | C172: 2032-10-01 | D172: =SUMPRODUCT(--(Rent_Roll[Lease Start]<=$C172),--(Rent_Roll[Lease Expiration]>=$C172),--(Rent_Roll[Status]<>"Vacant"),Rent_Roll[Square Feet]) -> 0 | E172: =SUMPRODUCT(--(Rent_Roll[Status]="Current"),--(Rent_Roll[Lease Start]<=$C172),--(Rent_Roll[Lease Expiration]>=$C172),Rent_Roll[Monthly Rent]) -> 0 | F172: 11200 | G172: =IF(MOD(B172-1,12)<>0,G171,RPMGrow('Cash Flows'!$E$12,'Rent Roll Summary'!G171,Inflation)) -> 2.239838 | H172: 25086.1856 | I172: 0 | J172: =I172*'Leasing Costs Calculator'!$I$54 -> 0 | K172: =$I172*'Leasing Costs Calculator'!$I$43 -> 0 | L172: =$I172*'Leasing Costs Calculator'!$I$49 -> 0
B173: 131 | C173: =EDATE(C172,1) -> 2032-11-01 | D173: =SUMPRODUCT(--(Rent_Roll[Lease Start]<=$C173),--(Rent_Roll[Lease Expiration]>=$C173),--(Rent_Roll[Status]<>"Vacant"),Rent_Roll[Square Feet]) -> 0 | E173: =SUMPRODUCT(--(Rent_Roll[Status]="Current"),--(Rent_Roll[Lease Start]<=$C173),--(Rent_Roll[Lease Expiration]>=$C173),Rent_Roll[Monthly Rent]) -> 0 | F173: 11200 | G173: =IF(MOD(B173-1,12)<>0,G172,RPMGrow('Cash Flows'!$E$12,'Rent Roll Summary'!G172,Inflation)) -> 2.239838 | H173: =F173*G173 -> 25086.1856 | I173: 0 | J173: =I173*'Leasing Costs Calculator'!$I$54 -> 0 | K173: =$I173*'Leasing Costs Calculator'!$I$43 -> 0 | L173: =$I173*'Leasing Costs Calculator'!$I$49 -> 0
B174: 132 | C174: 2032-12-01 | D174: =SUMPRODUCT(--(Rent_Roll[Lease Start]<=$C174),--(Rent_Roll[Lease Expiration]>=$C174),--(Rent_Roll[Status]<>"Vacant"),Rent_Roll[Square Feet]) -> 0 | E174: =SUMPRODUCT(--(Rent_Roll[Status]="Current"),--(Rent_Roll[Lease Start]<=$C174),--(Rent_Roll[Lease Expiration]>=$C174),Rent_Roll[Monthly Rent]) -> 0 | F174: 11200 | G174: =IF(MOD(B174-1,12)<>0,G173,RPMGrow('Cash Flows'!$E$12,'Rent Roll Summary'!G173,Inflation)) -> 2.239838 | H174: 25086.1856 | I174: 0 | J174: =I174*'Leasing Costs Calculator'!$I$54 -> 0 | K174: =$I174*'Leasing Costs Calculator'!$I$43 -> 0 | L174: =$I174*'Leasing Costs Calculator'!$I$49 -> 0

Sheet Cash Flows
B5: Schedule of Prospective Cash Flows
B7: Period | F7: 1 | G7: 2 | H7: 3 | I7: 4 | J7: 5 | K7: 6 | L7: 7 | M7: 8 | N7: 9 | O7: 10 | P7: 11
F8: =RPMDateSpan(F7,1) -> Jan 22 - Dec 22 | G8: =RPMDateSpan(G7,1) -> Jan 23 - Dec 23 | H8: Jan 24 - Dec 24 | I8: Jan 25 - Dec 25 | J8: Jan 26 - Dec 26 | K8: Jan 27 - Dec 27 | L8: Jan 28 - Dec 28 | M8: Jan 29 - Dec 29 | N8: Jan 30 - Dec 30 | O8: Jan 31 - Dec 31 | P8: Jan 32 - Dec 32
B10: Operating Income | E10: Inflation | G10: =Inflation -> 0.03 | H10: =G10 -> 0.03 | I10: 0.03 | J10: 0.03 | K10: 0.03 | L10: 0.03 | M10: 0.03 | N10: 0.03 | O10: 0.03 | P10: 0.03
B12: Base Rental Revenue | F12: =IF(RPMRegCheck()=1,VLOOKUP(F$7,Rent_Roll_Summary,5,FALSE),"Please Enable Macros") -> 219700 | G12: =IF(RPMRegCheck()=1,VLOOKUP(G$7,Rent_Roll_Summary,5,FALSE),"Please Enable Macros") -> 219700 | H12: =IF(RPMRegCheck()=1,VLOOKUP(H$7,Rent_Roll_Summary,5,FALSE),"Please Enable Macros") -> 145600 | I12: =IF(RPMRegCheck()=1,VLOOKUP(I$7,Rent_Roll_Summary,5,FALSE),"Please Enable Macros") -> 145600 | J12: =IF(RPMRegCheck()=1,VLOOKUP(J$7,Rent_Roll_Summary,5,FALSE),"Please Enable Macros") -> 68200 | K12: =IF(RPMRegCheck()=1,VLOOKUP(K$7,Rent_Roll_Summary,5,FALSE),"Please Enable Macros") -> 68200 | L12: =IF(RPMRegCheck()=1,VLOOKUP(L$7,Rent_Roll_Summary,5,FALSE),"Please Enable Macros") -> 68200 | M12: =IF(RPMRegCheck()=1,VLOOKUP(M$7,Rent_Roll_Summary,5,FALSE),"Please Enable Macros") -> 0 | N12: =IF(RPMRegCheck()=1,VLOOKUP(N$7,Rent_Roll_Summary,5,FALSE),"Please Enable Macros") -> 0 | O12: =IF(RPMRegCheck()=1,VLOOKUP(O$7,Rent_Roll_Summary,5,FALSE),"Please Enable Macros") -> 0 | P12: =IF(RPMRegCheck()=1,VLOOKUP(P$7,Rent_Roll_Summary,5,FALSE),"Please Enable Macros") -> 0
B13: Vacant Space Potential Revenue | F13: =IF(RPMRegCheck()=1,VLOOKUP(F$7,Rent_Roll_Summary,6,FALSE),"Please Enable Macros") -> 0 | G13: =IF(RPMRegCheck()=1,VLOOKUP(G$7,Rent_Roll_Summary,6,FALSE),"Please Enable Macros") -> 0 | H13: =IF(RPMRegCheck()=1,VLOOKUP(H$7,Rent_Roll_Summary,6,FALSE),"Please Enable Macros") -> 80629.9656 | I13: =IF(RPMRegCheck()=1,VLOOKUP(I$7,Rent_Roll_Summary,6,FALSE),"Please Enable Macros") -> 83048.8176 | J13: =IF(RPMRegCheck()=1,VLOOKUP(J$7,Rent_Roll_Summary,6,FALSE),"Please Enable Macros") -> 182331.2592 | K13: =IF(RPMRegCheck()=1,VLOOKUP(K$7,Rent_Roll_Summary,6,FALSE),"Please Enable Macros") -> 187797.5928 | L13: =IF(RPMRegCheck()=1,VLOOKUP(L$7,Rent_Roll_Summary,6,FALSE),"Please Enable Macros") -> 193434.1236 | M13: =IF(RPMRegCheck()=1,VLOOKUP(M$7,Rent_Roll_Summary,6,FALSE),"Please Enable Macros") -> 275493.5232 | N13: =IF(RPMRegCheck()=1,VLOOKUP(N$7,Rent_Roll_Summary,6,FALSE),"Please Enable Macros") -> 283757.9136 | O13: =IF(RPMRegCheck()=1,VLOOKUP(O$7,Rent_Roll_Summary,6,FALSE),"Please Enable Macros") -> 292271.4816 | P13: =IF(RPMRegCheck()=1,VLOOKUP(P$7,Rent_Roll_Summary,6,FALSE),"Please Enable Macros") -> 301034.2272
B14: Gross Potential Rent | F14: =SUM(F12:F13) -> 219700 | G14: =SUM(G12:G13) -> 219700 | H14: 226229.9656 | I14: 228648.8176 | J14: 250531.2592 | K14: 255997.5928 | L14: 261634.1236 | M14: 275493.5232 | N14: 283757.9136 | O14: 292271.4816 | P14: 301034.2272
B16: Less: Concessions | F16: =IF(RPMRegCheck()=1,-VLOOKUP(F$7,Rent_Roll_Summary,9,FALSE),"Please Enable Macros") -> 0 | G16: =IF(RPMRegCheck()=1,-VLOOKUP(G$7,Rent_Roll_Summary,9,FALSE),"Please Enable Macros") -> 0 | H16: =IF(RPMRegCheck()=1,-VLOOKUP(H$7,Rent_Roll_Summary,9,FALSE),"Please Enable Macros") -> -36416.66667 | I16: =IF(RPMRegCheck()=1,-VLOOKUP(I$7,Rent_Roll_Summary,9,FALSE),"Please Enable Macros") -> 0 | J16: =IF(RPMRegCheck()=1,-VLOOKUP(J$7,Rent_Roll_Summary,9,FALSE),"Please Enable Macros") -> -41208.33333 | K16: =IF(RPMRegCheck()=1,-VLOOKUP(K$7,Rent_Roll_Summary,9,FALSE),"Please Enable Macros") -> 0 | L16: =IF(RPMRegCheck()=1,-VLOOKUP(L$7,Rent_Roll_Summary,9,FALSE),"Please Enable Macros") -> 0 | M16: =IF(RPMRegCheck()=1,-VLOOKUP(M$7,Rent_Roll_Summary,9,FALSE),"Please Enable Macros") -> -29708.33333 | N16: =IF(RPMRegCheck()=1,-VLOOKUP(N$7,Rent_Roll_Summary,9,FALSE),"Please Enable Macros") -> 0 | O16: =IF(RPMRegCheck()=1,-VLOOKUP(O$7,Rent_Roll_Summary,9,FALSE),"Please Enable Macros") -> 0 | P16: =IF(RPMRegCheck()=1,-VLOOKUP(P$7,Rent_Roll_Summary,9,FALSE),"Please Enable Macros") -> 0
B17: Expense Reimbursements | F17: 0 | G17: =IFERROR(RPMGrow($E17,F17,G$10),"Please Enable Macros") -> 0 | H17: =IFERROR(RPMGrow($E17,G17,H$10),"Please Enable Macros") -> 0 | I17: =IFERROR(RPMGrow($E17,H17,I$10),"Please Enable Macros") -> 0 | J17: =IFERROR(RPMGrow($E17,I17,J$10),"Please Enable Macros") -> 0 | K17: =IFERROR(RPMGrow($E17,J17,K$10),"Please Enable Macros") -> 0 | L17: =IFERROR(RPMGrow($E17,K17,L$10),"Please Enable Macros") -> 0 | M17: =IFERROR(RPMGrow($E17,L17,M$10),"Please Enable Macros") -> 0 | N17: =IFERROR(RPMGrow($E17,M17,N$10),"Please Enable Macros") -> 0 | O17: =IFERROR(RPMGrow($E17,N17,O$10),"Please Enable Macros") -> 0 | P17: =IFERROR(RPMGrow($E17,O17,P$10),"Please Enable Macros") -> 0
B18: Parking Income | F18: 0 | G18: =IFERROR(RPMGrow($E18,F18,G$10),"Please Enable Macros") -> 0 | H18: =IFERROR(RPMGrow($E18,G18,H$10),"Please Enable Macros") -> 0 | I18: =IFERROR(RPMGrow($E18,H18,I$10),"Please Enable Macros") -> 0 | J18: =IFERROR(RPMGrow($E18,I18,J$10),"Please Enable Macros") -> 0 | K18: =IFERROR(RPMGrow($E18,J18,K$10),"Please Enable Macros") -> 0 | L18: =IFERROR(RPMGrow($E18,K18,L$10),"Please Enable Macros") -> 0 | M18: =IFERROR(RPMGrow($E18,L18,M$10),"Please Enable Macros") -> 0 | N18: =IFERROR(RPMGrow($E18,M18,N$10),"Please Enable Macros") -> 0 | O18: =IFERROR(RPMGrow($E18,N18,O$10),"Please Enable Macros") -> 0 | P18: =IFERROR(RPMGrow($E18,O18,P$10),"Please Enable Macros") -> 0
B19: Miscellaneous | F19: 0 | G19: =IFERROR(RPMGrow($E19,F19,G$10),"Please Enable Macros") -> 0 | H19: =IFERROR(RPMGrow($E19,G19,H$10),"Please Enable Macros") -> 0 | I19: =IFERROR(RPMGrow($E19,H19,I$10),"Please Enable Macros") -> 0 | J19: =IFERROR(RPMGrow($E19,I19,J$10),"Please Enable Macros") -> 0 | K19: =IFERROR(RPMGrow($E19,J19,K$10),"Please Enable Macros") -> 0 | L19: =IFERROR(RPMGrow($E19,K19,L$10),"Please Enable Macros") -> 0 | M19: =IFERROR(RPMGrow($E19,L19,M$10),"Please Enable Macros") -> 0 | N19: =IFERROR(RPMGrow($E19,M19,N$10),"Please Enable Macros") -> 0 | O19: =IFERROR(RPMGrow($E19,N19,O$10),"Please Enable Macros") -> 0 | P19: =IFERROR(RPMGrow($E19,O19,P$10),"Please Enable Macros") -> 0
B20: User Defined Income | F20: 0 | G20: =IFERROR(RPMGrow($E20,F20,G$10),"Please Enable Macros") -> 0 | H20: =IFERROR(RPMGrow($E20,G20,H$10),"Please Enable Macros") -> 0 | I20: =IFERROR(RPMGrow($E20,H20,I$10),"Please Enable Macros") -> 0 | J20: =IFERROR(RPMGrow($E20,I20,J$10),"Please Enable Macros") -> 0 | K20: =IFERROR(RPMGrow($E20,J20,K$10),"Please Enable Macros") -> 0 | L20: =IFERROR(RPMGrow($E20,K20,L$10),"Please Enable Macros") -> 0 | M20: =IFERROR(RPMGrow($E20,L20,M$10),"Please Enable Macros") -> 0 | N20: =IFERROR(RPMGrow($E20,M20,N$10),"Please Enable Macros") -> 0 | O20: =IFERROR(RPMGrow($E20,N20,O$10),"Please Enable Macros") -> 0 | P20: =IFERROR(RPMGrow($E20,O20,P$10),"Please Enable Macros") -> 0
B21: Total Other Potential Gross Revenue | F21: =SUM(F16:F20) -> 0 | G21: =SUM(G16:G20) -> 0 | H21: -36416.66667 | I21: 0 | J21: -41208.33333 | K21: 0 | L21: 0 | M21: -29708.33333 | N21: 0 | O21: 0 | P21: 0
B23: Total Potential Gross Revenue | F23: =SUM(F14,F21) -> 219700 | G23: =SUM(G14,G21) -> 219700 | H23: 189813.2989 | I23: 228648.8176 | J23: 209322.9259 | K23: 255997.5928 | L23: 261634.1236 | M23: 245785.1899 | N23: 283757.9136 | O23: 292271.4816 | P23: 301034.2272
B25: General Vacancy Rate | F25: 0.1 | G25: =F25 -> 0.1 | H25: =G25 -> 0.1 | I25: =H25 -> 0.1 | J25: 0.1 | K25: 0.1 | L25: 0.1 | M25: 0.1 | N25: 0.1 | O25: 0.1 | P25: 0.1
B26: Vacancy & Collection Loss | F26: =-F23*F25 -> -21970 | G26: =-G23*G25 -> -21970 | H26: -18981.32989 | I26: -22864.88176 | J26: -20932.29259 | K26: -25599.75928 | L26: -26163.41236 | M26: -24578.51899 | N26: -28375.79136 | O26: -29227.14816 | P26: -30103.42272
B28: Other Income
B29: Sign Income | F29: 0 | G29: =IFERROR(RPMGrow($E29,F29,G$10),"Please Enable Macros") -> 0 | H29: =IFERROR(RPMGrow($E29,G29,H$10),"Please Enable Macros") -> 0 | I29: =IFERROR(RPMGrow($E29,H29,I$10),"Please Enable Macros") -> 0 | J29: =IFERROR(RPMGrow($E29,I29,J$10),"Please Enable Macros") -> 0 | K29: =IFERROR(RPMGrow($E29,J29,K$10),"Please Enable Macros") -> 0 | L29: =IFERROR(RPMGrow($E29,K29,L$10),"Please Enable Macros") -> 0 | M29: =IFERROR(RPMGrow($E29,L29,M$10),"Please Enable Macros") -> 0 | N29: =IFERROR(RPMGrow($E29,M29,N$10),"Please Enable Macros") -> 0 | O29: =IFERROR(RPMGrow($E29,N29,O$10),"Please Enable Macros") -> 0 | P29: =IFERROR(RPMGrow($E29,O29,P$10),"Please Enable Macros") -> 0
B30: Other Income | F30: 0 | G30: =IFERROR(RPMGrow($E30,F30,G$10),"Please Enable Macros") -> 0 | H30: =IFERROR(RPMGrow($E30,G30,H$10),"Please Enable Macros") -> 0 | I30: =IFERROR(RPMGrow($E30,H30,I$10),"Please Enable Macros") -> 0 | J30: =IFERROR(RPMGrow($E30,I30,J$10),"Please Enable Macros") -> 0 | K30: =IFERROR(RPMGrow($E30,J30,K$10),"Please Enable Macros") -> 0 | L30: =IFERROR(RPMGrow($E30,K30,L$10),"Please Enable Macros") -> 0 | M30: =IFERROR(RPMGrow($E30,L30,M$10),"Please Enable Macros") -> 0 | N30: =IFERROR(RPMGrow($E30,M30,N$10),"Please Enable Macros") -> 0 | O30: =IFERROR(RPMGrow($E30,N30,O$10),"Please Enable Macros") -> 0 | P30: =IFERROR(RPMGrow($E30,O30,P$10),"Please Enable Macros") -> 0
B31: User Defined Income | F31: 0 | G31: =IFERROR(RPMGrow($E31,F31,G$10),"Please Enable Macros") -> 0 | H31: =IFERROR(RPMGrow($E31,G31,H$10),"Please Enable Macros") -> 0 | I31: =IFERROR(RPMGrow($E31,H31,I$10),"Please Enable Macros") -> 0 | J31: =IFERROR(RPMGrow($E31,I31,J$10),"Please Enable Macros") -> 0 | K31: =IFERROR(RPMGrow($E31,J31,K$10),"Please Enable Macros") -> 0 | L31: =IFERROR(RPMGrow($E31,K31,L$10),"Please Enable Macros") -> 0 | M31: =IFERROR(RPMGrow($E31,L31,M$10),"Please Enable Macros") -> 0 | N31: =IFERROR(RPMGrow($E31,M31,N$10),"Please Enable Macros") -> 0 | O31: =IFERROR(RPMGrow($E31,N31,O$10),"Please Enable Macros") -> 0 | P31: =IFERROR(RPMGrow($E31,O31,P$10),"Please Enable Macros") -> 0
B32: User Defined Income | F32: 0 | G32: =IFERROR(RPMGrow($E32,F32,G$10),"Please Enable Macros") -> 0 | H32: =IFERROR(RPMGrow($E32,G32,H$10),"Please Enable Macros") -> 0 | I32: =IFERROR(RPMGrow($E32,H32,I$10),"Please Enable Macros") -> 0 | J32: =IFERROR(RPMGrow($E32,I32,J$10),"Please Enable Macros") -> 0 | K32: =IFERROR(RPMGrow($E32,J32,K$10),"Please Enable Macros") -> 0 | L32: =IFERROR(RPMGrow($E32,K32,L$10),"Please Enable Macros") -> 0 | M32: =IFERROR(RPMGrow($E32,L32,M$10),"Please Enable Macros") -> 0 | N32: =IFERROR(RPMGrow($E32,M32,N$10),"Please Enable Macros") -> 0 | O32: =IFERROR(RPMGrow($E32,N32,O$10),"Please Enable Macros") -> 0 | P32: =IFERROR(RPMGrow($E32,O32,P$10),"Please Enable Macros") -> 0
B33: Total Other Income | F33: =SUM(F29:F32) -> 0 | G33: 0 | H33: 0 | I33: 0 | J33: 0 | K33: 0 | L33: 0 | M33: 0 | N33: 0 | O33: 0 | P33: 0
B35: Effective Gross Income | F35: =SUM(F23,F26,F33) -> 197730 | G35: =SUM(G23,G26,G33) -> 197730 | H35: 170831.969 | I35: 205783.9358 | J35: 188390.6333 | K35: 230397.8335 | L35: 235470.7112 | M35: 221206.6709 | N35: 255382.1222 | O35: 263044.3334 | P35: 270930.8045
B37: Operating Expenses | E37: Inflation | G37: =Inflation -> 0.03 | H37: =G37 -> 0.03 | I37: 0.03 | J37: 0.03 | K37: 0.03 | L37: 0.03 | M37: 0.03 | N37: 0.03 | O37: 0.03 | P37: 0.03
B39: Property Management Fee | D39: 0.04 | F39: =$D$39*F$35 -> 7909.2 | G39: 7909.2 | H39: 6833.278762 | I39: 8231.357434 | J39: 7535.625331 | K39: 9215.913341 | L39: 9418.82845 | M39: 8848.266835 | N39: 10215.28489 | O39: 10521.77334 | P39: 10837.23218
B40: Ad Valorem Taxes | F40: 30000 | G40: =IFERROR(RPMGrow($E40,F40,G$37),"Please Enable Macros") -> 30900 | H40: =IFERROR(RPMGrow($E40,G40,H$37),"Please Enable Macros") -> 31827 | I40: =IFERROR(RPMGrow($E40,H40,I$37),"Please Enable Macros") -> 32781.81 | J40: =IFERROR(RPMGrow($E40,I40,J$37),"Please Enable Macros") -> 33765.2643 | K40: =IFERROR(RPMGrow($E40,J40,K$37),"Please Enable Macros") -> 34778.22223 | L40: =IFERROR(RPMGrow($E40,K40,L$37),"Please Enable Macros") -> 35821.5689 | M40: =IFERROR(RPMGrow($E40,L40,M$37),"Please Enable Macros") -> 36896.21596 | N40: =IFERROR(RPMGrow($E40,M40,N$37),"Please Enable Macros") -> 38003.10244 | O40: =IFERROR(RPMGrow($E40,N40,O$37),"Please Enable Macros") -> 39143.19551 | P40: =IFERROR(RPMGrow($E40,O40,P$37),"Please Enable Macros") -> 40317.49138
B41: Insurance | F41: 2300 | G41: =IFERROR(RPMGrow($E41,F41,G$37),"Please Enable Macros") -> 2369 | H41: =IFERROR(RPMGrow($E41,G41,H$37),"Please Enable Macros") -> 2440.07 | I41: =IFERROR(RPMGrow($E41,H41,I$37),"Please Enable Macros") -> 2513.2721 | J41: =IFERROR(RPMGrow($E41,I41,J$37),"Please Enable Macros") -> 2588.670263 | K41: =IFERROR(RPMGrow($E41,J41,K$37),"Please Enable Macros") -> 2666.330371 | L41: =IFERROR(RPMGrow($E41,K41,L$37),"Please Enable Macros") -> 2746.320282 | M41: =IFERROR(RPMGrow($E41,L41,M$37),"Please Enable Macros") -> 2828.70989 | N41: =IFERROR(RPMGrow($E41,M41,N$37),"Please Enable Macros") -> 2913.571187 | O41: =IFERROR(RPMGrow($E41,N41,O$37),"Please Enable Macros") -> 3000.978323 | P41: =IFERROR(RPMGrow($E41,O41,P$37),"Please Enable Macros") -> 3091.007672
B42: Utilities | F42: 21000 | G42: =IFERROR(RPMGrow($E42,F42,G$37),"Please Enable Macros") -> 21630 | H42: =IFERROR(RPMGrow($E42,G42,H$37),"Please Enable Macros") -> 22278.9 | I42: =IFERROR(RPMGrow($E42,H42,I$37),"Please Enable Macros") -> 22947.267 | J42: =IFERROR(RPMGrow($E42,I42,J$37),"Please Enable Macros") -> 23635.68501 | K42: =IFERROR(RPMGrow($E42,J42,K$37),"Please Enable Macros") -> 24344.75556 | L42: =IFERROR(RPMGrow($E42,K42,L$37),"Please Enable Macros") -> 25075.09823 | M42: =IFERROR(RPMGrow($E42,L42,M$37),"Please Enable Macros") -> 25827.35117 | N42: =IFERROR(RPMGrow($E42,M42,N$37),"Please Enable Macros") -> 26602.17171 | O42: =IFERROR(RPMGrow($E42,N42,O$37),"Please Enable Macros") -> 27400.23686 | P42: =IFERROR(RPMGrow($E42,O42,P$37),"Please Enable Macros") -> 28222.24397
B43: Repairs & Maintenance | F43: 8000 | G43: =IFERROR(RPMGrow($E43,F43,G$37),"Please Enable Macros") -> 8240 | H43: =IFERROR(RPMGrow($E43,G43,H$37),"Please Enable Macros") -> 8487.2 | I43: =IFERROR(RPMGrow($E43,H43,I$37),"Please Enable Macros") -> 8741.816 | J43: =IFERROR(RPMGrow($E43,I43,J$37),"Please Enable Macros") -> 9004.07048 | K43: =IFERROR(RPMGrow($E43,J43,K$37),"Please Enable Macros") -> 9274.192594 | L43: =IFERROR(RPMGrow($E43,K43,L$37),"Please Enable Macros") -> 9552.418372 | M43: =IFERROR(RPMGrow($E43,L43,M$37),"Please Enable Macros") -> 9838.990923 | N43: =IFERROR(RPMGrow($E43,M43,N$37),"Please Enable Macros") -> 10134.16065 | O43: =IFERROR(RPMGrow($E43,N43,O$37),"Please Enable Macros") -> 10438.18547 | P43: =IFERROR(RPMGrow($E43,O43,P$37),"Please Enable Macros") -> 10751.33103
B44: Cleaning & Garbage Removal | F44: 0 | G44: =IFERROR(RPMGrow($E44,F44,G$37),"Please Enable Macros") -> 0 | H44: =IFERROR(RPMGrow($E44,G44,H$37),"Please Enable Macros") -> 0 | I44: =IFERROR(RPMGrow($E44,H44,I$37),"Please Enable Macros") -> 0 | J44: =IFERROR(RPMGrow($E44,I44,J$37),"Please Enable Macros") -> 0 | K44: =IFERROR(RPMGrow($E44,J44,K$37),"Please Enable Macros") -> 0 | L44: =IFERROR(RPMGrow($E44,K44,L$37),"Please Enable Macros") -> 0 | M44: =IFERROR(RPMGrow($E44,L44,M$37),"Please Enable Macros") -> 0 | N44: =IFERROR(RPMGrow($E44,M44,N$37),"Please Enable Macros") -> 0 | O44: =IFERROR(RPMGrow($E44,N44,O$37),"Please Enable Macros") -> 0 | P44: =IFERROR(RPMGrow($E44,O44,P$37),"Please Enable Macros") -> 0
B45: Contract Services | F45: 0 | G45: =IFERROR(RPMGrow($E45,F45,G$37),"Please Enable Macros") -> 0 | H45: =IFERROR(RPMGrow($E45,G45,H$37),"Please Enable Macros") -> 0 | I45: =IFERROR(RPMGrow($E45,H45,I$37),"Please Enable Macros") -> 0 | J45: =IFERROR(RPMGrow($E45,I45,J$37),"Please Enable Macros") -> 0 | K45: =IFERROR(RPMGrow($E45,J45,K$37),"Please Enable Macros") -> 0 | L45: =IFERROR(RPMGrow($E45,K45,L$37),"Please Enable Macros") -> 0 | M45: =IFERROR(RPMGrow($E45,L45,M$37),"Please Enable Macros") -> 0 | N45: =IFERROR(RPMGrow($E45,M45,N$37),"Please Enable Macros") -> 0 | O45: =IFERROR(RPMGrow($E45,N45,O$37),"Please Enable Macros") -> 0 | P45: =IFERROR(RPMGrow($E45,O45,P$37),"Please Enable Macros") -> 0
B46: General & Administrative | F46: 0 | G46: =IFERROR(RPMGrow($E46,F46,G$37),"Please Enable Macros") -> 0 | H46: =IFERROR(RPMGrow($E46,G46,H$37),"Please Enable Macros") -> 0 | I46: =IFERROR(RPMGrow($E46,H46,I$37),"Please Enable Macros") -> 0 | J46: =IFERROR(RPMGrow($E46,I46,J$37),"Please Enable Macros") -> 0 | K46: =IFERROR(RPMGrow($E46,J46,K$37),"Please Enable Macros") -> 0 | L46: =IFERROR(RPMGrow($E46,K46,L$37),"Please Enable Macros") -> 0 | M46: =IFERROR(RPMGrow($E46,L46,M$37),"Please Enable Macros") -> 0 | N46: =IFERROR(RPMGrow($E46,M46,N$37),"Please Enable Macros") -> 0 | O46: =IFERROR(RPMGrow($E46,N46,O$37),"Please Enable Macros") -> 0 | P46: =IFERROR(RPMGrow($E46,O46,P$37),"Please Enable Macros") -> 0
B47: Ground Rent | F47: 0 | G47: =IFERROR(RPMGrow($E47,F47,G$37),"Please Enable Macros") -> 0 | H47: =IFERROR(RPMGrow($E47,G47,H$37),"Please Enable Macros") -> 0 | I47: =IFERROR(RPMGrow($E47,H47,I$37),"Please Enable Macros") -> 0 | J47: =IFERROR(RPMGrow($E47,I47,J$37),"Please Enable Macros") -> 0 | K47: =IFERROR(RPMGrow($E47,J47,K$37),"Please Enable Macros") -> 0 | L47: =IFERROR(RPMGrow($E47,K47,L$37),"Please Enable Macros") -> 0 | M47: =IFERROR(RPMGrow($E47,L47,M$37),"Please Enable Macros") -> 0 | N47: =IFERROR(RPMGrow($E47,M47,N$37),"Please Enable Macros") -> 0 | O47: =IFERROR(RPMGrow($E47,N47,O$37),"Please Enable Macros") -> 0 | P47: =IFERROR(RPMGrow($E47,O47,P$37),"Please Enable Macros") -> 0
B48: Marketing | F48: 0 | G48: =IFERROR(RPMGrow($E48,F48,G$37),"Please Enable Macros") -> 0 | H48: =IFERROR(RPMGrow($E48,G48,H$37),"Please Enable Macros") -> 0 | I48: =IFERROR(RPMGrow($E48,H48,I$37),"Please Enable Macros") -> 0 | J48: =IFERROR(RPMGrow($E48,I48,J$37),"Please Enable Macros") -> 0 | K48: =IFERROR(RPMGrow($E48,J48,K$37),"Please Enable Macros") -> 0 | L48: =IFERROR(RPMGrow($E48,K48,L$37),"Please Enable Macros") -> 0 | M48: =IFERROR(RPMGrow($E48,L48,M$37),"Please Enable Macros") -> 0 | N48: =IFERROR(RPMGrow($E48,M48,N$37),"Please Enable Macros") -> 0 | O48: =IFERROR(RPMGrow($E48,N48,O$37),"Please Enable Macros") -> 0 | P48: =IFERROR(RPMGrow($E48,O48,P$37),"Please Enable Macros") -> 0
B49: Franchise Tax | F49: 0 | G49: =IFERROR(RPMGrow($E49,F49,G$37),"Please Enable Macros") -> 0 | H49: =IFERROR(RPMGrow($E49,G49,H$37),"Please Enable Macros") -> 0 | I49: =IFERROR(RPMGrow($E49,H49,I$37),"Please Enable Macros") -> 0 | J49: =IFERROR(RPMGrow($E49,I49,J$37),"Please Enable Macros") -> 0 | K49: =IFERROR(RPMGrow($E49,J49,K$37),"Please Enable Macros") -> 0 | L49: =IFERROR(RPMGrow($E49,K49,L$37),"Please Enable Macros") -> 0 | M49: =IFERROR(RPMGrow($E49,L49,M$37),"Please Enable Macros") -> 0 | N49: =IFERROR(RPMGrow($E49,M49,N$37),"Please Enable Macros") -> 0 | O49: =IFERROR(RPMGrow($E49,N49,O$37),"Please Enable Macros") -> 0 | P49: =IFERROR(RPMGrow($E49,O49,P$37),"Please Enable Macros") -> 0
B50: Payroll | F50: 0 | G50: =IFERROR(RPMGrow($E50,F50,G$37),"Please Enable Macros") -> 0 | H50: =IFERROR(RPMGrow($E50,G50,H$37),"Please Enable Macros") -> 0 | I50: =IFERROR(RPMGrow($E50,H50,I$37),"Please Enable Macros") -> 0 | J50: =IFERROR(RPMGrow($E50,I50,J$37),"Please Enable Macros") -> 0 | K50: =IFERROR(RPMGrow($E50,J50,K$37),"Please Enable Macros") -> 0 | L50: =IFERROR(RPMGrow($E50,K50,L$37),"Please Enable Macros") -> 0 | M50: =IFERROR(RPMGrow($E50,L50,M$37),"Please Enable Macros") -> 0 | N50: =IFERROR(RPMGrow($E50,M50,N$37),"Please Enable Macros") -> 0 | O50: =IFERROR(RPMGrow($E50,N50,O$37),"Please Enable Macros") -> 0 | P50: =IFERROR(RPMGrow($E50,O50,P$37),"Please Enable Macros") -> 0
B51: Other | F51: 0 | G51: =IFERROR(RPMGrow($E51,F51,G$37),"Please Enable Macros") -> 0 | H51: =IFERROR(RPMGrow($E51,G51,H$37),"Please Enable Macros") -> 0 | I51: =IFERROR(RPMGrow($E51,H51,I$37),"Please Enable Macros") -> 0 | J51: =IFERROR(RPMGrow($E51,I51,J$37),"Please Enable Macros") -> 0 | K51: =IFERROR(RPMGrow($E51,J51,K$37),"Please Enable Macros") -> 0 | L51: =IFERROR(RPMGrow($E51,K51,L$37),"Please Enable Macros") -> 0 | M51: =IFERROR(RPMGrow($E51,L51,M$37),"Please Enable Macros") -> 0 | N51: =IFERROR(RPMGrow($E51,M51,N$37),"Please Enable Macros") -> 0 | O51: =IFERROR(RPMGrow($E51,N51,O$37),"Please Enable Macros") -> 0 | P51: =IFERROR(RPMGrow($E51,O51,P$37),"Please Enable Macros") -> 0
B52: Other | F52: 0 | G52: =IFERROR(RPMGrow($E52,F52,G$37),"Please Enable Macros") -> 0 | H52: =IFERROR(RPMGrow($E52,G52,H$37),"Please Enable Macros") -> 0 | I52: =IFERROR(RPMGrow($E52,H52,I$37),"Please Enable Macros") -> 0 | J52: =IFERROR(RPMGrow($E52,I52,J$37),"Please Enable Macros") -> 0 | K52: =IFERROR(RPMGrow($E52,J52,K$37),"Please Enable Macros") -> 0 | L52: =IFERROR(RPMGrow($E52,K52,L$37),"Please Enable Macros") -> 0 | M52: =IFERROR(RPMGrow($E52,L52,M$37),"Please Enable Macros") -> 0 | N52: =IFERROR(RPMGrow($E52,M52,N$37),"Please Enable Macros") -> 0 | O52: =IFERROR(RPMGrow($E52,N52,O$37),"Please Enable Macros") -> 0 | P52: =IFERROR(RPMGrow($E52,O52,P$37),"Please Enable Macros") -> 0
B53: Total Operating Expenses | F53: =SUM(F39:F52) -> 69209.2 | G53: =SUM(G39:G52) -> 71048.2 | H53: 71866.44876 | I53: 75215.52253 | J53: 76529.31538 | K53: 80279.4141 | L53: 82614.23423 | M53: 84239.53479 | N53: 87868.29088 | O53: 90504.36951 | P53: 93219.30623
B55: NOI Before Reserves | F55: =F35-F53 -> 128520.8 | G55: 126681.8 | H55: 98965.52028 | I55: 130568.4133 | J55: 111861.3179 | K55: 150118.4194 | L55: 152856.477 | M55: 136967.1361 | N55: 167513.8314 | O55: 172539.9639 | P55: 177711.4982
B57: Operating Reserve Annual Deposits
B58: Operating Deficit Reserves | E58: 0 | F58: 10000 | G58: =IFERROR(RPMGrow($E58,F58,G$37),"Please Enable Macros") -> 10000 | H58: =IFERROR(RPMGrow($E58,G58,H$37),"Please Enable Macros") -> 10000 | I58: =IFERROR(RPMGrow($E58,H58,I$37),"Please Enable Macros") -> 10000 | J58: =IFERROR(RPMGrow($E58,I58,J$37),"Please Enable Macros") -> 10000 | K58: =IFERROR(RPMGrow($E58,J58,K$37),"Please Enable Macros") -> 10000 | L58: =IFERROR(RPMGrow($E58,K58,L$37),"Please Enable Macros") -> 10000 | M58: =IFERROR(RPMGrow($E58,L58,M$37),"Please Enable Macros") -> 10000 | N58: =IFERROR(RPMGrow($E58,M58,N$37),"Please Enable Macros") -> 10000 | O58: =IFERROR(RPMGrow($E58,N58,O$37),"Please Enable Macros") -> 10000 | P58: =IFERROR(RPMGrow($E58,O58,P$37),"Please Enable Macros") -> 10000
B59: Cap Ex Reserve | G59: =IFERROR(RPMGrow($E59,F59,G$37),"Please Enable Macros") -> 0 | H59: =IFERROR(RPMGrow($E59,G59,H$37),"Please Enable Macros") -> 0 | I59: =IFERROR(RPMGrow($E59,H59,I$37),"Please Enable Macros") -> 0 | J59: =IFERROR(RPMGrow($E59,I59,J$37),"Please Enable Macros") -> 0 | K59: =IFERROR(RPMGrow($E59,J59,K$37),"Please Enable Macros") -> 0 | L59: =IFERROR(RPMGrow($E59,K59,L$37),"Please Enable Macros") -> 0 | M59: =IFERROR(RPMGrow($E59,L59,M$37),"Please Enable Macros") -> 0 | N59: =IFERROR(RPMGrow($E59,M59,N$37),"Please Enable Macros") -> 0 | O59: =IFERROR(RPMGrow($E59,N59,O$37),"Please Enable Macros") -> 0 | P59: =IFERROR(RPMGrow($E59,O59,P$37),"Please Enable Macros") -> 0
B60: TI/Leasing Reserve | F60: =IF(Reserve_Leasing_Required="Yes",Reserve_Leasing,0) -> 0 | G60: =IFERROR(RPMGrow($E60,F60,G$37),"Please Enable Macros") -> 0 | H60: =IFERROR(RPMGrow($E60,G60,H$37),"Please Enable Macros") -> 0 | I60: =IFERROR(RPMGrow($E60,H60,I$37),"Please Enable Macros") -> 0 | J60: =IFERROR(RPMGrow($E60,I60,J$37),"Please Enable Macros") -> 0 | K60: =IFERROR(RPMGrow($E60,J60,K$37),"Please Enable Macros") -> 0 | L60: =IFERROR(RPMGrow($E60,K60,L$37),"Please Enable Macros") -> 0 | M60: =IFERROR(RPMGrow($E60,L60,M$37),"Please Enable Macros") -> 0 | N60: =IFERROR(RPMGrow($E60,M60,N$37),"Please Enable Macros") -> 0 | O60: =IFERROR(RPMGrow($E60,N60,O$37),"Please Enable Macros") -> 0 | P60: =IFERROR(RPMGrow($E60,O60,P$37),"Please Enable Macros") -> 0
B61: Total Reserves | F61: =SUM(F58:F60) -> 10000 | G61: =SUM(G58:G60) -> 10000 | H61: 10000 | I61: 10000 | J61: 10000 | K61: 10000 | L61: 10000 | M61: 10000 | N61: 10000 | O61: 10000 | P61: 10000
B63: Net Operating Income | F63: =SUM(F55,-F61) -> 118520.8 | G63: =SUM(G55,-G61) -> 116681.8 | H63: 88965.52028 | I63: 120568.4133 | J63: 101861.3179 | K63: 140118.4194 | L63: 142856.477 | M63: 126967.1361 | N63: 157513.8314 | O63: 162539.9639 | P63: 167711.4982
B67: www.realpropmetrics.com
B68: ="Version: "&Version -> Version: 9.42 C | © 2022
B69: =TODAY() -> 2022-02-23
B71: Schedule of Prospective Cash Flows
B73: Period | F73: 1 | G73: 2 | H73: 3 | I73: 4 | J73: 5 | K73: 6 | L73: 7 | M73: 8 | N73: 9 | O73: 10
F74: =RPMDateSpan(F73,1) -> Jan 22 - Dec 22 | G74: =RPMDateSpan(G73,1) -> Jan 23 - Dec 23 | H74: Jan 24 - Dec 24 | I74: Jan 25 - Dec 25 | J74: Jan 26 - Dec 26 | K74: Jan 27 - Dec 27 | L74: Jan 28 - Dec 28 | M74: Jan 29 - Dec 29 | N74: Jan 30 - Dec 30 | O74: Jan 31 - Dec 31
B76: Net Operating Income | F76: =F63 -> 118520.8 | G76: 116681.8 | H76: 88965.52028 | I76: 120568.4133 | J76: 101861.3179 | K76: 140118.4194 | L76: 142856.477 | M76: 126967.1361 | N76: 157513.8314 | O76: 162539.9639
B78: Debt Service
B79: Interest | F79: =VLOOKUP(F$7,Amortization_Schedule_Annual,6,FALSE) -> 54112.22051 | G79: 52343.18589 | H79: 50492.88213 | I79: 48557.57574 | J79: 46533.36171 | K79: 44416.15564 | L79: 42201.6855 | M79: 39885.48298 | N79: 37462.87453 | O79: 34928.97187
B80: Principal | F80: =VLOOKUP(F$7,Amortization_Schedule_Annual,7,FALSE) -> 38507.64817 | G80: 40276.68279 | H80: 42126.98655 | I80: 44062.29294 | J80: 46086.50697 | K80: 48203.71304 | L80: 50418.18318 | M80: 52734.38569 | N80: 55156.99415 | O80: 57690.89681
B81: Less: Interest in Development Budget | F81: =IF(Loan_IO_Interest="Pass to Cash Flow",0,VLOOKUP(F$7,'Loan Amortization'!$B$13:$N$24,13,FALSE)) -> 0 | G81: =IF(Loan_IO_Interest="Pass to Cash Flow",0,VLOOKUP(G$7,'Loan Amortization'!$B$13:$N$24,13,FALSE)) -> 0 | H81: =IF(Loan_IO_Interest="Pass to Cash Flow",0,VLOOKUP(H$7,'Loan Amortization'!$B$13:$N$24,13,FALSE)) -> 0 | I81: =IF(Loan_IO_Interest="Pass to Cash Flow",0,VLOOKUP(I$7,'Loan Amortization'!$B$13:$N$24,13,FALSE)) -> 0 | J81: =IF(Loan_IO_Interest="Pass to Cash Flow",0,VLOOKUP(J$7,'Loan Amortization'!$B$13:$N$24,13,FALSE)) -> 0 | K81: =IF(Loan_IO_Interest="Pass to Cash Flow",0,VLOOKUP(K$7,'Loan Amortization'!$B$13:$N$24,13,FALSE)) -> 0 | L81: =IF(Loan_IO_Interest="Pass to Cash Flow",0,VLOOKUP(L$7,'Loan Amortization'!$B$13:$N$24,13,FALSE)) -> 0 | M81: =IF(Loan_IO_Interest="Pass to Cash Flow",0,VLOOKUP(M$7,'Loan Amortization'!$B$13:$N$24,13,FALSE)) -> 0 | N81: =IF(Loan_IO_Interest="Pass to Cash Flow",0,VLOOKUP(N$7,'Loan Amortization'!$B$13:$N$24,13,FALSE)) -> 0 | O81: =IF(Loan_IO_Interest="Pass to Cash Flow",0,VLOOKUP(O$7,'Loan Amortization'!$B$13:$N$24,13,FALSE)) -> 0
B82: Total Debt Service | F82: =SUM(F79:F81) -> 92619.86868 | G82: =SUM(G79:G81) -> 92619.86868 | H82: 92619.86868 | I82: 92619.86868 | J82: 92619.86868 | K82: 92619.86868 | L82: 92619.86868 | M82: 92619.86868 | N82: 92619.86868 | O82: 92619.86868
B83: DSCR | F83: =IFERROR(F63/F82,"-") -> 1.279647679 | G83: 1.259792328 | H83: 0.9605446601 | I83: 1.30175539 | J83: 1.099778259 | K83: 1.512833277 | L83: 1.54239559 | M83: 1.370841245 | N83: 1.700648399 | O83: 1.754914645
B84: LTV | F84: =IFERROR(F87/#REF!,"-") -> - | G84: =IFERROR(G87/#REF!,"-") -> - | H84: =IFERROR(H87/#REF!,"-") -> - | I84: =IFERROR(I87/#REF!,"-") -> - | J84: =IFERROR(J87/#REF!,"-") -> - | K84: =IFERROR(K87/#REF!,"-") -> - | L84: =IFERROR(L87/#REF!,"-") -> - | M84: =IFERROR(M87/#REF!,"-") -> - | N84: =IFERROR(N87/#REF!,"-") -> - | O84: =IFERROR(O87/#REF!,"-") -> -
B85: Break Even Occupancy | F85: =IFERROR(SUM(F53,F82,F91)/SUM(F23,F33),"-") -> 0.7365911182 | G85: =IFERROR(SUM(G53,G82)/SUM(G23,G33),"-") -> 0.7449616235 | H85: 0.8665689831 | I85: 0.7340313104 | J85: 0.8080776788 | K85: 0.6753941742 | L85: 0.6697677677 | M85: 0.7195690007 | N85: 0.6360638802 | O85: 0.6265552738
B86: Debt Yield | F86: =IFERROR(F63/F87,"-") -> 1.279647679 | G86: 1.259792328 | H86: 0.9605446601 | I86: 1.30175539 | J86: 1.099778259 | K86: 1.512833277 | L86: 1.54239559 | M86: 1.370841245 | N86: 1.700648399 | O86: 1.754914645
B87: Mortgage Balance | F87: =IF(F7<=Hold,VLOOKUP(F7,Amortization_Schedule_Annual,8,FALSE),0) -> 92619.86868 | G87: 92619.86868 | H87: 92619.86868 | I87: 92619.86868 | J87: 92619.86868 | K87: 92619.86868 | L87: 92619.86868 | M87: 92619.86868 | N87: 92619.86868 | O87: 92619.86868
B88: Equity | F88: =IFERROR(IF(F$7<=Hold,#REF!-F87,0),"-") -> - | G88: =IFERROR(IF(G$7<=Hold,#REF!-G87,0),"-") -> - | H88: =IFERROR(IF(H$7<=Hold,#REF!-H87,0),"-") -> - | I88: =IFERROR(IF(I$7<=Hold,#REF!-I87,0),"-") -> - | J88: =IFERROR(IF(J$7<=Hold,#REF!-J87,0),"-") -> - | K88: =IFERROR(IF(K$7<=Hold,#REF!-K87,0),"-") -> - | L88: =IFERROR(IF(L$7<=Hold,#REF!-L87,0),"-") -> - | M88: =IFERROR(IF(M$7<=Hold,#REF!-M87,0),"-") -> - | N88: =IFERROR(IF(N$7<=Hold,#REF!-N87,0),"-") -> - | O88: =IFERROR(IF(O$7<=Hold,#REF!-O87,0),"-") -> -
B90: Refinance Proceeds | F90: ='Return Detail'!F$26 -> 0 | G90: ='Return Detail'!G$26 -> 0 | H90: ='Return Detail'!H$26 -> 0 | I90: ='Return Detail'!I$26 -> 0 | J90: ='Return Detail'!J$26 -> 0 | K90: ='Return Detail'!K$26 -> 0 | L90: ='Return Detail'!L$26 -> 0 | M90: ='Return Detail'!M$26 -> 0 | N90: ='Return Detail'!N$26 -> 0 | O90: ='Return Detail'!O$26 -> 0
B91: Less: Mortgage Origination Fee | F91: ='Return Detail'!F$28 -> 0 | G91: ='Return Detail'!G$28 -> 0 | H91: ='Return Detail'!H$28 -> 0 | I91: ='Return Detail'!I$28 -> 0 | J91: ='Return Detail'!J$28 -> 0 | K91: ='Return Detail'!K$28 -> 0 | L91: ='Return Detail'!L$28 -> 0 | M91: ='Return Detail'!M$28 -> 0 | N91: ='Return Detail'!N$28 -> 0 | O91: ='Return Detail'!O$28 -> 0
B93: Cash Flow After Debt Service | F93: =SUM(F76,-F82,F90:F91) -> 25900.93132 | G93: =SUM(G76,-G82,G90:G91) -> 24061.93132 | H93: -3654.3484 | I93: 27948.54463 | J93: 9241.449217 | K93: 47498.55075 | L93: 50236.60833 | M93: 34347.26742 | N93: 64893.96268 | O93: 69920.09526
B94: CFADS/Month | F94: =F93/12 -> 2158.410943 | G94: =G93/12 -> 2005.160943 | H94: -304.5290334 | I94: 2329.045386 | J94: 770.1207681 | K94: 3958.212562 | L94: 4186.384028 | M94: 2862.272285 | N94: 5407.830224 | O94: 5826.674605
B96: Capital Expenses
B97: Tenant Improvements | F97: =VLOOKUP(F$7,'Leasing Costs Calculator'!$C$57:$I$68,5,FALSE) -> 0 | G97: =VLOOKUP(G$7,'Leasing Costs Calculator'!$C$57:$I$68,5,FALSE) -> 0 | H97: =VLOOKUP(H$7,'Leasing Costs Calculator'!$C$57:$I$68,5,FALSE) -> 36416.66667 | I97: =VLOOKUP(I$7,'Leasing Costs Calculator'!$C$57:$I$68,5,FALSE) -> 0 | J97: =VLOOKUP(J$7,'Leasing Costs Calculator'!$C$57:$I$68,5,FALSE) -> 41208.33333 | K97: =VLOOKUP(K$7,'Leasing Costs Calculator'!$C$57:$I$68,5,FALSE) -> 0 | L97: =VLOOKUP(L$7,'Leasing Costs Calculator'!$C$57:$I$68,5,FALSE) -> 36416.66667 | M97: =VLOOKUP(M$7,'Leasing Costs Calculator'!$C$57:$I$68,5,FALSE) -> 29708.33333 | N97: =VLOOKUP(N$7,'Leasing Costs Calculator'!$C$57:$I$68,5,FALSE) -> 41208.33333 | O97: =VLOOKUP(O$7,'Leasing Costs Calculator'!$C$57:$I$68,5,FALSE) -> 0
B98: Leasing Commissions | F98: =VLOOKUP(F$7,'Leasing Costs Calculator'!$C$57:$I$68,6,FALSE) -> 0 | G98: =VLOOKUP(G$7,'Leasing Costs Calculator'!$C$57:$I$68,6,FALSE) -> 0 | H98: =VLOOKUP(H$7,'Leasing Costs Calculator'!$C$57:$I$68,6,FALSE) -> 12540 | I98: =VLOOKUP(I$7,'Leasing Costs Calculator'!$C$57:$I$68,6,FALSE) -> 0 | J98: =VLOOKUP(J$7,'Leasing Costs Calculator'!$C$57:$I$68,6,FALSE) -> 14190 | K98: =VLOOKUP(K$7,'Leasing Costs Calculator'!$C$57:$I$68,6,FALSE) -> 0 | L98: =VLOOKUP(L$7,'Leasing Costs Calculator'!$C$57:$I$68,6,FALSE) -> 12540 | M98: =VLOOKUP(M$7,'Leasing Costs Calculator'!$C$57:$I$68,6,FALSE) -> 10230 | N98: =VLOOKUP(N$7,'Leasing Costs Calculator'!$C$57:$I$68,6,FALSE) -> 14190 | O98: =VLOOKUP(O$7,'Leasing Costs Calculator'!$C$57:$I$68,6,FALSE) -> 0
B99: Capital Expenditures | F99: 0 | G99: 0 | H99: 0 | I99: 0 | J99: 0 | K99: 0 | L99: 0 | M99: 0 | N99: 0 | O99: 0
B100: Total Capital Expenses | F100: =SUM(F97:F99) -> 0 | G100: =SUM(G97:G99) -> 0 | H100: 48956.66667 | I100: 0 | J100: 55398.33333 | K100: 0 | L100: 48956.66667 | M100: 39938.33333 | N100: 55398.33333 | O100: 0
B102: Expenses Paid from Reserves
B103: Less: TI & LC Paid from Reserves | F103: =F$152 -> 0 | G103: =G$152 -> 0 | H103: 0 | I103: 0 | J103: 0 | K103: 0 | L103: 0 | M103: 0 | N103: 0 | O103: 0
B104: Less: Cap Ex Paid from Reserves | F104: =F$146 -> 0 | G104: 0 | H104: 0 | I104: 0 | J104: 0 | K104: 0 | L104: 0 | M104: 0 | N104: 0 | O104: 0
B105: Net Capital Expenses | F105: =SUM(F100,F103:F104) -> 0 | G105: =SUM(G100,G103:G104) -> 0 | H105: 48956.66667 | I105: 0 | J105: 55398.33333 | K105: 0 | L105: 48956.66667 | M105: 39938.33333 | N105: 55398.33333 | O105: 0
B107: Non-Regular Income
B108: Other Non-Regular Income | F108: 0 | G108: 0 | H108: 0 | I108: 0 | J108: 0 | K108: 0 | L108: 0 | M108: 0 | N108: 0 | O108: 0
B109: Other Non-Regular Expenses | F109: 0 | G109: 0 | H109: 0 | I109: 0 | J109: 0 | K109: 0 | L109: 0 | M109: 0 | N109: 0 | O109: 0
B110: Operating Deficit Reserve Draw | F110: =-F139 -> 0 | G110: =-G139 -> 0 | H110: 3654.3484 | I110: 0 | J110: 0 | K110: 0 | L110: 0 | M110: 0 | N110: 0 | O110: 0
B111: Return of Reserve Funds | F111: =IF(F$7=Hold,F$155,0) -> 0 | G111: 0 | H111: 0 | I111: 0 | J111: 0 | K111: 0 | L111: 0 | M111: 0 | N111: 0 | O111: 10000
B112: Total Non Regular Income | F112: =SUM(F108:F111) -> 0 | G112: 0 | H112: 3654.3484 | I112: 0 | J112: 0 | K112: 0 | L112: 0 | M112: 0 | N112: 0 | O112: 10000
B114: Cash Flow Before Taxes | F114: =SUM(F93,-F105,F112) -> 25900.93132 | G114: 24061.93132 | H114: -48956.66667 | I114: 27948.54463 | J114: -46156.88412 | K114: 47498.55075 | L114: 1279.941668 | M114: -5591.065918 | N114: 9495.629349 | O114: 79920.09526
B115: CFBT/Month | F115: =F114/12 -> 2158.410943 | G115: =G114/12 -> 2005.160943 | H115: -4079.722222 | I115: 2329.045386 | J115: -3846.40701 | K115: 3958.212562 | L115: 106.6618057 | M115: -465.9221598 | N115: 791.3024458 | O115: 6660.007938
B116: Cash on Cash Return | F116: =IFERROR(F114/Equity_Amount,"-") -> 0.03269493981 | G116: 0.03037355633 | H116: -0.06179836742 | I116: 0.03527965744 | J116: -0.05826418091 | K116: 0.05995777676 | L116: 0.001615679965 | M116: -0.00705764443 | N116: 0.01198640413 | O116: 0.1008837355
B118: Tax Liability*
B119: Cost Recovery Improvements | F119: =Acquisition_Unlevered*Assessed_Value_Prop*Cost_Recovery_11M -> 2586.315789 | G119: =IF(G$7<Hold,Acquisition_Unlevered*Cost_Recovery_12M*Assessed_Value_Prop,IF(G$7=Hold,Acquisition_Unlevered*Cost_Recovery_11M*Assessed_Value_Prop,0)) -> 2698.947368 | H119: 2698.947368 | I119: 2698.947368 | J119: 2698.947368 | K119: 2698.947368 | L119: 2698.947368 | M119: 2698.947368 | N119: 2698.947368 | O119: 2586.315789
B120: Loan Costs Amortization | F120: =VLOOKUP(F$7,Loan_Cost_Table,6,FALSE) -> 0 | G120: 1220 | H120: 1220 | I120: 1220 | J120: 1220 | K120: 1220 | L120: 1220 | M120: 1220 | N120: 1220 | O120: 1220
B121: Taxable Income | F121: =SUM(F63,F61)-SUM(F79:F79,F119:F120) -> 71822.2637 | G121: 70419.66674 | H121: 44553.69078 | I121: 78091.8902 | J121: 61409.00882 | K121: 101783.3164 | L121: 106735.8441 | M121: 93162.70574 | N121: 126132.0095 | O121: 133804.6763
B122: ="Less: Tax Liability at " & ROUND(Tax_Ordinary*100,0)&"%" -> Less: Tax Liability at 35% | F122: =-F121*Tax_Ordinary -> -25137.7923 | G122: -24646.88336 | H122: -15593.79177 | I122: -27332.16157 | J122: -21493.15309 | K122: -35624.16075 | L122: -37357.54545 | M122: -32606.94701 | N122: -44146.20331 | O122: -46831.6367
B124: Operating Deficit Reserve Draw for Taxes | F124: =-F140 -> 0 | G124: =-G140 -> 584.9520385 | H124: 64550.45844 | I124: 0 | J124: 67650.0372 | K124: 0 | L124: 33560.20392 | M124: 10000 | N124: 10000 | O124: 0
B126: Cash Flow After Taxes | F126: =SUM(F114,F122,F124) -> 763.1390257 | G126: =SUM(G114,G122,G124) -> 0 | H126: 0 | I126: 616.3830574 | J126: 0 | K126: 11874.39 | L126: -2517.399865 | M126: -28198.01293 | N126: -24650.57396 | O126: 33088.45856
B127: CFAT/Month | F127: =F126/12 -> 63.59491881 | G127: =G126/12 -> 0 | H127: 0 | I127: 51.36525478 | J127: 0 | K127: 989.5325001 | L127: -209.7833221 | M127: -2349.834411 | N127: -2054.214497 | O127: 2757.371547
B128: After Tax Cash on Cash Return | F128: =IFERROR(F126/Equity_Amount,"-") -> 0.0009633161143 | G128: 0 | H128: 0 | I128: 0.000778064955 | J128: 0 | K128: 0.01498913153 | L128: -0.003177732726 | M128: -0.03559456315 | N128: -0.03111660435 | O128: 0.04176780934
B129: *Does not include Capital Expenses as they are often subject to separate tax treatment
B130: This pro forma does not constitute tax advice. Please consult a professional tax advisor.
B132: Reserve Account Balances
B134: Period | F134: 1 | G134: 2 | H134: 3 | I134: 4 | J134: 5 | K134: 6 | L134: 7 | M134: 8 | N134: 9 | O134: 10
B136: Operating Deficit Reserve
B137: Beginning Balance | F137: =Reserve_Operating -> 100000 | G137: =F141 -> 110000 | H137: 119415.048 | I137: 61210.24112 | J137: 71210.24112 | K137: 13560.20392 | L137: 23560.20392 | M137: 0 | N137: 0 | O137: 0
B138: Contributions | F138: =F$58 -> 10000 | G138: =G$58 -> 10000 | H138: 10000 | I138: 10000 | J138: 10000 | K138: 10000 | L138: 10000 | M138: 10000 | N138: 10000 | O138: 10000
B139: Expenses Paid | F139: =IF(SUM(F93,F108:F109)>0,0,MAX(SUM(F93,F108:F109),-SUM(F137:F138))) -> 0 | G139: =IF(SUM(G93,G108:G109)>0,0,MAX(SUM(G93,G108:G109),-SUM(G137:G138))) -> 0 | H139: -3654.3484 | I139: 0 | J139: 0 | K139: 0 | L139: 0 | M139: 0 | N139: 0 | O139: 0
B140: Taxes Paid | F140: =IF(F$7>=Hold,0,IF(SUM(F114,F122)>0,0,MAX(SUM(F114,F122),-SUM(F137:F139)))) -> 0 | G140: -584.9520385 | H140: -64550.45844 | I140: 0 | J140: -67650.0372 | K140: 0 | L140: -33560.20392 | M140: -10000 | N140: -10000 | O140: 0
B141: Ending Balance | F141: =SUM(F137:F140) -> 110000 | G141: =SUM(G137:G140) -> 119415.048 | H141: 61210.24112 | I141: 71210.24112 | J141: 13560.20392 | K141: 23560.20392 | L141: 0 | M141: 0 | N141: 0 | O141: 10000
B143: Cap Ex Reserve
B144: Beginning Balance | F144: =Reserve_CapEx_Initial -> 0 | G144: =F147 -> 0 | H144: 0 | I144: 0 | J144: 0 | K144: 0 | L144: 0 | M144: 0 | N144: 0 | O144: 0
B145: Contributions | F145: =F$59 -> 0 | G145: 0 | H145: 0 | I145: 0 | J145: 0 | K145: 0 | L145: 0 | M145: 0 | N145: 0 | O145: 0
B146: Expenses Paid | F146: =IF(F$99<SUM(F144:F145),-F$99,-SUM(F144:F145)) -> 0 | G146: 0 | H146: 0 | I146: 0 | J146: 0 | K146: 0 | L146: 0 | M146: 0 | N146: 0 | O146: 0
B147: Ending Balance | F147: =SUM(F144:F146) -> 0 | G147: 0 | H147: 0 | I147: 0 | J147: 0 | K147: 0 | L147: 0 | M147: 0 | N147: 0 | O147: 0
B149: TI & Leasing Reserve
B150: Beginning Balance | F150: =Reserve_TILC -> 0 | G150: =F153 -> 0 | H150: =G153 -> 0 | I150: 0 | J150: 0 | K150: 0 | L150: 0 | M150: 0 | N150: 0 | O150: 0
B151: Contributions | F151: =F$60 -> 0 | G151: =G$60 -> 0 | H151: 0 | I151: 0 | J151: 0 | K151: 0 | L151: 0 | M151: 0 | N151: 0 | O151: 0
B152: Expenses Paid | F152: =IF(SUM(F$97:F$98)<SUM(F150:F151),-SUM(F$97:F$98),-SUM(F150:F151)) -> 0 | G152: =IF(SUM(G$97:G$98)<SUM(G150:G151),-SUM(G$97:G$98),-SUM(G150:G151)) -> 0 | H152: 0 | I152: 0 | J152: 0 | K152: 0 | L152: 0 | M152: 0 | N152: 0 | O152: 0
B153: Ending Balance | F153: =SUM(F150:F152) -> 0 | G153: =SUM(G150:G152) -> 0 | H153: 0 | I153: 0 | J153: 0 | K153: 0 | L153: 0 | M153: 0 | N153: 0 | O153: 0
B155: Total Reserve Balances | F155: =SUM(F141,F147,F153) -> 110000 | G155: =SUM(G141,G147,G153) -> 119415.048 | H155: 61210.24112 | I155: 71210.24112 | J155: 13560.20392 | K155: 23560.20392 | L155: 0 | M155: 0 | N155: 0 | O155: 10000
B158: www.realpropmetrics.com
B159: ="Version: "&Version -> Version: 9.42 C | © 2022
B160: =TODAY() -> 2022-02-23

Sheet Summary Charts
B3: =Project_Name -> New Commercial Model
B5: Project Return Summary
O6: Date Range Display | P6: =IF(Date_View=1,P7,RPMDateSpan(P7,2)) -> 1 | Q6: 2 | R6: 3 | S6: 4 | T6: 5 | U6: 6 | V6: 7 | W6: 8 | X6: 9 | Y6: 10
B7: Summary | E7: Sale Analysis | H7: Cash Flows | L7: IRR & Present Value | O7: Summary Chart Data | P7: 1 | Q7: 2 | R7: 3 | S7: 4 | T7: 5 | U7: 6 | V7: 7 | W7: 8 | X7: 9 | Y7: 10
B8: Square Feet | C8: =Size_Total -> 11200 | E8: =IF(Project_Type="Acquisition","Acquisition Price","Development Cost") -> Acquisition Price | F8: =Acquisition_Gross -> 1900000 | I8: Before Tax | J8: After Tax | L8: Unleveraged IRR | M8: ='Return Detail'!$C$17 -> 0.07599765919 | O8: Net Operating Income | P8: ='Summary & Ratios'!D$10 -> 118520.8 | Q8: ='Summary & Ratios'!E$10 -> 116681.8 | R8: ='Summary & Ratios'!F$10 -> 88965.52028 | S8: ='Summary & Ratios'!G$10 -> 120568.4133 | T8: ='Summary & Ratios'!H$10 -> 101861.3179 | U8: ='Summary & Ratios'!I$10 -> 140118.4194 | V8: ='Summary & Ratios'!J$10 -> 142856.477 | W8: ='Summary & Ratios'!K$10 -> 126967.1361 | X8: ='Summary & Ratios'!L$10 -> 157513.8314 | Y8: ='Summary & Ratios'!M$10 -> 162539.9639
B9: =IF(Project_Type="Acquisition","Acquisition Price","Development Costs") -> Acquisition Price | C9: =Acquisition_Gross -> 1900000 | E9: PSF | F9: =IFERROR(Acquisition_Gross/Size_Total,"-") -> 169.6428571 | H9: Annual Cash Flows | I9: =SUM('Return Detail'!$F$32:$O$32) -> 115401.0076 | J9: =SUM('Return Detail'!F83:O83) -> -9023.616112 | L9: ="Unleveraged PV at " &(Equity_Rate*100)&"%" -> Unleveraged PV at 10% | M9: ='Return Detail'!$C$20 -> 1670000 | O9: Debt Service | P9: =IF(-'Summary & Ratios'!D$11=0,NA(),-'Summary & Ratios'!D$11) -> 92619.86868 | Q9: =IF(-'Summary & Ratios'!E$11=0,NA(),-'Summary & Ratios'!E$11) -> 92619.86868 | R9: =IF(-'Summary & Ratios'!F$11=0,NA(),-'Summary & Ratios'!F$11) -> 92619.86868 | S9: =IF(-'Summary & Ratios'!G$11=0,NA(),-'Summary & Ratios'!G$11) -> 92619.86868 | T9: =IF(-'Summary & Ratios'!H$11=0,NA(),-'Summary & Ratios'!H$11) -> 92619.86868 | U9: =IF(-'Summary & Ratios'!I$11=0,NA(),-'Summary & Ratios'!I$11) -> 92619.86868 | V9: =IF(-'Summary & Ratios'!J$11=0,NA(),-'Summary & Ratios'!J$11) -> 92619.86868 | W9: =IF(-'Summary & Ratios'!K$11=0,NA(),-'Summary & Ratios'!K$11) -> 92619.86868 | X9: =IF(-'Summary & Ratios'!L$11=0,NA(),-'Summary & Ratios'!L$11) -> 92619.86868 | Y9: =IF(-'Summary & Ratios'!M$11=0,NA(),-'Summary & Ratios'!M$11) -> 92619.86868
B10: Other Costs | C10: ='Sources & Uses'!C19 -> 12200 | E10: Sale Price | F10: =SUM('Return Detail'!F10:O10) -> 2734023.05 | H10: Net Sale Proceeds | I10: =SUM('Return Detail'!$F$33:$O$35) -> 1961947.11 | J10: =SUM('Return Detail'!F84:O84) -> 1813919.493 | L10: Leveraged IRR | M10: ='Return Detail'!C42 -> 0.1029520071 | O10: Cash Flow After Taxes | P10: ='Return Detail'!F$83 -> 763.1390257 | Q10: ='Return Detail'!G$83 -> 0 | R10: ='Return Detail'!H$83 -> 0 | S10: ='Return Detail'!I$83 -> 616.3830574 | T10: ='Return Detail'!J$83 -> 0 | U10: ='Return Detail'!K$83 -> 11874.39 | V10: ='Return Detail'!L$83 -> -2517.399865 | W10: ='Return Detail'!M$83 -> -28198.01293 | X10: ='Return Detail'!N$83 -> -24650.57396 | Y10: ='Return Detail'!O$83 -> 33088.45856
B11: Equity | C11: =Equity_Amount -> 792200 | E11: PSF | F11: =IFERROR(F10/Size_Total,"-") -> 244.1092009 | H11: Total | I11: =SUM(I9:I10) -> 2077348.117 | J11: =SUM(J9:J10) -> 1804895.877 | L11: ="Leveraged PV at " &(Equity_Rate*100)&"%" -> Leveraged PV at 10% | M11: ='Return Detail'!$C$48 -> 2030000 | O11: Mortgage Balance (EOY) | P11: ='Summary & Ratios'!D$27 -> 1181492.352 | Q11: ='Summary & Ratios'!E$27 -> 1141215.669 | R11: ='Summary & Ratios'!F$27 -> 1099088.682 | S11: ='Summary & Ratios'!G$27 -> 1055026.39 | T11: ='Summary & Ratios'!H$27 -> 1008939.883 | U11: ='Summary & Ratios'!I$27 -> 960736.1695 | V11: ='Summary & Ratios'!J$27 -> 910317.9864 | W11: ='Summary & Ratios'!K$27 -> 857583.6007 | X11: ='Summary & Ratios'!L$27 -> 802426.6065 | Y11: ='Summary & Ratios'!M$27 -> 744735.7097
B12: Debt | C12: =Loan_Amount -> 1220000 | E12: Appreciation | F12: =IFERROR((F10/F8)-1,"-") -> 0.4389595 | H12: Profit | I12: =SUM('Return Detail'!$E$37:$O$37) -> 1285148.117 | J12: =SUM('Return Detail'!E85:O85) -> 1012695.877 | L12: After Tax IRR (Leveraged) | M12: ='Return Detail'!$C$91 -> 0.08570915549 | O12: Equity (EOY) | P12: ='Summary & Ratios'!D$28 -> 767458.4174 | Q12: ='Summary & Ratios'!E$28 -> 381330.7968 | R12: ='Summary & Ratios'!F$28 -> 909656.1376 | S12: ='Summary & Ratios'!G$28 -> 665916.9627 | T12: ='Summary & Ratios'!H$28 -> 1300574.262 | U12: ='Summary & Ratios'!I$28 -> 1390901.938 | V12: ='Summary & Ratios'!J$28 -> 1196868.723 | W12: ='Summary & Ratios'!K$28 -> 1719552.266 | X12: ='Summary & Ratios'!L$28 -> 1852034.377 | Y12: ='Summary & Ratios'!M$28 -> 1989287.34
B13: =IF(Project_Type="Acquisition","LTV","LTC") -> LTV | C13: =LTV -> 0.61 | E13: Avg. App/Year | F13: =IFERROR(F12/Hold,"-") -> 0.04389595 | H13: Equity Multiple | I13: =IFERROR(I12/Equity_Amount,"-") -> 1.622252105 | J13: =IFERROR(J12/Equity_Amount,"-") -> 1.278333599 | L13: ="After Tax PV at " &(Equity_Rate*100)&"%" -> After Tax PV at 10% | M13: ='Return Detail'!$C$97 -> 1920000 | O13: Before Tax Cash on Cash | P13: =IFERROR('Summary & Ratios'!D$33,NA()) -> 0.03269493981 | Q13: =IFERROR('Summary & Ratios'!E$33,NA()) -> 0.03037355633 | R13: =IFERROR('Summary & Ratios'!F$33,NA()) -> -0.06179836742 | S13: =IFERROR('Summary & Ratios'!G$33,NA()) -> 0.03527965744 | T13: =IFERROR('Summary & Ratios'!H$33,NA()) -> -0.05826418091 | U13: =IFERROR('Summary & Ratios'!I$33,NA()) -> 0.05995777676 | V13: =IFERROR('Summary & Ratios'!J$33,NA()) -> 0.001615679965 | W13: =IFERROR('Summary & Ratios'!K$33,NA()) -> -0.00705764443 | X13: =IFERROR('Summary & Ratios'!L$33,NA()) -> 0.01198640413 | Y13: =IFERROR('Summary & Ratios'!M$33,NA()) -> 0.1008837355
O14: After Tax Cash on Cash | P14: =IFERROR('Summary & Ratios'!D$34,NA()) -> 0.0009633161143 | Q14: =IFERROR('Summary & Ratios'!E$34,NA()) -> 0 | R14: =IFERROR('Summary & Ratios'!F$34,NA()) -> 0 | S14: =IFERROR('Summary & Ratios'!G$34,NA()) -> 0.000778064955 | T14: =IFERROR('Summary & Ratios'!H$34,NA()) -> 0 | U14: =IFERROR('Summary & Ratios'!I$34,NA()) -> 0.01498913153 | V14: =IFERROR('Summary & Ratios'!J$34,NA()) -> -0.003177732726 | W14: =IFERROR('Summary & Ratios'!K$34,NA()) -> -0.03559456315 | X14: =IFERROR('Summary & Ratios'!L$34,NA()) -> -0.03111660435 | Y14: =IFERROR('Summary & Ratios'!M$34,NA()) -> 0.04176780934
O15: After Tax | P15: =IFERROR('Summary & Ratios'!D$42,NA()) -> 0.6221724005 | Q15: =IFERROR('Summary & Ratios'!E$42,NA()) -> 0.6327773569 | R15: =IFERROR('Summary & Ratios'!F$42,NA()) -> 0.7844156679 | S15: =IFERROR('Summary & Ratios'!G$42,NA()) -> 0.6144935763 | T15: =IFERROR('Summary & Ratios'!H$42,NA()) -> 0.7053982757 | U15: =IFERROR('Summary & Ratios'!I$42,NA()) -> 0.5362359877 | V15: =IFERROR('Summary & Ratios'!J$42,NA()) -> 0.52698232 | W15: =IFERROR('Summary & Ratios'!K$42,NA()) -> 0.5869045915 | X15: =IFERROR('Summary & Ratios'!L$42,NA()) -> 0.4804868859 | Y15: =IFERROR('Summary & Ratios'!M$42,NA()) -> 0.4663219304
O16: Pre Tax | P16: =IFERROR('Summary & Ratios'!D$41,NA()) -> 0.7365911182 | Q16: =IFERROR('Summary & Ratios'!E$41,NA()) -> 0.7449616235 | R16: =IFERROR('Summary & Ratios'!F$41,NA()) -> 0.8665689831 | S16: =IFERROR('Summary & Ratios'!G$41,NA()) -> 0.7340313104 | T16: =IFERROR('Summary & Ratios'!H$41,NA()) -> 0.8080776788 | U16: =IFERROR('Summary & Ratios'!I$41,NA()) -> 0.6753941742 | V16: =IFERROR('Summary & Ratios'!J$41,NA()) -> 0.6697677677 | W16: =IFERROR('Summary & Ratios'!K$41,NA()) -> 0.7195690007 | X16: =IFERROR('Summary & Ratios'!L$41,NA()) -> 0.6360638802 | Y16: =IFERROR('Summary & Ratios'!M$41,NA()) -> 0.6265552738
O17: Debt Service Coverage Ratio | P17: =IFERROR('Summary & Ratios'!D$40,NA()) -> 1.279647679 | Q17: =IFERROR('Summary & Ratios'!E$40,NA()) -> 1.259792328 | R17: =IFERROR('Summary & Ratios'!F$40,NA()) -> 0.9605446601 | S17: =IFERROR('Summary & Ratios'!G$40,NA()) -> 1.30175539 | T17: =IFERROR('Summary & Ratios'!H$40,NA()) -> 1.099778259 | U17: =IFERROR('Summary & Ratios'!I$40,NA()) -> 1.512833277 | V17: =IFERROR('Summary & Ratios'!J$40,NA()) -> 1.54239559 | W17: =IFERROR('Summary & Ratios'!K$40,NA()) -> 1.370841245 | X17: =IFERROR('Summary & Ratios'!L$40,NA()) -> 1.700648399 | Y17: =IFERROR('Summary & Ratios'!M$40,NA()) -> 1.754914645
O18: LTV | P18: =IFERROR('Summary & Ratios'!D$38,NA()) -> 0.6062197006 | Q18: =IFERROR('Summary & Ratios'!E$38,NA()) -> 0.7495440662 | R18: =IFERROR('Summary & Ratios'!F$38,NA()) -> 0.5471519685 | S18: =IFERROR('Summary & Ratios'!G$38,NA()) -> 0.6130512014 | T18: =IFERROR('Summary & Ratios'!H$38,NA()) -> 0.4368623958 | U18: =IFERROR('Summary & Ratios'!I$38,NA()) -> 0.4085391227 | V18: =IFERROR('Summary & Ratios'!J$38,NA()) -> 0.432006325 | W18: =IFERROR('Summary & Ratios'!K$38,NA()) -> 0.3327661578 | X18: =IFERROR('Summary & Ratios'!L$38,NA()) -> 0.302293615 | Y18: =IFERROR('Summary & Ratios'!M$38,NA()) -> 0.272395549
O19: Debt Yield | P19: =IFERROR('Summary & Ratios'!D$43,NA()) -> 0.1003144877 | Q19: =IFERROR('Summary & Ratios'!E$43,NA()) -> 0.1022434262 | R19: =IFERROR('Summary & Ratios'!F$43,NA()) -> 0.08094480609 | S19: =IFERROR('Summary & Ratios'!G$43,NA()) -> 0.1142799976 | T19: =IFERROR('Summary & Ratios'!H$43,NA()) -> 0.1009587585 | U19: =IFERROR('Summary & Ratios'!I$43,NA()) -> 0.1458448468 | V19: =IFERROR('Summary & Ratios'!J$43,NA()) -> 0.1569303025 | W19: =IFERROR('Summary & Ratios'!K$43,NA()) -> 0.1480521969 | X19: =IFERROR('Summary & Ratios'!L$43,NA()) -> 0.1962968701 | Y19: =IFERROR('Summary & Ratios'!M$43,NA()) -> 0.2182518735
O20: =IF(Disposition="Cap Rate",TEXT((Exit_Rate-0.01),"0.0%")&" Cap Rate",TEXT(Exit_Rate-0.01,"0.0%")&" Growth Rate") -> 5.5% Cap Rate | P20: =IFERROR(MAX(0,IF(Disposition="Cap Rate",'Cash Flows'!G$55/(Exit_Rate-0.01),FV((Exit_Rate-0.01),P$7,0,-Acquisition_Gross))),"-") -> 2303305.455 | Q20: =IFERROR(MAX(0,IF(Disposition="Cap Rate",'Cash Flows'!H$55/(Exit_Rate-0.01),FV((Exit_Rate-0.01),Q$7,0,-Acquisition_Gross))),"-") -> 1799373.096 | R20: =IFERROR(MAX(0,IF(Disposition="Cap Rate",'Cash Flows'!I$55/(Exit_Rate-0.01),FV((Exit_Rate-0.01),R$7,0,-Acquisition_Gross))),"-") -> 2373971.151 | S20: =IFERROR(MAX(0,IF(Disposition="Cap Rate",'Cash Flows'!J$55/(Exit_Rate-0.01),FV((Exit_Rate-0.01),S$7,0,-Acquisition_Gross))),"-") -> 2033842.144 | T20: =IFERROR(MAX(0,IF(Disposition="Cap Rate",'Cash Flows'!K$55/(Exit_Rate-0.01),FV((Exit_Rate-0.01),T$7,0,-Acquisition_Gross))),"-") -> 2729425.808 | U20: =IFERROR(MAX(0,IF(Disposition="Cap Rate",'Cash Flows'!L$55/(Exit_Rate-0.01),FV((Exit_Rate-0.01),U$7,0,-Acquisition_Gross))),"-") -> 2779208.673 | V20: =IFERROR(MAX(0,IF(Disposition="Cap Rate",'Cash Flows'!M$55/(Exit_Rate-0.01),FV((Exit_Rate-0.01),V$7,0,-Acquisition_Gross))),"-") -> 2490311.565 | W20: =IFERROR(MAX(0,IF(Disposition="Cap Rate",'Cash Flows'!N$55/(Exit_Rate-0.01),FV((Exit_Rate-0.01),W$7,0,-Acquisition_Gross))),"-") -> 3045706.025 | X20: =IFERROR(MAX(0,IF(Disposition="Cap Rate",'Cash Flows'!O$55/(Exit_Rate-0.01),FV((Exit_Rate-0.01),X$7,0,-Acquisition_Gross))),"-") -> 3137090.253 | Y20: =IFERROR(MAX(0,IF(Disposition="Cap Rate",'Cash Flows'!P$55/(Exit_Rate-0.01),FV((Exit_Rate-0.01),Y$7,0,-Acquisition_Gross))),"-") -> 3231118.15
O21: =IF(Disposition="Cap Rate",TEXT((Exit_Rate),"0.0%")&" Cap Rate",TEXT(Exit_Rate,"0.0%")&" Growth Rate") -> 6.5% Cap Rate | P21: =IFERROR(MAX(0,IF(Disposition="Cap Rate",'Cash Flows'!G$55/(Exit_Rate),FV((Exit_Rate),P$7,0,-Acquisition_Gross))),"-") -> 1948950.769 | Q21: =IFERROR(MAX(0,IF(Disposition="Cap Rate",'Cash Flows'!H$55/(Exit_Rate),FV((Exit_Rate),Q$7,0,-Acquisition_Gross))),"-") -> 1522546.466 | R21: =IFERROR(MAX(0,IF(Disposition="Cap Rate",'Cash Flows'!I$55/(Exit_Rate),FV((Exit_Rate),R$7,0,-Acquisition_Gross))),"-") -> 2008744.82 | S21: =IFERROR(MAX(0,IF(Disposition="Cap Rate",'Cash Flows'!J$55/(Exit_Rate),FV((Exit_Rate),S$7,0,-Acquisition_Gross))),"-") -> 1720943.352 | T21: =IFERROR(MAX(0,IF(Disposition="Cap Rate",'Cash Flows'!K$55/(Exit_Rate),FV((Exit_Rate),T$7,0,-Acquisition_Gross))),"-") -> 2309514.145 | U21: =IFERROR(MAX(0,IF(Disposition="Cap Rate",'Cash Flows'!L$55/(Exit_Rate),FV((Exit_Rate),U$7,0,-Acquisition_Gross))),"-") -> 2351638.108 | V21: =IFERROR(MAX(0,IF(Disposition="Cap Rate",'Cash Flows'!M$55/(Exit_Rate),FV((Exit_Rate),V$7,0,-Acquisition_Gross))),"-") -> 2107186.709 | W21: =IFERROR(MAX(0,IF(Disposition="Cap Rate",'Cash Flows'!N$55/(Exit_Rate),FV((Exit_Rate),W$7,0,-Acquisition_Gross))),"-") -> 2577135.867 | X21: =IFERROR(MAX(0,IF(Disposition="Cap Rate",'Cash Flows'!O$55/(Exit_Rate),FV((Exit_Rate),X$7,0,-Acquisition_Gross))),"-") -> 2654460.984 | Y21: =IFERROR(MAX(0,IF(Disposition="Cap Rate",'Cash Flows'!P$55/(Exit_Rate),FV((Exit_Rate),Y$7,0,-Acquisition_Gross))),"-") -> 2734023.05
O22: =IF(Disposition="Cap Rate",TEXT((Exit_Rate+0.01),"0.0%")&" Cap Rate",TEXT(Exit_Rate+0.01,"0.0%")&" Growth Rate") -> 7.5% Cap Rate | P22: =IFERROR(MAX(0,IF(Disposition="Cap Rate",'Cash Flows'!G$55/(Exit_Rate+0.01),FV((Exit_Rate+0.01),P$7,0,-Acquisition_Gross))),"-") -> 1689090.667 | Q22: =IFERROR(MAX(0,IF(Disposition="Cap Rate",'Cash Flows'!H$55/(Exit_Rate+0.01),FV((Exit_Rate+0.01),Q$7,0,-Acquisition_Gross))),"-") -> 1319540.27 | R22: =IFERROR(MAX(0,IF(Disposition="Cap Rate",'Cash Flows'!I$55/(Exit_Rate+0.01),FV((Exit_Rate+0.01),R$7,0,-Acquisition_Gross))),"-") -> 1740912.177 | S22: =IFERROR(MAX(0,IF(Disposition="Cap Rate",'Cash Flows'!J$55/(Exit_Rate+0.01),FV((Exit_Rate+0.01),S$7,0,-Acquisition_Gross))),"-") -> 1491484.239 | T22: =IFERROR(MAX(0,IF(Disposition="Cap Rate",'Cash Flows'!K$55/(Exit_Rate+0.01),FV((Exit_Rate+0.01),T$7,0,-Acquisition_Gross))),"-") -> 2001578.926 | U22: =IFERROR(MAX(0,IF(Disposition="Cap Rate",'Cash Flows'!L$55/(Exit_Rate+0.01),FV((Exit_Rate+0.01),U$7,0,-Acquisition_Gross))),"-") -> 2038086.36 | V22: =IFERROR(MAX(0,IF(Disposition="Cap Rate",'Cash Flows'!M$55/(Exit_Rate+0.01),FV((Exit_Rate+0.01),V$7,0,-Acquisition_Gross))),"-") -> 1826228.481 | W22: =IFERROR(MAX(0,IF(Disposition="Cap Rate",'Cash Flows'!N$55/(Exit_Rate+0.01),FV((Exit_Rate+0.01),W$7,0,-Acquisition_Gross))),"-") -> 2233517.751 | X22: =IFERROR(MAX(0,IF(Disposition="Cap Rate",'Cash Flows'!O$55/(Exit_Rate+0.01),FV((Exit_Rate+0.01),X$7,0,-Acquisition_Gross))),"-") -> 2300532.852 | Y22: =IFERROR(MAX(0,IF(Disposition="Cap Rate",'Cash Flows'!P$55/(Exit_Rate+0.01),FV((Exit_Rate+0.01),Y$7,0,-Acquisition_Gross))),"-") -> 2369486.643
O23: Development Cost | P23: =Acquisition_Levered -> 2012200 | Q23: 2012200 | R23: 2012200 | S23: 2012200 | T23: 2012200 | U23: 2012200 | V23: 2012200 | W23: 2012200 | X23: 2012200 | Y23: 2012200
D25: Public Sub FunctionsBoxCall()
D27: FunctionsBox.Show 'Show's the Functions Box
D29: End Sub
B70: www.realpropmetrics.com
B71: ="Version: "&Version -> Version: 9.42 C | © 2022
B72: =TODAY() -> 2022-02-23
B73: This pro forma does not constitute tax advice. Please consult a professional tax advisor.

Sheet Summary & Ratios
B2: Summary & Ratios
D4: 1 | E4: 2 | F4: 3 | G4: 4 | H4: 5 | I4: 6 | J4: 7 | K4: 8 | L4: 9 | M4: 10
D5: =RPMDateSpan(D4,1) -> Jan 22 - Dec 22 | E5: =RPMDateSpan(E4,1) -> Jan 23 - Dec 23 | F5: Jan 24 - Dec 24 | G5: Jan 25 - Dec 25 | H5: Jan 26 - Dec 26 | I5: Jan 27 - Dec 27 | J5: Jan 28 - Dec 28 | K5: Jan 29 - Dec 29 | L5: Jan 30 - Dec 30 | M5: Jan 31 - Dec 31
B6: Operating Summary
B7: Effective Gross Income | D7: ='Cash Flows'!F35 -> 197730 | E7: ='Cash Flows'!G35 -> 197730 | F7: ='Cash Flows'!H35 -> 170831.969 | G7: ='Cash Flows'!I35 -> 205783.9358 | H7: ='Cash Flows'!J35 -> 188390.6333 | I7: ='Cash Flows'!K35 -> 230397.8335 | J7: ='Cash Flows'!L35 -> 235470.7112 | K7: ='Cash Flows'!M35 -> 221206.6709 | L7: ='Cash Flows'!N35 -> 255382.1222 | M7: ='Cash Flows'!O35 -> 263044.3334 | N7: =SUM(D7:M7) -> 2165968.209
B8: Operating Expenses | D8: =-'Cash Flows'!F53 -> -69209.2 | E8: =-'Cash Flows'!G53 -> -71048.2 | F8: =-'Cash Flows'!H53 -> -71866.44876 | G8: =-'Cash Flows'!I53 -> -75215.52253 | H8: =-'Cash Flows'!J53 -> -76529.31538 | I8: =-'Cash Flows'!K53 -> -80279.4141 | J8: =-'Cash Flows'!L53 -> -82614.23423 | K8: =-'Cash Flows'!M53 -> -84239.53479 | L8: =-'Cash Flows'!N53 -> -87868.29088 | M8: =-'Cash Flows'!O53 -> -90504.36951 | N8: =SUM(D8:M8) -> -789374.5302
B9: Operating Reserves | D9: =-'Cash Flows'!F61 -> -10000 | E9: =-'Cash Flows'!G61 -> -10000 | F9: =-'Cash Flows'!H61 -> -10000 | G9: =-'Cash Flows'!I61 -> -10000 | H9: =-'Cash Flows'!J61 -> -10000 | I9: =-'Cash Flows'!K61 -> -10000 | J9: =-'Cash Flows'!L61 -> -10000 | K9: =-'Cash Flows'!M61 -> -10000 | L9: =-'Cash Flows'!N61 -> -10000 | M9: =-'Cash Flows'!O61 -> -10000 | N9: -100000
B10: Net Operating Income | D10: ='Cash Flows'!F63 -> 118520.8 | E10: ='Cash Flows'!G63 -> 116681.8 | F10: ='Cash Flows'!H63 -> 88965.52028 | G10: ='Cash Flows'!I63 -> 120568.4133 | H10: ='Cash Flows'!J63 -> 101861.3179 | I10: ='Cash Flows'!K63 -> 140118.4194 | J10: ='Cash Flows'!L63 -> 142856.477 | K10: ='Cash Flows'!M63 -> 126967.1361 | L10: ='Cash Flows'!N63 -> 157513.8314 | M10: ='Cash Flows'!O63 -> 162539.9639 | N10: 1276593.679
B11: Less: Debt Service | D11: =-'Cash Flows'!F82 -> -92619.86868 | E11: =-'Cash Flows'!G82 -> -92619.86868 | F11: =-'Cash Flows'!H82 -> -92619.86868 | G11: =-'Cash Flows'!I82 -> -92619.86868 | H11: =-'Cash Flows'!J82 -> -92619.86868 | I11: =-'Cash Flows'!K82 -> -92619.86868 | J11: =-'Cash Flows'!L82 -> -92619.86868 | K11: =-'Cash Flows'!M82 -> -92619.86868 | L11: =-'Cash Flows'!N82 -> -92619.86868 | M11: =-'Cash Flows'!O82 -> -92619.86868 | N11: -926198.6868
B12: Less: Fees | D12: ='Cash Flows'!F91 -> 0 | E12: ='Cash Flows'!G91 -> 0 | F12: ='Cash Flows'!H91 -> 0 | G12: ='Cash Flows'!I91 -> 0 | H12: ='Cash Flows'!J91 -> 0 | I12: ='Cash Flows'!K91 -> 0 | J12: ='Cash Flows'!L91 -> 0 | K12: ='Cash Flows'!M91 -> 0 | L12: ='Cash Flows'!N91 -> 0 | M12: ='Cash Flows'!O91 -> 0 | N12: 0
B13: Refinance Proceeds | D13: ='Cash Flows'!F90 -> 0 | E13: ='Cash Flows'!G90 -> 0 | F13: ='Cash Flows'!H90 -> 0 | G13: ='Cash Flows'!I90 -> 0 | H13: ='Cash Flows'!J90 -> 0 | I13: ='Cash Flows'!K90 -> 0 | J13: ='Cash Flows'!L90 -> 0 | K13: ='Cash Flows'!M90 -> 0 | L13: ='Cash Flows'!N90 -> 0 | M13: ='Cash Flows'!O90 -> 0 | N13: 0
B14: Less: Capital Expenses | D14: =-'Cash Flows'!F$105 -> 0 | E14: =-'Cash Flows'!G$105 -> 0 | F14: =-'Cash Flows'!H$105 -> -48956.66667 | G14: =-'Cash Flows'!I$105 -> 0 | H14: =-'Cash Flows'!J$105 -> -55398.33333 | I14: =-'Cash Flows'!K$105 -> 0 | J14: =-'Cash Flows'!L$105 -> -48956.66667 | K14: =-'Cash Flows'!M$105 -> -39938.33333 | L14: =-'Cash Flows'!N$105 -> -55398.33333 | M14: =-'Cash Flows'!O$105 -> 0 | N14: =SUMIF(D4:M4,"<="&Hold,D14:M14) -> -248648.3333
B15: Non-Regular Income | D15: ='Cash Flows'!F$112 -> 0 | E15: ='Cash Flows'!G$112 -> 0 | F15: ='Cash Flows'!H$112 -> 3654.3484 | G15: ='Cash Flows'!I$112 -> 0 | H15: ='Cash Flows'!J$112 -> 0 | I15: ='Cash Flows'!K$112 -> 0 | J15: ='Cash Flows'!L$112 -> 0 | K15: ='Cash Flows'!M$112 -> 0 | L15: ='Cash Flows'!N$112 -> 0 | M15: ='Cash Flows'!O$112 -> 10000 | N15: 13654.3484
B16: Cash Flow After Debt Service | D16: ='Cash Flows'!F114 -> 25900.93132 | E16: ='Cash Flows'!G114 -> 24061.93132 | F16: ='Cash Flows'!H114 -> -48956.66667 | G16: ='Cash Flows'!I114 -> 27948.54463 | H16: ='Cash Flows'!J114 -> -46156.88412 | I16: ='Cash Flows'!K114 -> 47498.55075 | J16: ='Cash Flows'!L114 -> 1279.941668 | K16: ='Cash Flows'!M114 -> -5591.065918 | L16: ='Cash Flows'!N114 -> 9495.629349 | M16: ='Cash Flows'!O114 -> 79920.09526 | N16: 115401.0076
B17: =IF(Disposition="Cap Rate","Sale Price Based on "&ROUND(Exit_Rate*100,2)&"% Exit Cap Rate","Sale Price Based on "&ROUND(Exit_Rate*100,2)&"% Annual Growth Rate") -> Sale Price Based on 6.5% Exit Cap Rate | D17: ='Return Detail'!F33 -> 0 | E17: ='Return Detail'!G33 -> 0 | F17: ='Return Detail'!H33 -> 0 | G17: ='Return Detail'!I33 -> 0 | H17: ='Return Detail'!J33 -> 0 | I17: ='Return Detail'!K33 -> 0 | J17: ='Return Detail'!L33 -> 0 | K17: ='Return Detail'!M33 -> 0 | L17: ='Return Detail'!N33 -> 0 | M17: ='Return Detail'!O33 -> 2734023.05 | N17: 2734023.05
B18: Less: Mortgage Balance | D18: ='Return Detail'!F35 -> 0 | E18: ='Return Detail'!G35 -> 0 | F18: ='Return Detail'!H35 -> 0 | G18: ='Return Detail'!I35 -> 0 | H18: ='Return Detail'!J35 -> 0 | I18: ='Return Detail'!K35 -> 0 | J18: ='Return Detail'!L35 -> 0 | K18: ='Return Detail'!M35 -> 0 | L18: ='Return Detail'!N35 -> 0 | M18: ='Return Detail'!O35 -> -744735.7097 | N18: -744735.7097
B19: Less: Cost of Sale | D19: =SUM('Return Detail'!F34,'Return Detail'!F36) -> 0 | E19: =SUM('Return Detail'!G34,'Return Detail'!G36) -> 0 | F19: =SUM('Return Detail'!H34,'Return Detail'!H36) -> 0 | G19: =SUM('Return Detail'!I34,'Return Detail'!I36) -> 0 | H19: =SUM('Return Detail'!J34,'Return Detail'!J36) -> 0 | I19: =SUM('Return Detail'!K34,'Return Detail'!K36) -> 0 | J19: =SUM('Return Detail'!L34,'Return Detail'!L36) -> 0 | K19: =SUM('Return Detail'!M34,'Return Detail'!M36) -> 0 | L19: =SUM('Return Detail'!N34,'Return Detail'!N36) -> 0 | M19: =SUM('Return Detail'!O34,'Return Detail'!O36) -> -27340.2305 | N19: -27340.2305
B20: Cash Flow Before Taxes | D20: =SUM(D16:D19) -> 25900.93132 | E20: =SUM(E16:E19) -> 24061.93132 | F20: -48956.66667 | G20: 27948.54463 | H20: -46156.88412 | I20: 47498.55075 | J20: 1279.941668 | K20: -5591.065918 | L20: 9495.629349 | M20: 2041867.205 | N20: 2077348.117
B21: Less: Taxes | D21: =SUM('Return Detail'!F74:F76,'Return Detail'!F81:F82) -> -25137.7923 | E21: =SUM('Return Detail'!G74:G76,'Return Detail'!G81:G82) -> -24061.93132 | F21: =SUM('Return Detail'!H74:H76,'Return Detail'!H81:H82) -> 48956.66667 | G21: =SUM('Return Detail'!I74:I76,'Return Detail'!I81:I82) -> -27332.16157 | H21: =SUM('Return Detail'!J74:J76,'Return Detail'!J81:J82) -> 46156.88412 | I21: =SUM('Return Detail'!K74:K76,'Return Detail'!K81:K82) -> -35624.16075 | J21: =SUM('Return Detail'!L74:L76,'Return Detail'!L81:L82) -> -3797.341533 | K21: =SUM('Return Detail'!M74:M76,'Return Detail'!M81:M82) -> -22606.94701 | L21: =SUM('Return Detail'!N74:N76,'Return Detail'!N81:N82) -> -34146.20331 | M21: =SUM('Return Detail'!O74:O76,'Return Detail'!O81:O82) -> -194859.2532 | N21: -272452.2402
B22: Cash Flow After Taxes | D22: =SUM(D20:D21) -> 763.1390257 | E22: =SUM(E20:E21) -> 0 | F22: 0 | G22: 616.3830574 | H22: 0 | I22: 11874.39 | J22: -2517.399865 | K22: -28198.01293 | L22: -24650.57396 | M22: 1847007.952 | N22: 1804895.877
B24: Value Summary
B25: =IF(Project_Type="Acquisition","Cap Rate based on Acquisition Cost","Cap Rate based on Development Cost") -> Cap Rate based on Acquisition Cost | D25: =IFERROR(SUM(D7:D8)/Acquisition_Levered,"-") -> 0.06387078819 | E25: 0.06295686313 | F25: 0.04918274539 | G25: 0.06488838749 | H25: 0.05559155049 | I25: 0.07460412455 | J25: 0.0759648529 | K25: 0.06806835111 | L25: 0.08324909619 | M25: 0.08574692572
B26: =IF(Disposition="Cap Rate","Value based on "&ROUND(Exit_Rate*100,2)&"% Exit Cap Rate","Value based on "&ROUND(Exit_Rate*100,2)&"% Annual Growth Rate") -> Value based on 6.5% Exit Cap Rate | D26: =IFERROR(IF(Disposition="Cap Rate",'Cash Flows'!G$55/Exit_Rate,FV(Exit_Rate,D$4,0,-Acquisition_Gross)),"-") -> 1948950.769 | E26: =IFERROR(IF(Disposition="Cap Rate",'Cash Flows'!H$55/Exit_Rate,FV(Exit_Rate,E$4,0,-Acquisition_Gross)),"-") -> 1522546.466 | F26: =IFERROR(IF(Disposition="Cap Rate",'Cash Flows'!I$55/Exit_Rate,FV(Exit_Rate,F$4,0,-Acquisition_Gross)),"-") -> 2008744.82 | G26: =IFERROR(IF(Disposition="Cap Rate",'Cash Flows'!J$55/Exit_Rate,FV(Exit_Rate,G$4,0,-Acquisition_Gross)),"-") -> 1720943.352 | H26: =IFERROR(IF(Disposition="Cap Rate",'Cash Flows'!K$55/Exit_Rate,FV(Exit_Rate,H$4,0,-Acquisition_Gross)),"-") -> 2309514.145 | I26: =IFERROR(IF(Disposition="Cap Rate",'Cash Flows'!L$55/Exit_Rate,FV(Exit_Rate,I$4,0,-Acquisition_Gross)),"-") -> 2351638.108 | J26: =IFERROR(IF(Disposition="Cap Rate",'Cash Flows'!M$55/Exit_Rate,FV(Exit_Rate,J$4,0,-Acquisition_Gross)),"-") -> 2107186.709 | K26: =IFERROR(IF(Disposition="Cap Rate",'Cash Flows'!N$55/Exit_Rate,FV(Exit_Rate,K$4,0,-Acquisition_Gross)),"-") -> 2577135.867 | L26: =IFERROR(IF(Disposition="Cap Rate",'Cash Flows'!O$55/Exit_Rate,FV(Exit_Rate,L$4,0,-Acquisition_Gross)),"-") -> 2654460.984 | M26: =IFERROR(IF(Disposition="Cap Rate",'Cash Flows'!P$55/Exit_Rate,FV(Exit_Rate,M$4,0,-Acquisition_Gross)),"-") -> 2734023.05
B27: Mortgage Balance (EOY) | D27: =IFERROR(VLOOKUP(D$4,Amortization_Schedule_Annual,9,FALSE),"-") -> 1181492.352 | E27: 1141215.669 | F27: 1099088.682 | G27: 1055026.39 | H27: 1008939.883 | I27: 960736.1695 | J27: 910317.9864 | K27: 857583.6007 | L27: 802426.6065 | M27: 744735.7097
B28: Equity (EOY) | D28: =D26-D27 -> 767458.4174 | E28: =E26-E27 -> 381330.7968 | F28: 909656.1376 | G28: 665916.9627 | H28: 1300574.262 | I28: 1390901.938 | J28: 1196868.723 | K28: 1719552.266 | L28: 1852034.377 | M28: 1989287.34
B30: Operating Ratios
B31: Net Income Multiplier* | D31: =IFERROR(Acquisition_Levered/D10,"-") -> 16.97761068 | E31: 17.24519162 | F31: 22.61775117 | G31: 16.68927993 | H31: 19.7543095 | I31: 14.36071009 | J31: 14.08546565 | K31: 15.84819554 | L31: 12.77475116 | M31: 12.37972466
B32: Operating Expense Ratio | D32: =IFERROR(-D8/D7,"-") -> 0.3500187124 | E32: =IFERROR(-E8/E7,"-") -> 0.3593192738 | F32: 0.4206850109 | G32: 0.36550726 | H32: 0.4062267537 | I32: 0.3484382334 | J32: 0.3508471767 | K32: 0.3808182387 | L32: 0.3440659436 | M32: 0.3440650795
B33: Cash on Cash Return (Pre Tax) | D33: =IFERROR('Return Detail'!F32/Equity_Amount,"-") -> 0.03269493981 | E33: =IFERROR('Return Detail'!G32/Equity_Amount,"-") -> 0.03037355633 | F33: =IFERROR('Return Detail'!H32/Equity_Amount,"-") -> -0.06179836742 | G33: =IFERROR('Return Detail'!I32/Equity_Amount,"-") -> 0.03527965744 | H33: =IFERROR('Return Detail'!J32/Equity_Amount,"-") -> -0.05826418091 | I33: =IFERROR('Return Detail'!K32/Equity_Amount,"-") -> 0.05995777676 | J33: =IFERROR('Return Detail'!L32/Equity_Amount,"-") -> 0.001615679965 | K33: =IFERROR('Return Detail'!M32/Equity_Amount,"-") -> -0.00705764443 | L33: =IFERROR('Return Detail'!N32/Equity_Amount,"-") -> 0.01198640413 | M33: =IFERROR('Return Detail'!O32/Equity_Amount,"-") -> 0.1008837355
B34: Cash on Cash Return (Post Tax) | D34: =IFERROR('Return Detail'!F$83/Equity_Amount,"-") -> 0.0009633161143 | E34: =IFERROR('Return Detail'!G$83/Equity_Amount,"-") -> 0 | F34: =IFERROR('Return Detail'!H$83/Equity_Amount,"-") -> 0 | G34: =IFERROR('Return Detail'!I$83/Equity_Amount,"-") -> 0.000778064955 | H34: =IFERROR('Return Detail'!J$83/Equity_Amount,"-") -> 0 | I34: =IFERROR('Return Detail'!K$83/Equity_Amount,"-") -> 0.01498913153 | J34: =IFERROR('Return Detail'!L$83/Equity_Amount,"-") -> -0.003177732726 | K34: =IFERROR('Return Detail'!M$83/Equity_Amount,"-") -> -0.03559456315 | L34: =IFERROR('Return Detail'!N$83/Equity_Amount,"-") -> -0.03111660435 | M34: =IFERROR('Return Detail'!O$83/Equity_Amount,"-") -> 0.04176780934
B35: =IF(Project_Type="Acquisition","*Based on Acquisition Cost","*Based on Development Cost") -> *Based on Acquisition Cost
B37: Lender Ratios
B38: Loan to Value Ratio (EOY) | D38: =IFERROR(D27/D26,"-") -> 0.6062197006 | E38: =IFERROR(E27/E26,"-") -> 0.7495440662 | F38: 0.5471519685 | G38: 0.6130512014 | H38: 0.4368623958 | I38: 0.4085391227 | J38: 0.432006325 | K38: 0.3327661578 | L38: 0.302293615 | M38: 0.272395549
B39: Debt to Equity Ratio (EOY) | D39: =IFERROR(D27/D28,"-") -> 1.539487124 | E39: =IFERROR(E27/E28,"-") -> 2.99271834 | F39: 1.208246322 | G39: 1.584321242 | H39: 0.7757649153 | I39: 0.6907289026 | J39: 0.7605829854 | K39: 0.4987249399 | L39: 0.4332676631 | M39: 0.3743731208
B40: Debt Service Coverage Ratio | D40: =IFERROR(D$10/-D$11,"-") -> 1.279647679 | E40: =IFERROR(E$10/-E$11,"-") -> 1.259792328 | F40: 0.9605446601 | G40: 1.30175539 | H40: 1.099778259 | I40: 1.512833277 | J40: 1.54239559 | K40: 1.370841245 | L40: 1.700648399 | M40: 1.754914645
B41: Break Even Occupancy (Pre Tax) | D41: =IFERROR(SUM('Cash Flows'!F$53,'Cash Flows'!F$82,-'Cash Flows'!F$91)/SUM('Cash Flows'!F$33,'Cash Flows'!F$23),"-") -> 0.7365911182 | E41: =IFERROR(SUM('Cash Flows'!G$53,'Cash Flows'!G$82,-'Cash Flows'!G$91)/SUM('Cash Flows'!G$33,'Cash Flows'!G$23),"-") -> 0.7449616235 | F41: =IFERROR(SUM('Cash Flows'!H$53,'Cash Flows'!H$82,-'Cash Flows'!H$91)/SUM('Cash Flows'!H$33,'Cash Flows'!H$23),"-") -> 0.8665689831 | G41: =IFERROR(SUM('Cash Flows'!I$53,'Cash Flows'!I$82,-'Cash Flows'!I$91)/SUM('Cash Flows'!I$33,'Cash Flows'!I$23),"-") -> 0.7340313104 | H41: =IFERROR(SUM('Cash Flows'!J$53,'Cash Flows'!J$82,-'Cash Flows'!J$91)/SUM('Cash Flows'!J$33,'Cash Flows'!J$23),"-") -> 0.8080776788 | I41: =IFERROR(SUM('Cash Flows'!K$53,'Cash Flows'!K$82,-'Cash Flows'!K$91)/SUM('Cash Flows'!K$33,'Cash Flows'!K$23),"-") -> 0.6753941742 | J41: =IFERROR(SUM('Cash Flows'!L$53,'Cash Flows'!L$82,-'Cash Flows'!L$91)/SUM('Cash Flows'!L$33,'Cash Flows'!L$23),"-") -> 0.6697677677 | K41: =IFERROR(SUM('Cash Flows'!M$53,'Cash Flows'!M$82,-'Cash Flows'!M$91)/SUM('Cash Flows'!M$33,'Cash Flows'!M$23),"-") -> 0.7195690007 | L41: =IFERROR(SUM('Cash Flows'!N$53,'Cash Flows'!N$82,-'Cash Flows'!N$91)/SUM('Cash Flows'!N$33,'Cash Flows'!N$23),"-") -> 0.6360638802 | M41: =IFERROR(SUM('Cash Flows'!O$53,'Cash Flows'!O$82,-'Cash Flows'!O$91)/SUM('Cash Flows'!O$33,'Cash Flows'!O$23),"-") -> 0.6265552738
B42: Break Even Occupancy (Post Tax) | D42: =IFERROR(SUM('Cash Flows'!F$53,'Cash Flows'!F$82,-'Cash Flows'!F$91,'Cash Flows'!F$122)/SUM('Cash Flows'!F$33,'Cash Flows'!F$23),"-") -> 0.6221724005 | E42: =IFERROR(SUM('Cash Flows'!G$53,'Cash Flows'!G$82,-'Cash Flows'!G$91,'Cash Flows'!G$122)/SUM('Cash Flows'!G$33,'Cash Flows'!G$23),"-") -> 0.6327773569 | F42: =IFERROR(SUM('Cash Flows'!H$53,'Cash Flows'!H$82,-'Cash Flows'!H$91,'Cash Flows'!H$122)/SUM('Cash Flows'!H$33,'Cash Flows'!H$23),"-") -> 0.7844156679 | G42: =IFERROR(SUM('Cash Flows'!I$53,'Cash Flows'!I$82,-'Cash Flows'!I$91,'Cash Flows'!I$122)/SUM('Cash Flows'!I$33,'Cash Flows'!I$23),"-") -> 0.6144935763 | H42: =IFERROR(SUM('Cash Flows'!J$53,'Cash Flows'!J$82,-'Cash Flows'!J$91,'Cash Flows'!J$122)/SUM('Cash Flows'!J$33,'Cash Flows'!J$23),"-") -> 0.7053982757 | I42: =IFERROR(SUM('Cash Flows'!K$53,'Cash Flows'!K$82,-'Cash Flows'!K$91,'Cash Flows'!K$122)/SUM('Cash Flows'!K$33,'Cash Flows'!K$23),"-") -> 0.5362359877 | J42: =IFERROR(SUM('Cash Flows'!L$53,'Cash Flows'!L$82,-'Cash Flows'!L$91,'Cash Flows'!L$122)/SUM('Cash Flows'!L$33,'Cash Flows'!L$23),"-") -> 0.52698232 | K42: =IFERROR(SUM('Cash Flows'!M$53,'Cash Flows'!M$82,-'Cash Flows'!M$91,'Cash Flows'!M$122)/SUM('Cash Flows'!M$33,'Cash Flows'!M$23),"-") -> 0.5869045915 | L42: =IFERROR(SUM('Cash Flows'!N$53,'Cash Flows'!N$82,-'Cash Flows'!N$91,'Cash Flows'!N$122)/SUM('Cash Flows'!N$33,'Cash Flows'!N$23),"-") -> 0.4804868859 | M42: =IFERROR(SUM('Cash Flows'!O$53,'Cash Flows'!O$82,-'Cash Flows'!O$91,'Cash Flows'!O$122)/SUM('Cash Flows'!O$33,'Cash Flows'!O$23),"-") -> 0.4663219304
B43: Debt Yield | D43: =IFERROR(D10/D27,"-") -> 0.1003144877 | E43: 0.1022434262 | F43: 0.08094480609 | G43: 0.1142799976 | H43: 0.1009587585 | I43: 0.1458448468 | J43: 0.1569303025 | K43: 0.1480521969 | L43: 0.1962968701 | M43: 0.2182518735
B45: ="Performance Summary over " & Hold & " Years" -> Performance Summary over 10 Years | D45: Pre Tax | E45: Post Tax
B46: Initial Equity | D46: =-Equity_Amount -> -792200 | E46: =-Equity_Amount -> -792200
B47: Operating Cash Flows | D47: =SUM('Return Detail'!F32:O32) -> 115401.0076 | E47: =SUM('Return Detail'!$F$83:$O$83) -> -9023.616112
B48: Net Reversion Proceeds | D48: =SUM('Return Detail'!$F$33:$O$36) -> 1961947.11 | E48: =SUM('Return Detail'!$F$84:$O$84) -> 1813919.493
B49: Net Cash Flow | D49: =SUM(D46:D48) -> 1285148.117 | E49: =SUM(E46:E48) -> 1012695.877
B50: ="Net Present Value at "&ROUND(Equity_Rate*100,2)&"%" -> Net Present Value at 10% | D50: ='Return Detail'!C41 -> 20995.27021 | E50: ='Return Detail'!C89 -> -97181.58943
B51: Leveraged IRR | D51: ='Return Detail'!C42 -> 0.1029520071 | E51: ='Return Detail'!C91 -> 0.08570915549
B55: www.realpropmetrics.com
B56: ="Version: "&Version -> Version: 9.42 C | © 2022
B57: =TODAY() -> 2022-02-23
B58: This pro forma does not constitute tax advice. Please consult a professional tax advisor.

Sheet Return Detail
B2: Project Return Details
B4: Unlevered Returns
F5: 1 | G5: 2 | H5: 3 | I5: 4 | J5: 5 | K5: 6 | L5: 7 | M5: 8 | N5: 9 | O5: 10
B6: Net Operating Income | F6: =IF($F$5<=Hold,'Cash Flows'!F$63,0) -> 118520.8 | G6: =IF(G5<=Hold,'Cash Flows'!G$63,0) -> 116681.8 | H6: =IF(H5<=Hold,'Cash Flows'!H$63,0) -> 88965.52028 | I6: =IF(I5<=Hold,'Cash Flows'!I$63,0) -> 120568.4133 | J6: =IF(J5<=Hold,'Cash Flows'!J$63,0) -> 101861.3179 | K6: =IF(K5<=Hold,'Cash Flows'!K$63,0) -> 140118.4194 | L6: =IF(L5<=Hold,'Cash Flows'!L$63,0) -> 142856.477 | M6: =IF(M5<=Hold,'Cash Flows'!M$63,0) -> 126967.1361 | N6: =IF(N5<=Hold,'Cash Flows'!N$63,0) -> 157513.8314 | O6: =IF(O5<=Hold,'Cash Flows'!O$63,0) -> 162539.9639
B7: Less: Net Capital Expenses | F7: =IF(F$5<=Hold,'Cash Flows'!F105*-1,0) -> 0 | G7: =IF(G$5<=Hold,'Cash Flows'!G105*-1,0) -> 0 | H7: =IF(H$5<=Hold,'Cash Flows'!H105*-1,0) -> -48956.66667 | I7: =IF(I$5<=Hold,'Cash Flows'!I105*-1,0) -> 0 | J7: =IF(J$5<=Hold,'Cash Flows'!J105*-1,0) -> -55398.33333 | K7: =IF(K$5<=Hold,'Cash Flows'!K105*-1,0) -> 0 | L7: =IF(L$5<=Hold,'Cash Flows'!L105*-1,0) -> -48956.66667 | M7: =IF(M$5<=Hold,'Cash Flows'!M105*-1,0) -> -39938.33333 | N7: =IF(N$5<=Hold,'Cash Flows'!N105*-1,0) -> -55398.33333 | O7: =IF(O$5<=Hold,'Cash Flows'!O105*-1,0) -> 0
B8: Non-Regular Income | F8: =IF(F$5>Hold,0,'Cash Flows'!F$112) -> 0 | G8: =IF(G$5>Hold,0,'Cash Flows'!G$112) -> 0 | H8: =IF(H$5>Hold,0,'Cash Flows'!H$112) -> 3654.3484 | I8: =IF(I$5>Hold,0,'Cash Flows'!I$112) -> 0 | J8: =IF(J$5>Hold,0,'Cash Flows'!J$112) -> 0 | K8: =IF(K$5>Hold,0,'Cash Flows'!K$112) -> 0 | L8: =IF(L$5>Hold,0,'Cash Flows'!L$112) -> 0 | M8: =IF(M$5>Hold,0,'Cash Flows'!M$112) -> 0 | N8: =IF(N$5>Hold,0,'Cash Flows'!N$112) -> 0 | O8: =IF(O$5>Hold,0,'Cash Flows'!O$112) -> 10000
B9: Operating Cash Flow | F9: =SUM(F6:F8) -> 118520.8 | G9: =SUM(G6:G8) -> 116681.8 | H9: 43663.20201 | I9: 120568.4133 | J9: 46462.98456 | K9: 140118.4194 | L9: 93899.81035 | M9: 87028.80276 | N9: 102115.498 | O9: 172539.9639
B10: Reversion Cash Flow | F10: =IFERROR(IF(F$5=Hold,IF(Disposition="Cap Rate",'Cash Flows'!G$55/Exit_Rate,FV(Exit_Rate,Hold,0,-Acquisition_Gross)),0),0) -> 0 | G10: =IFERROR(IF(G$5=Hold,IF(Disposition="Cap Rate",'Cash Flows'!H$55/Exit_Rate,FV(Exit_Rate,Hold,0,-Acquisition_Gross)),0),0) -> 0 | H10: =IFERROR(IF(H$5=Hold,IF(Disposition="Cap Rate",'Cash Flows'!I$55/Exit_Rate,FV(Exit_Rate,Hold,0,-Acquisition_Gross)),0),0) -> 0 | I10: =IFERROR(IF(I$5=Hold,IF(Disposition="Cap Rate",'Cash Flows'!J$55/Exit_Rate,FV(Exit_Rate,Hold,0,-Acquisition_Gross)),0),0) -> 0 | J10: =IFERROR(IF(J$5=Hold,IF(Disposition="Cap Rate",'Cash Flows'!K$55/Exit_Rate,FV(Exit_Rate,Hold,0,-Acquisition_Gross)),0),0) -> 0 | K10: =IFERROR(IF(K$5=Hold,IF(Disposition="Cap Rate",'Cash Flows'!L$55/Exit_Rate,FV(Exit_Rate,Hold,0,-Acquisition_Gross)),0),0) -> 0 | L10: =IFERROR(IF(L$5=Hold,IF(Disposition="Cap Rate",'Cash Flows'!M$55/Exit_Rate,FV(Exit_Rate,Hold,0,-Acquisition_Gross)),0),0) -> 0 | M10: =IFERROR(IF(M$5=Hold,IF(Disposition="Cap Rate",'Cash Flows'!N$55/Exit_Rate,FV(Exit_Rate,Hold,0,-Acquisition_Gross)),0),0) -> 0 | N10: =IFERROR(IF(N$5=Hold,IF(Disposition="Cap Rate",'Cash Flows'!O$55/Exit_Rate,FV(Exit_Rate,Hold,0,-Acquisition_Gross)),0),0) -> 0 | O10: =IFERROR(IF(O$5=Hold,IF(Disposition="Cap Rate",'Cash Flows'!P$55/Exit_Rate,FV(Exit_Rate,Hold,0,-Acquisition_Gross)),0),0) -> 2734023.05
B11: Less: Cost of Sale | F11: =F10*-Sale_Cost -> 0 | G11: 0 | H11: 0 | I11: 0 | J11: 0 | K11: 0 | L11: 0 | M11: 0 | N11: 0 | O11: -27340.2305
B12: Net Cash Flow | E12: =-Acquisition_Unlevered -> -2000000 | F12: =SUM(F9:F11) -> 118520.8 | G12: 116681.8 | H12: 43663.20201 | I12: 120568.4133 | J12: 46462.98456 | K12: 140118.4194 | L12: 93899.81035 | M12: 87028.80276 | N12: 102115.498 | O12: 2879222.783
B13: Cash on Cash Return | F13: =IFERROR(F9/Acquisition_Unlevered,"-") -> 0.0592604 | G13: 0.0583409 | H13: 0.02183160101 | I13: 0.06028420665 | J13: 0.02323149228 | K13: 0.07005920971 | L13: 0.04694990517 | M13: 0.04351440138 | N13: 0.05105774901 | O13: 0.08626998197
B15: Net Cash Flows | C15: =SUM(E12:O12) -> 1748282.514
B16: ="Net Present Value at "&ROUND(Equity_Rate*100,2)&"%" -> Net Present Value at 10% | C16: =SUM(E12,NPV(Equity_Rate,F12:O12)) -> -330567.8761
B17: Unleveraged IRR | C17: =IFERROR(IRR(E12:O12),"-") -> 0.07599765919
B18: Avg. Operating Cash on Cash | C18: =IFERROR(((SUM($F$9:$O$9)/Hold)/Acquisition_Unlevered),"-") -> 0.05207998472
B19: Avg. Cash on Cash | C19: =IFERROR(((SUM($F$12:$O$12)/Hold)/Acquisition_Unlevered),"-") -> 0.1874141257
B20: ="Unleveraged PV at " & TEXT(Equity_Rate,"#%") & IF(LEN(C20)>=7," Rounded ($10,000's)"," Rounded ($1,000's)") -> Unleveraged PV at 10% Rounded ($10,000's) | C20: =IF(LEN(INT(NPV(Equity_Rate,F12:O12)))>=7,ROUND(NPV(Equity_Rate,F12:O12),-4),ROUND(NPV(Equity_Rate,F12:O12),-3)) -> 1670000
B21: Per Square Feet | C21: =IFERROR(C20/Size_Total,"-") -> 149.1071429
B23: Levered Cash Flow
F24: 1 | G24: 2 | H24: 3 | I24: 4 | J24: 5 | K24: 6 | L24: 7 | M24: 8 | N24: 9 | O24: 10
B25: Net Operating Income | F25: =F6 -> 118520.8 | G25: =G6 -> 116681.8 | H25: 88965.52028 | I25: 120568.4133 | J25: 101861.3179 | K25: 140118.4194 | L25: 142856.477 | M25: 126967.1361 | N25: 157513.8314 | O25: 162539.9639
B26: Refinance Proceeds | F26: =IF(Hold<F24,0,IF(ROUNDUP((Loan_IO_Term+1)/12,0)=F24,Loan_Amount_Amortizing-Loan_Amount,0)) -> 0 | G26: 0 | H26: 0 | I26: 0 | J26: 0 | K26: 0 | L26: 0 | M26: 0 | N26: 0 | O26: 0
B27: Less: Debt Service | F27: =IF(F24<=Hold,-'Cash Flows'!F$82,0) -> -92619.86868 | G27: =IF(G24<=Hold,-'Cash Flows'!G$82,0) -> -92619.86868 | H27: =IF(H24<=Hold,-'Cash Flows'!H$82,0) -> -92619.86868 | I27: =IF(I24<=Hold,-'Cash Flows'!I$82,0) -> -92619.86868 | J27: =IF(J24<=Hold,-'Cash Flows'!J$82,0) -> -92619.86868 | K27: =IF(K24<=Hold,-'Cash Flows'!K$82,0) -> -92619.86868 | L27: =IF(L24<=Hold,-'Cash Flows'!L$82,0) -> -92619.86868 | M27: =IF(M24<=Hold,-'Cash Flows'!M$82,0) -> -92619.86868 | N27: =IF(N24<=Hold,-'Cash Flows'!N$82,0) -> -92619.86868 | O27: =IF(O24<=Hold,-'Cash Flows'!O$82,0) -> -92619.86868
B28: Less: Mortgage Origination Fee | F28: =IF(OR(F24>Hold,Loan_IO_Approval="No"),0,IF(AND(Loan_IO_Term<>0,(Loan_IO_Term+1)/12<=F24,(Loan_IO_Term+1)/12>F24-1),Loan_Amor_Fee*-Loan_Amount_Amortizing,0)) -> 0 | G28: 0 | H28: 0 | I28: 0 | J28: 0 | K28: 0 | L28: 0 | M28: 0 | N28: 0 | O28: 0
B29: Cash Flow After Debt Service | F29: =SUM(F25:F28) -> 25900.93132 | G29: =SUM(G25:G28) -> 24061.93132 | H29: -3654.3484 | I29: 27948.54463 | J29: 9241.449217 | K29: 47498.55075 | L29: 50236.60833 | M29: 34347.26742 | N29: 64893.96268 | O29: 69920.09526
B30: Less: Net Capital Expenses | F30: =F$7 -> 0 | G30: =G$7 -> 0 | H30: -48956.66667 | I30: 0 | J30: -55398.33333 | K30: 0 | L30: -48956.66667 | M30: -39938.33333 | N30: -55398.33333 | O30: 0
B31: Non-Regular Income | F31: =F8 -> 0 | G31: =G8 -> 0 | H31: 3654.3484 | I31: 0 | J31: 0 | K31: 0 | L31: 0 | M31: 0 | N31: 0 | O31: 10000
B32: Distributable Cash Flow | F32: =SUM(F29:F31) -> 25900.93132 | G32: =SUM(G29:G31) -> 24061.93132 | H32: -48956.66667 | I32: 27948.54463 | J32: -46156.88412 | K32: 47498.55075 | L32: 1279.941668 | M32: -5591.065918 | N32: 9495.629349 | O32: 79920.09526
B33: Reversion Cash Flow | F33: =F10 -> 0 | G33: =G10 -> 0 | H33: 0 | I33: 0 | J33: 0 | K33: 0 | L33: 0 | M33: 0 | N33: 0 | O33: 2734023.05
B34: Less: Cost of Sale | F34: =F33*-Sale_Cost -> 0 | G34: 0 | H34: 0 | I34: 0 | J34: 0 | K34: 0 | L34: 0 | M34: 0 | N34: 0 | O34: -27340.2305
B35: Less: Mortgage Balance | F35: =IF(F$24=Hold,-VLOOKUP(F$24,Amortization_Schedule_Annual,9,FALSE),0) -> 0 | G35: 0 | H35: 0 | I35: 0 | J35: 0 | K35: 0 | L35: 0 | M35: 0 | N35: 0 | O35: -744735.7097
B36: Less: Mortgage Exit Fee | F36: =F35*Loan_Exit_Fee -> 0 | G36: 0 | H36: 0 | I36: 0 | J36: 0 | K36: 0 | L36: 0 | M36: 0 | N36: 0 | O36: 0
B37: Net Cash Flow | E37: =-Equity_Amount -> -792200 | F37: =SUM(F32:F36) -> 25900.93132 | G37: 24061.93132 | H37: -48956.66667 | I37: 27948.54463 | J37: -46156.88412 | K37: 47498.55075 | L37: 1279.941668 | M37: -5591.065918 | N37: 9495.629349 | O37: 2041867.205
B38: Cash on Cash Return | F38: =IFERROR(F32/Equity_Amount,"-") -> 0.03269493981 | G38: 0.03037355633 | H38: -0.06179836742 | I38: 0.03527965744 | J38: -0.05826418091 | K38: 0.05995777676 | L38: 0.001615679965 | M38: -0.00705764443 | N38: 0.01198640413 | O38: 0.1008837355
B40: Net Levered Cash Flows | C40: =SUM(E37:O37) -> 1285148.117
B41: ="Net Present Value at "&ROUND(Equity_Rate*100,2)&"%" -> Net Present Value at 10% | C41: =SUM(E37,NPV(Equity_Rate,F37:O37)) -> 20995.27021
B42: Leveraged IRR | C42: =IFERROR(IRR(E37:O37),"-") -> 0.1029520071
B43: Avg. Operating Cash on Cash | C43: =IFERROR(((SUM($F$32:$O$32)/Hold)/-E37),"-") -> 0.01456715572
B44: Avg. Cash on Cash | C44: =IFERROR(((SUM($F$37:$O$37)/Hold)/-E37),"-") -> 0.2622252105
B45: ="Present Value of Cash Flows at "&ROUND(Equity_Rate*100,0)&"%" -> Present Value of Cash Flows at 10% | C45: =NPV(Equity_Rate,F37:O37) -> 813195.2702
B46: Plus: Original Loan Amount | C46: =Loan_Amount -> 1220000
B47: Total Leveraged Present Value | C47: =SUM(C45:C46) -> 2033195.27
B48: =IF(LEN(C48)>=7,"Rounded ($10,000's)","Rounded ($1,000's)") -> Rounded ($10,000's) | C48: =IF(LEN(INT(C47))>=7,ROUND(C47,-4),ROUND(C47,-3)) -> 2030000
B49: Per Square Feet | C49: =IFERROR(C48/Size_Total,"-") -> 181.25
B51: After Tax Returns
F52: 1 | G52: 2 | H52: 3 | I52: 4 | J52: 5 | K52: 6 | L52: 7 | M52: 8 | N52: 9 | O52: 10
B53: Basis Calculation
B54: Basis at Acquisition | F54: =IF(F52=Hold,Acquisition_Unlevered,0) -> 0 | G54: 0 | H54: 0 | I54: 0 | J54: 0 | K54: 0 | L54: 0 | M54: 0 | N54: 0 | O54: 2000000
B55: + Capital Additions | F55: =IF(F52=Hold,SUM('Cash Flows'!$F$99:F$99),0) -> 0 | G55: =IF(G52=Hold,SUM('Cash Flows'!$F$99:G$99),0) -> 0 | H55: =IF(H52=Hold,SUM('Cash Flows'!$F$99:H$99),0) -> 0 | I55: =IF(I52=Hold,SUM('Cash Flows'!$F$99:I$99),0) -> 0 | J55: =IF(J52=Hold,SUM('Cash Flows'!$F$99:J$99),0) -> 0 | K55: =IF(K52=Hold,SUM('Cash Flows'!$F$99:K$99),0) -> 0 | L55: =IF(L52=Hold,SUM('Cash Flows'!$F$99:L$99),0) -> 0 | M55: =IF(M52=Hold,SUM('Cash Flows'!$F$99:M$99),0) -> 0 | N55: =IF(N52=Hold,SUM('Cash Flows'!$F$99:N$99),0) -> 0 | O55: =IF(O52=Hold,SUM('Cash Flows'!$F$99:O$99),0) -> 0
B56: Cost Recovery (Depreciation) Taken | F56: =IF(F52=Hold,SUM('Cash Flows'!$F$119:F$119)*-1,0) -> 0 | G56: =IF(G52=Hold,SUM('Cash Flows'!$F$119:G$119)*-1,0) -> 0 | H56: =IF(H52=Hold,SUM('Cash Flows'!$F$119:H$119)*-1,0) -> 0 | I56: =IF(I52=Hold,SUM('Cash Flows'!$F$119:I$119)*-1,0) -> 0 | J56: =IF(J52=Hold,SUM('Cash Flows'!$F$119:J$119)*-1,0) -> 0 | K56: =IF(K52=Hold,SUM('Cash Flows'!$F$119:K$119)*-1,0) -> 0 | L56: =IF(L52=Hold,SUM('Cash Flows'!$F$119:L$119)*-1,0) -> 0 | M56: =IF(M52=Hold,SUM('Cash Flows'!$F$119:M$119)*-1,0) -> 0 | N56: =IF(N52=Hold,SUM('Cash Flows'!$F$119:N$119)*-1,0) -> 0 | O56: =IF(O52=Hold,SUM('Cash Flows'!$F$119:O$119)*-1,0) -> -26764.21053
B57: Adjusted Basis at Sale | F57: =SUM(F54:F56) -> 0 | G57: =SUM(G54:G56) -> 0 | H57: 0 | I57: 0 | J57: 0 | K57: 0 | L57: 0 | M57: 0 | N57: 0 | O57: 1973235.789
B59: Capital Gain Calculation
B60: Sale Price | F60: =F10 -> 0 | G60: 0 | H60: 0 | I60: 0 | J60: 0 | K60: 0 | L60: 0 | M60: 0 | N60: 0 | O60: 2734023.05
B61: Less Cost of Sale | F61: =F11 -> 0 | G61: 0 | H61: 0 | I61: 0 | J61: 0 | K61: 0 | L61: 0 | M61: 0 | N61: 0 | O61: -27340.2305
B62: Less Adjusted Basis at Sale | F62: =IF(F52=Hold,SUM($F$57:F57)*-1,0) -> 0 | G62: =IF(G52=Hold,SUM($F$57:G57)*-1,0) -> 0 | H62: =IF(H52=Hold,SUM($F$57:H57)*-1,0) -> 0 | I62: =IF(I52=Hold,SUM($F$57:I57)*-1,0) -> 0 | J62: =IF(J52=Hold,SUM($F$57:J57)*-1,0) -> 0 | K62: =IF(K52=Hold,SUM($F$57:K57)*-1,0) -> 0 | L62: =IF(L52=Hold,SUM($F$57:L57)*-1,0) -> 0 | M62: =IF(M52=Hold,SUM($F$57:M57)*-1,0) -> 0 | N62: =IF(N52=Hold,SUM($F$57:N57)*-1,0) -> 0 | O62: =IF(O52=Hold,SUM($F$57:O57)*-1,0) -> -1973235.789
B63: Gain (Loss) | F63: =SUM(F60:F62) -> 0 | G63: =SUM(G60:G62) -> 0 | H63: 0 | I63: 0 | J63: 0 | K63: 0 | L63: 0 | M63: 0 | N63: 0 | O63: 733447.03
B64: Straight Line Cost Recovery (Limited to Gain) | F64: =IF(F63<=0,0,IF(F63<SUM($F$56:F56)*-1,F63,SUM($F$56:F56)*-1)) -> 0 | G64: =IF(G63<=0,0,IF(G63<SUM($F$56:G56)*-1,G63,SUM($F$56:G56)*-1)) -> 0 | H64: =IF(H63<=0,0,IF(H63<SUM($F$56:H56)*-1,H63,SUM($F$56:H56)*-1)) -> 0 | I64: =IF(I63<=0,0,IF(I63<SUM($F$56:I56)*-1,I63,SUM($F$56:I56)*-1)) -> 0 | J64: =IF(J63<=0,0,IF(J63<SUM($F$56:J56)*-1,J63,SUM($F$56:J56)*-1)) -> 0 | K64: =IF(K63<=0,0,IF(K63<SUM($F$56:K56)*-1,K63,SUM($F$56:K56)*-1)) -> 0 | L64: =IF(L63<=0,0,IF(L63<SUM($F$56:L56)*-1,L63,SUM($F$56:L56)*-1)) -> 0 | M64: =IF(M63<=0,0,IF(M63<SUM($F$56:M56)*-1,M63,SUM($F$56:M56)*-1)) -> 0 | N64: =IF(N63<=0,0,IF(N63<SUM($F$56:N56)*-1,N63,SUM($F$56:N56)*-1)) -> 0 | O64: =IF(O63<=0,0,IF(O63<SUM($F$56:O56)*-1,O63,SUM($F$56:O56)*-1)) -> 26764.21053
B65: Capital Gain from Appreciation | F65: =IF(F63<=0,0,F63-F64) -> 0 | G65: =IF(G63<=0,0,G63-G64) -> 0 | H65: 0 | I65: 0 | J65: 0 | K65: 0 | L65: 0 | M65: 0 | N65: 0 | O65: =IF(O63<=0,0,O63-O64) -> 706682.8195
B66: Unamortized Loan Fees (Costs) | F66: =IF(F52=Hold,SUM('Cash Flows'!G$120:$P$120)*-1,0) -> 0 | G66: =IF(G52=Hold,SUM('Cash Flows'!H$120:$P$120)*-1,0) -> 0 | H66: =IF(H52=Hold,SUM('Cash Flows'!I$120:$P$120)*-1,0) -> 0 | I66: =IF(I52=Hold,SUM('Cash Flows'!J$120:$P$120)*-1,0) -> 0 | J66: =IF(J52=Hold,SUM('Cash Flows'!K$120:$P$120)*-1,0) -> 0 | K66: =IF(K52=Hold,SUM('Cash Flows'!L$120:$P$120)*-1,0) -> 0 | L66: =IF(L52=Hold,SUM('Cash Flows'!M$120:$P$120)*-1,0) -> 0 | M66: =IF(M52=Hold,SUM('Cash Flows'!N$120:$P$120)*-1,0) -> 0 | N66: =IF(N52=Hold,SUM('Cash Flows'!O$120:$P$120)*-1,0) -> 0 | O66: =IF(O52=Hold,SUM('Cash Flows'!P$120:$P$120)*-1,0) -> 0
B68: Sale Proceeds Calculation
B69: Sale Price | F69: =F60 -> 0 | G69: =G60 -> 0 | H69: 0 | I69: 0 | J69: 0 | K69: 0 | L69: 0 | M69: 0 | N69: 0 | O69: 2734023.05
B70: Less Cost of Sale | F70: =F61 -> 0 | G70: =G61 -> 0 | H70: 0 | I70: 0 | J70: 0 | K70: 0 | L70: 0 | M70: 0 | N70: 0 | O70: -27340.2305
B71: Less Mortgage Exit Fee | F71: =F72*Loan_Exit_Fee -> 0 | G71: 0 | H71: 0 | I71: 0 | J71: 0 | K71: 0 | L71: 0 | M71: 0 | N71: 0 | O71: 0
B72: Less Mortgage Balance | F72: =F35 -> 0 | G72: 0 | H72: 0 | I72: 0 | J72: 0 | K72: 0 | L72: 0 | M72: 0 | N72: 0 | O72: -744735.7097
B73: Sale Proceeds Before Tax | F73: =SUM(F69:F72) -> 0 | G73: =SUM(G69:G72) -> 0 | H73: 0 | I73: 0 | J73: 0 | K73: 0 | L73: 0 | M73: 0 | N73: 0 | O73: 1961947.11
B74: ="Less Tax on Ordinary Income at "&ROUND(Tax_Ordinary*100,0)&"%" -> Less Tax on Ordinary Income at 35% | F74: =-F66*Tax_Ordinary -> 0 | G74: 0 | H74: 0 | I74: 0 | J74: 0 | K74: 0 | L74: 0 | M74: 0 | N74: 0 | O74: 0
B75: ="Less Tax on Cost Recovery Recapture at "&ROUND(Tax_CR*100,0)&"%" -> Less Tax on Cost Recovery Recapture at 25% | F75: =-F64*Tax_CR -> 0 | G75: 0 | H75: 0 | I75: 0 | J75: 0 | K75: 0 | L75: 0 | M75: 0 | N75: 0 | O75: -6691.052632
B76: ="Less Tax on Capital Gain at "&ROUND(Tax_CG*100,0)&"%" -> Less Tax on Capital Gain at 20% | F76: =-F65*Tax_CG -> 0 | G76: 0 | H76: 0 | I76: 0 | J76: 0 | K76: 0 | L76: 0 | M76: 0 | N76: 0 | O76: -141336.5639
B77: Sale Proceeds After Tax | F77: =SUM(F73:F76) -> 0 | G77: =SUM(G73:G76) -> 0 | H77: 0 | I77: 0 | J77: 0 | K77: 0 | L77: 0 | M77: 0 | N77: 0 | O77: 1813919.493
B79: Proceeds After Taxes
B80: Cash Flow Before Taxes | F80: =IF(F$52<=Hold,'Cash Flows'!F$114,0) -> 25900.93132 | G80: =IF(G$52<=Hold,'Cash Flows'!G$114,0) -> 24061.93132 | H80: =IF(H$52<=Hold,'Cash Flows'!H$114,0) -> -48956.66667 | I80: =IF(I$52<=Hold,'Cash Flows'!I$114,0) -> 27948.54463 | J80: =IF(J$52<=Hold,'Cash Flows'!J$114,0) -> -46156.88412 | K80: =IF(K$52<=Hold,'Cash Flows'!K$114,0) -> 47498.55075 | L80: =IF(L$52<=Hold,'Cash Flows'!L$114,0) -> 1279.941668 | M80: =IF(M$52<=Hold,'Cash Flows'!M$114,0) -> -5591.065918 | N80: =IF(N$52<=Hold,'Cash Flows'!N$114,0) -> 9495.629349 | O80: =IF(O$52<=Hold,'Cash Flows'!O$114,0) -> 79920.09526
B81: Less: Annual Operating Tax Liability | F81: =IF(F$52<=Hold,'Cash Flows'!F$122,0) -> -25137.7923 | G81: =IF(G$52<=Hold,'Cash Flows'!G$122,0) -> -24646.88336 | H81: =IF(H$52<=Hold,'Cash Flows'!H$122,0) -> -15593.79177 | I81: =IF(I$52<=Hold,'Cash Flows'!I$122,0) -> -27332.16157 | J81: =IF(J$52<=Hold,'Cash Flows'!J$122,0) -> -21493.15309 | K81: =IF(K$52<=Hold,'Cash Flows'!K$122,0) -> -35624.16075 | L81: =IF(L$52<=Hold,'Cash Flows'!L$122,0) -> -37357.54545 | M81: =IF(M$52<=Hold,'Cash Flows'!M$122,0) -> -32606.94701 | N81: =IF(N$52<=Hold,'Cash Flows'!N$122,0) -> -44146.20331 | O81: =IF(O$52<=Hold,'Cash Flows'!O$122,0) -> -46831.6367
B82: Draw from Operating Reserve | F82: =IF(F$52<=Hold,'Cash Flows'!F124,0) -> 0 | G82: =IF(G$52<=Hold,'Cash Flows'!G124,0) -> 584.9520385 | H82: =IF(H$52<=Hold,'Cash Flows'!H124,0) -> 64550.45844 | I82: =IF(I$52<=Hold,'Cash Flows'!I124,0) -> 0 | J82: =IF(J$52<=Hold,'Cash Flows'!J124,0) -> 67650.0372 | K82: =IF(K$52<=Hold,'Cash Flows'!K124,0) -> 0 | L82: =IF(L$52<=Hold,'Cash Flows'!L124,0) -> 33560.20392 | M82: =IF(M$52<=Hold,'Cash Flows'!M124,0) -> 10000 | N82: =IF(N$52<=Hold,'Cash Flows'!N124,0) -> 10000 | O82: =IF(O$52<=Hold,'Cash Flows'!O124,0) -> 0
B83: Cash Flow After Taxes | F83: =SUM(F80:F82) -> 763.1390257 | G83: =SUM(G80:G82) -> 0 | H83: 0 | I83: 616.3830574 | J83: 0 | K83: 11874.39 | L83: -2517.399865 | M83: -28198.01293 | N83: -24650.57396 | O83: 33088.45856
B84: Sale Proceeds After Taxes | F84: =F77 -> 0 | G84: =G77 -> 0 | H84: 0 | I84: 0 | J84: 0 | K84: 0 | L84: 0 | M84: 0 | N84: 0 | O84: 1813919.493
B85: Annual Proceeds After Taxes | E85: =-Equity_Amount -> -792200 | F85: =SUM(F83:F84) -> 763.1390257 | G85: =SUM(G83:G84) -> 0 | H85: 0 | I85: 616.3830574 | J85: 0 | K85: 11874.39 | L85: -2517.399865 | M85: -28198.01293 | N85: -24650.57396 | O85: 1847007.952
B86: Cash on Cash Return | F86: =IFERROR(F83/Equity_Amount,"-") -> 0.0009633161143 | G86: 0 | H86: 0 | I86: 0.000778064955 | J86: 0 | K86: 0.01498913153 | L86: -0.003177732726 | M86: -0.03559456315 | N86: -0.03111660435 | O86: 0.04176780934
B88: Net Cash Flows | C88: =SUM(E85:O85) -> 1012695.877
B89: ="Net Present Value at "&ROUND(Equity_Rate*100,2)&"%" -> Net Present Value at 10% | C89: =SUM(E85,NPV(Equity_Rate,F85:O85)) -> -97181.58943
B90: Effective Tax Rate | C90: =IFERROR(IF(C42=0,0,(C42-C91)/C42),"-") -> 0.1674843655
B91: After Tax Leveraged IRR | C91: =IFERROR(IRR(E85:O85),"-") -> 0.08570915549
B92: Avg. Operating Cash on Cash | C92: =IFERROR((SUM(F83:O83)/Hold)/Equity_Amount,"-") -> -0.001139057828
B93: Avg. Cash on Cash | C93: =IFERROR((SUM(F85:O85)/Hold)/Equity_Amount,"-") -> 0.2278333599
B94: ="Present Value of Cash Flows at "&ROUND(Equity_Rate*100,0)&"%" -> Present Value of Cash Flows at 10% | C94: =NPV(Equity_Rate,F85:O85) -> 695018.4106
B95: Plus: Original Loan Amount | C95: =Loan_Amount -> 1220000
B96: Total After Tax Leveraged Present Value | C96: =SUM(C94:C95) -> 1915018.411
B97: =IF(LEN(C97)>=7,"Rounded ($10,000's)","Rounded ($1,000's)") -> Rounded ($10,000's) | C97: =IF(LEN(INT(C96))>=7,ROUND(C96,-4),ROUND(C96,-3)) -> 1920000
B98: Per Square Feet | C98: =IFERROR(C97/Size_Total,"-") -> 171.4285714
B102: www.realpropmetrics.com
B103: ="Version: "&Version -> Version: 9.42 C | © 2022
B104: =TODAY() -> 2022-02-23
B105: This pro forma does not constitute tax advice. Please consult a professional tax advisor.

Sheet Loan Amortization
B3: Loan Amortization Schedule
D5: Interest Only Loan | H5: Amortizing Loan
D6: Loan Amount | E6: =IF(Loan_IO_Approval="no","-",Loan_Amount) -> - | H6: Loan Amount | I6: =Loan_Amount_Amortizing -> 1220000
D7: Term | E7: =IF(Loan_IO_Approval="no","-",Loan_IO_Term) -> - | H7: Term | I7: =Loan_Amor_Term -> 120
D8: Rate | E8: =IF(Loan_IO_Approval="no","-",Loan_IO_Rate) -> - | H8: Amortization | I8: =Loan_Amortization -> 240
D9: Funding Status | E9: =IF(Loan_IO_Approval="no","-",IF(Loan_IO_Status=0,"Fund Up (Default)",Loan_IO_Status)) -> - | H9: Start Rate | I9: =Loan_Amor_Rate -> 0.045
H10: Rate Type | I10: =Loan_Amor_Type -> Fixed
B12: Annual Summary
B13: Year | C13: Dates | D13: Loan Type | E13: Effective Rate | F13: Beginning Balance | G13: Interest | H13: Principal | I13: Total Payments | J13: Ending Balance | L13: IO Interest Due | M13: I/O Interest Due | N13: Spent | O13: Ending Budget
B14: 1 | C14: =RPMDateSpan(B14,1) -> Jan 22 - Dec 22 | D14: =IFERROR(RPMAnnualLoanType(B14),"Enable Macros") -> Amortizing | E14: =IFERROR(RPMAnnualRate(B14,D14,F14,I14,J14),"Enable Macros") -> 0.045 | F14: =VLOOKUP((B14*12)-11,Amortization_Schedule_Monthly,5,FALSE) -> 1220000 | G14: =SUM(OFFSET($G$51:$G$62,(B14-1)*12,0)) -> 54112.22051 | H14: =SUM(OFFSET($H$51:$H$62,(B14-1)*12,0)) -> 38507.64817 | I14: =SUM(G14:H14) -> 92619.86868 | J14: =VLOOKUP(B14*12,Amortization_Schedule_Monthly,9,FALSE) -> 1181492.352 | L14: =SUM(IF(B14>Hold,0,IF($B$51:$B$170>($B14-1)*12,IF($B$51:$B$170<=$B14*12,IF($D$51:$D$170="I/O",$G$51:$G$170,0),0),0))) -> 0 | M14: =Loan_IO_IntCarry -> 0 | N14: =IF(M14>=L14,L14,M14)*-1 -> 0 | O14: =SUM(M14:N14) -> 0
B15: 2 | C15: =RPMDateSpan(B15,1) -> Jan 23 - Dec 23 | D15: =IFERROR(RPMAnnualLoanType(B15),"Enable Macros") -> Amortizing | E15: =IFERROR(RPMAnnualRate(B15,D15,F15,I15,J15),"Enable Macros") -> 0.045 | F15: 1181492.352 | G15: =SUM(OFFSET($G$51:$G$62,(B15-1)*12,0)) -> 52343.18589 | H15: =SUM(OFFSET($H$51:$H$62,(B15-1)*12,0)) -> 40276.68279 | I15: =SUM(G15:H15) -> 92619.86868 | J15: 1141215.669 | L15: =SUM(IF(B15>Hold,0,IF($B$51:$B$170>($B15-1)*12,IF($B$51:$B$170<=$B15*12,IF($D$51:$D$170="I/O",$G$51:$G$170,0),0),0))) -> 0 | M15: =O14 -> 0 | N15: =IF(M15>=L15,L15,M15)*-1 -> 0 | O15: =SUM(M15:N15) -> 0
B16: 3 | C16: Jan 24 - Dec 24 | D16: Amortizing | E16: =IFERROR(RPMAnnualRate(B16,D16,F16,I16,J16),"Enable Macros") -> 0.045 | F16: 1141215.669 | G16: 50492.88213 | H16: 42126.98655 | I16: 92619.86868 | J16: 1099088.682 | L16: =SUM(IF(B16>Hold,0,IF($B$51:$B$170>($B16-1)*12,IF($B$51:$B$170<=$B16*12,IF($D$51:$D$170="I/O",$G$51:$G$170,0),0),0))) -> 0 | M16: =O15 -> 0 | N16: =IF(M16>=L16,L16,M16)*-1 -> 0 | O16: =SUM(M16:N16) -> 0
B17: 4 | C17: Jan 25 - Dec 25 | D17: Amortizing | E17: =IFERROR(RPMAnnualRate(B17,D17,F17,I17,J17),"Enable Macros") -> 0.045 | F17: 1099088.682 | G17: 48557.57574 | H17: 44062.29294 | I17: 92619.86868 | J17: 1055026.39 | L17: =SUM(IF(B17>Hold,0,IF($B$51:$B$170>($B17-1)*12,IF($B$51:$B$170<=$B17*12,IF($D$51:$D$170="I/O",$G$51:$G$170,0),0),0))) -> 0 | M17: 0 | N17: 0 | O17: 0
B18: 5 | C18: Jan 26 - Dec 26 | D18: Amortizing | E18: =IFERROR(RPMAnnualRate(B18,D18,F18,I18,J18),"Enable Macros") -> 0.045 | F18: 1055026.39 | G18: 46533.36171 | H18: 46086.50697 | I18: 92619.86868 | J18: 1008939.883 | L18: =SUM(IF(B18>Hold,0,IF($B$51:$B$170>($B18-1)*12,IF($B$51:$B$170<=$B18*12,IF($D$51:$D$170="I/O",$G$51:$G$170,0),0),0))) -> 0 | M18: 0 | N18: 0 | O18: 0
B19: 6 | C19: Jan 27 - Dec 27 | D19: Amortizing | E19: =IFERROR(RPMAnnualRate(B19,D19,F19,I19,J19),"Enable Macros") -> 0.045 | F19: 1008939.883 | G19: 44416.15564 | H19: 48203.71304 | I19: 92619.86868 | J19: 960736.1695 | L19: =SUM(IF(B19>Hold,0,IF($B$51:$B$170>($B19-1)*12,IF($B$51:$B$170<=$B19*12,IF($D$51:$D$170="I/O",$G$51:$G$170,0),0),0))) -> 0 | M19: 0 | N19: 0 | O19: 0
B20: 7 | C20: Jan 28 - Dec 28 | D20: Amortizing | E20: =IFERROR(RPMAnnualRate(B20,D20,F20,I20,J20),"Enable Macros") -> 0.045 | F20: 960736.1695 | G20: 42201.6855 | H20: 50418.18318 | I20: 92619.86868 | J20: 910317.9864 | L20: =SUM(IF(B20>Hold,0,IF($B$51:$B$170>($B20-1)*12,IF($B$51:$B$170<=$B20*12,IF($D$51:$D$170="I/O",$G$51:$G$170,0),0),0))) -> 0 | M20: 0 | N20: 0 | O20: 0
B21: 8 | C21: Jan 29 - Dec 29 | D21: Amortizing | E21: =IFERROR(RPMAnnualRate(B21,D21,F21,I21,J21),"Enable Macros") -> 0.045 | F21: 910317.9864 | G21: 39885.48298 | H21: 52734.38569 | I21: 92619.86868 | J21: 857583.6007 | L21: =SUM(IF(B21>Hold,0,IF($B$51:$B$170>($B21-1)*12,IF($B$51:$B$170<=$B21*12,IF($D$51:$D$170="I/O",$G$51:$G$170,0),0),0))) -> 0 | M21: 0 | N21: 0 | O21: 0
B22: 9 | C22: Jan 30 - Dec 30 | D22: Amortizing | E22: =IFERROR(RPMAnnualRate(B22,D22,F22,I22,J22),"Enable Macros") -> 0.045 | F22: 857583.6007 | G22: 37462.87453 | H22: 55156.99415 | I22: 92619.86868 | J22: 802426.6065 | L22: =SUM(IF(B22>Hold,0,IF($B$51:$B$170>($B22-1)*12,IF($B$51:$B$170<=$B22*12,IF($D$51:$D$170="I/O",$G$51:$G$170,0),0),0))) -> 0 | M22: 0 | N22: 0 | O22: 0
B23: 10 | C23: Jan 31 - Dec 31 | D23: Amortizing | E23: =IFERROR(RPMAnnualRate(B23,D23,F23,I23,J23),"Enable Macros") -> 0.045 | F23: 802426.6065 | G23: 34928.97187 | H23: 57690.89681 | I23: 92619.86868 | J23: 744735.7097 | L23: =SUM(IF(B23>Hold,0,IF($B$51:$B$170>($B23-1)*12,IF($B$51:$B$170<=$B23*12,IF($D$51:$D$170="I/O",$G$51:$G$170,0),0),0))) -> 0 | M23: 0 | N23: 0 | O23: 0
B24: Total | E24: =IFERROR(RATE(Hold*12,-I24/(Hold*12),Loan_Amount,-VLOOKUP(Hold,Amortization_Schedule_Annual,9,FALSE))*12,"-") -> 0.045 | F24: - | G24: =SUBTOTAL(109,G14:G23) -> 450934.3965 | H24: =SUBTOTAL(109,H14:H23) -> 475264.2903 | I24: =SUBTOTAL(109,I14:I23) -> 926198.6868 | J24: -
I44: www.realpropmetrics.com
I45: ="Version: "&Version -> Version: 9.42 C | © 2022
I46: =TODAY() -> 2022-02-23
B49: Monthly Summary
B50: Month | C50: Date | D50: Loan Type | E50: Rate | F50: Beginning Balance | G50: Interest | H50: Principal | I50: Total Payment | J50: Ending Balance
B51: 1 | C51: =RPMDateSpan(B51,3) -> Jan 2022 | D51: =IFERROR(RPMLoanType(B51),"Enable Macros") -> Amortizing | E51: =IFERROR(RPMInterestRate(B51),"Enable Macros") -> 0.045 | F51: =IFERROR(RPMBeginningBalance(B51,D51),"Enable Macros") -> 1220000 | G51: =IFERROR(F51*(RPMCanadian(D51,E51)/12),"Enable Macros") -> 4575 | H51: =I51-G51 -> 3143.32239 | I51: =IFERROR(RPMTotalPayment(B51,D51,E51,F51),"Enable Macros") -> 7718.32239 | J51: =IF(B51<=SUM(Loan_Amortization,Loan_IO_Term),F51-H51,0) -> 1216856.678
B52: 2 | C52: =RPMDateSpan(B52,3) -> Feb 2022 | D52: =IFERROR(RPMLoanType(B52),"Enable Macros") -> Amortizing | E52: =IFERROR(RPMInterestRate(B52),"Enable Macros") -> 0.045 | F52: =RPMBeginningBalance(B52,D52,J51) -> 1216856.678 | G52: =IFERROR(F52*(RPMCanadian(D52,E52)/12),"Enable Macros") -> 4563.212541 | H52: =I52-G52 -> 3155.109849 | I52: =IFERROR(RPMTotalPayment(B52,D52,E52,F52),"Enable Macros") -> 7718.32239 | J52: 1213701.568
B53: 3 | C53: Mar 2022 | D53: =IFERROR(RPMLoanType(B53),"Enable Macros") -> Amortizing | E53: =IFERROR(RPMInterestRate(B53),"Enable Macros") -> 0.045 | F53: =RPMBeginningBalance(B53,D53,J52) -> 1213701.568 | G53: =IFERROR(F53*(RPMCanadian(D53,E53)/12),"Enable Macros") -> 4551.380879 | H53: 3166.941511 | I53: =IFERROR(RPMTotalPayment(B53,D53,E53,F53),"Enable Macros") -> 7718.32239 | J53: 1210534.626
B54: 4 | C54: Apr 2022 | D54: =IFERROR(RPMLoanType(B54),"Enable Macros") -> Amortizing | E54: =IFERROR(RPMInterestRate(B54),"Enable Macros") -> 0.045 | F54: =RPMBeginningBalance(B54,D54,J53) -> 1210534.626 | G54: =IFERROR(F54*(RPMCanadian(D54,E54)/12),"Enable Macros") -> 4539.504848 | H54: 3178.817541 | I54: =IFERROR(RPMTotalPayment(B54,D54,E54,F54),"Enable Macros") -> 7718.32239 | J54: 1207355.809
B55: 5 | C55: May 2022 | D55: =IFERROR(RPMLoanType(B55),"Enable Macros") -> Amortizing | E55: =IFERROR(RPMInterestRate(B55),"Enable Macros") -> 0.045 | F55: =RPMBeginningBalance(B55,D55,J54) -> 1207355.809 | G55: =IFERROR(F55*(RPMCanadian(D55,E55)/12),"Enable Macros") -> 4527.584283 | H55: 3190.738107 | I55: =IFERROR(RPMTotalPayment(B55,D55,E55,F55),"Enable Macros") -> 7718.32239 | J55: 1204165.071
B56: 6 | C56: Jun 2022 | D56: =IFERROR(RPMLoanType(B56),"Enable Macros") -> Amortizing | E56: =IFERROR(RPMInterestRate(B56),"Enable Macros") -> 0.045 | F56: =RPMBeginningBalance(B56,D56,J55) -> 1204165.071 | G56: =IFERROR(F56*(RPMCanadian(D56,E56)/12),"Enable Macros") -> 4515.619015 | H56: 3202.703375 | I56: =IFERROR(RPMTotalPayment(B56,D56,E56,F56),"Enable Macros") -> 7718.32239 | J56: 1200962.367
B57: 7 | C57: Jul 2022 | D57: =IFERROR(RPMLoanType(B57),"Enable Macros") -> Amortizing | E57: =IFERROR(RPMInterestRate(B57),"Enable Macros") -> 0.045 | F57: =RPMBeginningBalance(B57,D57,J56) -> 1200962.367 | G57: =IFERROR(F57*(RPMCanadian(D57,E57)/12),"Enable Macros") -> 4503.608877 | H57: 3214.713513 | I57: =IFERROR(RPMTotalPayment(B57,D57,E57,F57),"Enable Macros") -> 7718.32239 | J57: 1197747.654
B58: 8 | C58: Aug 2022 | D58: =IFERROR(RPMLoanType(B58),"Enable Macros") -> Amortizing | E58: =IFERROR(RPMInterestRate(B58),"Enable Macros") -> 0.045 | F58: =RPMBeginningBalance(B58,D58,J57) -> 1197747.654 | G58: =IFERROR(F58*(RPMCanadian(D58,E58)/12),"Enable Macros") -> 4491.553701 | H58: 3226.768688 | I58: =IFERROR(RPMTotalPayment(B58,D58,E58,F58),"Enable Macros") -> 7718.32239 | J58: 1194520.885
B59: 9 | C59: Sep 2022 | D59: =IFERROR(RPMLoanType(B59),"Enable Macros") -> Amortizing | E59: =IFERROR(RPMInterestRate(B59),"Enable Macros") -> 0.045 | F59: =RPMBeginningBalance(B59,D59,J58) -> 1194520.885 | G59: =IFERROR(F59*(RPMCanadian(D59,E59)/12),"Enable Macros") -> 4479.453319 | H59: 3238.869071 | I59: =IFERROR(RPMTotalPayment(B59,D59,E59,F59),"Enable Macros") -> 7718.32239 | J59: 1191282.016
B60: 10 | C60: Oct 2022 | D60: =IFERROR(RPMLoanType(B60),"Enable Macros") -> Amortizing | E60: =IFERROR(RPMInterestRate(B60),"Enable Macros") -> 0.045 | F60: =RPMBeginningBalance(B60,D60,J59) -> 1191282.016 | G60: =IFERROR(F60*(RPMCanadian(D60,E60)/12),"Enable Macros") -> 4467.30756 | H60: 3251.01483 | I60: =IFERROR(RPMTotalPayment(B60,D60,E60,F60),"Enable Macros") -> 7718.32239 | J60: 1188031.001
B61: 11 | C61: Nov 2022 | D61: =IFERROR(RPMLoanType(B61),"Enable Macros") -> Amortizing | E61: =IFERROR(RPMInterestRate(B61),"Enable Macros") -> 0.045 | F61: =RPMBeginningBalance(B61,D61,J60) -> 1188031.001 | G61: =IFERROR(F61*(RPMCanadian(D61,E61)/12),"Enable Macros") -> 4455.116254 | H61: 3263.206136 | I61: =IFERROR(RPMTotalPayment(B61,D61,E61,F61),"Enable Macros") -> 7718.32239 | J61: 1184767.795
B62: 12 | C62: Dec 2022 | D62: =IFERROR(RPMLoanType(B62),"Enable Macros") -> Amortizing | E62: =IFERROR(RPMInterestRate(B62),"Enable Macros") -> 0.045 | F62: =RPMBeginningBalance(B62,D62,J61) -> 1184767.795 | G62: =IFERROR(F62*(RPMCanadian(D62,E62)/12),"Enable Macros") -> 4442.879231 | H62: 3275.443159 | I62: =IFERROR(RPMTotalPayment(B62,D62,E62,F62),"Enable Macros") -> 7718.32239 | J62: 1181492.352
B63: 13 | C63: Jan 2023 | D63: =IFERROR(RPMLoanType(B63),"Enable Macros") -> Amortizing | E63: =IFERROR(RPMInterestRate(B63),"Enable Macros") -> 0.045 | F63: =RPMBeginningBalance(B63,D63,J62) -> 1181492.352 | G63: =IFERROR(F63*(RPMCanadian(D63,E63)/12),"Enable Macros") -> 4430.596319 | H63: 3287.726071 | I63: =IFERROR(RPMTotalPayment(B63,D63,E63,F63),"Enable Macros") -> 7718.32239 | J63: 1178204.626
B64: 14 | C64: Feb 2023 | D64: =IFERROR(RPMLoanType(B64),"Enable Macros") -> Amortizing | E64: =IFERROR(RPMInterestRate(B64),"Enable Macros") -> 0.045 | F64: =RPMBeginningBalance(B64,D64,J63) -> 1178204.626 | G64: =IFERROR(F64*(RPMCanadian(D64,E64)/12),"Enable Macros") -> 4418.267347 | H64: 3300.055043 | I64: =IFERROR(RPMTotalPayment(B64,D64,E64,F64),"Enable Macros") -> 7718.32239 | J64: 1174904.571
B65: 15 | C65: Mar 2023 | D65: =IFERROR(RPMLoanType(B65),"Enable Macros") -> Amortizing | E65: =IFERROR(RPMInterestRate(B65),"Enable Macros") -> 0.045 | F65: =RPMBeginningBalance(B65,D65,J64) -> 1174904.571 | G65: =IFERROR(F65*(RPMCanadian(D65,E65)/12),"Enable Macros") -> 4405.89214 | H65: 3312.43025 | I65: =IFERROR(RPMTotalPayment(B65,D65,E65,F65),"Enable Macros") -> 7718.32239 | J65: 1171592.14
B66: 16 | C66: Apr 2023 | D66: =IFERROR(RPMLoanType(B66),"Enable Macros") -> Amortizing | E66: =IFERROR(RPMInterestRate(B66),"Enable Macros") -> 0.045 | F66: =RPMBeginningBalance(B66,D66,J65) -> 1171592.14 | G66: =IFERROR(F66*(RPMCanadian(D66,E66)/12),"Enable Macros") -> 4393.470527 | H66: 3324.851863 | I66: =IFERROR(RPMTotalPayment(B66,D66,E66,F66),"Enable Macros") -> 7718.32239 | J66: 1168267.289
B67: 17 | C67: May 2023 | D67: =IFERROR(RPMLoanType(B67),"Enable Macros") -> Amortizing | E67: =IFERROR(RPMInterestRate(B67),"Enable Macros") -> 0.045 | F67: =RPMBeginningBalance(B67,D67,J66) -> 1168267.289 | G67: =IFERROR(F67*(RPMCanadian(D67,E67)/12),"Enable Macros") -> 4381.002332 | H67: 3337.320058 | I67: =IFERROR(RPMTotalPayment(B67,D67,E67,F67),"Enable Macros") -> 7718.32239 | J67: 1164929.969
B68: 18 | C68: Jun 2023 | D68: =IFERROR(RPMLoanType(B68),"Enable Macros") -> Amortizing | E68: =IFERROR(RPMInterestRate(B68),"Enable Macros") -> 0.045 | F68: =RPMBeginningBalance(B68,D68,J67) -> 1164929.969 | G68: =IFERROR(F68*(RPMCanadian(D68,E68)/12),"Enable Macros") -> 4368.487382 | H68: 3349.835008 | I68: =IFERROR(RPMTotalPayment(B68,D68,E68,F68),"Enable Macros") -> 7718.32239 | J68: 1161580.134
B69: 19 | C69: Jul 2023 | D69: =IFERROR(RPMLoanType(B69),"Enable Macros") -> Amortizing | E69: =IFERROR(RPMInterestRate(B69),"Enable Macros") -> 0.045 | F69: =RPMBeginningBalance(B69,D69,J68) -> 1161580.134 | G69: =IFERROR(F69*(RPMCanadian(D69,E69)/12),"Enable Macros") -> 4355.925501 | H69: 3362.396889 | I69: =IFERROR(RPMTotalPayment(B69,D69,E69,F69),"Enable Macros") -> 7718.32239 | J69: 1158217.737
B70: 20 | C70: Aug 2023 | D70: =IFERROR(RPMLoanType(B70),"Enable Macros") -> Amortizing | E70: =IFERROR(RPMInterestRate(B70),"Enable Macros") -> 0.045 | F70: =RPMBeginningBalance(B70,D70,J69) -> 1158217.737 | G70: =IFERROR(F70*(RPMCanadian(D70,E70)/12),"Enable Macros") -> 4343.316512 | H70: 3375.005877 | I70: =IFERROR(RPMTotalPayment(B70,D70,E70,F70),"Enable Macros") -> 7718.32239 | J70: 1154842.731
B71: 21 | C71: Sep 2023 | D71: =IFERROR(RPMLoanType(B71),"Enable Macros") -> Amortizing | E71: =IFERROR(RPMInterestRate(B71),"Enable Macros") -> 0.045 | F71: =RPMBeginningBalance(B71,D71,J70) -> 1154842.731 | G71: =IFERROR(F71*(RPMCanadian(D71,E71)/12),"Enable Macros") -> 4330.66024 | H71: 3387.662149 | I71: =IFERROR(RPMTotalPayment(B71,D71,E71,F71),"Enable Macros") -> 7718.32239 | J71: 1151455.069
B72: 22 | C72: Oct 2023 | D72: =IFERROR(RPMLoanType(B72),"Enable Macros") -> Amortizing | E72: =IFERROR(RPMInterestRate(B72),"Enable Macros") -> 0.045 | F72: =RPMBeginningBalance(B72,D72,J71) -> 1151455.069 | G72: =IFERROR(F72*(RPMCanadian(D72,E72)/12),"Enable Macros") -> 4317.956507 | H72: 3400.365883 | I72: =IFERROR(RPMTotalPayment(B72,D72,E72,F72),"Enable Macros") -> 7718.32239 | J72: 1148054.703
B73: 23 | C73: Nov 2023 | D73: =IFERROR(RPMLoanType(B73),"Enable Macros") -> Amortizing | E73: =IFERROR(RPMInterestRate(B73),"Enable Macros") -> 0.045 | F73: =RPMBeginningBalance(B73,D73,J72) -> 1148054.703 | G73: =IFERROR(F73*(RPMCanadian(D73,E73)/12),"Enable Macros") -> 4305.205135 | H73: 3413.117255 | I73: =IFERROR(RPMTotalPayment(B73,D73,E73,F73),"Enable Macros") -> 7718.32239 | J73: 1144641.585
B74: 24 | C74: Dec 2023 | D74: =IFERROR(RPMLoanType(B74),"Enable Macros") -> Amortizing | E74: =IFERROR(RPMInterestRate(B74),"Enable Macros") -> 0.045 | F74: =RPMBeginningBalance(B74,D74,J73) -> 1144641.585 | G74: =IFERROR(F74*(RPMCanadian(D74,E74)/12),"Enable Macros") -> 4292.405946 | H74: 3425.916444 | I74: =IFERROR(RPMTotalPayment(B74,D74,E74,F74),"Enable Macros") -> 7718.32239 | J74: 1141215.669
B75: 25 | C75: Jan 2024 | D75: =IFERROR(RPMLoanType(B75),"Enable Macros") -> Amortizing | E75: =IFERROR(RPMInterestRate(B75),"Enable Macros") -> 0.045 | F75: =RPMBeginningBalance(B75,D75,J74) -> 1141215.669 | G75: =IFERROR(F75*(RPMCanadian(D75,E75)/12),"Enable Macros") -> 4279.558759 | H75: 3438.763631 | I75: =IFERROR(RPMTotalPayment(B75,D75,E75,F75),"Enable Macros") -> 7718.32239 | J75: 1137776.905
B76: 26 | C76: Feb 2024 | D76: =IFERROR(RPMLoanType(B76),"Enable Macros") -> Amortizing | E76: =IFERROR(RPMInterestRate(B76),"Enable Macros") -> 0.045 | F76: =RPMBeginningBalance(B76,D76,J75) -> 1137776.905 | G76: =IFERROR(F76*(RPMCanadian(D76,E76)/12),"Enable Macros") -> 4266.663395 | H76: 3451.658995 | I76: =IFERROR(RPMTotalPayment(B76,D76,E76,F76),"Enable Macros") -> 7718.32239 | J76: 1134325.246
B77: 27 | C77: Mar 2024 | D77: =IFERROR(RPMLoanType(B77),"Enable Macros") -> Amortizing | E77: =IFERROR(RPMInterestRate(B77),"Enable Macros") -> 0.045 | F77: =RPMBeginningBalance(B77,D77,J76) -> 1134325.246 | G77: =IFERROR(F77*(RPMCanadian(D77,E77)/12),"Enable Macros") -> 4253.719674 | H77: 3464.602716 | I77: =IFERROR(RPMTotalPayment(B77,D77,E77,F77),"Enable Macros") -> 7718.32239 | J77: 1130860.644
B78: 28 | C78: Apr 2024 | D78: =IFERROR(RPMLoanType(B78),"Enable Macros") -> Amortizing | E78: =IFERROR(RPMInterestRate(B78),"Enable Macros") -> 0.045 | F78: =RPMBeginningBalance(B78,D78,J77) -> 1130860.644 | G78: =IFERROR(F78*(RPMCanadian(D78,E78)/12),"Enable Macros") -> 4240.727414 | H78: 3477.594976 | I78: =IFERROR(RPMTotalPayment(B78,D78,E78,F78),"Enable Macros") -> 7718.32239 | J78: 1127383.049
B79: 29 | C79: May 2024 | D79: =IFERROR(RPMLoanType(B79),"Enable Macros") -> Amortizing | E79: =IFERROR(RPMInterestRate(B79),"Enable Macros") -> 0.045 | F79: =RPMBeginningBalance(B79,D79,J78) -> 1127383.049 | G79: =IFERROR(F79*(RPMCanadian(D79,E79)/12),"Enable Macros") -> 4227.686433 | H79: 3490.635957 | I79: =IFERROR(RPMTotalPayment(B79,D79,E79,F79),"Enable Macros") -> 7718.32239 | J79: 1123892.413
B80: 30 | C80: Jun 2024 | D80: =IFERROR(RPMLoanType(B80),"Enable Macros") -> Amortizing | E80: =IFERROR(RPMInterestRate(B80),"Enable Macros") -> 0.045 | F80: =RPMBeginningBalance(B80,D80,J79) -> 1123892.413 | G80: =IFERROR(F80*(RPMCanadian(D80,E80)/12),"Enable Macros") -> 4214.596548 | H80: 3503.725842 | I80: =IFERROR(RPMTotalPayment(B80,D80,E80,F80),"Enable Macros") -> 7718.32239 | J80: 1120388.687
B81: 31 | C81: Jul 2024 | D81: =IFERROR(RPMLoanType(B81),"Enable Macros") -> Amortizing | E81: =IFERROR(RPMInterestRate(B81),"Enable Macros") -> 0.045 | F81: =RPMBeginningBalance(B81,D81,J80) -> 1120388.687 | G81: =IFERROR(F81*(RPMCanadian(D81,E81)/12),"Enable Macros") -> 4201.457576 | H81: 3516.864814 | I81: =IFERROR(RPMTotalPayment(B81,D81,E81,F81),"Enable Macros") -> 7718.32239 | J81: 1116871.822
B82: 32 | C82: Aug 2024 | D82: =IFERROR(RPMLoanType(B82),"Enable Macros") -> Amortizing | E82: =IFERROR(RPMInterestRate(B82),"Enable Macros") -> 0.045 | F82: =RPMBeginningBalance(B82,D82,J81) -> 1116871.822 | G82: =IFERROR(F82*(RPMCanadian(D82,E82)/12),"Enable Macros") -> 4188.269333 | H82: 3530.053057 | I82: =IFERROR(RPMTotalPayment(B82,D82,E82,F82),"Enable Macros") -> 7718.32239 | J82: 1113341.769
B83: 33 | C83: Sep 2024 | D83: =IFERROR(RPMLoanType(B83),"Enable Macros") -> Amortizing | E83: =IFERROR(RPMInterestRate(B83),"Enable Macros") -> 0.045 | F83: =RPMBeginningBalance(B83,D83,J82) -> 1113341.769 | G83: =IFERROR(F83*(RPMCanadian(D83,E83)/12),"Enable Macros") -> 4175.031634 | H83: 3543.290756 | I83: =IFERROR(RPMTotalPayment(B83,D83,E83,F83),"Enable Macros") -> 7718.32239 | J83: =IF(B83<=SUM(Loan_Amortization,Loan_IO_Term),F83-H83,0) -> 1109798.478
B84: 34 | C84: Oct 2024 | D84: =IFERROR(RPMLoanType(B84),"Enable Macros") -> Amortizing | E84: =IFERROR(RPMInterestRate(B84),"Enable Macros") -> 0.045 | F84: =RPMBeginningBalance(B84,D84,J83) -> 1109798.478 | G84: =IFERROR(F84*(RPMCanadian(D84,E84)/12),"Enable Macros") -> 4161.744294 | H84: 3556.578096 | I84: =IFERROR(RPMTotalPayment(B84,D84,E84,F84),"Enable Macros") -> 7718.32239 | J84: 1106241.9
B85: 35 | C85: Nov 2024 | D85: =IFERROR(RPMLoanType(B85),"Enable Macros") -> Amortizing | E85: =IFERROR(RPMInterestRate(B85),"Enable Macros") -> 0.045 | F85: =RPMBeginningBalance(B85,D85,J84) -> 1106241.9 | G85: =IFERROR(F85*(RPMCanadian(D85,E85)/12),"Enable Macros") -> 4148.407126 | H85: 3569.915264 | I85: =IFERROR(RPMTotalPayment(B85,D85,E85,F85),"Enable Macros") -> 7718.32239 | J85: 1102671.985
B86: 36 | C86: Dec 2024 | D86: =IFERROR(RPMLoanType(B86),"Enable Macros") -> Amortizing | E86: =IFERROR(RPMInterestRate(B86),"Enable Macros") -> 0.045 | F86: =RPMBeginningBalance(B86,D86,J85) -> 1102671.985 | G86: =IFERROR(F86*(RPMCanadian(D86,E86)/12),"Enable Macros") -> 4135.019944 | H86: 3583.302446 | I86: =IFERROR(RPMTotalPayment(B86,D86,E86,F86),"Enable Macros") -> 7718.32239 | J86: 1099088.682
B87: 37 | C87: Jan 2025 | D87: =IFERROR(RPMLoanType(B87),"Enable Macros") -> Amortizing | E87: =IFERROR(RPMInterestRate(B87),"Enable Macros") -> 0.045 | F87: =RPMBeginningBalance(B87,D87,J86) -> 1099088.682 | G87: =IFERROR(F87*(RPMCanadian(D87,E87)/12),"Enable Macros") -> 4121.582559 | H87: 3596.739831 | I87: =IFERROR(RPMTotalPayment(B87,D87,E87,F87),"Enable Macros") -> 7718.32239 | J87: 1095491.943
B88: 38 | C88: Feb 2025 | D88: =IFERROR(RPMLoanType(B88),"Enable Macros") -> Amortizing | E88: =IFERROR(RPMInterestRate(B88),"Enable Macros") -> 0.045 | F88: =RPMBeginningBalance(B88,D88,J87) -> 1095491.943 | G88: =IFERROR(F88*(RPMCanadian(D88,E88)/12),"Enable Macros") -> 4108.094785 | H88: 3610.227605 | I88: =IFERROR(RPMTotalPayment(B88,D88,E88,F88),"Enable Macros") -> 7718.32239 | J88: 1091881.715
B89: 39 | C89: Mar 2025 | D89: =IFERROR(RPMLoanType(B89),"Enable Macros") -> Amortizing | E89: =IFERROR(RPMInterestRate(B89),"Enable Macros") -> 0.045 | F89: =RPMBeginningBalance(B89,D89,J88) -> 1091881.715 | G89: =IFERROR(F89*(RPMCanadian(D89,E89)/12),"Enable Macros") -> 4094.556431 | H89: 3623.765958 | I89: =IFERROR(RPMTotalPayment(B89,D89,E89,F89),"Enable Macros") -> 7718.32239 | J89: 1088257.949
B90: 40 | C90: Apr 2025 | D90: =IFERROR(RPMLoanType(B90),"Enable Macros") -> Amortizing | E90: =IFERROR(RPMInterestRate(B90),"Enable Macros") -> 0.045 | F90: =RPMBeginningBalance(B90,D90,J89) -> 1088257.949 | G90: =IFERROR(F90*(RPMCanadian(D90,E90)/12),"Enable Macros") -> 4080.967309 | H90: 3637.355081 | I90: =IFERROR(RPMTotalPayment(B90,D90,E90,F90),"Enable Macros") -> 7718.32239 | J90: 1084620.594
B91: 41 | C91: May 2025 | D91: =IFERROR(RPMLoanType(B91),"Enable Macros") -> Amortizing | E91: =IFERROR(RPMInterestRate(B91),"Enable Macros") -> 0.045 | F91: =RPMBeginningBalance(B91,D91,J90) -> 1084620.594 | G91: =IFERROR(F91*(RPMCanadian(D91,E91)/12),"Enable Macros") -> 4067.327228 | H91: 3650.995162 | I91: =IFERROR(RPMTotalPayment(B91,D91,E91,F91),"Enable Macros") -> 7718.32239 | J91: 1080969.599
B92: 42 | C92: Jun 2025 | D92: =IFERROR(RPMLoanType(B92),"Enable Macros") -> Amortizing | E92: =IFERROR(RPMInterestRate(B92),"Enable Macros") -> 0.045 | F92: =RPMBeginningBalance(B92,D92,J91) -> 1080969.599 | G92: =IFERROR(F92*(RPMCanadian(D92,E92)/12),"Enable Macros") -> 4053.635996 | H92: 3664.686394 | I92: =IFERROR(RPMTotalPayment(B92,D92,E92,F92),"Enable Macros") -> 7718.32239 | J92: 1077304.912
B93: 43 | C93: Jul 2025 | D93: =IFERROR(RPMLoanType(B93),"Enable Macros") -> Amortizing | E93: =IFERROR(RPMInterestRate(B93),"Enable Macros") -> 0.045 | F93: =RPMBeginningBalance(B93,D93,J92) -> 1077304.912 | G93: =IFERROR(F93*(RPMCanadian(D93,E93)/12),"Enable Macros") -> 4039.893422 | H93: 3678.428968 | I93: =IFERROR(RPMTotalPayment(B93,D93,E93,F93),"Enable Macros") -> 7718.32239 | J93: 1073626.483
B94: 44 | C94: Aug 2025 | D94: =IFERROR(RPMLoanType(B94),"Enable Macros") -> Amortizing | E94: =IFERROR(RPMInterestRate(B94),"Enable Macros") -> 0.045 | F94: =RPMBeginningBalance(B94,D94,J93) -> 1073626.483 | G94: =IFERROR(F94*(RPMCanadian(D94,E94)/12),"Enable Macros") -> 4026.099313 | H94: 3692.223077 | I94: =IFERROR(RPMTotalPayment(B94,D94,E94,F94),"Enable Macros") -> 7718.32239 | J94: 1069934.26
B95: 45 | C95: Sep 2025 | D95: =IFERROR(RPMLoanType(B95),"Enable Macros") -> Amortizing | E95: =IFERROR(RPMInterestRate(B95),"Enable Macros") -> 0.045 | F95: =RPMBeginningBalance(B95,D95,J94) -> 1069934.26 | G95: =IFERROR(F95*(RPMCanadian(D95,E95)/12),"Enable Macros") -> 4012.253477 | H95: 3706.068913 | I95: =IFERROR(RPMTotalPayment(B95,D95,E95,F95),"Enable Macros") -> 7718.32239 | J95: 1066228.192
B96: 46 | C96: Oct 2025 | D96: =IFERROR(RPMLoanType(B96),"Enable Macros") -> Amortizing | E96: =IFERROR(RPMInterestRate(B96),"Enable Macros") -> 0.045 | F96: =RPMBeginningBalance(B96,D96,J95) -> 1066228.192 | G96: =IFERROR(F96*(RPMCanadian(D96,E96)/12),"Enable Macros") -> 3998.355718 | H96: 3719.966672 | I96: =IFERROR(RPMTotalPayment(B96,D96,E96,F96),"Enable Macros") -> 7718.32239 | J96: 1062508.225
B97: 47 | C97: Nov 2025 | D97: =IFERROR(RPMLoanType(B97),"Enable Macros") -> Amortizing | E97: =IFERROR(RPMInterestRate(B97),"Enable Macros") -> 0.045 | F97: =RPMBeginningBalance(B97,D97,J96) -> 1062508.225 | G97: =IFERROR(F97*(RPMCanadian(D97,E97)/12),"Enable Macros") -> 3984.405843 | H97: 3733.916547 | I97: =IFERROR(RPMTotalPayment(B97,D97,E97,F97),"Enable Macros") -> 7718.32239 | J97: 1058774.308
B98: 48 | C98: Dec 2025 | D98: =IFERROR(RPMLoanType(B98),"Enable Macros") -> Amortizing | E98: =IFERROR(RPMInterestRate(B98),"Enable Macros") -> 0.045 | F98: =RPMBeginningBalance(B98,D98,J97) -> 1058774.308 | G98: =IFERROR(F98*(RPMCanadian(D98,E98)/12),"Enable Macros") -> 3970.403656 | H98: 3747.918734 | I98: =IFERROR(RPMTotalPayment(B98,D98,E98,F98),"Enable Macros") -> 7718.32239 | J98: 1055026.39
B99: 49 | C99: Jan 2026 | D99: =IFERROR(RPMLoanType(B99),"Enable Macros") -> Amortizing | E99: =IFERROR(RPMInterestRate(B99),"Enable Macros") -> 0.045 | F99: =RPMBeginningBalance(B99,D99,J98) -> 1055026.39 | G99: =IFERROR(F99*(RPMCanadian(D99,E99)/12),"Enable Macros") -> 3956.348961 | H99: 3761.973429 | I99: =IFERROR(RPMTotalPayment(B99,D99,E99,F99),"Enable Macros") -> 7718.32239 | J99: 1051264.416
B100: 50 | C100: Feb 2026 | D100: =IFERROR(RPMLoanType(B100),"Enable Macros") -> Amortizing | E100: =IFERROR(RPMInterestRate(B100),"Enable Macros") -> 0.045 | F100: =RPMBeginningBalance(B100,D100,J99) -> 1051264.416 | G100: =IFERROR(F100*(RPMCanadian(D100,E100)/12),"Enable Macros") -> 3942.24156 | H100: 3776.080829 | I100: =IFERROR(RPMTotalPayment(B100,D100,E100,F100),"Enable Macros") -> 7718.32239 | J100: 1047488.335
B101: 51 | C101: Mar 2026 | D101: =IFERROR(RPMLoanType(B101),"Enable Macros") -> Amortizing | E101: =IFERROR(RPMInterestRate(B101),"Enable Macros") -> 0.045 | F101: =RPMBeginningBalance(B101,D101,J100) -> 1047488.335 | G101: =IFERROR(F101*(RPMCanadian(D101,E101)/12),"Enable Macros") -> 3928.081257 | H101: 3790.241133 | I101: =IFERROR(RPMTotalPayment(B101,D101,E101,F101),"Enable Macros") -> 7718.32239 | J101: 1043698.094
B102: 52 | C102: Apr 2026 | D102: =IFERROR(RPMLoanType(B102),"Enable Macros") -> Amortizing | E102: =IFERROR(RPMInterestRate(B102),"Enable Macros") -> 0.045 | F102: =RPMBeginningBalance(B102,D102,J101) -> 1043698.094 | G102: =IFERROR(F102*(RPMCanadian(D102,E102)/12),"Enable Macros") -> 3913.867853 | H102: 3804.454537 | I102: =IFERROR(RPMTotalPayment(B102,D102,E102,F102),"Enable Macros") -> 7718.32239 | J102: 1039893.64
B103: 53 | C103: May 2026 | D103: =IFERROR(RPMLoanType(B103),"Enable Macros") -> Amortizing | E103: =IFERROR(RPMInterestRate(B103),"Enable Macros") -> 0.045 | F103: =RPMBeginningBalance(B103,D103,J102) -> 1039893.64 | G103: =IFERROR(F103*(RPMCanadian(D103,E103)/12),"Enable Macros") -> 3899.601149 | H103: 3818.721241 | I103: =IFERROR(RPMTotalPayment(B103,D103,E103,F103),"Enable Macros") -> 7718.32239 | J103: 1036074.918
B104: 54 | C104: Jun 2026 | D104: =IFERROR(RPMLoanType(B104),"Enable Macros") -> Amortizing | E104: =IFERROR(RPMInterestRate(B104),"Enable Macros") -> 0.045 | F104: =RPMBeginningBalance(B104,D104,J103) -> 1036074.918 | G104: =IFERROR(F104*(RPMCanadian(D104,E104)/12),"Enable Macros") -> 3885.280944 | H104: 3833.041446 | I104: =IFERROR(RPMTotalPayment(B104,D104,E104,F104),"Enable Macros") -> 7718.32239 | J104: 1032241.877
B105: 55 | C105: Jul 2026 | D105: =IFERROR(RPMLoanType(B105),"Enable Macros") -> Amortizing | E105: =IFERROR(RPMInterestRate(B105),"Enable Macros") -> 0.045 | F105: =RPMBeginningBalance(B105,D105,J104) -> 1032241.877 | G105: =IFERROR(F105*(RPMCanadian(D105,E105)/12),"Enable Macros") -> 3870.907038 | H105: 3847.415351 | I105: =IFERROR(RPMTotalPayment(B105,D105,E105,F105),"Enable Macros") -> 7718.32239 | J105: 1028394.462
B106: 56 | C106: Aug 2026 | D106: =IFERROR(RPMLoanType(B106),"Enable Macros") -> Amortizing | E106: =IFERROR(RPMInterestRate(B106),"Enable Macros") -> 0.045 | F106: =RPMBeginningBalance(B106,D106,J105) -> 1028394.462 | G106: =IFERROR(F106*(RPMCanadian(D106,E106)/12),"Enable Macros") -> 3856.479231 | H106: 3861.843159 | I106: =IFERROR(RPMTotalPayment(B106,D106,E106,F106),"Enable Macros") -> 7718.32239 | J106: 1024532.618
B107: 57 | C107: Sep 2026 | D107: =IFERROR(RPMLoanType(B107),"Enable Macros") -> Amortizing | E107: =IFERROR(RPMInterestRate(B107),"Enable Macros") -> 0.045 | F107: =RPMBeginningBalance(B107,D107,J106) -> 1024532.618 | G107: =IFERROR(F107*(RPMCanadian(D107,E107)/12),"Enable Macros") -> 3841.997319 | H107: 3876.325071 | I107: =IFERROR(RPMTotalPayment(B107,D107,E107,F107),"Enable Macros") -> 7718.32239 | J107: 1020656.293
B108: 58 | C108: Oct 2026 | D108: =IFERROR(RPMLoanType(B108),"Enable Macros") -> Amortizing | E108: =IFERROR(RPMInterestRate(B108),"Enable Macros") -> 0.045 | F108: =RPMBeginningBalance(B108,D108,J107) -> 1020656.293 | G108: =IFERROR(F108*(RPMCanadian(D108,E108)/12),"Enable Macros") -> 3827.4611 | H108: 3890.86129 | I108: =IFERROR(RPMTotalPayment(B108,D108,E108,F108),"Enable Macros") -> 7718.32239 | J108: 1016765.432
B109: 59 | C109: Nov 2026 | D109: =IFERROR(RPMLoanType(B109),"Enable Macros") -> Amortizing | E109: =IFERROR(RPMInterestRate(B109),"Enable Macros") -> 0.045 | F109: =RPMBeginningBalance(B109,D109,J108) -> 1016765.432 | G109: =IFERROR(F109*(RPMCanadian(D109,E109)/12),"Enable Macros") -> 3812.87037 | H109: 3905.45202 | I109: =IFERROR(RPMTotalPayment(B109,D109,E109,F109),"Enable Macros") -> 7718.32239 | J109: 1012859.98
B110: 60 | C110: Dec 2026 | D110: =IFERROR(RPMLoanType(B110),"Enable Macros") -> Amortizing | E110: =IFERROR(RPMInterestRate(B110),"Enable Macros") -> 0.045 | F110: =RPMBeginningBalance(B110,D110,J109) -> 1012859.98 | G110: =IFERROR(F110*(RPMCanadian(D110,E110)/12),"Enable Macros") -> 3798.224925 | H110: 3920.097465 | I110: =IFERROR(RPMTotalPayment(B110,D110,E110,F110),"Enable Macros") -> 7718.32239 | J110: 1008939.883
B111: 61 | C111: Jan 2027 | D111: =IFERROR(RPMLoanType(B111),"Enable Macros") -> Amortizing | E111: =IFERROR(RPMInterestRate(B111),"Enable Macros") -> 0.045 | F111: =RPMBeginningBalance(B111,D111,J110) -> 1008939.883 | G111: =IFERROR(F111*(RPMCanadian(D111,E111)/12),"Enable Macros") -> 3783.52456 | H111: 3934.79783 | I111: =IFERROR(RPMTotalPayment(B111,D111,E111,F111),"Enable Macros") -> 7718.32239 | J111: 1005005.085
B112: 62 | C112: Feb 2027 | D112: =IFERROR(RPMLoanType(B112),"Enable Macros") -> Amortizing | E112: =IFERROR(RPMInterestRate(B112),"Enable Macros") -> 0.045 | F112: =RPMBeginningBalance(B112,D112,J111) -> 1005005.085 | G112: =IFERROR(F112*(RPMCanadian(D112,E112)/12),"Enable Macros") -> 3768.769068 | H112: 3949.553322 | I112: =IFERROR(RPMTotalPayment(B112,D112,E112,F112),"Enable Macros") -> 7718.32239 | J112: 1001055.531
B113: 63 | C113: Mar 2027 | D113: =IFERROR(RPMLoanType(B113),"Enable Macros") -> Amortizing | E113: =IFERROR(RPMInterestRate(B113),"Enable Macros") -> 0.045 | F113: =RPMBeginningBalance(B113,D113,J112) -> 1001055.531 | G113: =IFERROR(F113*(RPMCanadian(D113,E113)/12),"Enable Macros") -> 3753.958243 | H113: 3964.364147 | I113: =IFERROR(RPMTotalPayment(B113,D113,E113,F113),"Enable Macros") -> 7718.32239 | J113: 997091.1673
B114: 64 | C114: Apr 2027 | D114: =IFERROR(RPMLoanType(B114),"Enable Macros") -> Amortizing | E114: =IFERROR(RPMInterestRate(B114),"Enable Macros") -> 0.045 | F114: =RPMBeginningBalance(B114,D114,J113) -> 997091.1673 | G114: =IFERROR(F114*(RPMCanadian(D114,E114)/12),"Enable Macros") -> 3739.091877 | H114: 3979.230513 | I114: =IFERROR(RPMTotalPayment(B114,D114,E114,F114),"Enable Macros") -> 7718.32239 | J114: 993111.9368
B115: 65 | C115: May 2027 | D115: =IFERROR(RPMLoanType(B115),"Enable Macros") -> Amortizing | E115: =IFERROR(RPMInterestRate(B115),"Enable Macros") -> 0.045 | F115: =RPMBeginningBalance(B115,D115,J114) -> 993111.9368 | G115: =IFERROR(F115*(RPMCanadian(D115,E115)/12),"Enable Macros") -> 3724.169763 | H115: 3994.152627 | I115: =IFERROR(RPMTotalPayment(B115,D115,E115,F115),"Enable Macros") -> 7718.32239 | J115: =IF(B115<=SUM(Loan_Amortization,Loan_IO_Term),F115-H115,0) -> 989117.7841
B116: 66 | C116: =RPMDateSpan(B116,3) -> Jun 2027 | D116: =IFERROR(RPMLoanType(B116),"Enable Macros") -> Amortizing | E116: =IFERROR(RPMInterestRate(B116),"Enable Macros") -> 0.045 | F116: =RPMBeginningBalance(B116,D116,J115) -> 989117.7841 | G116: =IFERROR(F116*(RPMCanadian(D116,E116)/12),"Enable Macros") -> 3709.191691 | H116: =I116-G116 -> 4009.130699 | I116: =IFERROR(RPMTotalPayment(B116,D116,E116,F116),"Enable Macros") -> 7718.32239 | J116: 985108.6534
B117: 67 | C117: Jul 2027 | D117: =IFERROR(RPMLoanType(B117),"Enable Macros") -> Amortizing | E117: =IFERROR(RPMInterestRate(B117),"Enable Macros") -> 0.045 | F117: =RPMBeginningBalance(B117,D117,J116) -> 985108.6534 | G117: =IFERROR(F117*(RPMCanadian(D117,E117)/12),"Enable Macros") -> 3694.15745 | H117: 4024.164939 | I117: =IFERROR(RPMTotalPayment(B117,D117,E117,F117),"Enable Macros") -> 7718.32239 | J117: 981084.4885
B118: 68 | C118: Aug 2027 | D118: =IFERROR(RPMLoanType(B118),"Enable Macros") -> Amortizing | E118: =IFERROR(RPMInterestRate(B118),"Enable Macros") -> 0.045 | F118: =RPMBeginningBalance(B118,D118,J117) -> 981084.4885 | G118: =IFERROR(F118*(RPMCanadian(D118,E118)/12),"Enable Macros") -> 3679.066832 | H118: 4039.255558 | I118: =IFERROR(RPMTotalPayment(B118,D118,E118,F118),"Enable Macros") -> 7718.32239 | J118: 977045.2329
B119: 69 | C119: Sep 2027 | D119: =IFERROR(RPMLoanType(B119),"Enable Macros") -> Amortizing | E119: =IFERROR(RPMInterestRate(B119),"Enable Macros") -> 0.045 | F119: =RPMBeginningBalance(B119,D119,J118) -> 977045.2329 | G119: =IFERROR(F119*(RPMCanadian(D119,E119)/12),"Enable Macros") -> 3663.919624 | H119: 4054.402766 | I119: =IFERROR(RPMTotalPayment(B119,D119,E119,F119),"Enable Macros") -> 7718.32239 | J119: 972990.8302
B120: 70 | C120: Oct 2027 | D120: =IFERROR(RPMLoanType(B120),"Enable Macros") -> Amortizing | E120: =IFERROR(RPMInterestRate(B120),"Enable Macros") -> 0.045 | F120: =RPMBeginningBalance(B120,D120,J119) -> 972990.8302 | G120: =IFERROR(F120*(RPMCanadian(D120,E120)/12),"Enable Macros") -> 3648.715613 | H120: 4069.606777 | I120: =IFERROR(RPMTotalPayment(B120,D120,E120,F120),"Enable Macros") -> 7718.32239 | J120: 968921.2234
B121: 71 | C121: Nov 2027 | D121: =IFERROR(RPMLoanType(B121),"Enable Macros") -> Amortizing | E121: =IFERROR(RPMInterestRate(B121),"Enable Macros") -> 0.045 | F121: =RPMBeginningBalance(B121,D121,J120) -> 968921.2234 | G121: =IFERROR(F121*(RPMCanadian(D121,E121)/12),"Enable Macros") -> 3633.454588 | H121: 4084.867802 | I121: =IFERROR(RPMTotalPayment(B121,D121,E121,F121),"Enable Macros") -> 7718.32239 | J121: 964836.3556
B122: 72 | C122: Dec 2027 | D122: =IFERROR(RPMLoanType(B122),"Enable Macros") -> Amortizing | E122: =IFERROR(RPMInterestRate(B122),"Enable Macros") -> 0.045 | F122: =RPMBeginningBalance(B122,D122,J121) -> 964836.3556 | G122: =IFERROR(F122*(RPMCanadian(D122,E122)/12),"Enable Macros") -> 3618.136333 | H122: 4100.186056 | I122: =IFERROR(RPMTotalPayment(B122,D122,E122,F122),"Enable Macros") -> 7718.32239 | J122: 960736.1695
B123: 73 | C123: Jan 2028 | D123: =IFERROR(RPMLoanType(B123),"Enable Macros") -> Amortizing | E123: =IFERROR(RPMInterestRate(B123),"Enable Macros") -> 0.045 | F123: =RPMBeginningBalance(B123,D123,J122) -> 960736.1695 | G123: =IFERROR(F123*(RPMCanadian(D123,E123)/12),"Enable Macros") -> 3602.760636 | H123: 4115.561754 | I123: =IFERROR(RPMTotalPayment(B123,D123,E123,F123),"Enable Macros") -> 7718.32239 | J123: 956620.6078
B124: 74 | C124: Feb 2028 | D124: =IFERROR(RPMLoanType(B124),"Enable Macros") -> Amortizing | E124: =IFERROR(RPMInterestRate(B124),"Enable Macros") -> 0.045 | F124: =RPMBeginningBalance(B124,D124,J123) -> 956620.6078 | G124: =IFERROR(F124*(RPMCanadian(D124,E124)/12),"Enable Macros") -> 3587.327279 | H124: 4130.995111 | I124: =IFERROR(RPMTotalPayment(B124,D124,E124,F124),"Enable Macros") -> 7718.32239 | J124: 952489.6127
B125: 75 | C125: Mar 2028 | D125: =IFERROR(RPMLoanType(B125),"Enable Macros") -> Amortizing | E125: =IFERROR(RPMInterestRate(B125),"Enable Macros") -> 0.045 | F125: =RPMBeginningBalance(B125,D125,J124) -> 952489.6127 | G125: =IFERROR(F125*(RPMCanadian(D125,E125)/12),"Enable Macros") -> 3571.836048 | H125: 4146.486342 | I125: =IFERROR(RPMTotalPayment(B125,D125,E125,F125),"Enable Macros") -> 7718.32239 | J125: 948343.1263
B126: 76 | C126: Apr 2028 | D126: =IFERROR(RPMLoanType(B126),"Enable Macros") -> Amortizing | E126: =IFERROR(RPMInterestRate(B126),"Enable Macros") -> 0.045 | F126: =RPMBeginningBalance(B126,D126,J125) -> 948343.1263 | G126: =IFERROR(F126*(RPMCanadian(D126,E126)/12),"Enable Macros") -> 3556.286724 | H126: 4162.035666 | I126: =IFERROR(RPMTotalPayment(B126,D126,E126,F126),"Enable Macros") -> 7718.32239 | J126: 944181.0907
B127: 77 | C127: May 2028 | D127: =IFERROR(RPMLoanType(B127),"Enable Macros") -> Amortizing | E127: =IFERROR(RPMInterestRate(B127),"Enable Macros") -> 0.045 | F127: =RPMBeginningBalance(B127,D127,J126) -> 944181.0907 | G127: =IFERROR(F127*(RPMCanadian(D127,E127)/12),"Enable Macros") -> 3540.67909 | H127: 4177.6433 | I127: =IFERROR(RPMTotalPayment(B127,D127,E127,F127),"Enable Macros") -> 7718.32239 | J127: 940003.4474
B128: 78 | C128: Jun 2028 | D128: =IFERROR(RPMLoanType(B128),"Enable Macros") -> Amortizing | E128: =IFERROR(RPMInterestRate(B128),"Enable Macros") -> 0.045 | F128: =RPMBeginningBalance(B128,D128,J127) -> 940003.4474 | G128: =IFERROR(F128*(RPMCanadian(D128,E128)/12),"Enable Macros") -> 3525.012928 | H128: 4193.309462 | I128: =IFERROR(RPMTotalPayment(B128,D128,E128,F128),"Enable Macros") -> 7718.32239 | J128: 935810.1379
B129: 79 | C129: Jul 2028 | D129: =IFERROR(RPMLoanType(B129),"Enable Macros") -> Amortizing | E129: =IFERROR(RPMInterestRate(B129),"Enable Macros") -> 0.045 | F129: =RPMBeginningBalance(B129,D129,J128) -> 935810.1379 | G129: =IFERROR(F129*(RPMCanadian(D129,E129)/12),"Enable Macros") -> 3509.288017 | H129: 4209.034373 | I129: =IFERROR(RPMTotalPayment(B129,D129,E129,F129),"Enable Macros") -> 7718.32239 | J129: 931601.1035
B130: 80 | C130: Aug 2028 | D130: =IFERROR(RPMLoanType(B130),"Enable Macros") -> Amortizing | E130: =IFERROR(RPMInterestRate(B130),"Enable Macros") -> 0.045 | F130: =RPMBeginningBalance(B130,D130,J129) -> 931601.1035 | G130: =IFERROR(F130*(RPMCanadian(D130,E130)/12),"Enable Macros") -> 3493.504138 | H130: 4224.818252 | I130: =IFERROR(RPMTotalPayment(B130,D130,E130,F130),"Enable Macros") -> 7718.32239 | J130: 927376.2853
B131: 81 | C131: Sep 2028 | D131: =IFERROR(RPMLoanType(B131),"Enable Macros") -> Amortizing | E131: =IFERROR(RPMInterestRate(B131),"Enable Macros") -> 0.045 | F131: =RPMBeginningBalance(B131,D131,J130) -> 927376.2853 | G131: =IFERROR(F131*(RPMCanadian(D131,E131)/12),"Enable Macros") -> 3477.66107 | H131: 4240.66132 | I131: =IFERROR(RPMTotalPayment(B131,D131,E131,F131),"Enable Macros") -> 7718.32239 | J131: 923135.624
B132: 82 | C132: Oct 2028 | D132: =IFERROR(RPMLoanType(B132),"Enable Macros") -> Amortizing | E132: =IFERROR(RPMInterestRate(B132),"Enable Macros") -> 0.045 | F132: =RPMBeginningBalance(B132,D132,J131) -> 923135.624 | G132: =IFERROR(F132*(RPMCanadian(D132,E132)/12),"Enable Macros") -> 3461.75859 | H132: 4256.5638 | I132: =IFERROR(RPMTotalPayment(B132,D132,E132,F132),"Enable Macros") -> 7718.32239 | J132: 918879.0602
B133: 83 | C133: Nov 2028 | D133: =IFERROR(RPMLoanType(B133),"Enable Macros") -> Amortizing | E133: =IFERROR(RPMInterestRate(B133),"Enable Macros") -> 0.045 | F133: =RPMBeginningBalance(B133,D133,J132) -> 918879.0602 | G133: =IFERROR(F133*(RPMCanadian(D133,E133)/12),"Enable Macros") -> 3445.796476 | H133: 4272.525914 | I133: =IFERROR(RPMTotalPayment(B133,D133,E133,F133),"Enable Macros") -> 7718.32239 | J133: 914606.5342
B134: 84 | C134: Dec 2028 | D134: =IFERROR(RPMLoanType(B134),"Enable Macros") -> Amortizing | E134: =IFERROR(RPMInterestRate(B134),"Enable Macros") -> 0.045 | F134: =RPMBeginningBalance(B134,D134,J133) -> 914606.5342 | G134: =IFERROR(F134*(RPMCanadian(D134,E134)/12),"Enable Macros") -> 3429.774503 | H134: 4288.547886 | I134: =IFERROR(RPMTotalPayment(B134,D134,E134,F134),"Enable Macros") -> 7718.32239 | J134: 910317.9864
B135: 85 | C135: Jan 2029 | D135: =IFERROR(RPMLoanType(B135),"Enable Macros") -> Amortizing | E135: =IFERROR(RPMInterestRate(B135),"Enable Macros") -> 0.045 | F135: =RPMBeginningBalance(B135,D135,J134) -> 910317.9864 | G135: =IFERROR(F135*(RPMCanadian(D135,E135)/12),"Enable Macros") -> 3413.692449 | H135: 4304.629941 | I135: =IFERROR(RPMTotalPayment(B135,D135,E135,F135),"Enable Macros") -> 7718.32239 | J135: 906013.3564
B136: 86 | C136: Feb 2029 | D136: =IFERROR(RPMLoanType(B136),"Enable Macros") -> Amortizing | E136: =IFERROR(RPMInterestRate(B136),"Enable Macros") -> 0.045 | F136: =RPMBeginningBalance(B136,D136,J135) -> 906013.3564 | G136: =IFERROR(F136*(RPMCanadian(D136,E136)/12),"Enable Macros") -> 3397.550087 | H136: 4320.772303 | I136: =IFERROR(RPMTotalPayment(B136,D136,E136,F136),"Enable Macros") -> 7718.32239 | J136: 901692.5841
B137: 87 | C137: Mar 2029 | D137: =IFERROR(RPMLoanType(B137),"Enable Macros") -> Amortizing | E137: =IFERROR(RPMInterestRate(B137),"Enable Macros") -> 0.045 | F137: =RPMBeginningBalance(B137,D137,J136) -> 901692.5841 | G137: =IFERROR(F137*(RPMCanadian(D137,E137)/12),"Enable Macros") -> 3381.34719 | H137: 4336.975199 | I137: =IFERROR(RPMTotalPayment(B137,D137,E137,F137),"Enable Macros") -> 7718.32239 | J137: 897355.6089
B138: 88 | C138: Apr 2029 | D138: =IFERROR(RPMLoanType(B138),"Enable Macros") -> Amortizing | E138: =IFERROR(RPMInterestRate(B138),"Enable Macros") -> 0.045 | F138: =RPMBeginningBalance(B138,D138,J137) -> 897355.6089 | G138: =IFERROR(F138*(RPMCanadian(D138,E138)/12),"Enable Macros") -> 3365.083533 | H138: 4353.238856 | I138: =IFERROR(RPMTotalPayment(B138,D138,E138,F138),"Enable Macros") -> 7718.32239 | J138: 893002.3701
B139: 89 | C139: May 2029 | D139: =IFERROR(RPMLoanType(B139),"Enable Macros") -> Amortizing | E139: =IFERROR(RPMInterestRate(B139),"Enable Macros") -> 0.045 | F139: =RPMBeginningBalance(B139,D139,J138) -> 893002.3701 | G139: =IFERROR(F139*(RPMCanadian(D139,E139)/12),"Enable Macros") -> 3348.758888 | H139: 4369.563502 | I139: =IFERROR(RPMTotalPayment(B139,D139,E139,F139),"Enable Macros") -> 7718.32239 | J139: 888632.8066
B140: 90 | C140: Jun 2029 | D140: =IFERROR(RPMLoanType(B140),"Enable Macros") -> Amortizing | E140: =IFERROR(RPMInterestRate(B140),"Enable Macros") -> 0.045 | F140: =RPMBeginningBalance(B140,D140,J139) -> 888632.8066 | G140: =IFERROR(F140*(RPMCanadian(D140,E140)/12),"Enable Macros") -> 3332.373025 | H140: 4385.949365 | I140: =IFERROR(RPMTotalPayment(B140,D140,E140,F140),"Enable Macros") -> 7718.32239 | J140: 884246.8572
B141: 91 | C141: Jul 2029 | D141: =IFERROR(RPMLoanType(B141),"Enable Macros") -> Amortizing | E141: =IFERROR(RPMInterestRate(B141),"Enable Macros") -> 0.045 | F141: =RPMBeginningBalance(B141,D141,J140) -> 884246.8572 | G141: =IFERROR(F141*(RPMCanadian(D141,E141)/12),"Enable Macros") -> 3315.925714 | H141: 4402.396675 | I141: =IFERROR(RPMTotalPayment(B141,D141,E141,F141),"Enable Macros") -> 7718.32239 | J141: 879844.4605
B142: 92 | C142: Aug 2029 | D142: =IFERROR(RPMLoanType(B142),"Enable Macros") -> Amortizing | E142: =IFERROR(RPMInterestRate(B142),"Enable Macros") -> 0.045 | F142: =RPMBeginningBalance(B142,D142,J141) -> 879844.4605 | G142: =IFERROR(F142*(RPMCanadian(D142,E142)/12),"Enable Macros") -> 3299.416727 | H142: 4418.905663 | I142: =IFERROR(RPMTotalPayment(B142,D142,E142,F142),"Enable Macros") -> 7718.32239 | J142: 875425.5549
B143: 93 | C143: Sep 2029 | D143: =IFERROR(RPMLoanType(B143),"Enable Macros") -> Amortizing | E143: =IFERROR(RPMInterestRate(B143),"Enable Macros") -> 0.045 | F143: =RPMBeginningBalance(B143,D143,J142) -> 875425.5549 | G143: =IFERROR(F143*(RPMCanadian(D143,E143)/12),"Enable Macros") -> 3282.845831 | H143: 4435.476559 | I143: =IFERROR(RPMTotalPayment(B143,D143,E143,F143),"Enable Macros") -> 7718.32239 | J143: 870990.0783
B144: 94 | C144: Oct 2029 | D144: =IFERROR(RPMLoanType(B144),"Enable Macros") -> Amortizing | E144: =IFERROR(RPMInterestRate(B144),"Enable Macros") -> 0.045 | F144: =RPMBeginningBalance(B144,D144,J143) -> 870990.0783 | G144: =IFERROR(F144*(RPMCanadian(D144,E144)/12),"Enable Macros") -> 3266.212794 | H144: 4452.109596 | I144: =IFERROR(RPMTotalPayment(B144,D144,E144,F144),"Enable Macros") -> 7718.32239 | J144: 866537.9687
B145: 95 | C145: Nov 2029 | D145: =IFERROR(RPMLoanType(B145),"Enable Macros") -> Amortizing | E145: =IFERROR(RPMInterestRate(B145),"Enable Macros") -> 0.045 | F145: =RPMBeginningBalance(B145,D145,J144) -> 866537.9687 | G145: =IFERROR(F145*(RPMCanadian(D145,E145)/12),"Enable Macros") -> 3249.517383 | H145: 4468.805007 | I145: =IFERROR(RPMTotalPayment(B145,D145,E145,F145),"Enable Macros") -> 7718.32239 | J145: 862069.1637
B146: 96 | C146: Dec 2029 | D146: =IFERROR(RPMLoanType(B146),"Enable Macros") -> Amortizing | E146: =IFERROR(RPMInterestRate(B146),"Enable Macros") -> 0.045 | F146: =RPMBeginningBalance(B146,D146,J145) -> 862069.1637 | G146: =IFERROR(F146*(RPMCanadian(D146,E146)/12),"Enable Macros") -> 3232.759364 | H146: 4485.563026 | I146: =IFERROR(RPMTotalPayment(B146,D146,E146,F146),"Enable Macros") -> 7718.32239 | J146: 857583.6007
B147: 97 | C147: Jan 2030 | D147: =IFERROR(RPMLoanType(B147),"Enable Macros") -> Amortizing | E147: =IFERROR(RPMInterestRate(B147),"Enable Macros") -> 0.045 | F147: =RPMBeginningBalance(B147,D147,J146) -> 857583.6007 | G147: =IFERROR(F147*(RPMCanadian(D147,E147)/12),"Enable Macros") -> 3215.938502 | H147: 4502.383887 | I147: =IFERROR(RPMTotalPayment(B147,D147,E147,F147),"Enable Macros") -> 7718.32239 | J147: =IF(B147<=SUM(Loan_Amortization,Loan_IO_Term),F147-H147,0) -> 853081.2168
B148: 98 | C148: Feb 2030 | D148: =IFERROR(RPMLoanType(B148),"Enable Macros") -> Amortizing | E148: =IFERROR(RPMInterestRate(B148),"Enable Macros") -> 0.045 | F148: =RPMBeginningBalance(B148,D148,J147) -> 853081.2168 | G148: =IFERROR(F148*(RPMCanadian(D148,E148)/12),"Enable Macros") -> 3199.054563 | H148: 4519.267827 | I148: =IFERROR(RPMTotalPayment(B148,D148,E148,F148),"Enable Macros") -> 7718.32239 | J148: 848561.949
B149: 99 | C149: Mar 2030 | D149: =IFERROR(RPMLoanType(B149),"Enable Macros") -> Amortizing | E149: =IFERROR(RPMInterestRate(B149),"Enable Macros") -> 0.045 | F149: =RPMBeginningBalance(B149,D149,J148) -> 848561.949 | G149: =IFERROR(F149*(RPMCanadian(D149,E149)/12),"Enable Macros") -> 3182.107309 | H149: 4536.215081 | I149: =IFERROR(RPMTotalPayment(B149,D149,E149,F149),"Enable Macros") -> 7718.32239 | J149: 844025.7339
B150: 100 | C150: Apr 2030 | D150: =IFERROR(RPMLoanType(B150),"Enable Macros") -> Amortizing | E150: =IFERROR(RPMInterestRate(B150),"Enable Macros") -> 0.045 | F150: =RPMBeginningBalance(B150,D150,J149) -> 844025.7339 | G150: =IFERROR(F150*(RPMCanadian(D150,E150)/12),"Enable Macros") -> 3165.096502 | H150: 4553.225888 | I150: =IFERROR(RPMTotalPayment(B150,D150,E150,F150),"Enable Macros") -> 7718.32239 | J150: 839472.508
B151: 101 | C151: May 2030 | D151: =IFERROR(RPMLoanType(B151),"Enable Macros") -> Amortizing | E151: =IFERROR(RPMInterestRate(B151),"Enable Macros") -> 0.045 | F151: =RPMBeginningBalance(B151,D151,J150) -> 839472.508 | G151: =IFERROR(F151*(RPMCanadian(D151,E151)/12),"Enable Macros") -> 3148.021905 | H151: 4570.300485 | I151: =IFERROR(RPMTotalPayment(B151,D151,E151,F151),"Enable Macros") -> 7718.32239 | J151: 834902.2075
B152: 102 | C152: Jun 2030 | D152: =IFERROR(RPMLoanType(B152),"Enable Macros") -> Amortizing | E152: =IFERROR(RPMInterestRate(B152),"Enable Macros") -> 0.045 | F152: =RPMBeginningBalance(B152,D152,J151) -> 834902.2075 | G152: =IFERROR(F152*(RPMCanadian(D152,E152)/12),"Enable Macros") -> 3130.883278 | H152: 4587.439112 | I152: =IFERROR(RPMTotalPayment(B152,D152,E152,F152),"Enable Macros") -> 7718.32239 | J152: 830314.7684
B153: 103 | C153: Jul 2030 | D153: =IFERROR(RPMLoanType(B153),"Enable Macros") -> Amortizing | E153: =IFERROR(RPMInterestRate(B153),"Enable Macros") -> 0.045 | F153: =RPMBeginningBalance(B153,D153,J152) -> 830314.7684 | G153: =IFERROR(F153*(RPMCanadian(D153,E153)/12),"Enable Macros") -> 3113.680381 | H153: 4604.642008 | I153: =IFERROR(RPMTotalPayment(B153,D153,E153,F153),"Enable Macros") -> 7718.32239 | J153: 825710.1264
B154: 104 | C154: Aug 2030 | D154: =IFERROR(RPMLoanType(B154),"Enable Macros") -> Amortizing | E154: =IFERROR(RPMInterestRate(B154),"Enable Macros") -> 0.045 | F154: =RPMBeginningBalance(B154,D154,J153) -> 825710.1264 | G154: =IFERROR(F154*(RPMCanadian(D154,E154)/12),"Enable Macros") -> 3096.412974 | H154: 4621.909416 | I154: =IFERROR(RPMTotalPayment(B154,D154,E154,F154),"Enable Macros") -> 7718.32239 | J154: 821088.217
B155: 105 | C155: Sep 2030 | D155: =IFERROR(RPMLoanType(B155),"Enable Macros") -> Amortizing | E155: =IFERROR(RPMInterestRate(B155),"Enable Macros") -> 0.045 | F155: =RPMBeginningBalance(B155,D155,J154) -> 821088.217 | G155: =IFERROR(F155*(RPMCanadian(D155,E155)/12),"Enable Macros") -> 3079.080814 | H155: 4639.241576 | I155: =IFERROR(RPMTotalPayment(B155,D155,E155,F155),"Enable Macros") -> 7718.32239 | J155: 816448.9754
B156: 106 | C156: Oct 2030 | D156: =IFERROR(RPMLoanType(B156),"Enable Macros") -> Amortizing | E156: =IFERROR(RPMInterestRate(B156),"Enable Macros") -> 0.045 | F156: =RPMBeginningBalance(B156,D156,J155) -> 816448.9754 | G156: =IFERROR(F156*(RPMCanadian(D156,E156)/12),"Enable Macros") -> 3061.683658 | H156: 4656.638732 | I156: =IFERROR(RPMTotalPayment(B156,D156,E156,F156),"Enable Macros") -> 7718.32239 | J156: 811792.3367
B157: 107 | C157: Nov 2030 | D157: =IFERROR(RPMLoanType(B157),"Enable Macros") -> Amortizing | E157: =IFERROR(RPMInterestRate(B157),"Enable Macros") -> 0.045 | F157: =RPMBeginningBalance(B157,D157,J156) -> 811792.3367 | G157: =IFERROR(F157*(RPMCanadian(D157,E157)/12),"Enable Macros") -> 3044.221262 | H157: 4674.101127 | I157: =IFERROR(RPMTotalPayment(B157,D157,E157,F157),"Enable Macros") -> 7718.32239 | J157: 807118.2355
B158: 108 | C158: Dec 2030 | D158: =IFERROR(RPMLoanType(B158),"Enable Macros") -> Amortizing | E158: =IFERROR(RPMInterestRate(B158),"Enable Macros") -> 0.045 | F158: =RPMBeginningBalance(B158,D158,J157) -> 807118.2355 | G158: =IFERROR(F158*(RPMCanadian(D158,E158)/12),"Enable Macros") -> 3026.693383 | H158: 4691.629007 | I158: =IFERROR(RPMTotalPayment(B158,D158,E158,F158),"Enable Macros") -> 7718.32239 | J158: 802426.6065
B159: 109 | C159: Jan 2031 | D159: =IFERROR(RPMLoanType(B159),"Enable Macros") -> Amortizing | E159: =IFERROR(RPMInterestRate(B159),"Enable Macros") -> 0.045 | F159: =RPMBeginningBalance(B159,D159,J158) -> 802426.6065 | G159: =IFERROR(F159*(RPMCanadian(D159,E159)/12),"Enable Macros") -> 3009.099774 | H159: 4709.222615 | I159: =IFERROR(RPMTotalPayment(B159,D159,E159,F159),"Enable Macros") -> 7718.32239 | J159: 797717.3839
B160: 110 | C160: Feb 2031 | D160: =IFERROR(RPMLoanType(B160),"Enable Macros") -> Amortizing | E160: =IFERROR(RPMInterestRate(B160),"Enable Macros") -> 0.045 | F160: =RPMBeginningBalance(B160,D160,J159) -> 797717.3839 | G160: =IFERROR(F160*(RPMCanadian(D160,E160)/12),"Enable Macros") -> 2991.44019 | H160: 4726.8822 | I160: =IFERROR(RPMTotalPayment(B160,D160,E160,F160),"Enable Macros") -> 7718.32239 | J160: 792990.5017
B161: 111 | C161: Mar 2031 | D161: =IFERROR(RPMLoanType(B161),"Enable Macros") -> Amortizing | E161: =IFERROR(RPMInterestRate(B161),"Enable Macros") -> 0.045 | F161: =RPMBeginningBalance(B161,D161,J160) -> 792990.5017 | G161: =IFERROR(F161*(RPMCanadian(D161,E161)/12),"Enable Macros") -> 2973.714381 | H161: 4744.608009 | I161: =IFERROR(RPMTotalPayment(B161,D161,E161,F161),"Enable Macros") -> 7718.32239 | J161: 788245.8937
B162: 112 | C162: Apr 2031 | D162: =IFERROR(RPMLoanType(B162),"Enable Macros") -> Amortizing | E162: =IFERROR(RPMInterestRate(B162),"Enable Macros") -> 0.045 | F162: =RPMBeginningBalance(B162,D162,J161) -> 788245.8937 | G162: =IFERROR(F162*(RPMCanadian(D162,E162)/12),"Enable Macros") -> 2955.922101 | H162: 4762.400289 | I162: =IFERROR(RPMTotalPayment(B162,D162,E162,F162),"Enable Macros") -> 7718.32239 | J162: 783483.4934
B163: 113 | C163: May 2031 | D163: =IFERROR(RPMLoanType(B163),"Enable Macros") -> Amortizing | E163: =IFERROR(RPMInterestRate(B163),"Enable Macros") -> 0.045 | F163: =RPMBeginningBalance(B163,D163,J162) -> 783483.4934 | G163: =IFERROR(F163*(RPMCanadian(D163,E163)/12),"Enable Macros") -> 2938.0631 | H163: 4780.25929 | I163: =IFERROR(RPMTotalPayment(B163,D163,E163,F163),"Enable Macros") -> 7718.32239 | J163: 778703.2341
B164: 114 | C164: Jun 2031 | D164: =IFERROR(RPMLoanType(B164),"Enable Macros") -> Amortizing | E164: =IFERROR(RPMInterestRate(B164),"Enable Macros") -> 0.045 | F164: =RPMBeginningBalance(B164,D164,J163) -> 778703.2341 | G164: =IFERROR(F164*(RPMCanadian(D164,E164)/12),"Enable Macros") -> 2920.137128 | H164: 4798.185262 | I164: =IFERROR(RPMTotalPayment(B164,D164,E164,F164),"Enable Macros") -> 7718.32239 | J164: 773905.0489
B165: 115 | C165: Jul 2031 | D165: =IFERROR(RPMLoanType(B165),"Enable Macros") -> Amortizing | E165: =IFERROR(RPMInterestRate(B165),"Enable Macros") -> 0.045 | F165: =RPMBeginningBalance(B165,D165,J164) -> 773905.0489 | G165: =IFERROR(F165*(RPMCanadian(D165,E165)/12),"Enable Macros") -> 2902.143933 | H165: 4816.178457 | I165: =IFERROR(RPMTotalPayment(B165,D165,E165,F165),"Enable Macros") -> 7718.32239 | J165: 769088.8704
B166: 116 | C166: Aug 2031 | D166: =IFERROR(RPMLoanType(B166),"Enable Macros") -> Amortizing | E166: =IFERROR(RPMInterestRate(B166),"Enable Macros") -> 0.045 | F166: =RPMBeginningBalance(B166,D166,J165) -> 769088.8704 | G166: =IFERROR(F166*(RPMCanadian(D166,E166)/12),"Enable Macros") -> 2884.083264 | H166: 4834.239126 | I166: =IFERROR(RPMTotalPayment(B166,D166,E166,F166),"Enable Macros") -> 7718.32239 | J166: 764254.6313
B167: 117 | C167: Sep 2031 | D167: =IFERROR(RPMLoanType(B167),"Enable Macros") -> Amortizing | E167: =IFERROR(RPMInterestRate(B167),"Enable Macros") -> 0.045 | F167: =RPMBeginningBalance(B167,D167,J166) -> 764254.6313 | G167: =IFERROR(F167*(RPMCanadian(D167,E167)/12),"Enable Macros") -> 2865.954867 | H167: 4852.367523 | I167: =IFERROR(RPMTotalPayment(B167,D167,E167,F167),"Enable Macros") -> 7718.32239 | J167: 759402.2637
B168: 118 | C168: Oct 2031 | D168: =IFERROR(RPMLoanType(B168),"Enable Macros") -> Amortizing | E168: =IFERROR(RPMInterestRate(B168),"Enable Macros") -> 0.045 | F168: =RPMBeginningBalance(B168,D168,J167) -> 759402.2637 | G168: =IFERROR(F168*(RPMCanadian(D168,E168)/12),"Enable Macros") -> 2847.758489 | H168: 4870.563901 | I168: =IFERROR(RPMTotalPayment(B168,D168,E168,F168),"Enable Macros") -> 7718.32239 | J168: 754531.6998
B169: 119 | C169: Nov 2031 | D169: =IFERROR(RPMLoanType(B169),"Enable Macros") -> Amortizing | E169: =IFERROR(RPMInterestRate(B169),"Enable Macros") -> 0.045 | F169: =RPMBeginningBalance(B169,D169,J168) -> 754531.6998 | G169: =IFERROR(F169*(RPMCanadian(D169,E169)/12),"Enable Macros") -> 2829.493874 | H169: 4888.828515 | I169: =IFERROR(RPMTotalPayment(B169,D169,E169,F169),"Enable Macros") -> 7718.32239 | J169: 749642.8713
B170: 120 | C170: Dec 2031 | D170: =IFERROR(RPMLoanType(B170),"Enable Macros") -> Amortizing | E170: =IFERROR(RPMInterestRate(B170),"Enable Macros") -> 0.045 | F170: =RPMBeginningBalance(B170,D170,J169) -> 749642.8713 | G170: =IFERROR(F170*(RPMCanadian(D170,E170)/12),"Enable Macros") -> 2811.160767 | H170: 4907.161622 | I170: =IFERROR(RPMTotalPayment(B170,D170,E170,F170),"Enable Macros") -> 7718.32239 | J170: 744735.7097

Sheet Sources & Uses
B2: Sources & Uses
B4: Period | C4: 0 | D4: 1 | E4: 2 | F4: 3 | G4: 4 | H4: 5 | I4: 6 | J4: 7 | K4: 8 | L4: 9 | M4: 10 | N4: Total
D5: =RPMDateSpan(D4,1) -> Jan 22 - Dec 22 | E5: =RPMDateSpan(E4,1) -> Jan 23 - Dec 23 | F5: Jan 24 - Dec 24 | G5: Jan 25 - Dec 25 | H5: Jan 26 - Dec 26 | I5: Jan 27 - Dec 27 | J5: Jan 28 - Dec 28 | K5: Jan 29 - Dec 29 | L5: Jan 30 - Dec 30 | M5: Jan 31 - Dec 31
B7: Sources Of Capital
B8: Debt Proceeds | C8: =IF(AND(Loan_IO_Status="Fund Up",Loan_IO_Term>0,Loan_IO_Approval="Yes"),0,Loan_Amount) -> 1220000 | D8: =IF(AND(Loan_IO_Status<>"Fund Up",Loan_IO_Approval="No"),0,IF(D4*12<=Loan_IO_MonthFunded,VLOOKUP(D4,Amortization_Schedule_Annual,9,FALSE)-SUM($C$8:C8),IF(AND(Loan_IO_MonthFunded>C4*12,Loan_IO_MonthFunded<=D4*12),Loan_Amount-SUM($C$8:C8),0))) -> -38507.64817 | E8: =IF(AND(Loan_IO_Status<>"Fund Up",Loan_IO_Approval="No"),0,IF(E4*12<=Loan_IO_MonthFunded,VLOOKUP(E4,Amortization_Schedule_Annual,9,FALSE)-SUM($C$8:D8),IF(AND(Loan_IO_MonthFunded>D4*12,Loan_IO_MonthFunded<=E4*12),Loan_Amount-SUM($C$8:D8),0))) -> 0 | F8: =IF(AND(Loan_IO_Status<>"Fund Up",Loan_IO_Approval="No"),0,IF(F4*12<=Loan_IO_MonthFunded,VLOOKUP(F4,Amortization_Schedule_Annual,9,FALSE)-SUM($C$8:E8),IF(AND(Loan_IO_MonthFunded>E4*12,Loan_IO_MonthFunded<=F4*12),Loan_Amount-SUM($C$8:E8),0))) -> 0 | G8: =IF(AND(Loan_IO_Status<>"Fund Up",Loan_IO_Approval="No"),0,IF(G4*12<=Loan_IO_MonthFunded,VLOOKUP(G4,Amortization_Schedule_Annual,9,FALSE)-SUM($C$8:F8),IF(AND(Loan_IO_MonthFunded>F4*12,Loan_IO_MonthFunded<=G4*12),Loan_Amount-SUM($C$8:F8),0))) -> 0 | H8: =IF(AND(Loan_IO_Status<>"Fund Up",Loan_IO_Approval="No"),0,IF(H4*12<=Loan_IO_MonthFunded,VLOOKUP(H4,Amortization_Schedule_Annual,9,FALSE)-SUM($C$8:G8),IF(AND(Loan_IO_MonthFunded>G4*12,Loan_IO_MonthFunded<=H4*12),Loan_Amount-SUM($C$8:G8),0))) -> 0 | I8: =IF(AND(Loan_IO_Status<>"Fund Up",Loan_IO_Approval="No"),0,IF(I4*12<=Loan_IO_MonthFunded,VLOOKUP(I4,Amortization_Schedule_Annual,9,FALSE)-SUM($C$8:H8),IF(AND(Loan_IO_MonthFunded>H4*12,Loan_IO_MonthFunded<=I4*12),Loan_Amount-SUM($C$8:H8),0))) -> 0 | J8: =IF(AND(Loan_IO_Status<>"Fund Up",Loan_IO_Approval="No"),0,IF(J4*12<=Loan_IO_MonthFunded,VLOOKUP(J4,Amortization_Schedule_Annual,9,FALSE)-SUM($C$8:I8),IF(AND(Loan_IO_MonthFunded>I4*12,Loan_IO_MonthFunded<=J4*12),Loan_Amount-SUM($C$8:I8),0))) -> 0 | K8: =IF(AND(Loan_IO_Status<>"Fund Up",Loan_IO_Approval="No"),0,IF(K4*12<=Loan_IO_MonthFunded,VLOOKUP(K4,Amortization_Schedule_Annual,9,FALSE)-SUM($C$8:J8),IF(AND(Loan_IO_MonthFunded>J4*12,Loan_IO_MonthFunded<=K4*12),Loan_Amount-SUM($C$8:J8),0))) -> 0 | L8: =IF(AND(Loan_IO_Status<>"Fund Up",Loan_IO_Approval="No"),0,IF(L4*12<=Loan_IO_MonthFunded,VLOOKUP(L4,Amortization_Schedule_Annual,9,FALSE)-SUM($C$8:K8),IF(AND(Loan_IO_MonthFunded>K4*12,Loan_IO_MonthFunded<=L4*12),Loan_Amount-SUM($C$8:K8),0))) -> 0 | M8: =IF(AND(Loan_IO_Status<>"Fund Up",Loan_IO_Approval="No"),0,IF(M4*12<=Loan_IO_MonthFunded,VLOOKUP(M4,Amortization_Schedule_Annual,9,FALSE)-SUM($C$8:L8),IF(AND(Loan_IO_MonthFunded>L4*12,Loan_IO_MonthFunded<=M4*12),Loan_Amount-SUM($C$8:L8),0))) -> 0 | N8: =SUM(C8:M8) -> 1181492.352
B9: Refinance Proceeds | C9: 0 | D9: =IF(Hold<D4,0,IF(ROUNDUP((Loan_IO_Term+1)/12,0)=D4,Loan_Amount_Amortizing-Loan_Amount,0)) -> 0 | E9: 0 | F9: 0 | G9: 0 | H9: 0 | I9: 0 | J9: 0 | K9: 0 | L9: 0 | M9: 0 | N9: =SUM(C9:M9) -> 0
B10: Equity Contributions | C10: =Equity_Amount -> 792200 | D10: =IF('Return Detail'!F85<0,-'Return Detail'!F85,0) -> 0 | E10: =IF('Return Detail'!G85<0,-'Return Detail'!G85,0) -> 0 | F10: =IF('Return Detail'!H85<0,-'Return Detail'!H85,0) -> 0 | G10: =IF('Return Detail'!I85<0,-'Return Detail'!I85,0) -> 0 | H10: =IF('Return Detail'!J85<0,-'Return Detail'!J85,0) -> 0 | I10: =IF('Return Detail'!K85<0,-'Return Detail'!K85,0) -> 0 | J10: =IF('Return Detail'!L85<0,-'Return Detail'!L85,0) -> 2517.399865 | K10: =IF('Return Detail'!M85<0,-'Return Detail'!M85,0) -> 28198.01293 | L10: =IF('Return Detail'!N85<0,-'Return Detail'!N85,0) -> 24650.57396 | M10: =IF('Return Detail'!O85<0,-'Return Detail'!O85,0) -> 0 | N10: =SUM(C10:M10) -> 847565.9868
B11: Net Operating Income | C11: 0 | D11: =IF('Return Detail'!F$6>0,'Return Detail'!F$6,0) -> 118520.8 | E11: =IF('Return Detail'!G$6>0,'Return Detail'!G$6,0) -> 116681.8 | F11: =IF('Return Detail'!H$6>0,'Return Detail'!H$6,0) -> 88965.52028 | G11: =IF('Return Detail'!I$6>0,'Return Detail'!I$6,0) -> 120568.4133 | H11: =IF('Return Detail'!J$6>0,'Return Detail'!J$6,0) -> 101861.3179 | I11: =IF('Return Detail'!K$6>0,'Return Detail'!K$6,0) -> 140118.4194 | J11: =IF('Return Detail'!L$6>0,'Return Detail'!L$6,0) -> 142856.477 | K11: =IF('Return Detail'!M$6>0,'Return Detail'!M$6,0) -> 126967.1361 | L11: =IF('Return Detail'!N$6>0,'Return Detail'!N$6,0) -> 157513.8314 | M11: =IF('Return Detail'!O$6>0,'Return Detail'!O$6,0) -> 162539.9639 | N11: 1276593.679
B12: Non-Regular Income | C12: 0 | D12: ='Return Detail'!F$8 -> 0 | E12: ='Return Detail'!G$8 -> 0 | F12: ='Return Detail'!H$8 -> 3654.3484 | G12: ='Return Detail'!I$8 -> 0 | H12: ='Return Detail'!J$8 -> 0 | I12: ='Return Detail'!K$8 -> 0 | J12: ='Return Detail'!L$8 -> 0 | K12: ='Return Detail'!M$8 -> 0 | L12: ='Return Detail'!N$8 -> 0 | M12: ='Return Detail'!O$8 -> 10000 | N12: 13654.3484
B13: Reserve Draw for Taxes | C13: 0 | D13: ='Return Detail'!F$82 -> 0 | E13: ='Return Detail'!G$82 -> 584.9520385 | F13: ='Return Detail'!H$82 -> 64550.45844 | G13: ='Return Detail'!I$82 -> 0 | H13: ='Return Detail'!J$82 -> 67650.0372 | I13: ='Return Detail'!K$82 -> 0 | J13: ='Return Detail'!L$82 -> 33560.20392 | K13: ='Return Detail'!M$82 -> 10000 | L13: ='Return Detail'!N$82 -> 10000 | M13: ='Return Detail'!O$82 -> 0 | N13: 186345.6516
B14: Gross Proceeds from Sale | C14: 0 | D14: ='Return Detail'!F$10 -> 0 | E14: ='Return Detail'!G$10 -> 0 | F14: ='Return Detail'!H$10 -> 0 | G14: ='Return Detail'!I$10 -> 0 | H14: ='Return Detail'!J$10 -> 0 | I14: ='Return Detail'!K$10 -> 0 | J14: ='Return Detail'!L$10 -> 0 | K14: ='Return Detail'!M$10 -> 0 | L14: ='Return Detail'!N$10 -> 0 | M14: ='Return Detail'!O$10 -> 2734023.05 | N14: 2734023.05
B15: Total Sources Of Capital | C15: =SUM(C8:C14) -> 2012200 | D15: 80013.15183 | E15: 117266.752 | F15: 157170.3271 | G15: 120568.4133 | H15: 169511.3551 | I15: 140118.4194 | J15: 178934.0808 | K15: 165165.149 | L15: 192164.4053 | M15: 2906563.014 | N15: 6239675.068
B17: Uses Of Capital
B18: =IF(Project_Type="Acquisition","Acquisition Price","Development Costs") -> Acquisition Price | C18: =IF(AND(Loan_IO_Status="Fund Up",Loan_IO_Term>0,Loan_IO_Approval="Yes"),Equity_Amount-SUM(C19:C32),Acquisition_Gross) -> 1900000 | D18: =D8 -> -38507.64817 | E18: =E8 -> 0 | F18: 0 | G18: 0 | H18: 0 | I18: 0 | J18: 0 | K18: 0 | L18: 0 | M18: 0 | N18: =SUM(C18:M18) -> 1861492.352
B19: Costs and Fees | C19: =SUM(Due_Diligence_Cost,Loan_Fee) -> 12200 | D19: =-SUM('Return Detail'!F34,'Return Detail'!F28) -> 0 | E19: =-SUM('Return Detail'!G34,'Return Detail'!G28) -> 0 | F19: =-SUM('Return Detail'!H34,'Return Detail'!H28) -> 0 | G19: =-SUM('Return Detail'!I34,'Return Detail'!I28) -> 0 | H19: =-SUM('Return Detail'!J34,'Return Detail'!J28) -> 0 | I19: =-SUM('Return Detail'!K34,'Return Detail'!K28) -> 0 | J19: =-SUM('Return Detail'!L34,'Return Detail'!L28) -> 0 | K19: =-SUM('Return Detail'!M34,'Return Detail'!M28) -> 0 | L19: =-SUM('Return Detail'!N34,'Return Detail'!N28) -> 0 | M19: =-SUM('Return Detail'!O34,'Return Detail'!O28) -> 27340.2305 | N19: =SUM(C19:M19) -> 39540.2305
B20: Initial Reserve Accounts | C20: =SUM(Reserve_CapEx_Initial,Reserve_Operating,Reserve_TILC) -> 100000 | D20: 0 | E20: 0 | F20: 0 | G20: 0 | H20: 0 | I20: 0 | J20: 0 | K20: 0 | L20: 0 | M20: 0 | N20: 100000
B21: Operating Requirements | C21: 0 | D21: =IF('Return Detail'!F25<0,-'Return Detail'!F25,0) -> 0 | E21: =IF('Return Detail'!G25<0,-'Return Detail'!G25,0) -> 0 | F21: =IF('Return Detail'!H25<0,-'Return Detail'!H25,0) -> 0 | G21: =IF('Return Detail'!I25<0,-'Return Detail'!I25,0) -> 0 | H21: =IF('Return Detail'!J25<0,-'Return Detail'!J25,0) -> 0 | I21: =IF('Return Detail'!K25<0,-'Return Detail'!K25,0) -> 0 | J21: =IF('Return Detail'!L25<0,-'Return Detail'!L25,0) -> 0 | K21: =IF('Return Detail'!M25<0,-'Return Detail'!M25,0) -> 0 | L21: =IF('Return Detail'!N25<0,-'Return Detail'!N25,0) -> 0 | M21: =IF('Return Detail'!O25<0,-'Return Detail'!O25,0) -> 0 | N21: =SUM(C21:M21) -> 0
B22: Mortgage Balance Payoff | C22: 0 | D22: =-'Return Detail'!F72 -> 0 | E22: =-'Return Detail'!G72 -> 0 | F22: =-'Return Detail'!H72 -> 0 | G22: =-'Return Detail'!I72 -> 0 | H22: =-'Return Detail'!J72 -> 0 | I22: =-'Return Detail'!K72 -> 0 | J22: =-'Return Detail'!L72 -> 0 | K22: =-'Return Detail'!M72 -> 0 | L22: =-'Return Detail'!N72 -> 0 | M22: =-'Return Detail'!O72 -> 744735.7097 | N22: =SUM(C22:M22) -> 744735.7097
B23: Mortgage Exit Fee | C23: 0 | D23: =-'Return Detail'!F36 -> 0 | E23: =-'Return Detail'!G36 -> 0 | F23: =-'Return Detail'!H36 -> 0 | G23: =-'Return Detail'!I36 -> 0 | H23: =-'Return Detail'!J36 -> 0 | I23: =-'Return Detail'!K36 -> 0 | J23: =-'Return Detail'!L36 -> 0 | K23: =-'Return Detail'!M36 -> 0 | L23: =-'Return Detail'!N36 -> 0 | M23: =-'Return Detail'!O36 -> 0 | N23: =SUM(C23:M23) -> 0
B24: Annual Interest Expense | C24: 0 | D24: =IF(D4>Hold,0,VLOOKUP(D$4,Amortization_Schedule_Annual,6,FALSE)) -> 54112.22051 | E24: 52343.18589 | F24: 50492.88213 | G24: 48557.57574 | H24: 46533.36171 | I24: 44416.15564 | J24: 42201.6855 | K24: 39885.48298 | L24: 37462.87453 | M24: 34928.97187 | N24: 450934.3965
B25: Less: Budgeted Interest | C25: 0 | D25: =IF(D4>Hold,0,'Cash Flows'!F$81) -> 0 | E25: =IF(E4>Hold,0,'Cash Flows'!G$81) -> 0 | F25: =IF(F4>Hold,0,'Cash Flows'!H$81) -> 0 | G25: =IF(G4>Hold,0,'Cash Flows'!I$81) -> 0 | H25: =IF(H4>Hold,0,'Cash Flows'!J$81) -> 0 | I25: =IF(I4>Hold,0,'Cash Flows'!K$81) -> 0 | J25: =IF(J4>Hold,0,'Cash Flows'!L$81) -> 0 | K25: =IF(K4>Hold,0,'Cash Flows'!M$81) -> 0 | L25: =IF(L4>Hold,0,'Cash Flows'!N$81) -> 0 | M25: =IF(M4>Hold,0,'Cash Flows'!O$81) -> 0 | N25: 0
B26: Annual Principal Paydown | C26: 0 | D26: =IF(D4>Hold,0,VLOOKUP(D$4,Amortization_Schedule_Annual,7,FALSE)) -> 38507.64817 | E26: 40276.68279 | F26: 42126.98655 | G26: 44062.29294 | H26: 46086.50697 | I26: 48203.71304 | J26: 50418.18318 | K26: 52734.38569 | L26: 55156.99415 | M26: 57690.89681 | N26: 475264.2903
B27: Capital Expenses | C27: 0 | D27: =-'Return Detail'!F30 -> 0 | E27: =-'Return Detail'!G30 -> 0 | F27: =-'Return Detail'!H30 -> 48956.66667 | G27: =-'Return Detail'!I30 -> 0 | H27: =-'Return Detail'!J30 -> 55398.33333 | I27: =-'Return Detail'!K30 -> 0 | J27: =-'Return Detail'!L30 -> 48956.66667 | K27: =-'Return Detail'!M30 -> 39938.33333 | L27: =-'Return Detail'!N30 -> 55398.33333 | M27: =-'Return Detail'!O30 -> 0 | N27: 248648.3333
B28: Operating Tax Liability | C28: 0 | D28: =-'Return Detail'!F81 -> 25137.7923 | E28: =-'Return Detail'!G81 -> 24646.88336 | F28: =-'Return Detail'!H81 -> 15593.79177 | G28: =-'Return Detail'!I81 -> 27332.16157 | H28: =-'Return Detail'!J81 -> 21493.15309 | I28: =-'Return Detail'!K81 -> 35624.16075 | J28: =-'Return Detail'!L81 -> 37357.54545 | K28: =-'Return Detail'!M81 -> 32606.94701 | L28: =-'Return Detail'!N81 -> 44146.20331 | M28: =-'Return Detail'!O81 -> 46831.6367 | N28: 310770.2753
B29: Ordinary Income Tax Liability | C29: 0 | D29: =-'Return Detail'!F74 -> 0 | E29: =-'Return Detail'!G74 -> 0 | F29: =-'Return Detail'!H74 -> 0 | G29: =-'Return Detail'!I74 -> 0 | H29: =-'Return Detail'!J74 -> 0 | I29: =-'Return Detail'!K74 -> 0 | J29: =-'Return Detail'!L74 -> 0 | K29: =-'Return Detail'!M74 -> 0 | L29: =-'Return Detail'!N74 -> 0 | M29: =-'Return Detail'!O74 -> 0 | N29: 0
B30: Cost Recovery Tax Liability | C30: 0 | D30: =-'Return Detail'!F75 -> 0 | E30: =-'Return Detail'!G75 -> 0 | F30: =-'Return Detail'!H75 -> 0 | G30: =-'Return Detail'!I75 -> 0 | H30: =-'Return Detail'!J75 -> 0 | I30: =-'Return Detail'!K75 -> 0 | J30: =-'Return Detail'!L75 -> 0 | K30: =-'Return Detail'!M75 -> 0 | L30: =-'Return Detail'!N75 -> 0 | M30: =-'Return Detail'!O75 -> 6691.052632 | N30: 6691.052632
B31: Capital Gains Tax Liability | C31: 0 | D31: =-'Return Detail'!F76 -> 0 | E31: =-'Return Detail'!G76 -> 0 | F31: =-'Return Detail'!H76 -> 0 | G31: =-'Return Detail'!I76 -> 0 | H31: =-'Return Detail'!J76 -> 0 | I31: =-'Return Detail'!K76 -> 0 | J31: =-'Return Detail'!L76 -> 0 | K31: =-'Return Detail'!M76 -> 0 | L31: =-'Return Detail'!N76 -> 0 | M31: =-'Return Detail'!O76 -> 141336.5639 | N31: 141336.5639
B32: Equity Returns | C32: 0 | D32: =IF('Return Detail'!F85>0,'Return Detail'!F85,0) -> 763.1390257 | E32: =IF('Return Detail'!G85>0,'Return Detail'!G85,0) -> 0 | F32: =IF('Return Detail'!H85>0,'Return Detail'!H85,0) -> 0 | G32: =IF('Return Detail'!I85>0,'Return Detail'!I85,0) -> 616.3830574 | H32: =IF('Return Detail'!J85>0,'Return Detail'!J85,0) -> 0 | I32: =IF('Return Detail'!K85>0,'Return Detail'!K85,0) -> 11874.39 | J32: =IF('Return Detail'!L85>0,'Return Detail'!L85,0) -> 0 | K32: =IF('Return Detail'!M85>0,'Return Detail'!M85,0) -> 0 | L32: =IF('Return Detail'!N85>0,'Return Detail'!N85,0) -> 0 | M32: =IF('Return Detail'!O85>0,'Return Detail'!O85,0) -> 1847007.952 | N32: 1860261.864
B33: Total Uses Of Capital | C33: =SUM(C18:C32) -> 2012200 | D33: =SUM(D18:D32) -> 80013.15183 | E33: 117266.752 | F33: 157170.3271 | G33: 120568.4133 | H33: 169511.3551 | I33: 140118.4194 | J33: 178934.0808 | K33: 165165.149 | L33: 192164.4053 | M33: 2906563.014 | N33: 6239675.068
B37: www.realpropmetrics.com
B38: ="Version: "&Version -> Version: 9.42 C | © 2022
B39: =TODAY() -> 2022-02-23

Sheet Equity Investor Returns
B2: =IF(LEFT(B21,3)="Pre","Pre-Tax Equity Investor Returns","Post-Tax Equity Investor Returns") -> Pre-Tax Equity Investor Returns
Q3: Year | R3: 1 | S3: 2 | T3: 3 | U3: 4 | V3: 5 | W3: 6 | X3: 7 | Y3: 8 | Z3: 9 | AA3: 10
Q4: Equity Investor | R4: =E32 -> 25900.93132 | S4: =F32 -> 24061.93132 | T4: -48956.66667 | U4: 27948.54463 | V4: -46156.88412 | W4: 47498.55075 | X4: 1279.941668 | Y4: -5591.065918 | Z4: 9495.629349 | AA4: 1060893.65
Q5: Developer | R5: =E47 -> 0 | S5: =F47 -> 0 | T5: 0 | U5: 0 | V5: 0 | W5: 0 | X5: 0 | Y5: 0 | Z5: 0 | AA5: 980973.5549
E6: Cash Flow Distribution
C7: Method | D7: Basis | E7: Rate | F7: Equity Investor Split | G7: Developer Split
B8: Initial Equity Contribution | F8: =Contribution_JV -> 0.9 | G8: =Contribution_Developer -> 0.1
B9: Preferred Return | C9: Cumulative | D9: Cash on Cash | E9: =Equity_Rate -> 0.1 | F9: 1 | G9: =1-Pref_Investor -> 0
B10: Hurdle 1 | D10: =D9 -> Cash on Cash | E10: =Preferred_Return_Rate+0.02 -> 0.12 | F10: =F8 -> 0.9 | G10: =1-F10 -> 0.1
B11: Hurdle 2 | D11: =D10 -> Cash on Cash | E11: =Hurdle1_Rate+0.02 -> 0.14 | F11: =Hurdle1_Investor-0.1 -> 0.8 | G11: =1-F11 -> 0.2
B12: Hurdle 3 | D12: =D11 -> Cash on Cash | E12: =Hurdle2_Rate+0.02 -> 0.16 | F12: =Hurdle2_Investor-0.1 -> 0.7 | G12: 0.3
B13: Final Split | F13: =Hurdle3_Investor-0.1 -> 0.6 | G13: 0.4
B14: Reversion (Sale) Proceeds | C14: Independent | F14: 0.5 | G14: =1-F14 -> 0.5
B19: Cash Flow Waterfall Summary
B20: Period | D20: 0 | E20: 1 | F20: 2 | G20: 3 | H20: 4 | I20: 5 | J20: 6 | K20: 7 | L20: 8 | M20: 9 | N20: 10
B21: Pre-Tax Net Cash Flow | D21: =IF(LEFT($B$21,3)="Pre",'Return Detail'!E37,'Return Detail'!E85) -> -792200 | E21: =IF(LEFT($B$21,3)="Pre",'Return Detail'!F$32,'Return Detail'!F$83) -> 25900.93132 | F21: =IF(LEFT($B$21,3)="Pre",'Return Detail'!G$32,'Return Detail'!G$83) -> 24061.93132 | G21: =IF(LEFT($B$21,3)="Pre",'Return Detail'!H$32,'Return Detail'!H$83) -> -48956.66667 | H21: =IF(LEFT($B$21,3)="Pre",'Return Detail'!I$32,'Return Detail'!I$83) -> 27948.54463 | I21: =IF(LEFT($B$21,3)="Pre",'Return Detail'!J$32,'Return Detail'!J$83) -> -46156.88412 | J21: =IF(LEFT($B$21,3)="Pre",'Return Detail'!K$32,'Return Detail'!K$83) -> 47498.55075 | K21: =IF(LEFT($B$21,3)="Pre",'Return Detail'!L$32,'Return Detail'!L$83) -> 1279.941668 | L21: =IF(LEFT($B$21,3)="Pre",'Return Detail'!M$32,'Return Detail'!M$83) -> -5591.065918 | M21: =IF(LEFT($B$21,3)="Pre",'Return Detail'!N$32,'Return Detail'!N$83) -> 9495.629349 | N21: =IF(LEFT($B$21,3)="Pre",'Return Detail'!O$32,'Return Detail'!O$83) -> 79920.09526
B22: =IF(LEFT($B$21,3)="Pre","Pre-Tax Sale Proceeds","Post-Tax Sale Proceeds") -> Pre-Tax Sale Proceeds | E22: =IF(LEFT($B$21,3)="Pre",'Return Detail'!F$73,'Return Detail'!F$77) -> 0 | F22: =IF(LEFT($B$21,3)="Pre",'Return Detail'!G$73,'Return Detail'!G$77) -> 0 | G22: =IF(LEFT($B$21,3)="Pre",'Return Detail'!H$73,'Return Detail'!H$77) -> 0 | H22: =IF(LEFT($B$21,3)="Pre",'Return Detail'!I$73,'Return Detail'!I$77) -> 0 | I22: =IF(LEFT($B$21,3)="Pre",'Return Detail'!J$73,'Return Detail'!J$77) -> 0 | J22: =IF(LEFT($B$21,3)="Pre",'Return Detail'!K$73,'Return Detail'!K$77) -> 0 | K22: =IF(LEFT($B$21,3)="Pre",'Return Detail'!L$73,'Return Detail'!L$77) -> 0 | L22: =IF(LEFT($B$21,3)="Pre",'Return Detail'!M$73,'Return Detail'!M$77) -> 0 | M22: =IF(LEFT($B$21,3)="Pre",'Return Detail'!N$73,'Return Detail'!N$77) -> 0 | N22: =IF(LEFT($B$21,3)="Pre",'Return Detail'!O$73,'Return Detail'!O$77) -> 1961947.11
B23: Total Cash Flow | D23: =SUM(D21:D22) -> -792200 | E23: =SUM(E21:E22) -> 25900.93132 | F23: =SUM(F21:F22) -> 24061.93132 | G23: -48956.66667 | H23: 27948.54463 | I23: -46156.88412 | J23: 47498.55075 | K23: 1279.941668 | L23: -5591.065918 | M23: 9495.629349 | N23: 2041867.205
B25: =Name_Partner -> JV Partner Preferred Equity
B26: Cash Flow Paid at Preferred Return | D26: =D80 -> -712980 | E26: =SUM(E76:E77,E87) -> 25900.93132 | F26: 24061.93132 | G26: -48956.66667 | H26: 27948.54463 | I26: -46156.88412 | J26: 47498.55075 | K26: 1279.941668 | L26: -5591.065918 | M26: 9495.629349 | N26: 79920.09526
B27: Cash Flow Paid at Hurdle 1 | D27: =D113 -> 0 | E27: =SUM(E113:E114) -> 0 | F27: =SUM(F113:F114) -> 0 | G27: 0 | H27: 0 | I27: 0 | J27: 0 | K27: 0 | L27: 0 | M27: 0 | N27: 0
B28: Cash Flow Paid at Hurdle 2 | D28: =D134 -> 0 | E28: =SUM(E134:E135) -> 0 | F28: =SUM(F134:F135) -> 0 | G28: 0 | H28: 0 | I28: 0 | J28: 0 | K28: 0 | L28: 0 | M28: 0 | N28: 0
B29: Cash Flow Paid at Hurdle 3 | D29: =D155 -> 0 | E29: =SUM(E155:E156) -> 0 | F29: =SUM(F155:F156) -> 0 | G29: 0 | H29: 0 | I29: 0 | J29: 0 | K29: 0 | L29: 0 | M29: 0 | N29: 0
B30: Cash Flow Paid at Final Split | D30: =D175 -> 0 | E30: =E175 -> 0 | F30: 0 | G30: 0 | H30: 0 | I30: 0 | J30: 0 | K30: 0 | L30: 0 | M30: 0 | N30: 0
B31: Cash Flow Paid at Reversion (Sale) | D31: 0 | E31: =IF(Reversion_Method="Independent",E$22*Revsersion_Split_Equity,0) -> 0 | F31: 0 | G31: 0 | H31: 0 | I31: 0 | J31: 0 | K31: 0 | L31: 0 | M31: 0 | N31: 980973.5549
B32: Total Cash Flow to Equity Investor | D32: =SUM(D26:D31) -> -712980 | E32: =SUM(E26:E31) -> 25900.93132 | F32: =SUM(F26:F31) -> 24061.93132 | G32: -48956.66667 | H32: 27948.54463 | I32: -46156.88412 | J32: 47498.55075 | K32: 1279.941668 | L32: -5591.065918 | M32: 9495.629349 | N32: 1060893.65
B33: Annual Cash on Cash | E33: =IFERROR(E32/(Equity_Amount*Contribution_JV),"-") -> 0.03632771091 | F33: 0.03374839592 | G33: -0.06866485268 | H33: 0.03919961938 | I33: -0.06473797879 | J33: 0.06661975195 | K33: 0.001795199961 | L33: -0.007841827145 | M33: 0.01331822681 | N33: 1.487971121
B35: Net Cash Flow | C35: =SUM(D32:N32) -> 383394.5625
B36: IRR | C36: =IFERROR(IRR(D32:N32),"-") -> 0.04505255983
B37: Equity Multiple | C37: =IFERROR(SUM(E32:N32)/(Equity_Amount*Contribution_JV),"-") -> 1.537735368
B38: Average Annual Cash on Cash Return | C38: =IFERROR((SUM(E32:N32)/Hold)/(Equity_Amount*Contribution_JV),"-") -> 0.1537735368
B40: =Name_Developer -> Developer Equity
B41: Cash Flow Paid at Preferred Return | D41: =D96 -> -79220 | E41: =E$104 -> 0 | F41: =F$104 -> 0 | G41: 0 | H41: 0 | I41: 0 | J41: 0 | K41: 0 | L41: 0 | M41: 0 | N41: 0
B42: Cash Flow Paid at Hurdle 1 | D42: =D122 -> 0 | E42: =E122 -> 0 | F42: 0 | G42: 0 | H42: 0 | I42: 0 | J42: 0 | K42: 0 | L42: 0 | M42: 0 | N42: 0
B43: Cash Flow Paid at Hurdle 2 | D43: =D143 -> 0 | E43: =E143 -> 0 | F43: 0 | G43: 0 | H43: 0 | I43: 0 | J43: 0 | K43: 0 | L43: 0 | M43: 0 | N43: 0
B44: Cash Flow Paid at Hurdle 3 | D44: =D164 -> 0 | E44: =E164 -> 0 | F44: 0 | G44: 0 | H44: 0 | I44: 0 | J44: 0 | K44: 0 | L44: 0 | M44: 0 | N44: 0
B45: Cash Flow Paid at Final Split | D45: =D180 -> 0 | E45: =E180 -> 0 | F45: 0 | G45: 0 | H45: 0 | I45: 0 | J45: 0 | K45: 0 | L45: 0 | M45: 0 | N45: 0
B46: Cash Flow Paid at Reversion (Sale) | D46: 0 | E46: =IF(Reversion_Method="Independent",E$22*Reversion_Split_Dev,0) -> 0 | F46: 0 | G46: 0 | H46: 0 | I46: 0 | J46: 0 | K46: 0 | L46: 0 | M46: 0 | N46: 980973.5549
B47: Total Cash Flow to Developer | D47: =SUM(D41:D46) -> -79220 | E47: =SUM(E41:E46) -> 0 | F47: 0 | G47: 0 | H47: 0 | I47: 0 | J47: 0 | K47: 0 | L47: 0 | M47: 0 | N47: 980973.5549
B48: Annual Cash on Cash | E48: =IFERROR(E47/(Equity_Amount*Contribution_Developer),"-") -> 0 | F48: 0 | G48: 0 | H48: 0 | I48: 0 | J48: 0 | K48: 0 | L48: 0 | M48: 0 | N48: 12.38290274
B50: Net Cash Flow | C50: =SUM(D47:N47) -> 901753.5549
B51: IRR | C51: =IFERROR(IRR(D47:N47),"-") -> 0.2861222339
B52: Equity Multiple | C52: =IFERROR(SUM(E47:N47)/(Equity_Amount*Contribution_Developer),"-") -> 12.38290274
B53: Average Annual Cash on Cash Return | C53: =IFERROR((SUM(E47:N47)/Hold)/(Equity_Amount*Contribution_Developer),"-") -> 1.238290274
B59: www.realpropmetrics.com
B60: ="Version: "&Version -> Version: 9.42 C | © 2022
B61: =TODAY() -> 2022-02-23
B62: This pro forma does not constitute tax advice. Please consult a professional tax advisor.
B66: =B2 -> Pre-Tax Equity Investor Returns
B68: Cash Flow Waterfall Detail Analysis
B70: =B20 -> Period | D70: =D20 -> 0 | E70: 1 | F70: 2 | G70: 3 | H70: 4 | I70: 5 | J70: 6 | K70: 7 | L70: 8 | M70: 9 | N70: 10
B71: =B21 -> Pre-Tax Net Cash Flow | D71: =IF(Reversion_Method="Independent",D$21,D$23) -> -792200 | E71: 25900.93132 | F71: 24061.93132 | G71: -48956.66667 | H71: 27948.54463 | I71: -46156.88412 | J71: 47498.55075 | K71: 1279.941668 | L71: -5591.065918 | M71: 9495.629349 | N71: 79920.09526
B73: Preferred Return
B74: Equity Investor
B75: ="CF Allocation at "&ROUND(Pref_Investor*100,1)&"%" -> CF Allocation at 100% | D75: =D$71*Contribution_JV -> -712980 | E75: =E$71*Pref_Investor -> 25900.93132 | F75: 24061.93132 | G75: -48956.66667 | H75: 27948.54463 | I75: -46156.88412 | J75: 47498.55075 | K75: 1279.941668 | L75: -5591.065918 | M75: 9495.629349 | N75: 79920.09526
